Workbook

Sheet NOVO
B3: Novidades da Versão
A6: V3.00
B7: GERAL
C8: =IF(D8<>"","▪","") -> ▪ | D8: Lançamento: Adequação à Portaria 424/2016. Acompanhamento por Eventos.
C9: =IF(D9<>"","▪","") -> 
A10: V3.01
B11: GERAL
C12: =IF(D12<>"","▪","") -> ▪ | D12: Ajustes de formatações.
B13: PO
C14: =IF(D14<>"","▪","") -> ▪ | D14: Correção da aplicação do BDI não desonerado.
C15: =IF(D15<>"","▪","") -> ▪ | D15: Inclusão de coluna exclusiva "Preço Unitário Edital", para o Modo 'Orçamento Licitado'.
A17: V3.02
B18: GERAL
C19: =IF(D19<>"","▪","") -> ▪ | D19: Ajustes de formatações.
C20: =IF(D20<>"","▪","") -> ▪ | D20: Correção do Problema de Guias ocultas no BROFFICE.
B21: ORÇAMENTO
C22: =IF(D22<>"","▪","") -> ▪ | D22: Ampliada obtenção de dados da Planilha Referência de 20.000 para 65.536 linhas.
B23: CRONOGRAMA
C24: =IF(D24<>"","▪","") -> ▪ | D24: Correção na formulação do total acumulado por Repasse, CP e Outros
B25: QCI
C26: =IF(D26<>"","▪","") -> ▪ | D26: Correção na formulação do arredondamento no rateio dos valores do QCI.
B27: RRE
C28: =IF(D28<>"","▪","") -> ▪ | D28: Correção na formulação do total por Repasse, CP e Outros.
A30: V3.03
B31: GERAL
C32: =IF(D32<>"","▪","") -> ▪ | D32: Correção do Problema de Guias ocultas no BROFFICE.
B33: CÁLCULO
C34: =IF(D34<>"","▪","") -> ▪ | D34: Corrigida lentidão e travamento ao incluir e excluir frentes.
A37: V3.04
B38: BDI
C39: =IF(D39<>"","▪","") -> ▪ | D39: Correção da CPRB que exibia 4,5% mesmo quando não desonerado.
B40: CRONOGRAMA
C41: =IF(D41<>"","▪","") -> ▪ | D41: Correção da distribuição de Repasse, CP e Outros para as metas manuais.
B42: QCI
C43: =IF(D43<>"","▪","") -> ▪ | D43: Adicionado botão para adotar a CP do QCI como CP do contrato (zera saldo a reprogramar de CP).
A45: V3.05
B46: GERAL
C47: =IF(D47<>"","▪","") -> ▪ | D47: Corrigido modo de Cálculo da Planilha para Automático.
A49: V3.06
B50: GERAL
C51: =IF(D51<>"","▪","") -> ▪ | D51: Adicionado modo de arredondamento para compatibilidade com o TransfereGOV, altera na aba DADOS
C52: =IF(D52<>"","▪","") -> ▪ | D52: A planilha passará a ser disponibilizada com o formato .xlsm. Deve ser usado arquivo referência 1.9 ou superior, também no formato .xlsm
A54: V3.07
B55: GERAL
C56: =IF(D56<>"","▪","") -> ▪ | D56: Alterada a posição da aba NOVO para antes da aba MENU.
C57: =IF(D57<>"","▪","") -> ▪ | D57: Alterada a posição da aba CÁLCULO para depois da aba EVENTOS. Pois, no caso de acompanhamento por PLE, a lista supensa na coluna "Nº Agrupador de Eventos" na aba CÁLCULO depende do preenchimento prévio da aba EVENTOS.
C58: ▪ | D58: Alterada a posição da aba CRONO para depois da aba CRONOPLE. Pois, no caso de acompanhamento por PLE, a aba CRONO tem o preenchimento automático a partir da aba CRONOPLE.
C59: ▪ | D59: Alterada a posição da aba PLE para depois da aba QCI. Com a finalidade de deixar agrupadas todas as abas de acompanhamento (PLE, BM, RRE, OFÍCIO).
C60: ▪ | D60: Acrescentados botões de navegação (cor azul claro) em várias abas. Em relação a esses botões, também foram ajustados os links, nomes e formatação.
C61: ▪ | D61: Criada macro para exibir apenas as abas pertinentes (exemplo: caso o acompanhamento seja por PLE, a aba BM fica oculta).
C62: ▪ | D62: Ajuste na macro para correção automática do Nº AGRUPADOR DE EVENTOS na aba CÁLCULO, quando se ADCIONAR ou EXCLUIR LINHAS na aba EVENTOS.
B63: MENU
C64: =IF(D64<>"","▪","") -> ▪ | D64: Acrescentado o botão "IMPORTAR DE OUTROS MODELOS CAIXA": PO (MO27476); PLE (MO27477); e QCI (MO41211).
C65: =IF(D65<>"","▪","") -> ▪ | D65: Acrescentado o botão de seleção "Importar Fórmulas para o Custo Unitário (aba ORÇAMENTO)".
D66: Caso selecionada, será importada a fórmula (se houver) do custo unitário; Caso desmarcada, será importado somente o valor.
C67: =IF(D67<>"","▪","") -> ▪ | D67: Acrescentado o botão de seleção "Importar Fórmulas para as Quantidades da PLQ (aba CÁLCULO)".
D68: Caso selecionada, será importada a fórmula (se houver) do quantitativo; Caso desmarcada, será importado somente o valor.
C69: =IF(D69<>"","▪","") -> ▪ | D69: Atualizada a macro de Importação para incluir a importar da coluna "Nº Agrupador de Eventos" da aba CÁLCULO.
C70: =IF(D70<>"","▪","") -> ▪ | D70: Atualizada a macro de Imprimir Documentos (para englobar as abas EVENTOS e CRONOPLE).
B71: BDI
C72: =IF(D72<>"","▪","") -> ▪ | D72: Ajuste automático do valor da CPRB em função da data base do orçamento (para atendimento do Art. 9-A da Lei 12.546 de 14/12/2011).
B73: EVENTOS
C74: =IF(D74<>"","▪","") -> ▪ | D74: Acrescentados os dados de identificação do Contrato de Repasse.
C75: =IF(D75<>"","▪","") -> ▪ | D75: Acrescentadas as colunas dos totais dos Eventos por Frentes de Obra.
C76: =IF(D76<>"","▪","") -> ▪ | D76: Acrescentados os dados de Local, Data e Responsável Técnico.
C77: =IF(D77<>"","▪","") -> ▪ | D77: Acrescentado FILTRO para exibir apenas as linhas preenchidas.
B78: CRONOPLE
C79: =IF(D79<>"","▪","") -> ▪ | D79: Acrescentados os dados de identificação do Contrato de Repasse.
C80: =IF(D80<>"","▪","") -> ▪ | D80: Acrescentado o quadro "Cronograma" com percentual e valor da parcela e percentual e valor acumulado.
C81: =IF(D81<>"","▪","") -> ▪ | D81: Acrescentados os dados de Local, Data e Responsável Técnico.
C82: =IF(D82<>"","▪","") -> ▪ | D82: Acrescentado FILTRO para exibir apenas as linhas preenchidas.
B83: RRE
C84: =IF(D84<>"","▪","") -> ▪ | D84: Correção na fórmula da data, para replicar a “Data de fechamento do RRE” na aba DADOS.
B85: OFÍCIO
C86: =IF(D86<>"","▪","") -> ▪ | D86: Exclusão do quadro "Resumo de Valores por CTEF".
A88: V3.08
B89: GERAL
C90: =IF(D90<>"","▪","") -> ▪ | D90: Incluídos alertas de erro de preenchimento em todas as abas.
B91: MENU
C92: =IF(D92<>"","▪","") -> ▪ | D92: Incluído botão de macro para gerar arquivo (em xlsx) para upload da PO e CFF no TransfereGOV.
C93: =IF(D93<>"","▪","") -> ▪ | D93: Ajustada a macro "Importar de outra Planilha Múltipla" para importar o Cronograma da aba CRONO. Também foram incluídas as importações dos campos: Data do preenchimento (DADOS), Data de fechamento do RRE (DADOS); nº da 1ª Parcela do Cronograma (CRONO), mês da 1ª Parcela do Cronograma (CRONO), nº da Medição (BM) e nº da Medição (PLE).
C94: =IF(D94<>"","▪","") -> ▪ | D94: Incluída a informação do progresso na macro "Importar de outra Planilha Múltipla", por meio de uma barra de progresso (janela que será exibida na tela) e da indicação das etapas de importação na barra de status do Excel (canto inferior esquerdo da janela do Excel).
B95: BDI
C96: =IF(D96<>"","▪","") -> ▪ | D96: Incluídos botões de navegação para os formulários de BDI (BDI 1, BDI 2, BDI 3).
B97: ORÇAMENTO
C98: =IF(D98<>"","▪","") -> ▪ | D98: Incluído botão de macro para padronizar as siglas de unidades, conforme lista de siglas válidas no TransfereGOV.
B99: EVENTOS
C100: =IF(D100<>"","▪","") -> ▪ | D100: O Título de Evento "Administração Local" com preenchimento automático proporcional agora é exibido apenas no modo Arredondamento de Frentes "Tradicional" e para a opção Agrupadores de Eventos "Definir Manualmente".
C101: =IF(D101<>"","▪","") -> ▪ | D101: Não é mais possível deixar Eventos em branco (sem nome ou sem valor).
B102: CÁLCULO
C103: =IF(D103<>"","▪","") -> ▪ | D103: Não é mais possível deixar Frentes de Obra em branco (sem nome ou sem quantidades).
B104: CRONOPLE
C105: =IF(D105<>"","▪","") -> ▪ | D105: Incluído campo para selecionar o Título do Evento referente à Administração Local (acompanhamento por PLE).
C106: =IF(D106<>"","▪","") -> ▪ | D106: Incluída linha com o percentual acumulado da Administração Local em cada período.
B107: CRONO
C108: =IF(D108<>"","▪","") -> ▪ | D108: Ajustada a fórmula do % acumulado a partir da parcela 13 (para manter o padrão da fórmula das parcelas 1 a 12).
C109: =IF(D109<>"","▪","") -> ▪ | D109: Incluído campo para selecionar o Macrosserviço referente à Administração Local (acompanhamento por BM).
C110: =IF(D110<>"","▪","") -> ▪ | D110: Incluída linha com o percentual acumulado da Administração Local em cada parcela.
B111: RRE
C112: =IF(D112<>"","▪","") -> ▪ | D112: Corrigida a fórmula do % no quadro "Percentual previsto em:". Que estava limitada a buscar o % previsto até a parcela 12.
B113: PLE
C114: =IF(D114<>"","▪","") -> ▪ | D114: Incluída linha com o percentual acumulado da Administração Local em cada medição.
B115: BM
C116: =IF(D116<>"","▪","") -> ▪ | D116: Incluído campo com o percentual medido acumulado da Administração Local.
A118: V3.09
B119: MENU
C120: =IF(D120<>"","▪","") -> ▪ | D120: Atualizada a macro "Gerar arquivo para upload no TransfereGOV" para ajustar os códigos de composições SINAPI (acrescentar zeros a esquerda até completar dez dígitos) para Data base igual ou superior a JAN/2025.
B121: ORÇAMENTO
C122: =IF(D122<>"","▪","") -> ▪ | D122: Acrescentada formatação condicional na coluna "Descrição" para exibir os textos de alerta de erro, textos que começam com "(", na cor vermelha.
B123: BDI
C124: =IF(D124<>"","▪","") -> ▪ | D124: Corrigida a macro dos botões de navegação para os formulários do BDI.
A126: V3.10
B127: GERAL
C128: =IF(D128<>"","▪","") -> ▪ | D128: Corrigidas as fórmulas da v3.08 / v3.09 que eram incompatíveis com as versões do Excel anteriores ao Office 365.

Sheet MENU
J1: PM | K1: TRUE
E2: =CHOOSE(MATCH(Objeto,{"PM","PO"}),"PLANILHA MÚLTIPLA ","PLANILHA ORÇAMENTÁRIA ")& Versao -> PLANILHA MÚLTIPLA v3.10 | J2: v3.10 | K2: TRUE
O3: 1
J4: =IF(VALUE(MENU!$O$4)=2,"BM","PLE") -> BM | O4: 2
J5: Proposto
E6: DADOS DO CONTRATO | G6: NOVIDADES DA VERSÃO | J6: Licitado
J7: PLE
B8: =IF($O$3<>2,"DOCUMENTAÇÃO DA PROPOSTA","PROPOSTA: Para visualizar/preencher esta seção, altere o TIPO DE ORÇAMENTO para 'Proposto'") -> DOCUMENTAÇÃO DA PROPOSTA | J8: BM | L8: LEGENDA:
L9: Cores das células:
C10: =IF(TIPOORCAMENTO<>"Proposto",""," BDI ") -> BDI | E10: =IF(TIPOORCAMENTO<>"Proposto",""," ORÇAMENTO ") -> ORÇAMENTO | G10: =IF(TIPOORCAMENTO<>"Proposto","","MEMÓRIA DE CÁLCULO / PLQ") -> MEMÓRIA DE CÁLCULO / PLQ | N10: Fundo amarelo: células para preencher
C12: =IF(TIPOORCAMENTO<>"Proposto",""," QCI ") -> QCI | E12: =IF(TIPOORCAMENTO<>"Proposto","","CRONOGRAMA FÍSICO-FINANCEIRO") -> CRONOGRAMA FÍSICO-FINANCEIRO | N12: Fundo azul: células para seleção de opções
C14: =IF(TIPOORCAMENTO<>"Proposto","","Obs: Composições e Cotações devem ser preenchidas diretamente no arquivo Referência "&IF(ISBLANK(Import.DataBase),"mm-aaaa",TEXT(Import.DataBase,"mm-aaaa"))&".xlsm.") -> Obs: Composições e Cotações devem ser preenchidas diretamente no arquivo Referência 09-2025.xlsm.
L15: Cores dos botões:
B16: =IF($O$3<>2,"PÓS-LICITADO: Para visualizar/preencher esta seção, altere o TIPO DE ORÇAMENTO para 'Licitado'","RESULTADO DO PROCESSO LICITATÓRIO") -> PÓS-LICITADO: Para visualizar/preencher esta seção, altere o TIPO DE ORÇAMENTO para 'Licitado' | N16: Fundo azul claro: navegação entre abas
C18: =IF(TIPOORCAMENTO<>"Licitado",""," ORÇAMENTO ") ->  | E18: =IF(TIPOORCAMENTO<>"Licitado",""," QCI ") ->  | G18: =IF(TIPOORCAMENTO<>"Licitado","","CRONOGRAMA FÍSICO-FINANCEIRO") ->  | N18: Fundo laranja: execução de macro
B20: =IF($O$3<>2,"ACOMPANHAMENTO: Para visualizar/preencher esta seção, altere o TIPO DE ORÇAMENTO para 'Licitado'","ACOMPANHAMENTO DO EMPREENDIMENTO") -> ACOMPANHAMENTO: Para visualizar/preencher esta seção, altere o TIPO DE ORÇAMENTO para 'Licitado'
C22: =IF(OR(_xlfn.SINGLE(TIPOORCAMENTO)<>"Licitado",ACOMPANHAMENTO<>"PLE"),"","PLAN. DE LEVANT. DE EVENTOS - PLE") ->  | E22: =IF(TIPOORCAMENTO<>"Licitado",""," RRE ") ->  | G22: =IF(OR(_xlfn.SINGLE(TIPOORCAMENTO)<>"Licitado",ACOMPANHAMENTO<>"BM"),""," BOLETIM DE MEDIÇÃO - BM ") -> 
E24: =IF(TIPOORCAMENTO<>"Licitado","","OF. DE SOLICITAÇÃO DE DESBLOQUEIO") -> 

Sheet DADOS
B1: A. DOCUMENTAÇÃO DA PROPOSTA | D1: =IF(D3<>"","Falta preencher os Dados do Contrato",IF(D15<>"","Falta preencher os Dados do Empreendimento",IF(D21<>"","Falta preencher os Dados do Responsável pelo Orçamento",IF(D27<>"","Falta preencher os Dados do Responsável pelo Tomador",IF(D31<>"","Falta definir o método de arredondamento das frentes de obra",IF(D35<>"","Falta preencher os Dados da Licitação",IF(D46<>"","Falta preencher os Dados da Obra",IF(D50<>"","Falta preencher os Dados do Responsável pela Fiscalização","")))))))) -> Falta preencher os Dados do Contrato | I1: Sub-Itens de Investimento | AQ1: Unidades válidas no Tgov
G2: Itens de Investimento | H2: Unidades habitacionais | I2: =COUNTA(H:H)-1 -> 3 | J2: Equipamentos comunitários | K2: =COUNTA(J:J)-1 -> 6 | L2: Pavimentação | M2: =COUNTA(L:L)-1 -> 6 | N2: Drenagem | O2: =COUNTA(N:N)-1 -> 6 | P2: Abastecimento de água | Q2: =COUNTA(P:P)-1 -> 11 | R2: Esgotamento sanitário | S2: =COUNTA(R:R)-1 -> 8 | T2: Energia elétrica e iluminação pública | U2: =COUNTA(T:T)-1 -> 4 | V2: Coleta e tratamento de resíduos sólidos | W2: =COUNTA(V:V)-1 -> 6 | X2: Contenção e estabilização de encostas | Y2: =COUNTA(X:X)-1 -> 2 | Z2: Regularização fundiária | AA2: =COUNTA(Z:Z)-1 -> 2 | AB2: Aquisição de terreno | AC2: =COUNTA(AB:AB)-1 -> 2 | AD2: Aquisição de equipamentos e insumos | AE2: =COUNTA(AD:AD)-1 -> 1 | AF2: Elaboração de estudos e projetos | AG2: =COUNTA(AF:AF)-1 -> 1 | AH2: Instrumentos e ações em planejamento e gestão pública | AI2: =COUNTA(AH:AH)-1 -> 1 | AJ2: Ações complementares às obras | AK2: =COUNTA(AJ:AJ)-1 -> 3 | AL2: Gerenciamento | AM2: =COUNTA(AL:AL)-1 -> 1 | AN2: Trabalho social | AO2: =COUNTA(AN:AN)-1 -> 4 | AQ2: Sigla | AR2: Descrição
B3: Dados do Contrato (Inicial) | D3: =IF(COUNTIF(D4:D13,"◄")=0,"","Falta preencher a linha "&MATCH("◄",D4:D13,0)+ROW(D3)) -> Falta preencher a linha 7 | G3: Unidades habitacionais | H3: Aquisição | I3: un | J3: Convivência comunitária, assistência social e/ou comunitária | K3: m² | L3: Capeamento de vias | M3: m² | N3: Obras de microdrenagem | O3: m | P3: Captação subterrânea | Q3: m³/s | R3: Ligações domiciliares e/ou intradomiciliares | S3: un | T3: Iluminação pública - luminárias | U3: un | V3: Acondicionamento | W3: un | X3: Estabilização de taludes | Y3: m² | Z3: Desapropriacões/Indenizações | AA3: m² | AB3: Aquisição de terreno | AC3: m² | AD3: Aquisição de equipamentos e insumos | AE3: un | AF3: Elaboração de estudos e projetos | AG3: un | AH3: Instrumentos e ações em planejamento e gestão pública | AI3: un | AJ3: Avaliação pós intervenção | AK3: un | AL3: Gerenciamento | AM3: %CT | AN3: Projeto de Trabalho Social Preliminar | AO3: nº fam | AQ3: %CT | AR3: %CT
B4: Fonte de recursos: | C4: OGU | D4: =IF(OR(OFFSET(D4,0,-1)="",OFFSET(D4,0,-1)="(SELECIONAR)"),"◄","") ->  | G4: Equipamentos comunitários | H4: Construção | I4: un | J4: Educação e cultura | K4: m² | L4: Recapeamento de vias | M4: m² | N4: Desassoreamento de cursos de água | O4: m | P4: Captação superficial | Q4: m³/s | R4: Rede coletora e/ou condominial | S4: m | T4: Ligações domiciliares | U4: un | V4: Aterro sanitário e/ou disposição final | W4: m³ | X4: Obras complementares a ações de redução de risco e/ou contenções | Y4: m² | Z4: Projeto de Regularização Fundiária | AA4: m² | AB4: Benfeitorias | AC4: m² | AJ4: Demolições | AK4: un | AN4: Projeto de Trabalho Social | AO4: nº fam | AQ4: °C | AR4: GRAU CELSIUS
B5: Proponente/Tomador: | C5: MUNICIPIO DE SIDROLÂNDIA | D5: =IF(OFFSET(D5,0,-1)="","◄","") ->  | G5: Pavimentação | H5: Reforma e/ou melhoria | I5: un | J5: Esportes | K5: m² | L5: Obras de artes especiais | M5: m | N5: Canalização de cursos de água | O5: m | P5: Estação de bombeamento de água bruta | Q5: m³/s | R5: Coletor tronco e/ou interceptores | S5: m | T5: Linhas de distribuição - baixa tensão | U5: m | V5: Erradicação de lixões | W5: m³ | AJ5: Plano de Reassentamento e medidas compensatórias | AK5: un | AN5: Plano de Desenvolvimento Socioterritorial | AO5: nº fam | AQ5: °F | AR5: GRAU FAHRENHEIT
B6: Município/UF: | C6: MUNICIPIO DE SIDROLÂNDIA | G6: Drenagem | J6: Lazer e turismo | K6: m² | L6: Pavimentação de calçadas | M6: m² | N6: Recomposição de vegetação ciliar, renaturalização de cursos de água ou restauração de margens | O6: m² | P6: Adução | Q6: m | R6: Emissário | S6: m | T6: Linhas de transmissão - alta tensão | U6: m | V6: Sistema de coleta seletiva tradicional, transporte e/ou equipamentos | W6: un | AN6: Plano de Gestão Condominial | AO6: nº fam | AQ6: 100M | AR6: 100 METROS
B7: Nº da Operação (0000000-00): | D7: ◄ | G7: Abastecimento de água | J7: Saúde | K7: m² | L7: Pavimentação de vias | M7: m² | N7: Reservatório de amortecimento de cheias | O7: m³ | P7: Estação de Tratamento de Água (ETA) | Q7: m³/s | R7: Estação Elevatória | S7: m³/s | V7: Tratamento local | W7: un | AQ7: 18L | AR7: 18 LITROS
B8: Nº do TransfereGOV (000000): | D8: =IF(AND(Import.TipoArredondamento="TransfereGOV",OFFSET(D8,0,-1)=""),"◄","") -> ◄ | G8: Esgotamento sanitário | J8: Segurança pública | K8: m² | L8: Sinalização | M8: m² | N8: Estação de Bombeamento | O8: m³/s | P8: Estação de bombeamento de água tratada | Q8: m³/s | R8: Estação de Tratamento de Esgoto (ETE) | S8: m³/s | V8: Usinas de reciclagem | W8: m² | AQ8: 200KG | AR8: 200 QUILOS
B9: =IF(C4="FGTS","Valor de Financiamento Contratado (R$):","Valor do Repasse Contratado (R$):") -> Valor do Repasse Contratado (R$): | C9: 1000000 | G9: Energia elétrica e iluminação pública | P9: Linha de recalque | Q9: m | R9: Sistema simplificado de tratamento | S9: m³/s | AQ9: 250G | AR9: 250 GRAMAS
B10: Valor de Contrapartida Contratada (R$): | C10: 453184.15 | G10: Coleta e tratamento de resíduos sólidos | P10: Reservação | Q10: m³ | R10: Unidades sanitárias | S10: un | AQ10: 310ML | AR10: 310 MILILITROS
B11: % mínimo de Contrapartida: | D11: ◄ | G11: Contenção e estabilização de encostas | P11: Rede de distribuição | Q11: m | AQ11: 50KG | AR11: 50 QUILOS
B12: R$ mínimo de Contrapartida (se houver): | G12: Regularização fundiária | P12: Ligações domiciliares e/ou intradomiciliares | Q12: un | AQ12: A | AR12: AMPÈRE
B13: % máximo de Contrapartida: | G13: Aquisição de terreno | P13: Sistema simplificado de abastecimento | Q13: m | AQ13: ACA/ACC | AR13: A.CORR.ALTERN/CONT.
G14: Aquisição de equipamentos e insumos | AQ14: AH | AR14: AMPÈRE HORA
B15: Dados do Empreendimento e Orçamento | D15: =IF(COUNTIF(D16:D19,"◄")=0,"","Falta preencher a linha "&MATCH("◄",D16:D19,0)+ROW(D15)) ->  | G15: Elaboração de estudos e projetos | AQ15: AH/H/V | AR15: AMPÉRE-H/H/VOLT
B16: Nome/apelido: | C16: ELABORAÇÃO DE PROJETO EXECUTIVO DE PAVIMENTAÇÃO ASFÁLTICA E DRENAGEM DE ÁGUAS PLUVIAIS DO BAIRRO JATOBÁ E ADJACENTES NO MUNICÍPIO DE SIDROLÂNDIA - MS. | D16: =IF(OFFSET(D16,0,-1)="","◄","") ->  | G16: Instrumentos e ações em planejamento e gestão pública | AQ16: AM | AR16: AMPOLA
B17: Descrição do Objeto do Lote / CTEF: | C17: ELABORAÇÃO DE PROJETO EXECUTIVO DE PAVIMENTAÇÃO ASFÁLTICA E DRENAGEM DE ÁGUAS PLUVIAIS DO BAIRRO JATOBÁ E ADJACENTES NO MUNICÍPIO DE SIDROLÂNDIA - MS. | G17: Ações complementares às obras | AQ17: AM0/4ML | AR17: AMPOLA COM 0,4 Ml
B18: Regime previdenciário previsto para a obra: | C18: NÃO DESONERADO | D18: =IF(OR(OFFSET(D18,0,-1)="",OFFSET(D18,0,-1)="(SELECIONAR)"),"◄","") ->  | G18: Gerenciamento | AQ18: AM0/5ML | AR18: AMPOLA COM 0,5 mL
B19: Data base do Orçamento: | C19: 2025-09-01 | G19: Trabalho social | AQ19: AM1/5ML | AR19: AMPOLA COM 1,5 mL
AQ20: AM10ML | AR20: AMPOLA COM 10 mL
B21: Responsável pelo Orçamento | D21: =IF(COUNTIF(D22:D25,"◄")=0,"","Falta preencher a linha "&MATCH("◄",D22:D25,0)+ROW(D21)) ->  | AQ21: AM1ML | AR21: AMPOLA COM 1 mL
B22: Nome: | C22: ALAN PINHEIRO TRINDADE | D22: =IF(OFFSET(D22,0,-1)="","◄","") ->  | AQ22: AM2/5ML | AR22: AMPOLA COM 2,5 mL
B23: CREA/CAU: | C23: 70161/MS | AQ23: AM2ML | AR23: AMPOLA COM 2 mL
B24: ART/RRT: | C24: 1320250132544 | AQ24: AM3ML | AR24: AMPOLA COM 3 mL
B25: Data do preenchimento: | C25: 2025-09-01 | AQ25: AM4ML | AR25: AMPOLA COM 4 mL
AQ26: AM5ML | AR26: AMPOLA COM 5 mL
B27: Responsável pelo Tomador (Prefeito, no caso de Municípios) | D27: =IF(COUNTIF(D28:D29,"◄")=0,"","Falta preencher a linha "&MATCH("◄",D28:D29,0)+ROW(D27)) ->  | AQ27: AM6ML | AR27: AMPOLA COM 6 mL
B28: Nome: | C28: RODRIGO BASSO | D28: =IF(OFFSET(D28,0,-1)="","◄","") ->  | AQ28: AM7ML | AR28: AMPOLA COM 7 mL
B29: Cargo: | C29: PREFEITO MUNICIPAL | AQ29: ANO | AR29: ANO/ANOS
AQ30: ANOS | AR30: ANO/ANOS
B31: Arredondamento das frentes: | C31: TransfereGOV | D31: =IF(OFFSET(D31,0,-1)="","◄ Falta definir o método de arredondamento.","") ->  | AQ31: ARR | AR31: ARROBA
AQ32: AWG | AR32: AMERICAN WIRE GAUGE
B33: B. RESULTADO DO PROCESSO LICITATÓRIO | AQ33: BAR | AR33: BARRIL
AQ34: BAR. | AR34: BAR
B35: Licitação | D35: =IF(COUNTIF(D36:D39,"◄")=0,"","Falta preencher a linha "&MATCH("◄",D36:D39,0)+ROW(D35)) ->  | AQ35: BD | AR35: BALDE
B36: Data de emissão dos documentos de licitação: | D36: =IF(AND(TIPOORCAMENTO="Licitado",OFFSET(D36,0,-1)=""),"◄","") ->  | AQ36: BIS | AR36: BISNAGA
B37: Nº do CTEF (contrato com empresa): | D37: =IF(AND(TIPOORCAMENTO="Licitado",OFFSET(D37,0,-1)=""),"◄","") ->  | AQ37: BIS/GL | AR37: BISNAGA POR GALÃO
B38: Nome da empresa: | D38: =IF(AND(TIPOORCAMENTO="Licitado",OFFSET(D38,0,-1)=""),"◄","") ->  | AQ38: BIS1/65G | AR38: BISNAGA COM 1,65 g
B39: CNPJ da empresa: | D39: =IF(AND(TIPOORCAMENTO="Licitado",OFFSET(D39,0,-1)=""),"◄","") ->  | AQ39: BIS1/8G | AR39: BISNAGA COM 1,8 g
B40: Regime de execução do CTEF: | C40: (SELECIONAR) | D40: =IF(AND(TIPOORCAMENTO="Licitado",OR(OFFSET(D40,0,-1)="",OFFSET(D40,0,-1)="(SELECIONAR)")),"◄","") ->  | AQ40: BIS100G | AR40: BISNAGA COM 100 g
B41: Data base do CTEF: | D41: =IF(AND(TIPOORCAMENTO="Licitado",OFFSET(D41,0,-1)=""),"◄","") ->  | AQ41: BIS10G | AR41: BISNAGA COM 10 g
AQ42: BIS135G | AR42: BISNAGA COM 135 g
AQ43: BIS13G | AR43: BISNAGA COM 13 g
B44: C. ACOMPANHAMENTO DO EMPREENDIMENTO | AQ44: BIS14G | AR44: BISNAGA COM 14 g
AQ45: BIS15G | AR45: BISNAGA COM 15 g
B46: Dados da obra | D46: =IF(COUNTIF(D47:D48,"◄")=0,"","Falta preencher a linha "&MATCH("◄",D47:D48,0)+ROW(D46)) ->  | AQ46: BIS1G | AR46: BISNAGA COM 1 g
B47: Data do Início da Obra: | C47: 2025-12-01 | D47: =IF(AND(TIPOORCAMENTO="Licitado",OFFSET(D47,0,-1)="",IFERROR(RRE!$O$28,0)>0),"◄","") ->  | AQ47: BIS20G | AR47: BISNAGA COM 20 g
B48: Data de fechamento do RRE: | D48: =IF(AND(TIPOORCAMENTO="Licitado",OFFSET(D48,0,-1)="",IFERROR(RRE!$O$28,0)>0),"◄","") ->  | AQ48: BIS25G | AR48: BISNAGA COM 25 g
AQ49: BIS28/8G | AR49: BISNAGA COM 28,8 g
B50: Responsável pela Fiscalização | D50: =IF(COUNTIF(D51:D54,"◄")=0,"","Falta preencher a linha "&MATCH("◄",D51:D54,0)+ROW(D50)) ->  | AQ50: BIS28G | AR50: BISNAGA COM 28 g
B51: Nome: | D51: =IF(AND(TIPOORCAMENTO="Licitado",OFFSET(D51,0,-1)="",IFERROR(RRE!$O$28,0)>0),"◄","") ->  | AQ51: BIS2G | AR51: BISNAGA COM 2 g
B52: Profissão: | D52: =IF(AND(TIPOORCAMENTO="Licitado",OFFSET(D52,0,-1)="",IFERROR(RRE!$O$28,0)>0),"◄","") ->  | AQ52: BIS3/5G | AR52: BISNAGA COM 3,5 g
B53: CREA/CAU (para obras/projetos): | D53: =IF(AND(TIPOORCAMENTO="Licitado",OFFSET(D53,0,-1)="",IFERROR(RRE!$O$28,0)>0),"◄","") ->  | AQ53: BIS30G | AR53: BISNAGA COM 30 g
B54: ART/RRT (para obras/projetos): | D54: =IF(AND(TIPOORCAMENTO="Licitado",OFFSET(D54,0,-1)="",IFERROR(RRE!$O$28,0)>0),"◄","") ->  | AQ54: BIS30ML | AR54: BISNAGA COM 30 mL
AQ55: BIS40G | AR55: BISNAGA COM 40 g
AQ56: BIS43G | AR56: BISNAGA COM 43 g
B57: D. ACOMPANHAMENTO CAIXA | AQ57: BIS45G | AR57: BISNAGA COM 45 g
AQ58: BIS47G | AR58: BISNAGA COM 47 g
B59: Responsável Gerencial | AQ59: BIS4G | AR59: BISNAGA COM 4 g
B60: Nome: | AQ60: BIS50G | AR60: BISNAGA COM 50 g
B61: Função: | AQ61: BIS55G | AR61: BISNAGA COM 55 g
AQ62: BIS56G | AR62: BISNAGA COM 56 g
AQ63: BIS5G | AR63: BISNAGA COM 5 g
AQ64: BIS60G | AR64: BISNAGA COM 60 g
AQ65: BIS6G | AR65: BISNAGA COM 6 g
AQ66: BIS7/5G | AR66: BISNAGA COM 7,5 g
AQ67: BIS70G | AR67: BISNAGA COM 70 g
AQ68: BIS80G | AR68: BISNAGA COM 80 g
AQ69: BIS90G | AR69: BISNAGA COM 90 g
AQ70: BIT | AR70: BITS
AQ71: BL | AR71: BLOCO
AQ72: BLIS | AR72: BLISTER
AQ73: BLIS21CP | AR73: BLISTER COM 21 COMPRIMIDOS
AQ74: BLIS35CP | AR74: BLISTER COM 35 COMPRIMIDOS
AQ75: BOB | AR75: BOBINA
AQ76: BOL | AR76: BOLSA
AQ77: BOM | AR77: BOMBONA
AQ78: BPM | AR78: BATIDA POR MINUTO
AQ79: BPS | AR79: BYTE POR SEGUNDO
AQ80: BR | AR80: BARRA
AQ81: BRI | AR81: BARRICA
AQ82: BTJ | AR82: BOTIJÃO
AQ83: BTU | AR83: BRITISH THERMAL UNIT
AQ84: BTU/H | AR84: BTU POR HORA
AQ85: BWG | AR85: FIEIRA DE BIRMINGHAN
AQ86: C | AR86: CENTENA
AQ87: CA | AR87: CARTUCHO
AQ88: CAD | AR88: CADERNO
AQ89: CAL/G | AR89: CALORIA/GRAMA
AQ90: CAPS | AR90: CÁPSULA
AQ91: CAR | AR91: CARACTER
AQ92: CC | AR92: CILINDRADA
AQ93: CD | AR93: CANDELA
AQ94: CD/M2 | AR94: CANDELA/METRO 2
AQ95: CENTO | AR95: CENTO
AQ96: CG | AR96: CENTIGRAMA
AQ97: CH | AR97: CHAPA
AQ98: CHI | AR98: CHI
AQ99: CHP | AR99: CHP
AQ100: CHP | AR100: CHP
AQ101: CI | AR101: CURIE
AQ102: CIL | AR102: CILINDRO
AQ103: CIN | AR103: CINQUENTA
AQ104: CJ | AR104: CONJUNTO
AQ105: CL | AR105: CENTILITRO
AQ106: CM | AR106: CENTÍMETRO
AQ107: CM/POL | AR107: CENTÍMETRO/POLEGADA
AQ108: CM2 | AR108: CENTIMETRO QUADRADO
AQ109: CM2/H | AR109: CENT.QUAD/HORA
AQ110: CM2/M | AR110: CENT.QUADRADO/METRO
AQ111: CM3 | AR111: CENTÍMETRO CÚBICO
AQ112: CM³/H | AR112: CENT.CÚBICO POR HORA
AQ113: CM³/MIN | AR113: CM³/MINUTO
AQ114: CNT | AR114: RECIPIENTE
AQ115: CO | AR115: CONTEINER
AQ116: COL | AR116: COLEÇÃO
AQ117: COMP | AR117: COMPRIMENTO
AQ118: COMPR | AR118: COMPRIMIDO
AQ119: CÓPIA | AR119: CÓPIA
AQ120: COPO | AR120: COPO
AQ121: CP | AR121: CENTIPOISE
AQ122: CPL | AR122: CARACTERES POR LINHA
AQ123: CPM | AR123: CÓPIA POR MINUTO
AQ124: CPS | AR124: CARACTER POR SEGUNDO
AQ125: CRT | AR125: CARRETEL
AQ126: CS | AR126: GRADEADO DE JAULA
AQ127: CST | AR127: CENTISTOCKS
AQ128: CT | AR128: CARTAO
AQ129: CTE | AR129: CARTELA
AQ130: CV | AR130: CAVALO VAPOR
AQ131: CX | AR131: CAIXA
AQ132: CX100UN | AR132: CAIXA COM 100 UNIDADES
AQ133: CX40UN | AR133: CAIXA COM 40 UNIDADES
AQ134: D | AR134: DIA
AQ135: DAG | AR135: DECAGRAMA
AQ136: DAL | AR136: DECALITRO
AQ137: DAM | AR137: DECAMETRO
AQ138: DAN | AR138: DECANEWTON
AQ139: DB | AR139: DECIBEL
AQ140: DBM | AR140: DECIBEL MILIWATT
AQ141: DG | AR141: DECIGRAMA
AQ142: DGT | AR142: DÍGITO
AQ143: DIA | AR143: DIA
AQ144: DIAS | AR144: DIAS
AQ145: DISCO | AR145: DISCO
AQ146: DL | AR146: DECALITRO
AQ147: DM | AR147: DECIMETRO
AQ148: DM2 | AR148: DECIMETRO QUADRADO
AQ149: DM3 | AR149: DECIMETRO CUBICO
AQ150: DM3 | AR150: DECIMETRO CUBICO
AQ151: DOSES | AR151: DOSES
AQ152: DPI | AR152: PONTOS DE DEFINIÇÃO
AQ153: DPT | AR153: DIOPTRIA
AQ154: DRAG | AR154: DRÁGEA
AQ155: DZ | AR155: DUZIA
AQ156: EMB | AR156: EMBALAGEM
AQ157: EMB/H | AR157: EMBALAGEM POR HORA
AQ158: EMP | AR158: EMPLASTRO
AQ159: ENV | AR159: ENVELOPE
AQ160: ENV27/9G | AR160: ENVELOPE COM 27,9 g
AQ161: ENV30G | AR161: ENVELOPE COM 30 g
AQ162: EQP | AR162: EQUIPAMENTO
AQ163: EST | AR163: ESTUDANTE
AQ164: EV | AR164: ELÉTRON-VOLT
AQ165: F | AR165: FARAD
AQ166: FCK | AR166: FCK
AQ167: FD | AR167: FARDO
AQ168: FL | AR168: FOLHA
AQ169: FLAC | AR169: FLACONETE
AQ170: FLS/H | AR170: FOLHAS POR HORA
AQ171: FPM | AR171: FLASH POR MINUTO
AQ172: FPS | AR172: FOTOS P/SEGUNDO
AQ173: FR | AR173: FRASCO
AQ174: FR1000ML | AR174: FRASCO COM 1000 mL
AQ175: FR100DS | AR175: FRASCO COM 100 DOSES
AQ176: FR100ML | AR176: FRASCO COM 100 mL
AQ177: FR105ML | AR177: FRASCO COM 105 mL
AQ178: FR10ML | AR178: FRASCO COM 10 mL
AQ179: FR110ML | AR179: FRASCO COM 110 mL
AQ180: FR1200MG | AR180: FRASCO COM 1200 MG
AQ181: FR120DS | AR181: FRASCO COM 120 DOSES
AQ182: FR120ML | AR182: FRASCO COM 120 mL
AQ183: FR125ML | AR183: FRASCO COM 125 mL
AQ184: FR130DS | AR184: FRASCO COM 130 DOSES
AQ185: FR1500MG | AR185: FRASCO COM 1500 MG
AQ186: FR150DS | AR186: FRASCO COM 150 DOSES
AQ187: FR150ML | AR187: FRASCO COM 150 mL
AQ188: FR15ML | AR188: FRASCO COM 15 mL
AQ189: FR160ML | AR189: FRASCO COM 160 mL
AQ190: FR200DS | AR190: FRASCO COM 200 DOSES
AQ191: FR200ML | AR191: FRASCO COM 200 mL
AQ192: FR20ML | AR192: FRASCO COM 20 mL
AQ193: FR240ML | AR193: FRASCO COM 240 mL
AQ194: FR250ML | AR194: FRASCO COM 250 mL
AQ195: FR300DS | AR195: FRASCO COM 300 DOSES
AQ196: FR300ML | AR196: FRASCO COM 300 mL
AQ197: FR30DS | AR197: FRASCO COM 30 DOSES
AQ198: FR30G | AR198: FRASCO COM 30 g
AQ199: FR30ML | AR199: FRASCO COM 30 mL
AQ200: FR340ML | AR200: FRASCO COM 340 mL
... 20 more rows

Sheet BDI
E1: MIN | F1: MED | G1: MAX | O1: ="Quadro de Composição do BDI" -> Quadro de Composição do BDI | R1: Grau de Sigilo
A2: Construção e Reforma de Edifícios | B2: AC | C2: =CONCATENATE(A2,"-",B2) -> Construção e Reforma de Edifícios-AC | E2: 0.03 | F2: 0.04 | G2: 0.055 | R2: #PUBLICO
A3: =A2 -> Construção e Reforma de Edifícios | B3: SG | C3: Construção e Reforma de Edifícios-SG | E3: 0.008 | F3: 0.008 | G3: 0.01
A4: =A3 -> Construção e Reforma de Edifícios | B4: R | C4: Construção e Reforma de Edifícios-R | E4: 0.0097 | F4: 0.0127 | G4: 0.0127 | J4: Nº OPERAÇÃO | L4: Nº TRANSFEREGOV | N4: PROPONENTE / TOMADOR
A5: =A4 -> Construção e Reforma de Edifícios | B5: DF | C5: Construção e Reforma de Edifícios-DF | E5: 0.0059 | F5: 0.0123 | G5: 0.0139 | J5: =Import.CR -> 0 | L5: =Import.TransfereGOV -> 0 | N5: =Import.Proponente -> MUNICIPIO DE SIDROLÂNDIA
A6: =A5 -> Construção e Reforma de Edifícios | B6: L | C6: Construção e Reforma de Edifícios-L | E6: 0.0616 | F6: 0.074 | G6: 0.0896 | I6: FILTRO
A7: =A6 -> Construção e Reforma de Edifícios | B7: BDI PAD | C7: Construção e Reforma de Edifícios-BDI PAD | E7: 0.2034 | F7: 0.2212 | G7: 0.25 | J7: APELIDO DO EMPREENDIMENTO / DESCRIÇÃO DO LOTE | U7: =IF(OR(U10<>"",U11<>""),"Falta preencher os percentuais do ISS",IF(U14<>"","Falta preencher o BDI 1",IF(U54<>"","Falta preencher o BDI 2",IF(U94<>"","Falta preencher o BDI 3","")))) -> 
A8: Construção de Praças Urbanas, Rodovias, Ferrovias e recapeamento e pavimentação de vias urbanas | B8: AC | C8: Construção de Praças Urbanas, Rodovias, Ferrovias e recapeamento e pavimentação de vias urbanas-AC | E8: 0.038 | F8: 0.0401 | G8: 0.0467 | J8: =Import.Apelido&" / "&Import.DescLote -> ELABORAÇÃO DE PROJETO EXECUTIVO DE PAVIMENTAÇÃO ASFÁLTICA E DRENAGEM DE ÁGUAS PLUVIAIS DO BAIRRO JATOBÁ E ADJACENTES NO MUNICÍPIO DE SIDROLÂNDIA - MS. / ELABORAÇÃO DE PROJETO EXECUTIVO DE PAVIMENTAÇÃO ASFÁLTICA E DRENAGEM DE ÁGUAS PLUVIAIS DO BAIRRO JATOBÁ E ADJACENTES NO MUNICÍPIO DE SIDROLÂNDIA - MS. | U8: =IF(U29="FORA DO INTERVALO","BDI 1 fora do intervalo",IF(U69="FORA DO INTERVALO","BDI 2 fora do intervalo",IF(U109="FORA DO INTERVALO","BDI 3 fora do intervalo",""))) -> 
A9: Construção de Praças Urbanas, Rodovias, Ferrovias e recapeamento e pavimentação de vias urbanas | B9: SG | C9: Construção de Praças Urbanas, Rodovias, Ferrovias e recapeamento e pavimentação de vias urbanas-SG | E9: 0.0032 | F9: 0.004 | G9: 0.0074
A10: Construção de Praças Urbanas, Rodovias, Ferrovias e recapeamento e pavimentação de vias urbanas | B10: R | C10: Construção de Praças Urbanas, Rodovias, Ferrovias e recapeamento e pavimentação de vias urbanas-R | E10: 0.005 | F10: 0.0056 | G10: 0.0097 | J10: Conforme legislação tributária municipal, definir estimativa de percentual da base de cálculo para o ISS: | R10: 1 | U10: =IF(R10=0,"Falta definir a base de cálculo para o ISS","") -> 
A11: Construção de Praças Urbanas, Rodovias, Ferrovias e recapeamento e pavimentação de vias urbanas | B11: DF | C11: Construção de Praças Urbanas, Rodovias, Ferrovias e recapeamento e pavimentação de vias urbanas-DF | E11: 0.0102 | F11: 0.0111 | G11: 0.0121 | I11: ↓ | J11: Sobre a base de cálculo, definir a respectiva alíquota do ISS (entre 2% e 5%): | R11: 0.05 | U11: =IF(R11=0,"Falta definir a alíquota do ISS","") -> 
A12: Construção de Praças Urbanas, Rodovias, Ferrovias e recapeamento e pavimentação de vias urbanas | B12: L | C12: Construção de Praças Urbanas, Rodovias, Ferrovias e recapeamento e pavimentação de vias urbanas-L | E12: 0.0664 | F12: 0.073 | G12: 0.0869 | I12: F
A13: Construção de Praças Urbanas, Rodovias, Ferrovias e recapeamento e pavimentação de vias urbanas | B13: BDI PAD | C13: Construção de Praças Urbanas, Rodovias, Ferrovias e recapeamento e pavimentação de vias urbanas-BDI PAD | E13: 0.196 | F13: 0.2097 | G13: 0.2423 | I13: F
A14: Construção de Redes de Abastecimento de Água, Coleta de Esgoto | B14: AC | C14: Construção de Redes de Abastecimento de Água, Coleta de Esgoto-AC | E14: 0.0343 | F14: 0.0493 | G14: 0.0671 | I14: F | J14: BDI 1 | U14: =IF(COUNTIF(ORÇAMENTO!$V$15:$V$110,BDI_1.Título)=0,"",IF(OR(Import.BDI.Tipo1="(SELECIONAR)",Import.BDI.Tipo1="",U17<>"",S21=0,S22=0,S23=0,S24=0,S25=0,S26=0),"Falta preencher o BDI 1","")) -> 
A15: =A14 -> Construção de Redes de Abastecimento de Água, Coleta de Esgoto | B15: SG | C15: Construção de Redes de Abastecimento de Água, Coleta de Esgoto-SG | E15: 0.0028 | F15: 0.0049 | G15: 0.0075 | I15: F
A16: =A15 -> Construção de Redes de Abastecimento de Água, Coleta de Esgoto | B16: R | C16: Construção de Redes de Abastecimento de Água, Coleta de Esgoto-R | E16: 0.01 | F16: 0.0139 | G16: 0.0174 | I16: F | J16: TIPO DE OBRA
A17: =A16 -> Construção de Redes de Abastecimento de Água, Coleta de Esgoto | B17: DF | C17: Construção de Redes de Abastecimento de Água, Coleta de Esgoto-DF | E17: 0.0094 | F17: 0.0099 | G17: 0.0117 | I17: F | J17: Construção de Praças Urbanas, Rodovias, Ferrovias e recapeamento e pavimentação de vias urbanas | T17: =IF(U17="","","◄") ->  | U17: =IF(AND(OR(S29>0,COUNTIF(ORÇAMENTO!$V$15:$V$110,BDI_1.Título)>0),OR(Import.BDI.Tipo1="(SELECIONAR)",Import.BDI.Tipo1="")),"Selecione o Tipo de obra","") -> 
A18: =A17 -> Construção de Redes de Abastecimento de Água, Coleta de Esgoto | B18: L | C18: Construção de Redes de Abastecimento de Água, Coleta de Esgoto-L | E18: 0.0674 | F18: 0.0804 | G18: 0.094 | I18: F
A19: =A18 -> Construção de Redes de Abastecimento de Água, Coleta de Esgoto | B19: BDI PAD | C19: Construção de Redes de Abastecimento de Água, Coleta de Esgoto-BDI PAD | E19: 0.2076 | F19: 0.2418 | G19: 0.2644 | I19: F | J19: Itens | R19: Siglas | S19: % Adotado | U19: Situação | X19: 1º Quartil | Y19: Médio | Z19: 3º Quartil
A20: Construção e Manutenção de Estações e Redes de Distribuição de Energia Elétrica | B20: AC | C20: Construção e Manutenção de Estações e Redes de Distribuição de Energia Elétrica-AC | E20: 0.0529 | F20: 0.0592 | G20: 0.0793 | I20: F
A21: =A20 -> Construção e Manutenção de Estações e Redes de Distribuição de Energia Elétrica | B21: SG | C21: Construção e Manutenção de Estações e Redes de Distribuição de Energia Elétrica-SG | E21: 0.0025 | F21: 0.0051 | G21: 0.0056 | I21: F | J21: =IF($J$17=$A$146,"Encargos Sociais incidentes sobre a mão de obra","Administração Central") -> Administração Central | R21: =IF($J17=$A$146,"K1","AC") -> AC | S21: 0.038 | T21: =IF(AND($U$14<>"",S21=""),"◄","") ->  | U21: =IFERROR(IF(AND(S21>=X21,S21<=Z21),"OK","FORA DO INTERVALO"),"-") -> OK | X21: =VLOOKUP(CONCATENATE(J17,"-",R21),$C$2:$G$136,3,FALSE) -> 0.038 | Y21: =VLOOKUP(CONCATENATE(J17,"-",R21),$C$2:$G$136,4,FALSE) -> 0.0401 | Z21: =VLOOKUP(CONCATENATE(J17,"-",R21),$C$2:$G$136,5,FALSE) -> 0.0467
A22: =A21 -> Construção e Manutenção de Estações e Redes de Distribuição de Energia Elétrica | B22: R | C22: Construção e Manutenção de Estações e Redes de Distribuição de Energia Elétrica-R | E22: 0.01 | F22: 0.0148 | G22: 0.0197 | I22: F | J22: =IF($J$17=$A$146,"Administração Central da empresa ou consultoria - overhead","Seguro e Garantia") -> Seguro e Garantia | R22: =IF($J17=$A$146,"K2","SG") -> SG | S22: 0.0032 | T22: =IF(AND($U$14<>"",S22=""),"◄","") ->  | U22: =IFERROR(IF(AND(S22>=X22,S22<=Z22),"OK","FORA DO INTERVALO"),"-") -> OK | X22: =VLOOKUP(CONCATENATE(J17,"-",R22),$C$2:$G$136,3,FALSE) -> 0.0032 | Y22: =VLOOKUP(CONCATENATE(J17,"-",R22),$C$2:$G$136,4,FALSE) -> 0.004 | Z22: =VLOOKUP(CONCATENATE(J17,"-",R22),$C$2:$G$136,5,FALSE) -> 0.0074
A23: =A22 -> Construção e Manutenção de Estações e Redes de Distribuição de Energia Elétrica | B23: DF | C23: Construção e Manutenção de Estações e Redes de Distribuição de Energia Elétrica-DF | E23: 0.0101 | F23: 0.0107 | G23: 0.0111 | I23: F | J23: =IF($J$17=$A$146,"","Risco") -> Risco | R23: =IF($J17=$A$146,"","R") -> R | S23: 0.005 | U23: OK | X23: =VLOOKUP(CONCATENATE(J17,"-",R23),$C$2:$G$136,3,FALSE) -> 0.005 | Y23: =VLOOKUP(CONCATENATE(J17,"-",R23),$C$2:$G$136,4,FALSE) -> 0.0056 | Z23: =VLOOKUP(CONCATENATE(J17,"-",R23),$C$2:$G$136,5,FALSE) -> 0.0097
A24: =A23 -> Construção e Manutenção de Estações e Redes de Distribuição de Energia Elétrica | B24: L | C24: Construção e Manutenção de Estações e Redes de Distribuição de Energia Elétrica-L | E24: 0.08 | F24: 0.0831 | G24: 0.0951 | I24: F | J24: =IF($J$17=$A$146,"","Despesas Financeiras") -> Despesas Financeiras | R24: =IF($J17=$A$146,"","DF") -> DF | S24: 0.0102 | U24: OK | X24: =VLOOKUP(CONCATENATE(J17,"-",R24),$C$2:$G$136,3,FALSE) -> 0.0102 | Y24: =VLOOKUP(CONCATENATE(J17,"-",R24),$C$2:$G$136,4,FALSE) -> 0.0111 | Z24: =VLOOKUP(CONCATENATE(J17,"-",R24),$C$2:$G$136,5,FALSE) -> 0.0121
A25: =A24 -> Construção e Manutenção de Estações e Redes de Distribuição de Energia Elétrica | B25: BDI PAD | C25: Construção e Manutenção de Estações e Redes de Distribuição de Energia Elétrica-BDI PAD | E25: 0.24 | F25: 0.2584 | G25: 0.2786 | I25: F | J25: =IF($J$17=$A$146,"Margem bruta da empresa de consultoria","Lucro") -> Lucro | R25: =IF($J17=$A$146,"K3","L") -> L | S25: 0.0664 | U25: OK | X25: =VLOOKUP(CONCATENATE(J17,"-",R25),$C$2:$G$136,3,FALSE) -> 0.0664 | Y25: =VLOOKUP(CONCATENATE(J17,"-",R25),$C$2:$G$136,4,FALSE) -> 0.073 | Z25: =VLOOKUP(CONCATENATE(J17,"-",R25),$C$2:$G$136,5,FALSE) -> 0.0869
A26: Obras Portuárias, Marítimas e Fluviais | B26: AC | C26: Obras Portuárias, Marítimas e Fluviais-AC | E26: 0.04 | F26: 0.0552 | G26: 0.0785 | I26: F | J26: Tributos (impostos COFINS 3%, e PIS 0,65%) | R26: CP | S26: 0.0365 | U26: OK | X26: 0.0365 | Y26: 0.0365 | Z26: 0.0365
A27: =A26 -> Obras Portuárias, Marítimas e Fluviais | B27: SG | C27: Obras Portuárias, Marítimas e Fluviais-SG | E27: 0.0081 | F27: 0.0122 | G27: 0.0199 | I27: F | J27: Tributos (ISS, variável de acordo com o município) | R27: ISS | S27: =IF(AND($J17<>$A$145,COUNTA(OFFSET(S20,1,0,6))>0),$R$11*$R$10,0) -> 0.05 | U27: OK | X27: 0 | Y27: 0.025 | Z27: 0.05
A28: =A27 -> Obras Portuárias, Marítimas e Fluviais | B28: R | C28: Obras Portuárias, Marítimas e Fluviais-R | E28: 0.0146 | F28: 0.0232 | G28: 0.0316 | I28: F | J28: Tributos (Contribuição Previdenciária sobre a Receita Bruta - Lei 12.546 de 14/12/2011 - Desoneração) | R28: CPRB | S28: =IF(BDI.Opcao<>"Desonerado",0,IF(AND($J17<>$A$145,COUNTA(OFFSET(S20,1,0,6))>0),IF(YEAR(Import.DataBase)<2025,4.5%,IF(YEAR(Import.DataBase)=2025,3.6%,IF(YEAR(Import.DataBase)=2026,2.7%,IF(YEAR(Import.DataBase)=2027,1.8%,0%)))),0%)) -> 0 | U28: OK | X28: =$S28 -> 0 | Y28: =$S28 -> 0 | Z28: =$S28 -> 0
A29: =A28 -> Obras Portuárias, Marítimas e Fluviais | B29: DF | C29: Obras Portuárias, Marítimas e Fluviais-DF | E29: 0.0094 | F29: 0.0102 | G29: 0.0133 | I29: F | J29: BDI SEM desoneração (Fórmula Acórdão TCU) | R29: BDI PAD | S29: =IF($J17=$A$145,0,ROUND((((1+S21+S22+S23)*(1+S24)*(1+S25)/(1-(S26+S27)))-1),4)) -> 0.2338 | U29: =IFERROR(IF(OR($J$17=$A$146,$J$17=$A$145,AND(S29>=X29,S29<=Z29)),"OK","FORA DO INTERVALO"),IF(S29=0,"OK","Selecione o Tipo de obra")) -> OK | X29: =IF($J17=$A$145,0,VLOOKUP(CONCATENATE($J17,"-",$R29),$C$2:$G$136,3,FALSE)) -> 0.196 | Y29: =IF($J17=$A$145,0,VLOOKUP(CONCATENATE($J17,"-",$R29),$C$2:$G$136,4,FALSE)) -> 0.2097 | Z29: =IF($J17=$A$145,0,VLOOKUP(CONCATENATE($J17,"-",$R29),$C$2:$G$136,5,FALSE)) -> 0.2423
A30: =A29 -> Obras Portuárias, Marítimas e Fluviais | B30: L | C30: Obras Portuárias, Marítimas e Fluviais-L | E30: 0.0714 | F30: 0.084 | G30: 0.1043 | I30: F | J30: BDI COM desoneração | R30: BDI DES | S30: =IF($J17=$A$145,0,ROUND((((1+S21+S22+S23)*(1+S24)*(1+S25)/(1-(S26+S27+S28)))-1),4)) -> 0.2338
A31: =A30 -> Obras Portuárias, Marítimas e Fluviais | B31: BDI PAD | C31: Obras Portuárias, Marítimas e Fluviais-BDI PAD | E31: 0.228 | F31: 0.2748 | G31: 0.3095 | I31: F
A32: Fornecimento de Materiais e Equipamentos (aquisição indireta - em conjunto com licitação de obras) | B32: AC | C32: Fornecimento de Materiais e Equipamentos (aquisição indireta - em conjunto com licitação de obras)-AC | E32: 0.015 | F32: 0.0345 | G32: 0.0449 | I32: F | J32: =IF(U29<>"ok","X","") ->  | K32: =IF(U29<>"ok","Anexo: Relatório Técnico Circunstanciado justificando a adoção do percentual de cada parcela do BDI.","") -> 
A33: =A32 -> Fornecimento de Materiais e Equipamentos (aquisição indireta - em conjunto com licitação de obras) | B33: SG | C33: Fornecimento de Materiais e Equipamentos (aquisição indireta - em conjunto com licitação de obras)-SG | E33: 0.003 | F33: 0.0048 | G33: 0.0082 | I33: F
A34: =A33 -> Fornecimento de Materiais e Equipamentos (aquisição indireta - em conjunto com licitação de obras) | B34: R | C34: Fornecimento de Materiais e Equipamentos (aquisição indireta - em conjunto com licitação de obras)-R | E34: 0.0056 | F34: 0.0085 | G34: 0.0089 | I34: F | J34: Os valores de BDI foram calculados com o emprego da fórmula:
A35: =A34 -> Fornecimento de Materiais e Equipamentos (aquisição indireta - em conjunto com licitação de obras) | B35: DF | C35: Fornecimento de Materiais e Equipamentos (aquisição indireta - em conjunto com licitação de obras)-DF | E35: 0.0085 | F35: 0.0085 | G35: 0.0111 | I35: F | M35: BDI = | N35: =IF($J17=$A$146,"(1+K1+K2)*(1+K3)","(1+AC + S + R + G)*(1 + DF)*(1+L)") -> (1+AC + S + R + G)*(1 + DF)*(1+L) | Q35: - 1
A36: =A35 -> Fornecimento de Materiais e Equipamentos (aquisição indireta - em conjunto com licitação de obras) | B36: L | C36: Fornecimento de Materiais e Equipamentos (aquisição indireta - em conjunto com licitação de obras)-L | E36: 0.035 | F36: 0.0511 | G36: 0.0622 | I36: F | N36: (1-CP-ISS-CRPB)
A37: =A36 -> Fornecimento de Materiais e Equipamentos (aquisição indireta - em conjunto com licitação de obras) | B37: BDI PAD | C37: Fornecimento de Materiais e Equipamentos (aquisição indireta - em conjunto com licitação de obras)-BDI PAD | E37: 0.111 | F37: 0.1402 | G37: 0.168 | I37: F
A38: Fornecimento de Materiais e Equipamentos (aquisição direta) | B38: AC | C38: Fornecimento de Materiais e Equipamentos (aquisição direta)-AC | E38: - | F38: - | G38: - | I38: F | J38: =CONCATENATE("Declaro para os devidos fins que, conforme legislação tributária municipal, a base de cálculo deste tipo de obra corresponde à ",$R$10*100,"%, com a respectiva alíquota de ",$R$11*100,"%.") -> Declaro para os devidos fins que, conforme legislação tributária municipal, a base de cálculo deste tipo de obra corresponde à 100%, com a respectiva alíquota de 5%.
A39: Fornecimento de Materiais e Equipamentos (aquisição direta) | B39: SG | C39: Fornecimento de Materiais e Equipamentos (aquisição direta)-SG | E39: - | F39: - | G39: - | I39: F
A40: Fornecimento de Materiais e Equipamentos (aquisição direta) | B40: R | C40: Fornecimento de Materiais e Equipamentos (aquisição direta)-R | E40: - | F40: - | G40: - | I40: F | J40: =CONCATENATE("Declaro para os devidos fins que o regime de Contribuição Previdenciária sobre a Receita Bruta adotado para elaboração do orçamento foi ",IF(DESONERACAO="Sim","COM","SEM")," Desoneração, e que esta é a alternativa mais adequada para a Administração Pública.") -> Declaro para os devidos fins que o regime de Contribuição Previdenciária sobre a Receita Bruta adotado para elaboração do orçamento foi SEM Desoneração, e que esta é a alternativa mais adequada para a Administração Pública.
A41: Fornecimento de Materiais e Equipamentos (aquisição direta) | B41: DF | C41: Fornecimento de Materiais e Equipamentos (aquisição direta)-DF | E41: - | F41: - | G41: - | I41: F
A42: Fornecimento de Materiais e Equipamentos (aquisição direta) | B42: L | C42: Fornecimento de Materiais e Equipamentos (aquisição direta)-L | E42: - | F42: - | G42: - | I42: F | J42: Observações:
A43: Fornecimento de Materiais e Equipamentos (aquisição direta) | B43: BDI PAD | C43: Fornecimento de Materiais e Equipamentos (aquisição direta)-BDI PAD | E43: - | F43: - | G43: - | I43: F
A44: Estudos e Projetos, Planos e Gerenciamento e outros correlatos | B44: K1 | C44: Estudos e Projetos, Planos e Gerenciamento e outros correlatos-K1 | E44: - | F44: - | G44: - | I44: F
A45: =A44 -> Estudos e Projetos, Planos e Gerenciamento e outros correlatos | B45: K2 | C45: Estudos e Projetos, Planos e Gerenciamento e outros correlatos-K2 | E45: - | F45: 0.2 | G45: - | I45: F | J45: =Import.Município -> MUNICIPIO DE SIDROLÂNDIA | P45: =DADOS!$C$25 -> 2025-09-01
A46: =A45 -> Estudos e Projetos, Planos e Gerenciamento e outros correlatos | C46: Estudos e Projetos, Planos e Gerenciamento e outros correlatos- | E46: - | F46: - | G46: - | I46: F | J46: Local | P46: Data
A47: =A46 -> Estudos e Projetos, Planos e Gerenciamento e outros correlatos | C47: Estudos e Projetos, Planos e Gerenciamento e outros correlatos- | E47: - | F47: - | G47: - | I47: F
A48: =A47 -> Estudos e Projetos, Planos e Gerenciamento e outros correlatos | B48: K3 | C48: Estudos e Projetos, Planos e Gerenciamento e outros correlatos-K3 | E48: - | F48: 0.12 | G48: - | I48: F
A49: =A48 -> Estudos e Projetos, Planos e Gerenciamento e outros correlatos | B49: BDI PAD | C49: Estudos e Projetos, Planos e Gerenciamento e outros correlatos-BDI PAD | E49: - | F49: - | G49: - | I49: F | J49: Responsável Técnico
I50: F | J50: Nome: | K50: =Import.RespOrçamento -> ALAN PINHEIRO TRINDADE
I51: F | J51: CREA/CAU: | K51: 70161/MS
I52: F | J52: ART/RRT: | K52: 1320250132544
I53: F
I54: =IF($S$69=0,"","F") ->  | J54: BDI 2 | U54: =IF(COUNTIF(ORÇAMENTO!$V$15:$V$110,BDI_2.Título)=0,"",IF(OR(Import.BDI.Tipo2="(SELECIONAR)",Import.BDI.Tipo2="",U57<>"",S61=0,S62=0,S63=0,S64=0,S65=0,S66=0),"Falta preencher o BDI 2","")) -> 
I55: =IF($S$69=0,"","F") -> 
J56: TIPO DE OBRA
J57: (SELECIONAR) | T57: =IF(U57="","","◄") ->  | U57: =IF(AND(OR(S69>0,COUNTIF(ORÇAMENTO!$V$15:$V$110,BDI_2.Título)>0),OR(Import.BDI.Tipo2="(SELECIONAR)",Import.BDI.Tipo2="")),"Selecione o Tipo de obra","") -> 
J59: Itens | R59: Siglas | S59: % Adotado | U59: Situação | X59: 1º Quartil | Y59: Médio | Z59: 3º Quartil
J61: =IF($J$17=$A$146,"Encargos Sociais incidentes sobre a mão de obra","Administração Central") -> Administração Central | R61: =IF($J57=$A$146,"K1","AC") -> AC | T61: =IF(AND($U$14<>"",S61=""),"◄","") ->  | U61: =IFERROR(IF(AND(S61>=X61,S61<=Z61),"OK","FORA DO INTERVALO"),"-") -> - | X61: =VLOOKUP(CONCATENATE(J57,"-",R61),$C$2:$G$136,3,FALSE) ->  | Y61: =VLOOKUP(CONCATENATE(J57,"-",R61),$C$2:$G$136,4,FALSE) ->  | Z61: =VLOOKUP(CONCATENATE(J57,"-",R61),$C$2:$G$136,5,FALSE) -> 
J62: =IF($J$17=$A$146,"Administração Central da empresa ou consultoria - overhead","Seguro e Garantia") -> Seguro e Garantia | R62: =IF($J57=$A$146,"K2","SG") -> SG | T62: =IF(AND($U$14<>"",S62=""),"◄","") ->  | U62: =IFERROR(IF(AND(S62>=X62,S62<=Z62),"OK","FORA DO INTERVALO"),"-") -> - | X62: =VLOOKUP(CONCATENATE(J57,"-",R62),$C$2:$G$136,3,FALSE) ->  | Y62: =VLOOKUP(CONCATENATE(J57,"-",R62),$C$2:$G$136,4,FALSE) ->  | Z62: =VLOOKUP(CONCATENATE(J57,"-",R62),$C$2:$G$136,5,FALSE) -> 
J63: =IF($J$17=$A$146,"","Risco") -> Risco | R63: =IF($J57=$A$146,"","R") -> R | U63: - | X63: =VLOOKUP(CONCATENATE(J57,"-",R63),$C$2:$G$136,3,FALSE) ->  | Y63: =VLOOKUP(CONCATENATE(J57,"-",R63),$C$2:$G$136,4,FALSE) ->  | Z63: =VLOOKUP(CONCATENATE(J57,"-",R63),$C$2:$G$136,5,FALSE) -> 
J64: =IF($J$17=$A$146,"","Despesas Financeiras") -> Despesas Financeiras | R64: =IF($J57=$A$146,"","DF") -> DF | U64: - | X64: =VLOOKUP(CONCATENATE(J57,"-",R64),$C$2:$G$136,3,FALSE) ->  | Y64: =VLOOKUP(CONCATENATE(J57,"-",R64),$C$2:$G$136,4,FALSE) ->  | Z64: =VLOOKUP(CONCATENATE(J57,"-",R64),$C$2:$G$136,5,FALSE) -> 
J65: =IF($J$17=$A$146,"Margem bruta da empresa de consultoria","Lucro") -> Lucro | R65: =IF($J57=$A$146,"K3","L") -> L | U65: - | X65: =VLOOKUP(CONCATENATE(J57,"-",R65),$C$2:$G$136,3,FALSE) ->  | Y65: =VLOOKUP(CONCATENATE(J57,"-",R65),$C$2:$G$136,4,FALSE) ->  | Z65: =VLOOKUP(CONCATENATE(J57,"-",R65),$C$2:$G$136,5,FALSE) -> 
J66: Tributos (impostos COFINS 3%, e PIS 0,65%) | R66: CP | U66: FORA DO INTERVALO | X66: 0.0365 | Y66: 0.0365 | Z66: 0.0365
J67: Tributos (ISS, variável de acordo com o município) | R67: ISS | S67: =IF(AND($J57<>$A$145,COUNTA(OFFSET(S60,1,0,6))>0),$R$11*$R$10,0) -> 0 | U67: OK | X67: 0 | Y67: 0.025 | Z67: 0.05
J68: Tributos (Contribuição Previdenciária sobre a Receita Bruta - Lei 12.546 de 14/12/2011 - Desoneração) | R68: CPRB | S68: =IF(BDI.Opcao<>"Desonerado",0,IF(AND($J57<>$A$145,COUNTA(OFFSET(S60,1,0,6))>0),IF(YEAR(Import.DataBase)<2025,4.5%,IF(YEAR(Import.DataBase)=2025,3.6%,IF(YEAR(Import.DataBase)=2026,2.7%,IF(YEAR(Import.DataBase)=2027,1.8%,0%)))),0%)) -> 0 | U68: OK | X68: =$S68 -> 0 | Y68: =$S68 -> 0 | Z68: =$S68 -> 0
J69: BDI SEM desoneração (Fórmula Acórdão TCU) | R69: BDI PAD | S69: =IF($J57=$A$145,0,ROUND((((1+S61+S62+S63)*(1+S64)*(1+S65)/(1-(S66+S67)))-1),4)) -> 0 | U69: =IFERROR(IF(OR($J$17=$A$146,$J$17=$A$145,AND(S69>=X69,S69<=Z69)),"OK","FORA DO INTERVALO"),IF(S69=0,"OK","Selecione o Tipo de obra")) -> OK | X69: =IF($J57=$A$145,0,VLOOKUP(CONCATENATE($J57,"-",$R69),$C$2:$G$136,3,FALSE)) ->  | Y69: =IF($J57=$A$145,0,VLOOKUP(CONCATENATE($J57,"-",$R69),$C$2:$G$136,4,FALSE)) ->  | Z69: =IF($J57=$A$145,0,VLOOKUP(CONCATENATE($J57,"-",$R69),$C$2:$G$136,5,FALSE)) -> 
J70: BDI COM desoneração | R70: BDI DES | S70: =IF($J57=$A$145,0,ROUND((((1+S61+S62+S63)*(1+S64)*(1+S65)/(1-(S66+S67+S68)))-1),4)) -> 0
J72: =IF(U69<>"ok","X","") ->  | K72: =IF(U69<>"ok","Anexo: Relatório Técnico Circunstanciado justificando a adoção do percentual de cada parcela do BDI.","") -> 
J74: Os valores de BDI foram calculados com o emprego da fórmula:
M75: BDI = | N75: =IF($J57=$A$146,"(1+K1+K2)*(1+K3)","(1+AC + S + R + G)*(1 + DF)*(1+L)") -> (1+AC + S + R + G)*(1 + DF)*(1+L) | Q75: - 1
N76: (1-CP-ISS-CRPB)
J78: =CONCATENATE("Declaro para os devidos fins que, conforme legislação tributária municipal, a base de cálculo deste tipo de obra corresponde à ",$R$10*100,"%, com a respectiva alíquota de ",$R$11*100,"%.") -> Declaro para os devidos fins que, conforme legislação tributária municipal, a base de cálculo deste tipo de obra corresponde à 100%, com a respectiva alíquota de 5%.
J80: =CONCATENATE("Declaro para os devidos fins que o regime de Contribuição Previdenciária sobre a Receita Bruta adotado para elaboração do orçamento foi ",IF(DESONERACAO="Sim","COM","SEM")," Desoneração, e que esta é a alternativa mais adequada para a Administração Pública.") -> Declaro para os devidos fins que o regime de Contribuição Previdenciária sobre a Receita Bruta adotado para elaboração do orçamento foi SEM Desoneração, e que esta é a alternativa mais adequada para a Administração Pública.
J82: Observações:
J85: =Import.Município -> MUNICIPIO DE SIDROLÂNDIA | P85: =DADOS!$C$25 -> 2025-09-01
J86: Local | P86: Data
J89: Responsável Técnico
J90: Nome: | K90: =Import.RespOrçamento -> ALAN PINHEIRO TRINDADE
J91: CREA/CAU: | K91: 70161/MS
J92: ART/RRT: | K92: 1320250132544
I94: =IF($S$109=0,"","F") ->  | J94: BDI 3 | U94: =IF(COUNTIF(ORÇAMENTO!$V$15:$V$110,BDI_3.Título)=0,"",IF(OR(Import.BDI.Tipo3="(SELECIONAR)",Import.BDI.Tipo3="",U97<>"",S101=0,S102=0,S103=0,S104=0,S105=0,S106=0),"Falta preencher o BDI 3","")) -> 
I95: =IF($S$109=0,"","F") -> 
J96: TIPO DE OBRA
J97: (SELECIONAR) | T97: =IF(U97="","","◄") ->  | U97: =IF(AND(OR(S109>0,COUNTIF(ORÇAMENTO!$V$15:$V$110,BDI_3.Título)>0),OR(Import.BDI.Tipo3="(SELECIONAR)",Import.BDI.Tipo3="")),"Selecione o Tipo de obra","") -> 
J99: Itens | R99: Siglas | S99: % Adotado | U99: Situação | X99: 1º Quartil | Y99: Médio | Z99: 3º Quartil
J101: =IF($J$17=$A$146,"Encargos Sociais incidentes sobre a mão de obra","Administração Central") -> Administração Central | R101: =IF($J97=$A$146,"K1","AC") -> AC | T101: =IF(AND($U$14<>"",S101=""),"◄","") ->  | U101: =IFERROR(IF(AND(S101>=X101,S101<=Z101),"OK","FORA DO INTERVALO"),"-") -> - | X101: =VLOOKUP(CONCATENATE(J97,"-",R101),$C$2:$G$136,3,FALSE) ->  | Y101: =VLOOKUP(CONCATENATE(J97,"-",R101),$C$2:$G$136,4,FALSE) ->  | Z101: =VLOOKUP(CONCATENATE(J97,"-",R101),$C$2:$G$136,5,FALSE) -> 
J102: =IF($J$17=$A$146,"Administração Central da empresa ou consultoria - overhead","Seguro e Garantia") -> Seguro e Garantia | R102: =IF($J97=$A$146,"K2","SG") -> SG | T102: =IF(AND($U$14<>"",S102=""),"◄","") ->  | U102: =IFERROR(IF(AND(S102>=X102,S102<=Z102),"OK","FORA DO INTERVALO"),"-") -> - | X102: =VLOOKUP(CONCATENATE(J97,"-",R102),$C$2:$G$136,3,FALSE) ->  | Y102: =VLOOKUP(CONCATENATE(J97,"-",R102),$C$2:$G$136,4,FALSE) ->  | Z102: =VLOOKUP(CONCATENATE(J97,"-",R102),$C$2:$G$136,5,FALSE) -> 
J103: =IF($J$17=$A$146,"","Risco") -> Risco | R103: =IF($J97=$A$146,"","R") -> R | U103: - | X103: =VLOOKUP(CONCATENATE(J97,"-",R103),$C$2:$G$136,3,FALSE) ->  | Y103: =VLOOKUP(CONCATENATE(J97,"-",R103),$C$2:$G$136,4,FALSE) ->  | Z103: =VLOOKUP(CONCATENATE(J97,"-",R103),$C$2:$G$136,5,FALSE) -> 
J104: =IF($J$17=$A$146,"","Despesas Financeiras") -> Despesas Financeiras | R104: =IF($J97=$A$146,"","DF") -> DF | U104: - | X104: =VLOOKUP(CONCATENATE(J97,"-",R104),$C$2:$G$136,3,FALSE) ->  | Y104: =VLOOKUP(CONCATENATE(J97,"-",R104),$C$2:$G$136,4,FALSE) ->  | Z104: =VLOOKUP(CONCATENATE(J97,"-",R104),$C$2:$G$136,5,FALSE) -> 
J105: =IF($J$17=$A$146,"Margem bruta da empresa de consultoria","Lucro") -> Lucro | R105: =IF($J97=$A$146,"K3","L") -> L | U105: - | X105: =VLOOKUP(CONCATENATE(J97,"-",R105),$C$2:$G$136,3,FALSE) ->  | Y105: =VLOOKUP(CONCATENATE(J97,"-",R105),$C$2:$G$136,4,FALSE) ->  | Z105: =VLOOKUP(CONCATENATE(J97,"-",R105),$C$2:$G$136,5,FALSE) -> 
J106: Tributos (impostos COFINS 3%, e PIS 0,65%) | R106: CP | U106: FORA DO INTERVALO | X106: 0.0365 | Y106: 0.0365 | Z106: 0.0365
J107: Tributos (ISS, variável de acordo com o município) | R107: ISS | S107: =IF(AND($J97<>$A$145,COUNTA(OFFSET(S100,1,0,6))>0),$R$11*$R$10,0) -> 0 | U107: OK | X107: 0 | Y107: 0.025 | Z107: 0.05
J108: Tributos (Contribuição Previdenciária sobre a Receita Bruta - Lei 12.546 de 14/12/2011 - Desoneração) | R108: CPRB | S108: =IF(BDI.Opcao<>"Desonerado",0,IF(AND($J97<>$A$145,COUNTA(OFFSET(S100,1,0,6))>0),IF(YEAR(Import.DataBase)<2025,4.5%,IF(YEAR(Import.DataBase)=2025,3.6%,IF(YEAR(Import.DataBase)=2026,2.7%,IF(YEAR(Import.DataBase)=2027,1.8%,0%)))),0%)) -> 0 | U108: OK | X108: =$S108 -> 0 | Y108: =$S108 -> 0 | Z108: =$S108 -> 0
J109: BDI SEM desoneração (Fórmula Acórdão TCU) | R109: BDI PAD | S109: =IF($J97=$A$145,0,ROUND((((1+S101+S102+S103)*(1+S104)*(1+S105)/(1-(S106+S107)))-1),4)) -> 0 | U109: =IFERROR(IF(OR($J$17=$A$146,$J$17=$A$145,AND(S109>=X109,S109<=Z109)),"OK","FORA DO INTERVALO"),IF(S109=0,"OK","Selecione o Tipo de obra")) -> OK | X109: =IF($J97=$A$145,0,VLOOKUP(CONCATENATE($J97,"-",$R109),$C$2:$G$136,3,FALSE)) ->  | Y109: =IF($J97=$A$145,0,VLOOKUP(CONCATENATE($J97,"-",$R109),$C$2:$G$136,4,FALSE)) ->  | Z109: =IF($J97=$A$145,0,VLOOKUP(CONCATENATE($J97,"-",$R109),$C$2:$G$136,5,FALSE)) -> 
J110: BDI COM desoneração | R110: BDI DES | S110: =IF($J97=$A$145,0,ROUND((((1+S101+S102+S103)*(1+S104)*(1+S105)/(1-(S106+S107+S108)))-1),4)) -> 0
J112: =IF(U109<>"ok","X","") ->  | K112: =IF(U109<>"ok","Anexo: Relatório Técnico Circunstanciado justificando a adoção do percentual de cada parcela do BDI.","") -> 
J114: Os valores de BDI foram calculados com o emprego da fórmula:
M115: BDI = | N115: =IF($J97=$A$146,"(1+K1+K2)*(1+K3)","(1+AC + S + R + G)*(1 + DF)*(1+L)") -> (1+AC + S + R + G)*(1 + DF)*(1+L) | Q115: - 1
N116: (1-CP-ISS-CRPB)
J118: =CONCATENATE("Declaro para os devidos fins que, conforme legislação tributária municipal, a base de cálculo deste tipo de obra corresponde à ",$R$10*100,"%, com a respectiva alíquota de ",$R$11*100,"%.") -> Declaro para os devidos fins que, conforme legislação tributária municipal, a base de cálculo deste tipo de obra corresponde à 100%, com a respectiva alíquota de 5%.
J120: =CONCATENATE("Declaro para os devidos fins que o regime de Contribuição Previdenciária sobre a Receita Bruta adotado para elaboração do orçamento foi ",IF(DESONERACAO="Sim","COM","SEM")," Desoneração, e que esta é a alternativa mais adequada para a Administração Pública.") -> Declaro para os devidos fins que o regime de Contribuição Previdenciária sobre a Receita Bruta adotado para elaboração do orçamento foi SEM Desoneração, e que esta é a alternativa mais adequada para a Administração Pública.
J122: Observações:
J125: =Import.Município -> MUNICIPIO DE SIDROLÂNDIA | P125: =DADOS!$C$25 -> 2025-09-01
J126: Local | P126: Data
J129: Responsável Técnico
J130: Nome: | K130: =Import.RespOrçamento -> ALAN PINHEIRO TRINDADE
J131: CREA/CAU: | K131: 70161/MS
J132: ART/RRT: | K132: 1320250132544
A138: (SELECIONAR)
A139: Construção e Reforma de Edifícios
A140: Construção de Praças Urbanas, Rodovias, Ferrovias e recapeamento e pavimentação de vias urbanas
A141: Construção de Redes de Abastecimento de Água, Coleta de Esgoto
A142: Construção e Manutenção de Estações e Redes de Distribuição de Energia Elétrica
A143: Obras Portuárias, Marítimas e Fluviais
A144: Fornecimento de Materiais e Equipamentos (aquisição indireta - em conjunto com licitação de obras)
A145: Fornecimento de Materiais e Equipamentos (aquisição direta)
A146: Estudos e Projetos, Planos e Gerenciamento e outros correlatos

Sheet ORÇAMENTO
R1: PO - PLANILHA ORÇAMENTÁRIA | X1: Grau de Sigilo
D2: LOTE | E2: Meta | F2: Nível 2 | G2: Nível 3 | H2: Nível 4 | I2: Serviço | R2: =IF(TIPOORCAMENTO="licitado","Orçamento Licitado","Orçamento Base para Licitação")&" - "&import.recurso -> Orçamento Base para Licitação - OGU | X2: #PUBLICO
A4: Nmax | F4: BDI 1 | G4: BDI 2 | H4: BDI 3 | I4: 0 | O4: Nº OPERAÇÃO | Q4: Nº TransfereGOV | R4: PROPONENTE / TOMADOR | S4: APELIDO DO EMPREENDIMENTO
A5: =MAX($C$15:$C$110) -> 2 | F5: =IF(BDI.Opcao="DESONERADO",BDI!$S$30,BDI!$S$29) -> 0.2338 | G5: =IF(BDI.Opcao="DESONERADO",BDI!$S$70,BDI!$S$69) -> 0 | H5: =IF(BDI.Opcao="DESONERADO",BDI!$S$110,BDI!$S$109) -> 0 | O5: =Import.CR -> 0 | Q5: =Import.TransfereGOV -> 0 | R5: =Import.Proponente -> MUNICIPIO DE SIDROLÂNDIA | S5: =Import.Apelido -> ELABORAÇÃO DE PROJETO EXECUTIVO DE PAVIMENTAÇÃO ASFÁLTICA E DRENAGEM DE ÁGUAS PLUVIAIS DO BAIRRO JATOBÁ E ADJACENTES NO MUNICÍPIO DE SIDROLÂNDIA - MS. | AE5: Arredondamento
O7: LOCALIDADE SINAPI | Q7: DATA BASE | R7: =IF(TIPOORCAMENTO="Licitado","NOME DA EMPRESA","DESCRIÇÃO DO LOTE") -> DESCRIÇÃO DO LOTE | S7: =IF(TIPOORCAMENTO="Licitado","REGIME DE EXECUÇÃO","MUNICÍPIO / UF") -> MUNICÍPIO / UF | V7: =IF(TIPOORCAMENTO="Licitado","","BDI 1") -> BDI 1 | W7: =IF(TIPOORCAMENTO="Licitado","","BDI 2") -> BDI 2 | X7: =IF(TIPOORCAMENTO="Licitado","Nº CTEF","BDI 3") -> BDI 3 | AE7: Quantidade | AF7: TRUE | AJ7: QUANTIDADES: ACOMP. POR BM | AL7: PREÇO UNITÁRIO LICITADO
F8: =IF(LEN(INFO("release"))>5,"'Referência "&Excel_BuiltIn_Database&".xlsm'#Banco.$a5:$a$65536","'[Referência "&Excel_BuiltIn_Database&".xlsm]Banco'!$a5:$a$65536") -> '[Referência 09-2025.xlsm]Banco'!$a5:$a$65536 | L8: FILTRO | O8: =IF(ISERROR(INDIRECT($F$9)),"(N/D: 'Referência "&Excel_BuiltIn_Database&".xlsm)",INDIRECT($F$9)) -> CAMPO GRANDE | Q8: =TEXT(Import.DataBase,"mm-aa")&IF(DESONERACAO="Sim"," (DES.)"," (N DES.)") -> 09-25 (N DES.) | R8: =IF(TIPOORCAMENTO="Licitado",Import.empresa,Import.DescLote) -> ELABORAÇÃO DE PROJETO EXECUTIVO DE PAVIMENTAÇÃO ASFÁLTICA E DRENAGEM DE ÁGUAS PLUVIAIS DO BAIRRO JATOBÁ E ADJACENTES NO MUNICÍPIO DE SIDROLÂNDIA - MS. | S8: =IF(TIPOORCAMENTO="Licitado",Import.RegimeExecução,Import.Município) -> MUNICIPIO DE SIDROLÂNDIA | V8: =IF(TIPOORCAMENTO="Licitado","",TEXT(F5,"0,00%")) -> 23,38% | W8: =IF(TIPOORCAMENTO="Licitado","",TEXT(G5,"0,00%")) -> 0,00% | X8: =IF(TIPOORCAMENTO="Licitado",Import.CTEF,TEXT(H5,"0,00%")) -> 0,00% | Y8: RECURSO | Z8: SGL RECURSO | AE8: Custo Unitáro | AF8: TRUE
F9: =IF(LEN(INFO("release"))>5,"'Referência "&Excel_BuiltIn_Database&".xlsm'#Banco.$d$3","'[Referência "&Excel_BuiltIn_Database&".xlsm]Banco'!$d$3") -> '[Referência 09-2025.xlsm]Banco'!$d$3 | AE9: BDI | AF9: TRUE
AC10: ERRO GERAL | AE10: Preço Unitário | AF10: TRUE
AC11: =IF(COUNTIFS($L$15:$L$110,"F",$AC$15:$AC$110,"<>"&" ")>0,"NÃO OK","OK") -> OK | AE11: Preço Total | AF11: TRUE
O12: =IF(COUNTIF($AC$15:$AC$110,"FONTE")>0,"Falta preencher a Fonte (coluna P) na Linha "&(14+MATCH("FONTE",$AC$15:$AC$110,0)), IF(COUNTIF($AC$15:$AC$110,"CÓDIGO")>0,"Falta preencher o Código (coluna Q) na Linha "&(14+MATCH("CÓDIGO",$AC$15:$AC$110,0)), IF(COUNTIF($AC$15:$AC$110,"CÓDIGO N/ID")>0,"Código (coluna Q) não identificado na Linha "&(14+MATCH("CÓDIGO N/ID",$AC$15:$AC$110,0))&". Verifique se o código está correto ou busque outro código", IF(COUNTIF($AC$15:$AC$110,"DESCRIÇÃO")>0,"Falta preencher a Descrição (coluna R) na Linha "&(14+MATCH("DESCRIÇÃO",$AC$15:$AC$110,0)), IF(COUNTIF($AC$15:$AC$110,"UNIDADE")>0,"Falta preencher a Unidade (coluna S) na Linha "&(14+MATCH("UNIDADE",$AC$15:$AC$110,0)), IF(COUNTIF($AC$15:$AC$110,"SEM CUSTO")>0,"Falta preencher o Custo Unitário (coluna U) na Linha "&(14+MATCH("SEM CUSTO",$AC$15:$AC$110,0)), IF(COUNTIF($AC$15:$AC$110,"SEM PREÇO")>0,"Falta preencher o Preço Unitário licitado (coluna AL) na Linha "&(14+MATCH("SEM CUSTO",$AC$15:$AC$110,0)), IF(COUNTIF($AC$15:$AC$110,"BDI")>0,"Falta definir o BDI (coluna V) na Linha "&(14+MATCH("BDI",$AC$15:$AC$110,0)), IF(COUNTIF($AC$15:$AC$110,"ACIMA REF.")>0, IF(_xlfn.SINGLE(TIPOORCAMENTO)="Proposto","O custo unitário (coluna U) na Linha "&(14+MATCH("ACIMA REF.",$AC$15:$AC$110,0))&" está acima do custo referencial (coluna AG)", "O preço unitário licitado (coluna AL) na Linha "&(14+MATCH("ACIMA REF.",$AC$15:$AC$110,0))&" está acima do preço referencial do edital (coluna AN)"), IF(COUNTIF($AC$15:$AC$110,"QUANT.")>0,"Falta a Quantidade do serviço na Linha "&(14+MATCH("QUANT.",$AC$15:$AC$110,0))&IF(ACOMPANHAMENTO="PLE",". Preencher na aba CÁLCULO",". Preencher na coluna AJ"), IF(COUNTIF($AC$15:$AC$110,"Código >13")>0,"O tamanho do código do serviço no TransfereGOV é limitado a 13 caracteres. Resuma o código (coluna Q) na Linha "&(14+MATCH("Código >13",$AC$15:$AC$110,0)), IF(COUNTIF($AC$15:$AC$110,"Descrição >100")>0,"O tamanho da descrição de macrosserviço no TransfereGOV é limitado a 100 caracteres. Resuma a descrição (coluna R) na Linha "&(14+MATCH("Descrição >100",$AC$15:$AC$110,0)), IF(COUNTIF($AC$15:$AC$110,"Descrição >500")>0,"O tamanho da descrição de serviço no TransfereGOV é limitado a 500 caracteres. Resuma a descrição (coluna R) na Linha "&(14+MATCH("Descrição >500",$AC$15:$AC$110,0)), IF(COUNTIF($AC$15:$AC$110,"Unid. Não Disp")>0,"Unidade não disponível na lista do TransfereGOV. Reveja a unidade (coluna S) na Linha "&(14+MATCH("Unid. Não Disp",$AC$15:$AC$110,0)),"")))))))))))))) ->  | AA12: Valores não Arredondados | AJ12: ↓ | AL12: ↓
A13: Nível E | B13: Save Nivel | C13: Nível C | D13: Altura | E13: n1 | F13: n2 | G13: n3 | H13: n4 | I13: n5 | J13: Czero | K13: Cnível | L13: ↓ | M13: Nível | N13: Nível Corrigido | O13: Item | P13: Fonte | Q13: Código | R13: Descrição | S13: Unidade | T13: Quantidade | U13: =IF(TIPOORCAMENTO="Licitado","","Custo Unitário (sem BDI) (R$)") -> Custo Unitário (sem BDI) (R$) | V13: =IF(TIPOORCAMENTO="Licitado","","BDI (%)") -> BDI (%) | W13: Preço Unitário (com BDI) (R$) | X13: Preço Total (R$) | Y13: ↓ | Z13: ↓ | AA13: Contrapartida (R$) | AB13: Outros (R$) | AC13: Erro de Dados | AD13: Lista Crono | AE13: Concatenação Fonte-Código | AF13: BancoDesloc | AG13: Custo Unitário Referência (R$) | AH13: =IF(TIPOORCAMENTO="LICITADO","Valor BDI Edital","Valor BDI") -> Valor BDI | AJ13: Quantidade | AL13: Preço Unitário (com BDI) (R$) | AM13: Preço Total Licit. (R$) | AN13: Preço Unitário Edital (R$)
A14: =CHOOSE(1+LOG(1+2*(ORÇAMENTO.Nivel="Meta")+4*(ORÇAMENTO.Nivel="Nível 2")+8*(ORÇAMENTO.Nivel="Nível 3")+16*(ORÇAMENTO.Nivel="Nível 4")+32*(ORÇAMENTO.Nivel="Serviço"),2),0,1,2,3,4,"S") -> S | B14: =IF(OR(C14="s",C14=0),OFFSET(B14,-1,0),C14) -> Save Nivel | C14: =IF(OFFSET(C14,-1,0)="L",1,IF(OFFSET(C14,-1,0)=1,2,IF(OR(A14="s",A14=0),"S",IF(AND(OFFSET(C14,-1,0)=2,A14=4),3,IF(AND(OR(OFFSET(C14,-1,0)="s",OFFSET(C14,-1,0)=0),A14<>"s",A14>OFFSET(B14,-1,0)),OFFSET(B14,-1,0),A14))))) -> S | D14: =IF(OR(C14="S",C14=0),0,IF(ISERROR(K14),J14,SMALL(J14:K14,1))) -> 0 | E14: =IF($C14=1,OFFSET(E14,-1,0)+MAX(1,COUNTIF(QCI!$A$13:$A$24,OFFSET(ORÇAMENTO!E14,-1,0))),OFFSET(E14,-1,0)) -> n1 | F14: =IF($C14=1,0,IF($C14=2,OFFSET(F14,-1,0)+1,OFFSET(F14,-1,0))) -> n2 | G14: =IF(AND($C14<=2,$C14<>0),0,IF($C14=3,OFFSET(G14,-1,0)+1,OFFSET(G14,-1,0))) -> n3 | H14: =IF(AND($C14<=3,$C14<>0),0,IF($C14=4,OFFSET(H14,-1,0)+1,OFFSET(H14,-1,0))) -> n4 | I14: =IF(AND($C14<=4,$C14<>0),0,IF(AND($C14="S",$X14>0),OFFSET(I14,-1,0)+1,OFFSET(I14,-1,0))) -> n5 | J14: =IF(OR($C14="S",$C14=0),0,MATCH(0,OFFSET($D14,1,$C14,ROW($C$110)-ROW($C14)),0)) -> 0 | K14: =IF(OR($C14="S",$C14=0),0,MATCH(OFFSET($D14,0,$C14)+IF($C14<>1,1,COUNTIF(QCI!$A$13:$A$24,ORÇAMENTO!E14)),OFFSET($D14,1,$C14,ROW($C$110)-ROW($C14)),0)) -> 0 | L14: =IF(OR($X14>0,$C14=1,$C14=2,$C14=3,$C14=4),"F","") ->  | M14: Serviço | N14: =CHOOSE(1+LOG(1+2*(C14=1)+4*(C14=2)+8*(C14=3)+16*(C14=4)+32*(C14="S"),2),"","Meta","Nível 2","Nível 3","Nível 4","Serviço") -> Serviço | O14: =IF(OR($C14=0,$L14=""),"-",CONCATENATE(E14&".",IF(AND($A$5>=2,$C14>=2),F14&".",""),IF(AND($A$5>=3,$C14>=3),G14&".",""),IF(AND($A$5>=4,$C14>=4),H14&".",""),IF($C14="S",I14&".",""))) -> - | P14: SINAPI | R14: =IF($C14="S",REFERENCIA.Descricao,"(digite a descrição aqui)") -> (Sem Código) | S14: =REFERENCIA.Unidade -> - | T14: =OFFSET(CÁLCULO!H$15,ROW($T14)-ROW(T$15),0) -> 0 | V14: BDI 1 | W14: =IF($C14="S",ROUND(IF(TIPOORCAMENTO="Proposto",ORÇAMENTO.CustoUnitario*(1+$AH14),ORÇAMENTO.PrecoUnitarioLicitado),15-13*$AF$10),0) -> 0 | X14: =IF($C14="S",IF(OR(Import.TipoArredondamento<>"TransfereGOV",ACOMPANHAMENTO="BM"),VTOTAL1,SUM(OFFSET(CÁLCULO!$AI$15,ROW($X14)-ROW($X$15),1):OFFSET(CÁLCULO!$BB$15,ROW($X14)-ROW($X$15),-1))),IF($C14=0,0,ROUND(SomaAgrup,15-13*$AF$11))) -> 0 | Y14: RA | Z14: =IF(AND($C14="S",$X14>0),IF(ISBLANK($Y14),"RA",LEFT($Y14,2)),"") ->  | AA14: =IF($C14="S",IF($Z14="CP",$X14,IF($Z14="RA",(($X14)*QCI!$AA$3),0)),SomaAgrup) -> 0 | AB14: =IF($C14="S",IF($Z14="OU",ROUND($X14,2),0),SomaAgrup) -> 0 | AC14: =IF($N14=""," ", IF(AND($C14<>"S",OR($R14="",$R14="(digite a descrição aqui)")),"DESCRIÇÃO", IF(AND($C14="S",OR($Q14<>0,$T14>0,$U14>0),$P14=0),"FONTE", IF(AND($C14="S",$P14<>0,OR($T14>0,$U14>0),$Q14=0),"CÓDIGO", IF(AND($C14="S",$P14<>0,$Q14<>0,$R14="(Código não identificado nas referências)"),"CÓDIGO N/ID", IF(AND($C14="S",OR($R14="",$R14="(digite a descrição aqui)"),OR($Q14<>0,$T14>0,$U14>0)),"DESCRIÇÃO", IF(AND($C14="S",$P14<>0,$Q14<>0,$S14=""),"UNIDADE", IF(AND($C14="S",$P14<>0,$Q14<>0,$U14=0),"SEM CUSTO", IF(AND(TIPOORCAMENTO="Licitado",$AL14=0,$AN14>0),"SEM PREÇO", IF(AND($C14="S",$P14<>0,$Q14<>0,$U14>0,$V14=0),"BDI", IF(OR(AND(TIPOORCAMENTO="Proposto",$AG14<>"",$AG14>0,ORÇAMENTO.CustoUnitario>$AG14),AND(TIPOORCAMENTO="LICITADO",ORÇAMENTO.PrecoUnitarioLicitado>$AN14)),"ACIMA REF.", IF(AND($C14="S",$P14<>0,$Q14<>0,$T14=0,$U14>0),"QUANT.", IF(AND(Import.TipoArredondamento="TransfereGOV",$L14="F",$C14="S",LEN($Q14)>13),"Código >13", IF(AND(Import.TipoArredondamento="TransfereGOV",$L14="F",$C14<>"S",LEN($R14)>100),"Descrição >100", IF(AND(Import.TipoArredondamento="TransfereGOV",$L14="F",$C14="S",LEN($R14)>500),"Descrição >500", IF(AND(Import.TipoArredondamento="TransfereGOV",$L14="F",$C14="S",LEFT(TRIM(UPPER($P14)),6)<>"SINAPI",ISNA(VLOOKUP(TRIM(UPPER($S14)),ListaTgov.Unidades,1,FALSE))),"Unid. Não Disp", " ")))))))))))))))) ->  | AD14: =IF(C14<=CRONO.NivelExibicao,MAX($AD$15:OFFSET(AD14,-1,0))+IF($C14<>1,1,MAX(1,COUNTIF(QCI!$A$13:$A$24,OFFSET($E14,-1,0)))),"") ->  | AE14: =IF(AND($C14="S",ORÇAMENTO.CodBarra<>""),IF(ORÇAMENTO.Fonte="",ORÇAMENTO.CodBarra,CONCATENATE(ORÇAMENTO.Fonte," ",ORÇAMENTO.CodBarra))) -> FALSE | AF14: =IF(ISERROR(INDIRECT(ORÇAMENTO.BancoRef)),"(abra o arquivo 'Referência "&Excel_BuiltIn_Database&".xlsm)",IF(OR($C14<>"S",ORÇAMENTO.CodBarra=""),"(Sem Código)",IF(ISERROR(MATCH($AE14,INDIRECT(ORÇAMENTO.BancoRef),0)),"(Código não identificado nas referências)",MATCH($AE14,INDIRECT(ORÇAMENTO.BancoRef),0)))) -> (Sem Código) | AG14: =ROUND(IF(DESONERACAO="sim",REFERENCIA.Desonerado,REFERENCIA.NaoDesonerado),2) -> 0 | AH14: =ROUND(IF(ISNUMBER(ORÇAMENTO.OpcaoBDI),ORÇAMENTO.OpcaoBDI,IF(LEFT(ORÇAMENTO.OpcaoBDI,3)="BDI",HLOOKUP(ORÇAMENTO.OpcaoBDI,$F$4:$H$5,2,FALSE),0)),15-11*$AF$9) -> 0.2338 | AM14: =$X14 -> 0 | AN14: =ROUND(ORÇAMENTO.CustoUnitario*(1+$AH14),2) -> 0
A15: 0 | C15: L | D15: =COUNTA(OFFSET(D15,1,0):D$110) -> 94 | E15: 0 | L15: F | M15: =IF(TIPOORCAMENTO="LICITADO","CTEF","LOTE") -> LOTE | N15: =IF(TIPOORCAMENTO="LICITADO","CTEF","LOTE") -> LOTE | O15: =Import.DescLote -> ELABORAÇÃO DE PROJETO EXECUTIVO DE PAVIMENTAÇÃO ASFÁLTICA E DRENAGEM DE ÁGUAS PLUVIAIS DO BAIRRO JATOBÁ E ADJACENTES NO MUNICÍPIO DE SIDROLÂNDIA - MS. | X15: =SUMIF(OFFSET($C15,1,0,ROW(X110)-ROW(X15)-1),"S",OFFSET(X15,1,0,ROW(X110)-ROW(X15)-1)) -> 1453184.15 | Z15: =IF(AND($C15="S",$X15>0),LEFT($Y15,2),"") ->  | AA15: =SUMIF(OFFSET($C15,1,0,ROW(AA110)-ROW(AA15)-1),"S",OFFSET(AA15,1,0,ROW(AA110)-ROW(AA15)-1)) -> 453184.15 | AB15: =SUMIF(OFFSET($C15,1,0,ROW(AB110)-ROW(AB15)-1),"S",OFFSET(AB15,1,0,ROW(AB110)-ROW(AB15)-1)) -> 0 | AM15: 1453184.15
A16: =CHOOSE(1+LOG(1+2*(ORÇAMENTO.Nivel="Meta")+4*(ORÇAMENTO.Nivel="Nível 2")+8*(ORÇAMENTO.Nivel="Nível 3")+16*(ORÇAMENTO.Nivel="Nível 4")+32*(ORÇAMENTO.Nivel="Serviço"),2),0,1,2,3,4,"S") -> 1 | B16: =IF(OR(C16="s",C16=0),OFFSET(B16,-1,0),C16) -> 1 | C16: =IF(OFFSET(C16,-1,0)="L",1,IF(OFFSET(C16,-1,0)=1,2,IF(OR(A16="s",A16=0),"S",IF(AND(OFFSET(C16,-1,0)=2,A16=4),3,IF(AND(OR(OFFSET(C16,-1,0)="s",OFFSET(C16,-1,0)=0),A16<>"s",A16>OFFSET(B16,-1,0)),OFFSET(B16,-1,0),A16))))) -> 1 | D16: =IF(OR(C16="S",C16=0),0,IF(ISERROR(K16),J16,SMALL(J16:K16,1))) -> 94 | E16: =IF($C16=1,OFFSET(E16,-1,0)+MAX(1,COUNTIF(QCI!$A$13:$A$24,OFFSET(ORÇAMENTO!E16,-1,0))),OFFSET(E16,-1,0)) -> 1 | F16: =IF($C16=1,0,IF($C16=2,OFFSET(F16,-1,0)+1,OFFSET(F16,-1,0))) -> 0 | G16: =IF(AND($C16<=2,$C16<>0),0,IF($C16=3,OFFSET(G16,-1,0)+1,OFFSET(G16,-1,0))) -> 0 | H16: =IF(AND($C16<=3,$C16<>0),0,IF($C16=4,OFFSET(H16,-1,0)+1,OFFSET(H16,-1,0))) -> 0 | I16: =IF(AND($C16<=4,$C16<>0),0,IF(AND($C16="S",$X16>0),OFFSET(I16,-1,0)+1,OFFSET(I16,-1,0))) -> 0 | J16: =IF(OR($C16="S",$C16=0),0,MATCH(0,OFFSET($D16,1,$C16,ROW($C$110)-ROW($C16)),0)) -> 94 | K16: =IF(OR($C16="S",$C16=0),0,MATCH(OFFSET($D16,0,$C16)+IF($C16<>1,1,COUNTIF(QCI!$A$13:$A$24,ORÇAMENTO!E16)),OFFSET($D16,1,$C16,ROW($C$110)-ROW($C16)),0)) ->  | L16: =IF(OR($X16>0,$C16=1,$C16=2,$C16=3,$C16=4),"F","") -> F | M16: Meta | N16: =CHOOSE(1+LOG(1+2*(C16=1)+4*(C16=2)+8*(C16=3)+16*(C16=4)+32*(C16="S"),2),"","Meta","Nível 2","Nível 3","Nível 4","Serviço") -> Meta | O16: =IF(OR($C16=0,$L16=""),"-",CONCATENATE(E16&".",IF(AND($A$5>=2,$C16>=2),F16&".",""),IF(AND($A$5>=3,$C16>=3),G16&".",""),IF(AND($A$5>=4,$C16>=4),H16&".",""),IF($C16="S",I16&".",""))) -> 1. | P16: SINAPI | R16: Pavimentação e Drenagem no Bairro Jatobá, no Município de Sidrolândia/MS. | S16: =REFERENCIA.Unidade -> - | T16: =OFFSET(CÁLCULO!H$15,ROW($T16)-ROW(T$15),0) -> 0 | V16: BDI 1 | W16: =IF($C16="S",ROUND(IF(TIPOORCAMENTO="Proposto",ORÇAMENTO.CustoUnitario*(1+$AH16),ORÇAMENTO.PrecoUnitarioLicitado),15-13*$AF$10),0) -> 0 | X16: =IF($C16="S",IF(OR(Import.TipoArredondamento<>"TransfereGOV",ACOMPANHAMENTO="BM"),VTOTAL1,SUM(OFFSET(CÁLCULO!$AI$15,ROW($X16)-ROW($X$15),1):OFFSET(CÁLCULO!$BB$15,ROW($X16)-ROW($X$15),-1))),IF($C16=0,0,ROUND(SomaAgrup,15-13*$AF$11))) -> 1453184.15 | Y16: RA | Z16: =IF(AND($C16="S",$X16>0),IF(ISBLANK($Y16),"RA",LEFT($Y16,2)),"") ->  | AA16: =IF($C16="S",IF($Z16="CP",$X16,IF($Z16="RA",(($X16)*QCI!$AA$3),0)),SomaAgrup) -> 453184.15 | AB16: =IF($C16="S",IF($Z16="OU",ROUND($X16,2),0),SomaAgrup) -> 0 | AC16: =IF($N16=""," ", IF(AND($C16<>"S",OR($R16="",$R16="(digite a descrição aqui)")),"DESCRIÇÃO", IF(AND($C16="S",OR($Q16<>0,$T16>0,$U16>0),$P16=0),"FONTE", IF(AND($C16="S",$P16<>0,OR($T16>0,$U16>0),$Q16=0),"CÓDIGO", IF(AND($C16="S",$P16<>0,$Q16<>0,$R16="(Código não identificado nas referências)"),"CÓDIGO N/ID", IF(AND($C16="S",OR($R16="",$R16="(digite a descrição aqui)"),OR($Q16<>0,$T16>0,$U16>0)),"DESCRIÇÃO", IF(AND($C16="S",$P16<>0,$Q16<>0,$S16=""),"UNIDADE", IF(AND($C16="S",$P16<>0,$Q16<>0,$U16=0),"SEM CUSTO", IF(AND(TIPOORCAMENTO="Licitado",$AL16=0,$AN16>0),"SEM PREÇO", IF(AND($C16="S",$P16<>0,$Q16<>0,$U16>0,$V16=0),"BDI", IF(OR(AND(TIPOORCAMENTO="Proposto",$AG16<>"",$AG16>0,ORÇAMENTO.CustoUnitario>$AG16),AND(TIPOORCAMENTO="LICITADO",ORÇAMENTO.PrecoUnitarioLicitado>$AN16)),"ACIMA REF.", IF(AND($C16="S",$P16<>0,$Q16<>0,$T16=0,$U16>0),"QUANT.", IF(AND(Import.TipoArredondamento="TransfereGOV",$L16="F",$C16="S",LEN($Q16)>13),"Código >13", IF(AND(Import.TipoArredondamento="TransfereGOV",$L16="F",$C16<>"S",LEN($R16)>100),"Descrição >100", IF(AND(Import.TipoArredondamento="TransfereGOV",$L16="F",$C16="S",LEN($R16)>500),"Descrição >500", IF(AND(Import.TipoArredondamento="TransfereGOV",$L16="F",$C16="S",LEFT(TRIM(UPPER($P16)),6)<>"SINAPI",ISNA(VLOOKUP(TRIM(UPPER($S16)),ListaTgov.Unidades,1,FALSE))),"Unid. Não Disp", " ")))))))))))))))) ->  | AD16: =IF(C16<=CRONO.NivelExibicao,MAX($AD$15:OFFSET(AD16,-1,0))+IF($C16<>1,1,MAX(1,COUNTIF(QCI!$A$13:$A$24,OFFSET($E16,-1,0)))),"") -> 1 | AE16: =IF(AND($C16="S",ORÇAMENTO.CodBarra<>""),IF(ORÇAMENTO.Fonte="",ORÇAMENTO.CodBarra,CONCATENATE(ORÇAMENTO.Fonte," ",ORÇAMENTO.CodBarra))) -> FALSE | AF16: =IF(ISERROR(INDIRECT(ORÇAMENTO.BancoRef)),"(abra o arquivo 'Referência "&Excel_BuiltIn_Database&".xlsm)",IF(OR($C16<>"S",ORÇAMENTO.CodBarra=""),"(Sem Código)",IF(ISERROR(MATCH($AE16,INDIRECT(ORÇAMENTO.BancoRef),0)),"(Código não identificado nas referências)",MATCH($AE16,INDIRECT(ORÇAMENTO.BancoRef),0)))) -> (Sem Código) | AG16: =ROUND(IF(DESONERACAO="sim",REFERENCIA.Desonerado,REFERENCIA.NaoDesonerado),2) -> 0 | AH16: =ROUND(IF(ISNUMBER(ORÇAMENTO.OpcaoBDI),ORÇAMENTO.OpcaoBDI,IF(LEFT(ORÇAMENTO.OpcaoBDI,3)="BDI",HLOOKUP(ORÇAMENTO.OpcaoBDI,$F$4:$H$5,2,FALSE),0)),15-11*$AF$9) -> 0.2338 | AM16: 1453184.15 | AN16: =ROUND(ORÇAMENTO.CustoUnitario*(1+$AH16),2) -> 0
A17: 2 | B17: 2 | C17: 2 | D17: 7 | E17: =IF($C17=1,OFFSET(E17,-1,0)+MAX(1,COUNTIF(QCI!$A$13:$A$24,OFFSET(ORÇAMENTO!E17,-1,0))),OFFSET(E17,-1,0)) -> 1 | F17: 1 | G17: 0 | H17: 0 | I17: 0 | J17: =IF(OR($C17="S",$C17=0),0,MATCH(0,OFFSET($D17,1,$C17,ROW($C$110)-ROW($C17)),0)) -> 93 | K17: =IF(OR($C17="S",$C17=0),0,MATCH(OFFSET($D17,0,$C17)+IF($C17<>1,1,COUNTIF(QCI!$A$13:$A$24,ORÇAMENTO!E17)),OFFSET($D17,1,$C17,ROW($C$110)-ROW($C17)),0)) -> 7 | L17: F | M17: Nível 2 | N17: Nível 2 | O17: 1.1. | P17: SINAPI | R17: SERVIÇOS PRELIMINARES | S17: =REFERENCIA.Unidade -> - | T17: =OFFSET(CÁLCULO!H$15,ROW($T17)-ROW(T$15),0) -> 0 | V17: BDI 1 | W17: =IF($C17="S",ROUND(IF(TIPOORCAMENTO="Proposto",ORÇAMENTO.CustoUnitario*(1+$AH17),ORÇAMENTO.PrecoUnitarioLicitado),15-13*$AF$10),0) -> 0 | X17: =IF($C17="S",IF(OR(Import.TipoArredondamento<>"TransfereGOV",ACOMPANHAMENTO="BM"),VTOTAL1,SUM(OFFSET(CÁLCULO!$AI$15,ROW($X17)-ROW($X$15),1):OFFSET(CÁLCULO!$BB$15,ROW($X17)-ROW($X$15),-1))),IF($C17=0,0,ROUND(SomaAgrup,15-13*$AF$11))) -> 33051.51 | Y17: RA | AA17: =IF($C17="S",IF($Z17="CP",$X17,IF($Z17="RA",(($X17)*QCI!$AA$3),0)),SomaAgrup) -> 10307.31065 | AB17: 0 | AC17: =IF($N17=""," ", IF(AND($C17<>"S",OR($R17="",$R17="(digite a descrição aqui)")),"DESCRIÇÃO", IF(AND($C17="S",OR($Q17<>0,$T17>0,$U17>0),$P17=0),"FONTE", IF(AND($C17="S",$P17<>0,OR($T17>0,$U17>0),$Q17=0),"CÓDIGO", IF(AND($C17="S",$P17<>0,$Q17<>0,$R17="(Código não identificado nas referências)"),"CÓDIGO N/ID", IF(AND($C17="S",OR($R17="",$R17="(digite a descrição aqui)"),OR($Q17<>0,$T17>0,$U17>0)),"DESCRIÇÃO", IF(AND($C17="S",$P17<>0,$Q17<>0,$S17=""),"UNIDADE", IF(AND($C17="S",$P17<>0,$Q17<>0,$U17=0),"SEM CUSTO", IF(AND(TIPOORCAMENTO="Licitado",$AL17=0,$AN17>0),"SEM PREÇO", IF(AND($C17="S",$P17<>0,$Q17<>0,$U17>0,$V17=0),"BDI", IF(OR(AND(TIPOORCAMENTO="Proposto",$AG17<>"",$AG17>0,ORÇAMENTO.CustoUnitario>$AG17),AND(TIPOORCAMENTO="LICITADO",ORÇAMENTO.PrecoUnitarioLicitado>$AN17)),"ACIMA REF.", IF(AND($C17="S",$P17<>0,$Q17<>0,$T17=0,$U17>0),"QUANT.", IF(AND(Import.TipoArredondamento="TransfereGOV",$L17="F",$C17="S",LEN($Q17)>13),"Código >13", IF(AND(Import.TipoArredondamento="TransfereGOV",$L17="F",$C17<>"S",LEN($R17)>100),"Descrição >100", IF(AND(Import.TipoArredondamento="TransfereGOV",$L17="F",$C17="S",LEN($R17)>500),"Descrição >500", IF(AND(Import.TipoArredondamento="TransfereGOV",$L17="F",$C17="S",LEFT(TRIM(UPPER($P17)),6)<>"SINAPI",ISNA(VLOOKUP(TRIM(UPPER($S17)),ListaTgov.Unidades,1,FALSE))),"Unid. Não Disp", " ")))))))))))))))) ->  | AD17: =IF(C17<=CRONO.NivelExibicao,MAX($AD$15:OFFSET(AD17,-1,0))+IF($C17<>1,1,MAX(1,COUNTIF(QCI!$A$13:$A$24,OFFSET($E17,-1,0)))),"") -> 2 | AE17: =IF(AND($C17="S",ORÇAMENTO.CodBarra<>""),IF(ORÇAMENTO.Fonte="",ORÇAMENTO.CodBarra,CONCATENATE(ORÇAMENTO.Fonte," ",ORÇAMENTO.CodBarra))) -> FALSE | AF17: =IF(ISERROR(INDIRECT(ORÇAMENTO.BancoRef)),"(abra o arquivo 'Referência "&Excel_BuiltIn_Database&".xlsm)",IF(OR($C17<>"S",ORÇAMENTO.CodBarra=""),"(Sem Código)",IF(ISERROR(MATCH($AE17,INDIRECT(ORÇAMENTO.BancoRef),0)),"(Código não identificado nas referências)",MATCH($AE17,INDIRECT(ORÇAMENTO.BancoRef),0)))) -> (Sem Código) | AG17: =ROUND(IF(DESONERACAO="sim",REFERENCIA.Desonerado,REFERENCIA.NaoDesonerado),2) -> 0 | AH17: 0.2338 | AM17: 33051.51 | AN17: 0
A18: S | B18: 2 | C18: S | D18: 0 | E18: =IF($C18=1,OFFSET(E18,-1,0)+MAX(1,COUNTIF(QCI!$A$13:$A$24,OFFSET(ORÇAMENTO!E18,-1,0))),OFFSET(E18,-1,0)) -> 1 | F18: 1 | G18: 0 | H18: 0 | I18: 1 | J18: =IF(OR($C18="S",$C18=0),0,MATCH(0,OFFSET($D18,1,$C18,ROW($C$110)-ROW($C18)),0)) -> 0 | K18: =IF(OR($C18="S",$C18=0),0,MATCH(OFFSET($D18,0,$C18)+IF($C18<>1,1,COUNTIF(QCI!$A$13:$A$24,ORÇAMENTO!E18)),OFFSET($D18,1,$C18,ROW($C$110)-ROW($C18)),0)) -> 0 | L18: F | M18: Serviço | N18: Serviço | O18: 1.1.1. | P18: Composição | Q18: IUS0001 | R18: =IF($C18="S",REFERENCIA.Descricao,"(digite a descrição aqui)") -> Placa de obra em chapa de aço galvanizado (REF 74209/001 descontinuado em 01/01/2020) | S18: M2 | T18: =OFFSET(CÁLCULO!H$15,ROW($T18)-ROW(T$15),0) -> 8 | U18: =AG18 -> 511.92 | V18: BDI 1 | W18: =IF($C18="S",ROUND(IF(TIPOORCAMENTO="Proposto",ORÇAMENTO.CustoUnitario*(1+$AH18),ORÇAMENTO.PrecoUnitarioLicitado),15-13*$AF$10),0) -> 631.61 | X18: =IF($C18="S",IF(OR(Import.TipoArredondamento<>"TransfereGOV",ACOMPANHAMENTO="BM"),VTOTAL1,SUM(OFFSET(CÁLCULO!$AI$15,ROW($X18)-ROW($X$15),1):OFFSET(CÁLCULO!$BB$15,ROW($X18)-ROW($X$15),-1))),IF($C18=0,0,ROUND(SomaAgrup,15-13*$AF$11))) -> 5052.88 | Y18: RA | Z18: RA | AA18: =IF($C18="S",IF($Z18="CP",$X18,IF($Z18="RA",(($X18)*QCI!$AA$3),0)),SomaAgrup) -> 1575.770784 | AB18: 0 | AC18: =IF($N18=""," ", IF(AND($C18<>"S",OR($R18="",$R18="(digite a descrição aqui)")),"DESCRIÇÃO", IF(AND($C18="S",OR($Q18<>0,$T18>0,$U18>0),$P18=0),"FONTE", IF(AND($C18="S",$P18<>0,OR($T18>0,$U18>0),$Q18=0),"CÓDIGO", IF(AND($C18="S",$P18<>0,$Q18<>0,$R18="(Código não identificado nas referências)"),"CÓDIGO N/ID", IF(AND($C18="S",OR($R18="",$R18="(digite a descrição aqui)"),OR($Q18<>0,$T18>0,$U18>0)),"DESCRIÇÃO", IF(AND($C18="S",$P18<>0,$Q18<>0,$S18=""),"UNIDADE", IF(AND($C18="S",$P18<>0,$Q18<>0,$U18=0),"SEM CUSTO", IF(AND(TIPOORCAMENTO="Licitado",$AL18=0,$AN18>0),"SEM PREÇO", IF(AND($C18="S",$P18<>0,$Q18<>0,$U18>0,$V18=0),"BDI", IF(OR(AND(TIPOORCAMENTO="Proposto",$AG18<>"",$AG18>0,ORÇAMENTO.CustoUnitario>$AG18),AND(TIPOORCAMENTO="LICITADO",ORÇAMENTO.PrecoUnitarioLicitado>$AN18)),"ACIMA REF.", IF(AND($C18="S",$P18<>0,$Q18<>0,$T18=0,$U18>0),"QUANT.", IF(AND(Import.TipoArredondamento="TransfereGOV",$L18="F",$C18="S",LEN($Q18)>13),"Código >13", IF(AND(Import.TipoArredondamento="TransfereGOV",$L18="F",$C18<>"S",LEN($R18)>100),"Descrição >100", IF(AND(Import.TipoArredondamento="TransfereGOV",$L18="F",$C18="S",LEN($R18)>500),"Descrição >500", IF(AND(Import.TipoArredondamento="TransfereGOV",$L18="F",$C18="S",LEFT(TRIM(UPPER($P18)),6)<>"SINAPI",ISNA(VLOOKUP(TRIM(UPPER($S18)),ListaTgov.Unidades,1,FALSE))),"Unid. Não Disp", " ")))))))))))))))) ->  | AD18: =IF(C18<=CRONO.NivelExibicao,MAX($AD$15:OFFSET(AD18,-1,0))+IF($C18<>1,1,MAX(1,COUNTIF(QCI!$A$13:$A$24,OFFSET($E18,-1,0)))),"") ->  | AE18: =IF(AND($C18="S",ORÇAMENTO.CodBarra<>""),IF(ORÇAMENTO.Fonte="",ORÇAMENTO.CodBarra,CONCATENATE(ORÇAMENTO.Fonte," ",ORÇAMENTO.CodBarra))) -> Composição IUS0001 | AF18: =IF(ISERROR(INDIRECT(ORÇAMENTO.BancoRef)),"(abra o arquivo 'Referência "&Excel_BuiltIn_Database&".xlsm)",IF(OR($C18<>"S",ORÇAMENTO.CodBarra=""),"(Sem Código)",IF(ISERROR(MATCH($AE18,INDIRECT(ORÇAMENTO.BancoRef),0)),"(Código não identificado nas referências)",MATCH($AE18,INDIRECT(ORÇAMENTO.BancoRef),0)))) -> 4 | AG18: =ROUND(IF(DESONERACAO="sim",REFERENCIA.Desonerado,REFERENCIA.NaoDesonerado),2) -> 511.92 | AH18: 0.2338 | AJ18: 8 | AM18: 5052.88 | AN18: 631.61
A19: S | B19: 2 | C19: S | D19: 0 | E19: =IF($C19=1,OFFSET(E19,-1,0)+MAX(1,COUNTIF(QCI!$A$13:$A$24,OFFSET(ORÇAMENTO!E19,-1,0))),OFFSET(E19,-1,0)) -> 1 | F19: 1 | G19: 0 | H19: 0 | I19: 2 | J19: =IF(OR($C19="S",$C19=0),0,MATCH(0,OFFSET($D19,1,$C19,ROW($C$110)-ROW($C19)),0)) -> 0 | K19: =IF(OR($C19="S",$C19=0),0,MATCH(OFFSET($D19,0,$C19)+IF($C19<>1,1,COUNTIF(QCI!$A$13:$A$24,ORÇAMENTO!E19)),OFFSET($D19,1,$C19,ROW($C$110)-ROW($C19)),0)) -> 0 | L19: F | M19: Serviço | N19: Serviço | O19: 1.1.2. | P19: Cotação | Q19: 10775 | R19: =IF($C19="S",REFERENCIA.Descricao,"(digite a descrição aqui)") -> LOCACAO DE CONTAINER 2,30 X 6,00 M, ALT. 2,50 M, COM 1 SANITARIO, PARA ESCRITORIO, COMPLETO, SEM DIVISORIAS INTERNAS (NAO INCLUI MOBILIZACAO/DESMOBILIZACAO) | S19: MES | T19: =OFFSET(CÁLCULO!H$15,ROW($T19)-ROW(T$15),0) -> 12 | U19: 903.5 | V19: BDI 1 | W19: =IF($C19="S",ROUND(IF(TIPOORCAMENTO="Proposto",ORÇAMENTO.CustoUnitario*(1+$AH19),ORÇAMENTO.PrecoUnitarioLicitado),15-13*$AF$10),0) -> 1114.74 | X19: =IF($C19="S",IF(OR(Import.TipoArredondamento<>"TransfereGOV",ACOMPANHAMENTO="BM"),VTOTAL1,SUM(OFFSET(CÁLCULO!$AI$15,ROW($X19)-ROW($X$15),1):OFFSET(CÁLCULO!$BB$15,ROW($X19)-ROW($X$15),-1))),IF($C19=0,0,ROUND(SomaAgrup,15-13*$AF$11))) -> 13376.88 | Y19: RA | Z19: RA | AA19: =IF($C19="S",IF($Z19="CP",$X19,IF($Z19="RA",(($X19)*QCI!$AA$3),0)),SomaAgrup) -> 4171.659863 | AB19: 0 | AC19: =IF($N19=""," ", IF(AND($C19<>"S",OR($R19="",$R19="(digite a descrição aqui)")),"DESCRIÇÃO", IF(AND($C19="S",OR($Q19<>0,$T19>0,$U19>0),$P19=0),"FONTE", IF(AND($C19="S",$P19<>0,OR($T19>0,$U19>0),$Q19=0),"CÓDIGO", IF(AND($C19="S",$P19<>0,$Q19<>0,$R19="(Código não identificado nas referências)"),"CÓDIGO N/ID", IF(AND($C19="S",OR($R19="",$R19="(digite a descrição aqui)"),OR($Q19<>0,$T19>0,$U19>0)),"DESCRIÇÃO", IF(AND($C19="S",$P19<>0,$Q19<>0,$S19=""),"UNIDADE", IF(AND($C19="S",$P19<>0,$Q19<>0,$U19=0),"SEM CUSTO", IF(AND(TIPOORCAMENTO="Licitado",$AL19=0,$AN19>0),"SEM PREÇO", IF(AND($C19="S",$P19<>0,$Q19<>0,$U19>0,$V19=0),"BDI", IF(OR(AND(TIPOORCAMENTO="Proposto",$AG19<>"",$AG19>0,ORÇAMENTO.CustoUnitario>$AG19),AND(TIPOORCAMENTO="LICITADO",ORÇAMENTO.PrecoUnitarioLicitado>$AN19)),"ACIMA REF.", IF(AND($C19="S",$P19<>0,$Q19<>0,$T19=0,$U19>0),"QUANT.", IF(AND(Import.TipoArredondamento="TransfereGOV",$L19="F",$C19="S",LEN($Q19)>13),"Código >13", IF(AND(Import.TipoArredondamento="TransfereGOV",$L19="F",$C19<>"S",LEN($R19)>100),"Descrição >100", IF(AND(Import.TipoArredondamento="TransfereGOV",$L19="F",$C19="S",LEN($R19)>500),"Descrição >500", IF(AND(Import.TipoArredondamento="TransfereGOV",$L19="F",$C19="S",LEFT(TRIM(UPPER($P19)),6)<>"SINAPI",ISNA(VLOOKUP(TRIM(UPPER($S19)),ListaTgov.Unidades,1,FALSE))),"Unid. Não Disp", " ")))))))))))))))) ->  | AD19: =IF(C19<=CRONO.NivelExibicao,MAX($AD$15:OFFSET(AD19,-1,0))+IF($C19<>1,1,MAX(1,COUNTIF(QCI!$A$13:$A$24,OFFSET($E19,-1,0)))),"") ->  | AE19: =IF(AND($C19="S",ORÇAMENTO.CodBarra<>""),IF(ORÇAMENTO.Fonte="",ORÇAMENTO.CodBarra,CONCATENATE(ORÇAMENTO.Fonte," ",ORÇAMENTO.CodBarra))) -> Cotação 10775 | AF19: =IF(ISERROR(INDIRECT(ORÇAMENTO.BancoRef)),"(abra o arquivo 'Referência "&Excel_BuiltIn_Database&".xlsm)",IF(OR($C19<>"S",ORÇAMENTO.CodBarra=""),"(Sem Código)",IF(ISERROR(MATCH($AE19,INDIRECT(ORÇAMENTO.BancoRef),0)),"(Código não identificado nas referências)",MATCH($AE19,INDIRECT(ORÇAMENTO.BancoRef),0)))) -> 35 | AG19: =ROUND(IF(DESONERACAO="sim",REFERENCIA.Desonerado,REFERENCIA.NaoDesonerado),2) -> 903.5 | AH19: 0.2338 | AJ19: 12 | AM19: 13376.88 | AN19: 1114.74
A20: S | B20: 2 | C20: S | D20: 0 | E20: =IF($C20=1,OFFSET(E20,-1,0)+MAX(1,COUNTIF(QCI!$A$13:$A$24,OFFSET(ORÇAMENTO!E20,-1,0))),OFFSET(E20,-1,0)) -> 1 | F20: 1 | G20: 0 | H20: 0 | I20: 3 | J20: =IF(OR($C20="S",$C20=0),0,MATCH(0,OFFSET($D20,1,$C20,ROW($C$110)-ROW($C20)),0)) -> 0 | K20: =IF(OR($C20="S",$C20=0),0,MATCH(OFFSET($D20,0,$C20)+IF($C20<>1,1,COUNTIF(QCI!$A$13:$A$24,ORÇAMENTO!E20)),OFFSET($D20,1,$C20,ROW($C$110)-ROW($C20)),0)) -> 0 | L20: F | M20: Serviço | N20: Serviço | O20: 1.1.3. | P20: Composição | Q20: IUD20017 | R20: =IF($C20="S",REFERENCIA.Descricao,"(digite a descrição aqui)") -> Ligação provisória de água | S20: UN | T20: =OFFSET(CÁLCULO!H$15,ROW($T20)-ROW(T$15),0) -> 1 | U20: 490.93 | V20: BDI 1 | W20: =IF($C20="S",ROUND(IF(TIPOORCAMENTO="Proposto",ORÇAMENTO.CustoUnitario*(1+$AH20),ORÇAMENTO.PrecoUnitarioLicitado),15-13*$AF$10),0) -> 605.71 | X20: =IF($C20="S",IF(OR(Import.TipoArredondamento<>"TransfereGOV",ACOMPANHAMENTO="BM"),VTOTAL1,SUM(OFFSET(CÁLCULO!$AI$15,ROW($X20)-ROW($X$15),1):OFFSET(CÁLCULO!$BB$15,ROW($X20)-ROW($X$15),-1))),IF($C20=0,0,ROUND(SomaAgrup,15-13*$AF$11))) -> 605.71 | Y20: RA | Z20: RA | AA20: =IF($C20="S",IF($Z20="CP",$X20,IF($Z20="RA",(($X20)*QCI!$AA$3),0)),SomaAgrup) -> 188.8942785 | AB20: 0 | AC20: =IF($N20=""," ", IF(AND($C20<>"S",OR($R20="",$R20="(digite a descrição aqui)")),"DESCRIÇÃO", IF(AND($C20="S",OR($Q20<>0,$T20>0,$U20>0),$P20=0),"FONTE", IF(AND($C20="S",$P20<>0,OR($T20>0,$U20>0),$Q20=0),"CÓDIGO", IF(AND($C20="S",$P20<>0,$Q20<>0,$R20="(Código não identificado nas referências)"),"CÓDIGO N/ID", IF(AND($C20="S",OR($R20="",$R20="(digite a descrição aqui)"),OR($Q20<>0,$T20>0,$U20>0)),"DESCRIÇÃO", IF(AND($C20="S",$P20<>0,$Q20<>0,$S20=""),"UNIDADE", IF(AND($C20="S",$P20<>0,$Q20<>0,$U20=0),"SEM CUSTO", IF(AND(TIPOORCAMENTO="Licitado",$AL20=0,$AN20>0),"SEM PREÇO", IF(AND($C20="S",$P20<>0,$Q20<>0,$U20>0,$V20=0),"BDI", IF(OR(AND(TIPOORCAMENTO="Proposto",$AG20<>"",$AG20>0,ORÇAMENTO.CustoUnitario>$AG20),AND(TIPOORCAMENTO="LICITADO",ORÇAMENTO.PrecoUnitarioLicitado>$AN20)),"ACIMA REF.", IF(AND($C20="S",$P20<>0,$Q20<>0,$T20=0,$U20>0),"QUANT.", IF(AND(Import.TipoArredondamento="TransfereGOV",$L20="F",$C20="S",LEN($Q20)>13),"Código >13", IF(AND(Import.TipoArredondamento="TransfereGOV",$L20="F",$C20<>"S",LEN($R20)>100),"Descrição >100", IF(AND(Import.TipoArredondamento="TransfereGOV",$L20="F",$C20="S",LEN($R20)>500),"Descrição >500", IF(AND(Import.TipoArredondamento="TransfereGOV",$L20="F",$C20="S",LEFT(TRIM(UPPER($P20)),6)<>"SINAPI",ISNA(VLOOKUP(TRIM(UPPER($S20)),ListaTgov.Unidades,1,FALSE))),"Unid. Não Disp", " ")))))))))))))))) ->  | AD20: =IF(C20<=CRONO.NivelExibicao,MAX($AD$15:OFFSET(AD20,-1,0))+IF($C20<>1,1,MAX(1,COUNTIF(QCI!$A$13:$A$24,OFFSET($E20,-1,0)))),"") ->  | AE20: =IF(AND($C20="S",ORÇAMENTO.CodBarra<>""),IF(ORÇAMENTO.Fonte="",ORÇAMENTO.CodBarra,CONCATENATE(ORÇAMENTO.Fonte," ",ORÇAMENTO.CodBarra))) -> Composição IUD20017 | AF20: =IF(ISERROR(INDIRECT(ORÇAMENTO.BancoRef)),"(abra o arquivo 'Referência "&Excel_BuiltIn_Database&".xlsm)",IF(OR($C20<>"S",ORÇAMENTO.CodBarra=""),"(Sem Código)",IF(ISERROR(MATCH($AE20,INDIRECT(ORÇAMENTO.BancoRef),0)),"(Código não identificado nas referências)",MATCH($AE20,INDIRECT(ORÇAMENTO.BancoRef),0)))) -> 5 | AG20: =ROUND(IF(DESONERACAO="sim",REFERENCIA.Desonerado,REFERENCIA.NaoDesonerado),2) -> 490.93 | AH20: 0.2338 | AJ20: 1 | AM20: 605.71 | AN20: 605.71
A21: S | B21: 2 | C21: S | D21: 0 | E21: =IF($C21=1,OFFSET(E21,-1,0)+MAX(1,COUNTIF(QCI!$A$13:$A$24,OFFSET(ORÇAMENTO!E21,-1,0))),OFFSET(E21,-1,0)) -> 1 | F21: 1 | G21: 0 | H21: 0 | I21: 4 | J21: =IF(OR($C21="S",$C21=0),0,MATCH(0,OFFSET($D21,1,$C21,ROW($C$110)-ROW($C21)),0)) -> 0 | K21: =IF(OR($C21="S",$C21=0),0,MATCH(OFFSET($D21,0,$C21)+IF($C21<>1,1,COUNTIF(QCI!$A$13:$A$24,ORÇAMENTO!E21)),OFFSET($D21,1,$C21,ROW($C$110)-ROW($C21)),0)) -> 0 | L21: F | M21: Serviço | N21: Serviço | O21: 1.1.4. | P21: Composição | Q21: IUI00003 | R21: =IF($C21="S",REFERENCIA.Descricao,"(digite a descrição aqui)") -> Sinalização de advertência de obra com placa (fundo laranja) sobre cavalete, conforme ABNT-NBR-7678 | S21: UN | T21: =OFFSET(CÁLCULO!H$15,ROW($T21)-ROW(T$15),0) -> 20 | U21: 488.64 | V21: BDI 1 | W21: =IF($C21="S",ROUND(IF(TIPOORCAMENTO="Proposto",ORÇAMENTO.CustoUnitario*(1+$AH21),ORÇAMENTO.PrecoUnitarioLicitado),15-13*$AF$10),0) -> 602.88 | X21: =IF($C21="S",IF(OR(Import.TipoArredondamento<>"TransfereGOV",ACOMPANHAMENTO="BM"),VTOTAL1,SUM(OFFSET(CÁLCULO!$AI$15,ROW($X21)-ROW($X$15),1):OFFSET(CÁLCULO!$BB$15,ROW($X21)-ROW($X$15),-1))),IF($C21=0,0,ROUND(SomaAgrup,15-13*$AF$11))) -> 12057.6 | Y21: RA | Z21: RA | AA21: =IF($C21="S",IF($Z21="CP",$X21,IF($Z21="RA",(($X21)*QCI!$AA$3),0)),SomaAgrup) -> 3760.234522 | AB21: 0 | AC21: =IF($N21=""," ", IF(AND($C21<>"S",OR($R21="",$R21="(digite a descrição aqui)")),"DESCRIÇÃO", IF(AND($C21="S",OR($Q21<>0,$T21>0,$U21>0),$P21=0),"FONTE", IF(AND($C21="S",$P21<>0,OR($T21>0,$U21>0),$Q21=0),"CÓDIGO", IF(AND($C21="S",$P21<>0,$Q21<>0,$R21="(Código não identificado nas referências)"),"CÓDIGO N/ID", IF(AND($C21="S",OR($R21="",$R21="(digite a descrição aqui)"),OR($Q21<>0,$T21>0,$U21>0)),"DESCRIÇÃO", IF(AND($C21="S",$P21<>0,$Q21<>0,$S21=""),"UNIDADE", IF(AND($C21="S",$P21<>0,$Q21<>0,$U21=0),"SEM CUSTO", IF(AND(TIPOORCAMENTO="Licitado",$AL21=0,$AN21>0),"SEM PREÇO", IF(AND($C21="S",$P21<>0,$Q21<>0,$U21>0,$V21=0),"BDI", IF(OR(AND(TIPOORCAMENTO="Proposto",$AG21<>"",$AG21>0,ORÇAMENTO.CustoUnitario>$AG21),AND(TIPOORCAMENTO="LICITADO",ORÇAMENTO.PrecoUnitarioLicitado>$AN21)),"ACIMA REF.", IF(AND($C21="S",$P21<>0,$Q21<>0,$T21=0,$U21>0),"QUANT.", IF(AND(Import.TipoArredondamento="TransfereGOV",$L21="F",$C21="S",LEN($Q21)>13),"Código >13", IF(AND(Import.TipoArredondamento="TransfereGOV",$L21="F",$C21<>"S",LEN($R21)>100),"Descrição >100", IF(AND(Import.TipoArredondamento="TransfereGOV",$L21="F",$C21="S",LEN($R21)>500),"Descrição >500", IF(AND(Import.TipoArredondamento="TransfereGOV",$L21="F",$C21="S",LEFT(TRIM(UPPER($P21)),6)<>"SINAPI",ISNA(VLOOKUP(TRIM(UPPER($S21)),ListaTgov.Unidades,1,FALSE))),"Unid. Não Disp", " ")))))))))))))))) ->  | AD21: =IF(C21<=CRONO.NivelExibicao,MAX($AD$15:OFFSET(AD21,-1,0))+IF($C21<>1,1,MAX(1,COUNTIF(QCI!$A$13:$A$24,OFFSET($E21,-1,0)))),"") ->  | AE21: =IF(AND($C21="S",ORÇAMENTO.CodBarra<>""),IF(ORÇAMENTO.Fonte="",ORÇAMENTO.CodBarra,CONCATENATE(ORÇAMENTO.Fonte," ",ORÇAMENTO.CodBarra))) -> Composição IUI00003 | AF21: =IF(ISERROR(INDIRECT(ORÇAMENTO.BancoRef)),"(abra o arquivo 'Referência "&Excel_BuiltIn_Database&".xlsm)",IF(OR($C21<>"S",ORÇAMENTO.CodBarra=""),"(Sem Código)",IF(ISERROR(MATCH($AE21,INDIRECT(ORÇAMENTO.BancoRef),0)),"(Código não identificado nas referências)",MATCH($AE21,INDIRECT(ORÇAMENTO.BancoRef),0)))) -> 6 | AG21: =ROUND(IF(DESONERACAO="sim",REFERENCIA.Desonerado,REFERENCIA.NaoDesonerado),2) -> 488.64 | AH21: 0.2338 | AJ21: 20 | AM21: 12057.6 | AN21: 602.88
A22: S | B22: 2 | C22: S | D22: 0 | E22: =IF($C22=1,OFFSET(E22,-1,0)+MAX(1,COUNTIF(QCI!$A$13:$A$24,OFFSET(ORÇAMENTO!E22,-1,0))),OFFSET(E22,-1,0)) -> 1 | F22: 1 | G22: 0 | H22: 0 | I22: 5 | J22: =IF(OR($C22="S",$C22=0),0,MATCH(0,OFFSET($D22,1,$C22,ROW($C$110)-ROW($C22)),0)) -> 0 | K22: =IF(OR($C22="S",$C22=0),0,MATCH(OFFSET($D22,0,$C22)+IF($C22<>1,1,COUNTIF(QCI!$A$13:$A$24,ORÇAMENTO!E22)),OFFSET($D22,1,$C22,ROW($C$110)-ROW($C22)),0)) -> 0 | L22: F | M22: Serviço | N22: Serviço | O22: 1.1.5. | P22: SINAPI-I | Q22: 13244 | R22: =IF($C22="S",REFERENCIA.Descricao,"(digite a descrição aqui)") -> CONE DE SINALIZACAO EM PVC RIGIDO COM FAIXA REFLETIVA, H = 70 / 76 CM | S22: =REFERENCIA.Unidade -> UN | T22: =OFFSET(CÁLCULO!H$15,ROW($T22)-ROW(T$15),0) -> 20 | U22: 39.24 | V22: BDI 1 | W22: =IF($C22="S",ROUND(IF(TIPOORCAMENTO="Proposto",ORÇAMENTO.CustoUnitario*(1+$AH22),ORÇAMENTO.PrecoUnitarioLicitado),15-13*$AF$10),0) -> 48.41 | X22: =IF($C22="S",IF(OR(Import.TipoArredondamento<>"TransfereGOV",ACOMPANHAMENTO="BM"),VTOTAL1,SUM(OFFSET(CÁLCULO!$AI$15,ROW($X22)-ROW($X$15),1):OFFSET(CÁLCULO!$BB$15,ROW($X22)-ROW($X$15),-1))),IF($C22=0,0,ROUND(SomaAgrup,15-13*$AF$11))) -> 968.2 | Y22: RA | Z22: RA | AA22: =IF($C22="S",IF($Z22="CP",$X22,IF($Z22="RA",(($X22)*QCI!$AA$3),0)),SomaAgrup) -> 301.9389484 | AB22: 0 | AC22: =IF($N22=""," ", IF(AND($C22<>"S",OR($R22="",$R22="(digite a descrição aqui)")),"DESCRIÇÃO", IF(AND($C22="S",OR($Q22<>0,$T22>0,$U22>0),$P22=0),"FONTE", IF(AND($C22="S",$P22<>0,OR($T22>0,$U22>0),$Q22=0),"CÓDIGO", IF(AND($C22="S",$P22<>0,$Q22<>0,$R22="(Código não identificado nas referências)"),"CÓDIGO N/ID", IF(AND($C22="S",OR($R22="",$R22="(digite a descrição aqui)"),OR($Q22<>0,$T22>0,$U22>0)),"DESCRIÇÃO", IF(AND($C22="S",$P22<>0,$Q22<>0,$S22=""),"UNIDADE", IF(AND($C22="S",$P22<>0,$Q22<>0,$U22=0),"SEM CUSTO", IF(AND(TIPOORCAMENTO="Licitado",$AL22=0,$AN22>0),"SEM PREÇO", IF(AND($C22="S",$P22<>0,$Q22<>0,$U22>0,$V22=0),"BDI", IF(OR(AND(TIPOORCAMENTO="Proposto",$AG22<>"",$AG22>0,ORÇAMENTO.CustoUnitario>$AG22),AND(TIPOORCAMENTO="LICITADO",ORÇAMENTO.PrecoUnitarioLicitado>$AN22)),"ACIMA REF.", IF(AND($C22="S",$P22<>0,$Q22<>0,$T22=0,$U22>0),"QUANT.", IF(AND(Import.TipoArredondamento="TransfereGOV",$L22="F",$C22="S",LEN($Q22)>13),"Código >13", IF(AND(Import.TipoArredondamento="TransfereGOV",$L22="F",$C22<>"S",LEN($R22)>100),"Descrição >100", IF(AND(Import.TipoArredondamento="TransfereGOV",$L22="F",$C22="S",LEN($R22)>500),"Descrição >500", IF(AND(Import.TipoArredondamento="TransfereGOV",$L22="F",$C22="S",LEFT(TRIM(UPPER($P22)),6)<>"SINAPI",ISNA(VLOOKUP(TRIM(UPPER($S22)),ListaTgov.Unidades,1,FALSE))),"Unid. Não Disp", " ")))))))))))))))) ->  | AD22: =IF(C22<=CRONO.NivelExibicao,MAX($AD$15:OFFSET(AD22,-1,0))+IF($C22<>1,1,MAX(1,COUNTIF(QCI!$A$13:$A$24,OFFSET($E22,-1,0)))),"") ->  | AE22: =IF(AND($C22="S",ORÇAMENTO.CodBarra<>""),IF(ORÇAMENTO.Fonte="",ORÇAMENTO.CodBarra,CONCATENATE(ORÇAMENTO.Fonte," ",ORÇAMENTO.CodBarra))) -> SINAPI-I 13244 | AF22: =IF(ISERROR(INDIRECT(ORÇAMENTO.BancoRef)),"(abra o arquivo 'Referência "&Excel_BuiltIn_Database&".xlsm)",IF(OR($C22<>"S",ORÇAMENTO.CodBarra=""),"(Sem Código)",IF(ISERROR(MATCH($AE22,INDIRECT(ORÇAMENTO.BancoRef),0)),"(Código não identificado nas referências)",MATCH($AE22,INDIRECT(ORÇAMENTO.BancoRef),0)))) -> 1343 | AG22: =ROUND(IF(DESONERACAO="sim",REFERENCIA.Desonerado,REFERENCIA.NaoDesonerado),2) -> 39.24 | AH22: 0.2338 | AJ22: 20 | AM22: 968.2 | AN22: 48.41
A23: =CHOOSE(1+LOG(1+2*(ORÇAMENTO.Nivel="Meta")+4*(ORÇAMENTO.Nivel="Nível 2")+8*(ORÇAMENTO.Nivel="Nível 3")+16*(ORÇAMENTO.Nivel="Nível 4")+32*(ORÇAMENTO.Nivel="Serviço"),2),0,1,2,3,4,"S") -> S | B23: =IF(OR(C23="s",C23=0),OFFSET(B23,-1,0),C23) -> 2 | C23: =IF(OFFSET(C23,-1,0)="L",1,IF(OFFSET(C23,-1,0)=1,2,IF(OR(A23="s",A23=0),"S",IF(AND(OFFSET(C23,-1,0)=2,A23=4),3,IF(AND(OR(OFFSET(C23,-1,0)="s",OFFSET(C23,-1,0)=0),A23<>"s",A23>OFFSET(B23,-1,0)),OFFSET(B23,-1,0),A23))))) -> S | D23: =IF(OR(C23="S",C23=0),0,IF(ISERROR(K23),J23,SMALL(J23:K23,1))) -> 0 | E23: =IF($C23=1,OFFSET(E23,-1,0)+MAX(1,COUNTIF(QCI!$A$13:$A$24,OFFSET(ORÇAMENTO!E23,-1,0))),OFFSET(E23,-1,0)) -> 1 | F23: =IF($C23=1,0,IF($C23=2,OFFSET(F23,-1,0)+1,OFFSET(F23,-1,0))) -> 1 | G23: =IF(AND($C23<=2,$C23<>0),0,IF($C23=3,OFFSET(G23,-1,0)+1,OFFSET(G23,-1,0))) -> 0 | H23: =IF(AND($C23<=3,$C23<>0),0,IF($C23=4,OFFSET(H23,-1,0)+1,OFFSET(H23,-1,0))) -> 0 | I23: =IF(AND($C23<=4,$C23<>0),0,IF(AND($C23="S",$X23>0),OFFSET(I23,-1,0)+1,OFFSET(I23,-1,0))) -> 6 | J23: =IF(OR($C23="S",$C23=0),0,MATCH(0,OFFSET($D23,1,$C23,ROW($C$110)-ROW($C23)),0)) -> 0 | K23: =IF(OR($C23="S",$C23=0),0,MATCH(OFFSET($D23,0,$C23)+IF($C23<>1,1,COUNTIF(QCI!$A$13:$A$24,ORÇAMENTO!E23)),OFFSET($D23,1,$C23,ROW($C$110)-ROW($C23)),0)) -> 0 | L23: =IF(OR($X23>0,$C23=1,$C23=2,$C23=3,$C23=4),"F","") -> F | M23: Serviço | N23: =CHOOSE(1+LOG(1+2*(C23=1)+4*(C23=2)+8*(C23=3)+16*(C23=4)+32*(C23="S"),2),"","Meta","Nível 2","Nível 3","Nível 4","Serviço") -> Serviço | O23: =IF(OR($C23=0,$L23=""),"-",CONCATENATE(E23&".",IF(AND($A$5>=2,$C23>=2),F23&".",""),IF(AND($A$5>=3,$C23>=3),G23&".",""),IF(AND($A$5>=4,$C23>=4),H23&".",""),IF($C23="S",I23&".",""))) -> 1.1.6. | P23: Composição | Q23: 011299000 | R23: =IF($C23="S",REFERENCIA.Descricao,"(digite a descrição aqui)") -> INSTALAÇÃO/LIGAÇÃO PROVISÓRIA DE ENERGIA ELÉTRICA DE BAIXA TENSÃO | S23: =REFERENCIA.Unidade -> UN | T23: =OFFSET(CÁLCULO!H$15,ROW($T23)-ROW(T$15),0) -> 1 | U23: 802.59 | V23: BDI 1 | W23: =IF($C23="S",ROUND(IF(TIPOORCAMENTO="Proposto",ORÇAMENTO.CustoUnitario*(1+$AH23),ORÇAMENTO.PrecoUnitarioLicitado),15-13*$AF$10),0) -> 990.24 | X23: =IF($C23="S",IF(OR(Import.TipoArredondamento<>"TransfereGOV",ACOMPANHAMENTO="BM"),VTOTAL1,SUM(OFFSET(CÁLCULO!$AI$15,ROW($X23)-ROW($X$15),1):OFFSET(CÁLCULO!$BB$15,ROW($X23)-ROW($X$15),-1))),IF($C23=0,0,ROUND(SomaAgrup,15-13*$AF$11))) -> 990.24 | Y23: RA | Z23: =IF(AND($C23="S",$X23>0),IF(ISBLANK($Y23),"RA",LEFT($Y23,2)),"") -> RA | AA23: =IF($C23="S",IF($Z23="CP",$X23,IF($Z23="RA",(($X23)*QCI!$AA$3),0)),SomaAgrup) -> 308.8122539 | AB23: =IF($C23="S",IF($Z23="OU",ROUND($X23,2),0),SomaAgrup) -> 0 | AC23: =IF($N23=""," ", IF(AND($C23<>"S",OR($R23="",$R23="(digite a descrição aqui)")),"DESCRIÇÃO", IF(AND($C23="S",OR($Q23<>0,$T23>0,$U23>0),$P23=0),"FONTE", IF(AND($C23="S",$P23<>0,OR($T23>0,$U23>0),$Q23=0),"CÓDIGO", IF(AND($C23="S",$P23<>0,$Q23<>0,$R23="(Código não identificado nas referências)"),"CÓDIGO N/ID", IF(AND($C23="S",OR($R23="",$R23="(digite a descrição aqui)"),OR($Q23<>0,$T23>0,$U23>0)),"DESCRIÇÃO", IF(AND($C23="S",$P23<>0,$Q23<>0,$S23=""),"UNIDADE", IF(AND($C23="S",$P23<>0,$Q23<>0,$U23=0),"SEM CUSTO", IF(AND(TIPOORCAMENTO="Licitado",$AL23=0,$AN23>0),"SEM PREÇO", IF(AND($C23="S",$P23<>0,$Q23<>0,$U23>0,$V23=0),"BDI", IF(OR(AND(TIPOORCAMENTO="Proposto",$AG23<>"",$AG23>0,ORÇAMENTO.CustoUnitario>$AG23),AND(TIPOORCAMENTO="LICITADO",ORÇAMENTO.PrecoUnitarioLicitado>$AN23)),"ACIMA REF.", IF(AND($C23="S",$P23<>0,$Q23<>0,$T23=0,$U23>0),"QUANT.", IF(AND(Import.TipoArredondamento="TransfereGOV",$L23="F",$C23="S",LEN($Q23)>13),"Código >13", IF(AND(Import.TipoArredondamento="TransfereGOV",$L23="F",$C23<>"S",LEN($R23)>100),"Descrição >100", IF(AND(Import.TipoArredondamento="TransfereGOV",$L23="F",$C23="S",LEN($R23)>500),"Descrição >500", IF(AND(Import.TipoArredondamento="TransfereGOV",$L23="F",$C23="S",LEFT(TRIM(UPPER($P23)),6)<>"SINAPI",ISNA(VLOOKUP(TRIM(UPPER($S23)),ListaTgov.Unidades,1,FALSE))),"Unid. Não Disp", " ")))))))))))))))) ->  | AD23: =IF(C23<=CRONO.NivelExibicao,MAX($AD$15:OFFSET(AD23,-1,0))+IF($C23<>1,1,MAX(1,COUNTIF(QCI!$A$13:$A$24,OFFSET($E23,-1,0)))),"") ->  | AE23: =IF(AND($C23="S",ORÇAMENTO.CodBarra<>""),IF(ORÇAMENTO.Fonte="",ORÇAMENTO.CodBarra,CONCATENATE(ORÇAMENTO.Fonte," ",ORÇAMENTO.CodBarra))) -> Composição 011299000 | AF23: =IF(ISERROR(INDIRECT(ORÇAMENTO.BancoRef)),"(abra o arquivo 'Referência "&Excel_BuiltIn_Database&".xlsm)",IF(OR($C23<>"S",ORÇAMENTO.CodBarra=""),"(Sem Código)",IF(ISERROR(MATCH($AE23,INDIRECT(ORÇAMENTO.BancoRef),0)),"(Código não identificado nas referências)",MATCH($AE23,INDIRECT(ORÇAMENTO.BancoRef),0)))) -> 25 | AG23: =ROUND(IF(DESONERACAO="sim",REFERENCIA.Desonerado,REFERENCIA.NaoDesonerado),2) -> 802.59 | AH23: =ROUND(IF(ISNUMBER(ORÇAMENTO.OpcaoBDI),ORÇAMENTO.OpcaoBDI,IF(LEFT(ORÇAMENTO.OpcaoBDI,3)="BDI",HLOOKUP(ORÇAMENTO.OpcaoBDI,$F$4:$H$5,2,FALSE),0)),15-11*$AF$9) -> 0.2338 | AJ23: 1 | AM23: 990.24 | AN23: =ROUND(ORÇAMENTO.CustoUnitario*(1+$AH23),2) -> 990.24
A24: 2 | B24: 2 | C24: 2 | D24: 12 | E24: =IF($C24=1,OFFSET(E24,-1,0)+MAX(1,COUNTIF(QCI!$A$13:$A$24,OFFSET(ORÇAMENTO!E24,-1,0))),OFFSET(E24,-1,0)) -> 1 | F24: 2 | G24: 0 | H24: 0 | I24: 0 | J24: =IF(OR($C24="S",$C24=0),0,MATCH(0,OFFSET($D24,1,$C24,ROW($C$110)-ROW($C24)),0)) -> 86 | K24: =IF(OR($C24="S",$C24=0),0,MATCH(OFFSET($D24,0,$C24)+IF($C24<>1,1,COUNTIF(QCI!$A$13:$A$24,ORÇAMENTO!E24)),OFFSET($D24,1,$C24,ROW($C$110)-ROW($C24)),0)) -> 12 | L24: F | M24: Nível 2 | N24: Nível 2 | O24: 1.2. | P24: SINAPI | R24: DRENAGEM DE ÁGUAS PLUVIAIS - MOVIMENTAÇÃO DE TERRA | S24: =REFERENCIA.Unidade -> - | T24: =OFFSET(CÁLCULO!H$15,ROW($T24)-ROW(T$15),0) -> 0 | U24: =AG24 -> 0 | V24: BDI 1 | W24: =IF($C24="S",ROUND(IF(TIPOORCAMENTO="Proposto",ORÇAMENTO.CustoUnitario*(1+$AH24),ORÇAMENTO.PrecoUnitarioLicitado),15-13*$AF$10),0) -> 0 | X24: =IF($C24="S",IF(OR(Import.TipoArredondamento<>"TransfereGOV",ACOMPANHAMENTO="BM"),VTOTAL1,SUM(OFFSET(CÁLCULO!$AI$15,ROW($X24)-ROW($X$15),1):OFFSET(CÁLCULO!$BB$15,ROW($X24)-ROW($X$15),-1))),IF($C24=0,0,ROUND(SomaAgrup,15-13*$AF$11))) -> 249112.57 | Y24: RA | AA24: =IF($C24="S",IF($Z24="CP",$X24,IF($Z24="RA",(($X24)*QCI!$AA$3),0)),SomaAgrup) -> 77687.2417 | AB24: 0 | AC24: =IF($N24=""," ", IF(AND($C24<>"S",OR($R24="",$R24="(digite a descrição aqui)")),"DESCRIÇÃO", IF(AND($C24="S",OR($Q24<>0,$T24>0,$U24>0),$P24=0),"FONTE", IF(AND($C24="S",$P24<>0,OR($T24>0,$U24>0),$Q24=0),"CÓDIGO", IF(AND($C24="S",$P24<>0,$Q24<>0,$R24="(Código não identificado nas referências)"),"CÓDIGO N/ID", IF(AND($C24="S",OR($R24="",$R24="(digite a descrição aqui)"),OR($Q24<>0,$T24>0,$U24>0)),"DESCRIÇÃO", IF(AND($C24="S",$P24<>0,$Q24<>0,$S24=""),"UNIDADE", IF(AND($C24="S",$P24<>0,$Q24<>0,$U24=0),"SEM CUSTO", IF(AND(TIPOORCAMENTO="Licitado",$AL24=0,$AN24>0),"SEM PREÇO", IF(AND($C24="S",$P24<>0,$Q24<>0,$U24>0,$V24=0),"BDI", IF(OR(AND(TIPOORCAMENTO="Proposto",$AG24<>"",$AG24>0,ORÇAMENTO.CustoUnitario>$AG24),AND(TIPOORCAMENTO="LICITADO",ORÇAMENTO.PrecoUnitarioLicitado>$AN24)),"ACIMA REF.", IF(AND($C24="S",$P24<>0,$Q24<>0,$T24=0,$U24>0),"QUANT.", IF(AND(Import.TipoArredondamento="TransfereGOV",$L24="F",$C24="S",LEN($Q24)>13),"Código >13", IF(AND(Import.TipoArredondamento="TransfereGOV",$L24="F",$C24<>"S",LEN($R24)>100),"Descrição >100", IF(AND(Import.TipoArredondamento="TransfereGOV",$L24="F",$C24="S",LEN($R24)>500),"Descrição >500", IF(AND(Import.TipoArredondamento="TransfereGOV",$L24="F",$C24="S",LEFT(TRIM(UPPER($P24)),6)<>"SINAPI",ISNA(VLOOKUP(TRIM(UPPER($S24)),ListaTgov.Unidades,1,FALSE))),"Unid. Não Disp", " ")))))))))))))))) ->  | AD24: =IF(C24<=CRONO.NivelExibicao,MAX($AD$15:OFFSET(AD24,-1,0))+IF($C24<>1,1,MAX(1,COUNTIF(QCI!$A$13:$A$24,OFFSET($E24,-1,0)))),"") -> 3 | AE24: =IF(AND($C24="S",ORÇAMENTO.CodBarra<>""),IF(ORÇAMENTO.Fonte="",ORÇAMENTO.CodBarra,CONCATENATE(ORÇAMENTO.Fonte," ",ORÇAMENTO.CodBarra))) -> FALSE | AF24: =IF(ISERROR(INDIRECT(ORÇAMENTO.BancoRef)),"(abra o arquivo 'Referência "&Excel_BuiltIn_Database&".xlsm)",IF(OR($C24<>"S",ORÇAMENTO.CodBarra=""),"(Sem Código)",IF(ISERROR(MATCH($AE24,INDIRECT(ORÇAMENTO.BancoRef),0)),"(Código não identificado nas referências)",MATCH($AE24,INDIRECT(ORÇAMENTO.BancoRef),0)))) -> (Sem Código) | AG24: =ROUND(IF(DESONERACAO="sim",REFERENCIA.Desonerado,REFERENCIA.NaoDesonerado),2) -> 0 | AH24: 0.2338 | AM24: 249112.57 | AN24: 0
A25: S | B25: 2 | C25: S | D25: 0 | E25: =IF($C25=1,OFFSET(E25,-1,0)+MAX(1,COUNTIF(QCI!$A$13:$A$24,OFFSET(ORÇAMENTO!E25,-1,0))),OFFSET(E25,-1,0)) -> 1 | F25: 2 | G25: 0 | H25: 0 | I25: 1 | J25: =IF(OR($C25="S",$C25=0),0,MATCH(0,OFFSET($D25,1,$C25,ROW($C$110)-ROW($C25)),0)) -> 0 | K25: =IF(OR($C25="S",$C25=0),0,MATCH(OFFSET($D25,0,$C25)+IF($C25<>1,1,COUNTIF(QCI!$A$13:$A$24,ORÇAMENTO!E25)),OFFSET($D25,1,$C25,ROW($C$110)-ROW($C25)),0)) -> 0 | L25: F | M25: Serviço | N25: Serviço | O25: 1.2.1. | P25: Composição | Q25: IUD20080 | R25: =IF($C25="S",REFERENCIA.Descricao,"(digite a descrição aqui)") -> Escavação manual em solo-prof. até 1,50 m | S25: M3 | T25: =OFFSET(CÁLCULO!H$15,ROW($T25)-ROW(T$15),0) -> 218.72 | U25: =AG25 -> 43.44 | V25: BDI 1 | W25: =IF($C25="S",ROUND(IF(TIPOORCAMENTO="Proposto",ORÇAMENTO.CustoUnitario*(1+$AH25),ORÇAMENTO.PrecoUnitarioLicitado),15-13*$AF$10),0) -> 53.6 | X25: =IF($C25="S",IF(OR(Import.TipoArredondamento<>"TransfereGOV",ACOMPANHAMENTO="BM"),VTOTAL1,SUM(OFFSET(CÁLCULO!$AI$15,ROW($X25)-ROW($X$15),1):OFFSET(CÁLCULO!$BB$15,ROW($X25)-ROW($X$15),-1))),IF($C25=0,0,ROUND(SomaAgrup,15-13*$AF$11))) -> 11723.39 | Y25: RA | Z25: RA | AA25: =IF($C25="S",IF($Z25="CP",$X25,IF($Z25="RA",(($X25)*QCI!$AA$3),0)),SomaAgrup) -> 3656.009138 | AB25: 0 | AC25: =IF($N25=""," ", IF(AND($C25<>"S",OR($R25="",$R25="(digite a descrição aqui)")),"DESCRIÇÃO", IF(AND($C25="S",OR($Q25<>0,$T25>0,$U25>0),$P25=0),"FONTE", IF(AND($C25="S",$P25<>0,OR($T25>0,$U25>0),$Q25=0),"CÓDIGO", IF(AND($C25="S",$P25<>0,$Q25<>0,$R25="(Código não identificado nas referências)"),"CÓDIGO N/ID", IF(AND($C25="S",OR($R25="",$R25="(digite a descrição aqui)"),OR($Q25<>0,$T25>0,$U25>0)),"DESCRIÇÃO", IF(AND($C25="S",$P25<>0,$Q25<>0,$S25=""),"UNIDADE", IF(AND($C25="S",$P25<>0,$Q25<>0,$U25=0),"SEM CUSTO", IF(AND(TIPOORCAMENTO="Licitado",$AL25=0,$AN25>0),"SEM PREÇO", IF(AND($C25="S",$P25<>0,$Q25<>0,$U25>0,$V25=0),"BDI", IF(OR(AND(TIPOORCAMENTO="Proposto",$AG25<>"",$AG25>0,ORÇAMENTO.CustoUnitario>$AG25),AND(TIPOORCAMENTO="LICITADO",ORÇAMENTO.PrecoUnitarioLicitado>$AN25)),"ACIMA REF.", IF(AND($C25="S",$P25<>0,$Q25<>0,$T25=0,$U25>0),"QUANT.", IF(AND(Import.TipoArredondamento="TransfereGOV",$L25="F",$C25="S",LEN($Q25)>13),"Código >13", IF(AND(Import.TipoArredondamento="TransfereGOV",$L25="F",$C25<>"S",LEN($R25)>100),"Descrição >100", IF(AND(Import.TipoArredondamento="TransfereGOV",$L25="F",$C25="S",LEN($R25)>500),"Descrição >500", IF(AND(Import.TipoArredondamento="TransfereGOV",$L25="F",$C25="S",LEFT(TRIM(UPPER($P25)),6)<>"SINAPI",ISNA(VLOOKUP(TRIM(UPPER($S25)),ListaTgov.Unidades,1,FALSE))),"Unid. Não Disp", " ")))))))))))))))) ->  | AD25: =IF(C25<=CRONO.NivelExibicao,MAX($AD$15:OFFSET(AD25,-1,0))+IF($C25<>1,1,MAX(1,COUNTIF(QCI!$A$13:$A$24,OFFSET($E25,-1,0)))),"") ->  | AE25: =IF(AND($C25="S",ORÇAMENTO.CodBarra<>""),IF(ORÇAMENTO.Fonte="",ORÇAMENTO.CodBarra,CONCATENATE(ORÇAMENTO.Fonte," ",ORÇAMENTO.CodBarra))) -> Composição IUD20080 | AF25: =IF(ISERROR(INDIRECT(ORÇAMENTO.BancoRef)),"(abra o arquivo 'Referência "&Excel_BuiltIn_Database&".xlsm)",IF(OR($C25<>"S",ORÇAMENTO.CodBarra=""),"(Sem Código)",IF(ISERROR(MATCH($AE25,INDIRECT(ORÇAMENTO.BancoRef),0)),"(Código não identificado nas referências)",MATCH($AE25,INDIRECT(ORÇAMENTO.BancoRef),0)))) -> 3 | AG25: =ROUND(IF(DESONERACAO="sim",REFERENCIA.Desonerado,REFERENCIA.NaoDesonerado),2) -> 43.44 | AH25: 0.2338 | AJ25: 218.72 | AM25: 11723.39 | AN25: 53.6
A26: S | B26: 2 | C26: S | D26: 0 | E26: =IF($C26=1,OFFSET(E26,-1,0)+MAX(1,COUNTIF(QCI!$A$13:$A$24,OFFSET(ORÇAMENTO!E26,-1,0))),OFFSET(E26,-1,0)) -> 1 | F26: 2 | G26: 0 | H26: 0 | I26: 2 | J26: =IF(OR($C26="S",$C26=0),0,MATCH(0,OFFSET($D26,1,$C26,ROW($C$110)-ROW($C26)),0)) -> 0 | K26: =IF(OR($C26="S",$C26=0),0,MATCH(OFFSET($D26,0,$C26)+IF($C26<>1,1,COUNTIF(QCI!$A$13:$A$24,ORÇAMENTO!E26)),OFFSET($D26,1,$C26,ROW($C$110)-ROW($C26)),0)) -> 0 | L26: F | M26: Serviço | N26: Serviço | O26: 1.2.2. | P26: SINAPI | Q26: 102276 | R26: =IF($C26="S",REFERENCIA.Descricao,"(digite a descrição aqui)") -> ESCAVAÇÃO MECANIZADA DE VALA COM PROF. ATÉ 1,5 M (MÉDIA MONTANTE E JUSANTE/UMA COMPOSIÇÃO POR TRECHO), ESCAVADEIRA (0,8 M3), LARG. MENOR QUE 1,5 M, EM SOLO DE 1A CATEGORIA, EM LOCAIS COM ALTO NÍVEL DE INTERFERÊNCIA. AF_09/2024 | S26: =REFERENCIA.Unidade -> M3 | T26: =OFFSET(CÁLCULO!H$15,ROW($T26)-ROW(T$15),0) -> 292.1 | U26: 10.74 | V26: BDI 1 | W26: =IF($C26="S",ROUND(IF(TIPOORCAMENTO="Proposto",ORÇAMENTO.CustoUnitario*(1+$AH26),ORÇAMENTO.PrecoUnitarioLicitado),15-13*$AF$10),0) -> 13.25 | X26: =IF($C26="S",IF(OR(Import.TipoArredondamento<>"TransfereGOV",ACOMPANHAMENTO="BM"),VTOTAL1,SUM(OFFSET(CÁLCULO!$AI$15,ROW($X26)-ROW($X$15),1):OFFSET(CÁLCULO!$BB$15,ROW($X26)-ROW($X$15),-1))),IF($C26=0,0,ROUND(SomaAgrup,15-13*$AF$11))) -> 3870.33 | Y26: RA | Z26: RA | AA26: =IF($C26="S",IF($Z26="CP",$X26,IF($Z26="RA",(($X26)*QCI!$AA$3),0)),SomaAgrup) -> 1206.985509 | AB26: 0 | AC26: =IF($N26=""," ", IF(AND($C26<>"S",OR($R26="",$R26="(digite a descrição aqui)")),"DESCRIÇÃO", IF(AND($C26="S",OR($Q26<>0,$T26>0,$U26>0),$P26=0),"FONTE", IF(AND($C26="S",$P26<>0,OR($T26>0,$U26>0),$Q26=0),"CÓDIGO", IF(AND($C26="S",$P26<>0,$Q26<>0,$R26="(Código não identificado nas referências)"),"CÓDIGO N/ID", IF(AND($C26="S",OR($R26="",$R26="(digite a descrição aqui)"),OR($Q26<>0,$T26>0,$U26>0)),"DESCRIÇÃO", IF(AND($C26="S",$P26<>0,$Q26<>0,$S26=""),"UNIDADE", IF(AND($C26="S",$P26<>0,$Q26<>0,$U26=0),"SEM CUSTO", IF(AND(TIPOORCAMENTO="Licitado",$AL26=0,$AN26>0),"SEM PREÇO", IF(AND($C26="S",$P26<>0,$Q26<>0,$U26>0,$V26=0),"BDI", IF(OR(AND(TIPOORCAMENTO="Proposto",$AG26<>"",$AG26>0,ORÇAMENTO.CustoUnitario>$AG26),AND(TIPOORCAMENTO="LICITADO",ORÇAMENTO.PrecoUnitarioLicitado>$AN26)),"ACIMA REF.", IF(AND($C26="S",$P26<>0,$Q26<>0,$T26=0,$U26>0),"QUANT.", IF(AND(Import.TipoArredondamento="TransfereGOV",$L26="F",$C26="S",LEN($Q26)>13),"Código >13", IF(AND(Import.TipoArredondamento="TransfereGOV",$L26="F",$C26<>"S",LEN($R26)>100),"Descrição >100", IF(AND(Import.TipoArredondamento="TransfereGOV",$L26="F",$C26="S",LEN($R26)>500),"Descrição >500", IF(AND(Import.TipoArredondamento="TransfereGOV",$L26="F",$C26="S",LEFT(TRIM(UPPER($P26)),6)<>"SINAPI",ISNA(VLOOKUP(TRIM(UPPER($S26)),ListaTgov.Unidades,1,FALSE))),"Unid. Não Disp", " ")))))))))))))))) ->  | AD26: =IF(C26<=CRONO.NivelExibicao,MAX($AD$15:OFFSET(AD26,-1,0))+IF($C26<>1,1,MAX(1,COUNTIF(QCI!$A$13:$A$24,OFFSET($E26,-1,0)))),"") ->  | AE26: =IF(AND($C26="S",ORÇAMENTO.CodBarra<>""),IF(ORÇAMENTO.Fonte="",ORÇAMENTO.CodBarra,CONCATENATE(ORÇAMENTO.Fonte," ",ORÇAMENTO.CodBarra))) -> SINAPI 102276 | AF26: =IF(ISERROR(INDIRECT(ORÇAMENTO.BancoRef)),"(abra o arquivo 'Referência "&Excel_BuiltIn_Database&".xlsm)",IF(OR($C26<>"S",ORÇAMENTO.CodBarra=""),"(Sem Código)",IF(ISERROR(MATCH($AE26,INDIRECT(ORÇAMENTO.BancoRef),0)),"(Código não identificado nas referências)",MATCH($AE26,INDIRECT(ORÇAMENTO.BancoRef),0)))) -> 9294 | AG26: =ROUND(IF(DESONERACAO="sim",REFERENCIA.Desonerado,REFERENCIA.NaoDesonerado),2) -> 10.74 | AH26: 0.2338 | AJ26: 292.1 | AM26: 3870.33 | AN26: 13.25
A27: S | B27: 2 | C27: S | D27: 0 | E27: =IF($C27=1,OFFSET(E27,-1,0)+MAX(1,COUNTIF(QCI!$A$13:$A$24,OFFSET(ORÇAMENTO!E27,-1,0))),OFFSET(E27,-1,0)) -> 1 | F27: 2 | G27: 0 | H27: 0 | I27: 3 | J27: =IF(OR($C27="S",$C27=0),0,MATCH(0,OFFSET($D27,1,$C27,ROW($C$110)-ROW($C27)),0)) -> 0 | K27: =IF(OR($C27="S",$C27=0),0,MATCH(OFFSET($D27,0,$C27)+IF($C27<>1,1,COUNTIF(QCI!$A$13:$A$24,ORÇAMENTO!E27)),OFFSET($D27,1,$C27,ROW($C$110)-ROW($C27)),0)) -> 0 | L27: F | M27: Serviço | N27: Serviço | O27: 1.2.3. | P27: SINAPI | Q27: 102278 | R27: =IF($C27="S",REFERENCIA.Descricao,"(digite a descrição aqui)") -> ESCAVAÇÃO MECANIZADA DE VALA COM PROF. MAIOR QUE 1,50 M ATÉ 3,0 M (MÉDIA MONTANTE E JUSANTE/UMA COMPOSIÇÃO POR TRECHO), ESCAVADEIRA (1,2 M3), LARG. DE 1,5 M A 2,5 M, EM SOLO DE 1A CATEGORIA, EM LOCAIS COM ALTO NÍVEL DE INTERFERÊNCIA. AF_09/2024 | S27: =REFERENCIA.Unidade -> M3 | T27: =OFFSET(CÁLCULO!H$15,ROW($T27)-ROW(T$15),0) -> 2378.5 | U27: 8.96 | V27: BDI 1 | W27: =IF($C27="S",ROUND(IF(TIPOORCAMENTO="Proposto",ORÇAMENTO.CustoUnitario*(1+$AH27),ORÇAMENTO.PrecoUnitarioLicitado),15-13*$AF$10),0) -> 11.05 | X27: =IF($C27="S",IF(OR(Import.TipoArredondamento<>"TransfereGOV",ACOMPANHAMENTO="BM"),VTOTAL1,SUM(OFFSET(CÁLCULO!$AI$15,ROW($X27)-ROW($X$15),1):OFFSET(CÁLCULO!$BB$15,ROW($X27)-ROW($X$15),-1))),IF($C27=0,0,ROUND(SomaAgrup,15-13*$AF$11))) -> 26282.43 | Y27: RA | Z27: RA | AA27: =IF($C27="S",IF($Z27="CP",$X27,IF($Z27="RA",(($X27)*QCI!$AA$3),0)),SomaAgrup) -> 8196.332653 | AB27: 0 | AC27: =IF($N27=""," ", IF(AND($C27<>"S",OR($R27="",$R27="(digite a descrição aqui)")),"DESCRIÇÃO", IF(AND($C27="S",OR($Q27<>0,$T27>0,$U27>0),$P27=0),"FONTE", IF(AND($C27="S",$P27<>0,OR($T27>0,$U27>0),$Q27=0),"CÓDIGO", IF(AND($C27="S",$P27<>0,$Q27<>0,$R27="(Código não identificado nas referências)"),"CÓDIGO N/ID", IF(AND($C27="S",OR($R27="",$R27="(digite a descrição aqui)"),OR($Q27<>0,$T27>0,$U27>0)),"DESCRIÇÃO", IF(AND($C27="S",$P27<>0,$Q27<>0,$S27=""),"UNIDADE", IF(AND($C27="S",$P27<>0,$Q27<>0,$U27=0),"SEM CUSTO", IF(AND(TIPOORCAMENTO="Licitado",$AL27=0,$AN27>0),"SEM PREÇO", IF(AND($C27="S",$P27<>0,$Q27<>0,$U27>0,$V27=0),"BDI", IF(OR(AND(TIPOORCAMENTO="Proposto",$AG27<>"",$AG27>0,ORÇAMENTO.CustoUnitario>$AG27),AND(TIPOORCAMENTO="LICITADO",ORÇAMENTO.PrecoUnitarioLicitado>$AN27)),"ACIMA REF.", IF(AND($C27="S",$P27<>0,$Q27<>0,$T27=0,$U27>0),"QUANT.", IF(AND(Import.TipoArredondamento="TransfereGOV",$L27="F",$C27="S",LEN($Q27)>13),"Código >13", IF(AND(Import.TipoArredondamento="TransfereGOV",$L27="F",$C27<>"S",LEN($R27)>100),"Descrição >100", IF(AND(Import.TipoArredondamento="TransfereGOV",$L27="F",$C27="S",LEN($R27)>500),"Descrição >500", IF(AND(Import.TipoArredondamento="TransfereGOV",$L27="F",$C27="S",LEFT(TRIM(UPPER($P27)),6)<>"SINAPI",ISNA(VLOOKUP(TRIM(UPPER($S27)),ListaTgov.Unidades,1,FALSE))),"Unid. Não Disp", " ")))))))))))))))) ->  | AD27: =IF(C27<=CRONO.NivelExibicao,MAX($AD$15:OFFSET(AD27,-1,0))+IF($C27<>1,1,MAX(1,COUNTIF(QCI!$A$13:$A$24,OFFSET($E27,-1,0)))),"") ->  | AE27: =IF(AND($C27="S",ORÇAMENTO.CodBarra<>""),IF(ORÇAMENTO.Fonte="",ORÇAMENTO.CodBarra,CONCATENATE(ORÇAMENTO.Fonte," ",ORÇAMENTO.CodBarra))) -> SINAPI 102278 | AF27: =IF(ISERROR(INDIRECT(ORÇAMENTO.BancoRef)),"(abra o arquivo 'Referência "&Excel_BuiltIn_Database&".xlsm)",IF(OR($C27<>"S",ORÇAMENTO.CodBarra=""),"(Sem Código)",IF(ISERROR(MATCH($AE27,INDIRECT(ORÇAMENTO.BancoRef),0)),"(Código não identificado nas referências)",MATCH($AE27,INDIRECT(ORÇAMENTO.BancoRef),0)))) -> 9334 | AG27: =ROUND(IF(DESONERACAO="sim",REFERENCIA.Desonerado,REFERENCIA.NaoDesonerado),2) -> 8.96 | AH27: 0.2338 | AJ27: 2378.5 | AM27: 26282.43 | AN27: 11.05
A28: S | B28: 2 | C28: S | D28: 0 | E28: =IF($C28=1,OFFSET(E28,-1,0)+MAX(1,COUNTIF(QCI!$A$13:$A$24,OFFSET(ORÇAMENTO!E28,-1,0))),OFFSET(E28,-1,0)) -> 1 | F28: 2 | G28: 0 | H28: 0 | I28: 4 | J28: =IF(OR($C28="S",$C28=0),0,MATCH(0,OFFSET($D28,1,$C28,ROW($C$110)-ROW($C28)),0)) -> 0 | K28: =IF(OR($C28="S",$C28=0),0,MATCH(OFFSET($D28,0,$C28)+IF($C28<>1,1,COUNTIF(QCI!$A$13:$A$24,ORÇAMENTO!E28)),OFFSET($D28,1,$C28,ROW($C$110)-ROW($C28)),0)) -> 0 | L28: F | M28: Serviço | N28: Serviço | O28: 1.2.4. | P28: SINAPI | Q28: 90087 | R28: =IF($C28="S",REFERENCIA.Descricao,"(digite a descrição aqui)") -> ESCAVAÇÃO MECANIZADA DE VALA COM PROF. DE 3,0 M ATÉ 4,5 M(MÉDIA MONTANTE E JUSANTE/UMA COMPOSIÇÃO POR TRECHO), ESCAVADEIRA (1,2 M3), LARG. DE 1,5 M A 2,5 M, EM SOLO DE 1A CATEGORIA, EM LOCAIS COM ALTO NÍVEL DE INTERFERÊNCIA. AF_09/2024 | S28: =REFERENCIA.Unidade -> M3 | T28: =OFFSET(CÁLCULO!H$15,ROW($T28)-ROW(T$15),0) -> 1703.77 | U28: 8.62 | V28: BDI 1 | W28: =IF($C28="S",ROUND(IF(TIPOORCAMENTO="Proposto",ORÇAMENTO.CustoUnitario*(1+$AH28),ORÇAMENTO.PrecoUnitarioLicitado),15-13*$AF$10),0) -> 10.64 | X28: =IF($C28="S",IF(OR(Import.TipoArredondamento<>"TransfereGOV",ACOMPANHAMENTO="BM"),VTOTAL1,SUM(OFFSET(CÁLCULO!$AI$15,ROW($X28)-ROW($X$15),1):OFFSET(CÁLCULO!$BB$15,ROW($X28)-ROW($X$15),-1))),IF($C28=0,0,ROUND(SomaAgrup,15-13*$AF$11))) -> 18128.11 | Y28: RA | Z28: RA | AA28: =IF($C28="S",IF($Z28="CP",$X28,IF($Z28="RA",(($X28)*QCI!$AA$3),0)),SomaAgrup) -> 5653.359295 | AB28: 0 | AC28: =IF($N28=""," ", IF(AND($C28<>"S",OR($R28="",$R28="(digite a descrição aqui)")),"DESCRIÇÃO", IF(AND($C28="S",OR($Q28<>0,$T28>0,$U28>0),$P28=0),"FONTE", IF(AND($C28="S",$P28<>0,OR($T28>0,$U28>0),$Q28=0),"CÓDIGO", IF(AND($C28="S",$P28<>0,$Q28<>0,$R28="(Código não identificado nas referências)"),"CÓDIGO N/ID", IF(AND($C28="S",OR($R28="",$R28="(digite a descrição aqui)"),OR($Q28<>0,$T28>0,$U28>0)),"DESCRIÇÃO", IF(AND($C28="S",$P28<>0,$Q28<>0,$S28=""),"UNIDADE", IF(AND($C28="S",$P28<>0,$Q28<>0,$U28=0),"SEM CUSTO", IF(AND(TIPOORCAMENTO="Licitado",$AL28=0,$AN28>0),"SEM PREÇO", IF(AND($C28="S",$P28<>0,$Q28<>0,$U28>0,$V28=0),"BDI", IF(OR(AND(TIPOORCAMENTO="Proposto",$AG28<>"",$AG28>0,ORÇAMENTO.CustoUnitario>$AG28),AND(TIPOORCAMENTO="LICITADO",ORÇAMENTO.PrecoUnitarioLicitado>$AN28)),"ACIMA REF.", IF(AND($C28="S",$P28<>0,$Q28<>0,$T28=0,$U28>0),"QUANT.", IF(AND(Import.TipoArredondamento="TransfereGOV",$L28="F",$C28="S",LEN($Q28)>13),"Código >13", IF(AND(Import.TipoArredondamento="TransfereGOV",$L28="F",$C28<>"S",LEN($R28)>100),"Descrição >100", IF(AND(Import.TipoArredondamento="TransfereGOV",$L28="F",$C28="S",LEN($R28)>500),"Descrição >500", IF(AND(Import.TipoArredondamento="TransfereGOV",$L28="F",$C28="S",LEFT(TRIM(UPPER($P28)),6)<>"SINAPI",ISNA(VLOOKUP(TRIM(UPPER($S28)),ListaTgov.Unidades,1,FALSE))),"Unid. Não Disp", " ")))))))))))))))) ->  | AD28: =IF(C28<=CRONO.NivelExibicao,MAX($AD$15:OFFSET(AD28,-1,0))+IF($C28<>1,1,MAX(1,COUNTIF(QCI!$A$13:$A$24,OFFSET($E28,-1,0)))),"") ->  | AE28: =IF(AND($C28="S",ORÇAMENTO.CodBarra<>""),IF(ORÇAMENTO.Fonte="",ORÇAMENTO.CodBarra,CONCATENATE(ORÇAMENTO.Fonte," ",ORÇAMENTO.CodBarra))) -> SINAPI 90087 | AF28: =IF(ISERROR(INDIRECT(ORÇAMENTO.BancoRef)),"(abra o arquivo 'Referência "&Excel_BuiltIn_Database&".xlsm)",IF(OR($C28<>"S",ORÇAMENTO.CodBarra=""),"(Sem Código)",IF(ISERROR(MATCH($AE28,INDIRECT(ORÇAMENTO.BancoRef),0)),"(Código não identificado nas referências)",MATCH($AE28,INDIRECT(ORÇAMENTO.BancoRef),0)))) -> 9312 | AG28: =ROUND(IF(DESONERACAO="sim",REFERENCIA.Desonerado,REFERENCIA.NaoDesonerado),2) -> 8.62 | AH28: 0.2338 | AJ28: 1703.77 | AM28: 18128.11 | AN28: 10.64
A29: S | B29: 2 | C29: S | D29: 0 | E29: =IF($C29=1,OFFSET(E29,-1,0)+MAX(1,COUNTIF(QCI!$A$13:$A$24,OFFSET(ORÇAMENTO!E29,-1,0))),OFFSET(E29,-1,0)) -> 1 | F29: 2 | G29: 0 | H29: 0 | I29: 5 | J29: =IF(OR($C29="S",$C29=0),0,MATCH(0,OFFSET($D29,1,$C29,ROW($C$110)-ROW($C29)),0)) -> 0 | K29: =IF(OR($C29="S",$C29=0),0,MATCH(OFFSET($D29,0,$C29)+IF($C29<>1,1,COUNTIF(QCI!$A$13:$A$24,ORÇAMENTO!E29)),OFFSET($D29,1,$C29,ROW($C$110)-ROW($C29)),0)) -> 0 | L29: F | M29: Serviço | N29: Serviço | O29: 1.2.5. | P29: SINAPI | Q29: 101573 | R29: =IF($C29="S",REFERENCIA.Descricao,"(digite a descrição aqui)") -> ESCORAMENTO DE VALA, TIPO PONTALETEAMENTO, COM PROFUNDIDADE DE 1,5 A 3,0 M, LARGURA MAIOR OU IGUAL A 1,5 M E MENOR QUE 2,5 M. AF_08/2020 | S29: =REFERENCIA.Unidade -> M2 | T29: =OFFSET(CÁLCULO!H$15,ROW($T29)-ROW(T$15),0) -> 1906.13 | U29: 27.47 | V29: BDI 1 | W29: =IF($C29="S",ROUND(IF(TIPOORCAMENTO="Proposto",ORÇAMENTO.CustoUnitario*(1+$AH29),ORÇAMENTO.PrecoUnitarioLicitado),15-13*$AF$10),0) -> 33.89 | X29: =IF($C29="S",IF(OR(Import.TipoArredondamento<>"TransfereGOV",ACOMPANHAMENTO="BM"),VTOTAL1,SUM(OFFSET(CÁLCULO!$AI$15,ROW($X29)-ROW($X$15),1):OFFSET(CÁLCULO!$BB$15,ROW($X29)-ROW($X$15),-1))),IF($C29=0,0,ROUND(SomaAgrup,15-13*$AF$11))) -> 64598.75 | Y29: RA | Z29: RA | AA29: =IF($C29="S",IF($Z29="CP",$X29,IF($Z29="RA",(($X29)*QCI!$AA$3),0)),SomaAgrup) -> 20145.50572 | AB29: 0 | AC29: =IF($N29=""," ", IF(AND($C29<>"S",OR($R29="",$R29="(digite a descrição aqui)")),"DESCRIÇÃO", IF(AND($C29="S",OR($Q29<>0,$T29>0,$U29>0),$P29=0),"FONTE", IF(AND($C29="S",$P29<>0,OR($T29>0,$U29>0),$Q29=0),"CÓDIGO", IF(AND($C29="S",$P29<>0,$Q29<>0,$R29="(Código não identificado nas referências)"),"CÓDIGO N/ID", IF(AND($C29="S",OR($R29="",$R29="(digite a descrição aqui)"),OR($Q29<>0,$T29>0,$U29>0)),"DESCRIÇÃO", IF(AND($C29="S",$P29<>0,$Q29<>0,$S29=""),"UNIDADE", IF(AND($C29="S",$P29<>0,$Q29<>0,$U29=0),"SEM CUSTO", IF(AND(TIPOORCAMENTO="Licitado",$AL29=0,$AN29>0),"SEM PREÇO", IF(AND($C29="S",$P29<>0,$Q29<>0,$U29>0,$V29=0),"BDI", IF(OR(AND(TIPOORCAMENTO="Proposto",$AG29<>"",$AG29>0,ORÇAMENTO.CustoUnitario>$AG29),AND(TIPOORCAMENTO="LICITADO",ORÇAMENTO.PrecoUnitarioLicitado>$AN29)),"ACIMA REF.", IF(AND($C29="S",$P29<>0,$Q29<>0,$T29=0,$U29>0),"QUANT.", IF(AND(Import.TipoArredondamento="TransfereGOV",$L29="F",$C29="S",LEN($Q29)>13),"Código >13", IF(AND(Import.TipoArredondamento="TransfereGOV",$L29="F",$C29<>"S",LEN($R29)>100),"Descrição >100", IF(AND(Import.TipoArredondamento="TransfereGOV",$L29="F",$C29="S",LEN($R29)>500),"Descrição >500", IF(AND(Import.TipoArredondamento="TransfereGOV",$L29="F",$C29="S",LEFT(TRIM(UPPER($P29)),6)<>"SINAPI",ISNA(VLOOKUP(TRIM(UPPER($S29)),ListaTgov.Unidades,1,FALSE))),"Unid. Não Disp", " ")))))))))))))))) ->  | AD29: =IF(C29<=CRONO.NivelExibicao,MAX($AD$15:OFFSET(AD29,-1,0))+IF($C29<>1,1,MAX(1,COUNTIF(QCI!$A$13:$A$24,OFFSET($E29,-1,0)))),"") ->  | AE29: =IF(AND($C29="S",ORÇAMENTO.CodBarra<>""),IF(ORÇAMENTO.Fonte="",ORÇAMENTO.CodBarra,CONCATENATE(ORÇAMENTO.Fonte," ",ORÇAMENTO.CodBarra))) -> SINAPI 101573 | AF29: =IF(ISERROR(INDIRECT(ORÇAMENTO.BancoRef)),"(abra o arquivo 'Referência "&Excel_BuiltIn_Database&".xlsm)",IF(OR($C29<>"S",ORÇAMENTO.CodBarra=""),"(Sem Código)",IF(ISERROR(MATCH($AE29,INDIRECT(ORÇAMENTO.BancoRef),0)),"(Código não identificado nas referências)",MATCH($AE29,INDIRECT(ORÇAMENTO.BancoRef),0)))) -> 9410 | AG29: =ROUND(IF(DESONERACAO="sim",REFERENCIA.Desonerado,REFERENCIA.NaoDesonerado),2) -> 27.47 | AH29: 0.2338 | AJ29: 1906.13 | AM29: 64598.75 | AN29: 33.89
A30: S | B30: 2 | C30: S | D30: 0 | E30: =IF($C30=1,OFFSET(E30,-1,0)+MAX(1,COUNTIF(QCI!$A$13:$A$24,OFFSET(ORÇAMENTO!E30,-1,0))),OFFSET(E30,-1,0)) -> 1 | F30: 2 | G30: 0 | H30: 0 | I30: 6 | J30: =IF(OR($C30="S",$C30=0),0,MATCH(0,OFFSET($D30,1,$C30,ROW($C$110)-ROW($C30)),0)) -> 0 | K30: =IF(OR($C30="S",$C30=0),0,MATCH(OFFSET($D30,0,$C30)+IF($C30<>1,1,COUNTIF(QCI!$A$13:$A$24,ORÇAMENTO!E30)),OFFSET($D30,1,$C30,ROW($C$110)-ROW($C30)),0)) -> 0 | L30: F | M30: Serviço | N30: Serviço | O30: 1.2.6. | P30: SINAPI | Q30: 101575 | R30: =IF($C30="S",REFERENCIA.Descricao,"(digite a descrição aqui)") -> ESCORAMENTO DE VALA, TIPO PONTALETEAMENTO, COM PROFUNDIDADE DE 3,0 A 4,5 M, LARGURA MAIOR OU IGUAL A 1,5 M E MENOR QUE 2,5 M. AF_08/2020 | S30: =REFERENCIA.Unidade -> M2 | T30: =OFFSET(CÁLCULO!H$15,ROW($T30)-ROW(T$15),0) -> 1309.85 | U30: 23.58 | V30: BDI 1 | W30: =IF($C30="S",ROUND(IF(TIPOORCAMENTO="Proposto",ORÇAMENTO.CustoUnitario*(1+$AH30),ORÇAMENTO.PrecoUnitarioLicitado),15-13*$AF$10),0) -> 29.09 | X30: =IF($C30="S",IF(OR(Import.TipoArredondamento<>"TransfereGOV",ACOMPANHAMENTO="BM"),VTOTAL1,SUM(OFFSET(CÁLCULO!$AI$15,ROW($X30)-ROW($X$15),1):OFFSET(CÁLCULO!$BB$15,ROW($X30)-ROW($X$15),-1))),IF($C30=0,0,ROUND(SomaAgrup,15-13*$AF$11))) -> 38103.54 | Y30: RA | Z30: RA | AA30: =IF($C30="S",IF($Z30="CP",$X30,IF($Z30="RA",(($X30)*QCI!$AA$3),0)),SomaAgrup) -> 11882.81636 | AB30: 0 | AC30: =IF($N30=""," ", IF(AND($C30<>"S",OR($R30="",$R30="(digite a descrição aqui)")),"DESCRIÇÃO", IF(AND($C30="S",OR($Q30<>0,$T30>0,$U30>0),$P30=0),"FONTE", IF(AND($C30="S",$P30<>0,OR($T30>0,$U30>0),$Q30=0),"CÓDIGO", IF(AND($C30="S",$P30<>0,$Q30<>0,$R30="(Código não identificado nas referências)"),"CÓDIGO N/ID", IF(AND($C30="S",OR($R30="",$R30="(digite a descrição aqui)"),OR($Q30<>0,$T30>0,$U30>0)),"DESCRIÇÃO", IF(AND($C30="S",$P30<>0,$Q30<>0,$S30=""),"UNIDADE", IF(AND($C30="S",$P30<>0,$Q30<>0,$U30=0),"SEM CUSTO", IF(AND(TIPOORCAMENTO="Licitado",$AL30=0,$AN30>0),"SEM PREÇO", IF(AND($C30="S",$P30<>0,$Q30<>0,$U30>0,$V30=0),"BDI", IF(OR(AND(TIPOORCAMENTO="Proposto",$AG30<>"",$AG30>0,ORÇAMENTO.CustoUnitario>$AG30),AND(TIPOORCAMENTO="LICITADO",ORÇAMENTO.PrecoUnitarioLicitado>$AN30)),"ACIMA REF.", IF(AND($C30="S",$P30<>0,$Q30<>0,$T30=0,$U30>0),"QUANT.", IF(AND(Import.TipoArredondamento="TransfereGOV",$L30="F",$C30="S",LEN($Q30)>13),"Código >13", IF(AND(Import.TipoArredondamento="TransfereGOV",$L30="F",$C30<>"S",LEN($R30)>100),"Descrição >100", IF(AND(Import.TipoArredondamento="TransfereGOV",$L30="F",$C30="S",LEN($R30)>500),"Descrição >500", IF(AND(Import.TipoArredondamento="TransfereGOV",$L30="F",$C30="S",LEFT(TRIM(UPPER($P30)),6)<>"SINAPI",ISNA(VLOOKUP(TRIM(UPPER($S30)),ListaTgov.Unidades,1,FALSE))),"Unid. Não Disp", " ")))))))))))))))) ->  | AD30: =IF(C30<=CRONO.NivelExibicao,MAX($AD$15:OFFSET(AD30,-1,0))+IF($C30<>1,1,MAX(1,COUNTIF(QCI!$A$13:$A$24,OFFSET($E30,-1,0)))),"") ->  | AE30: =IF(AND($C30="S",ORÇAMENTO.CodBarra<>""),IF(ORÇAMENTO.Fonte="",ORÇAMENTO.CodBarra,CONCATENATE(ORÇAMENTO.Fonte," ",ORÇAMENTO.CodBarra))) -> SINAPI 101575 | AF30: =IF(ISERROR(INDIRECT(ORÇAMENTO.BancoRef)),"(abra o arquivo 'Referência "&Excel_BuiltIn_Database&".xlsm)",IF(OR($C30<>"S",ORÇAMENTO.CodBarra=""),"(Sem Código)",IF(ISERROR(MATCH($AE30,INDIRECT(ORÇAMENTO.BancoRef),0)),"(Código não identificado nas referências)",MATCH($AE30,INDIRECT(ORÇAMENTO.BancoRef),0)))) -> 9412 | AG30: =ROUND(IF(DESONERACAO="sim",REFERENCIA.Desonerado,REFERENCIA.NaoDesonerado),2) -> 23.58 | AH30: 0.2338 | AJ30: 1309.85 | AM30: 38103.54 | AN30: 29.09
A31: S | B31: 2 | C31: S | D31: 0 | E31: =IF($C31=1,OFFSET(E31,-1,0)+MAX(1,COUNTIF(QCI!$A$13:$A$24,OFFSET(ORÇAMENTO!E31,-1,0))),OFFSET(E31,-1,0)) -> 1 | F31: 2 | G31: 0 | H31: 0 | I31: 7 | J31: =IF(OR($C31="S",$C31=0),0,MATCH(0,OFFSET($D31,1,$C31,ROW($C$110)-ROW($C31)),0)) -> 0 | K31: =IF(OR($C31="S",$C31=0),0,MATCH(OFFSET($D31,0,$C31)+IF($C31<>1,1,COUNTIF(QCI!$A$13:$A$24,ORÇAMENTO!E31)),OFFSET($D31,1,$C31,ROW($C$110)-ROW($C31)),0)) -> 0 | L31: F | M31: Serviço | N31: Serviço | O31: 1.2.7. | P31: SINAPI | Q31: 93379 | R31: =IF($C31="S",REFERENCIA.Descricao,"(digite a descrição aqui)") -> REATERRO MECANIZADO DE VALA COM RETROESCAVADEIRA (CAPACIDADE DA CAÇAMBA DA RETRO: 0,26 M³/POTÊNCIA: 88 HP), LARGURA 0,8 A 1,5 M, PROFUNDIDADE ATÉ 1,5 M, COM SOLO (SEM SUBSTITUIÇÃO) DE 1ª CATEGORIA, COM COMPACTADOR DE SOLOS DE PERCUSSÃO AF_08/2023 | S31: =REFERENCIA.Unidade -> M3 | T31: =OFFSET(CÁLCULO!H$15,ROW($T31)-ROW(T$15),0) -> 256.04 | U31: 18.06 | V31: BDI 1 | W31: =IF($C31="S",ROUND(IF(TIPOORCAMENTO="Proposto",ORÇAMENTO.CustoUnitario*(1+$AH31),ORÇAMENTO.PrecoUnitarioLicitado),15-13*$AF$10),0) -> 22.28 | X31: =IF($C31="S",IF(OR(Import.TipoArredondamento<>"TransfereGOV",ACOMPANHAMENTO="BM"),VTOTAL1,SUM(OFFSET(CÁLCULO!$AI$15,ROW($X31)-ROW($X$15),1):OFFSET(CÁLCULO!$BB$15,ROW($X31)-ROW($X$15),-1))),IF($C31=0,0,ROUND(SomaAgrup,15-13*$AF$11))) -> 5704.57 | Y31: RA | Z31: RA | AA31: =IF($C31="S",IF($Z31="CP",$X31,IF($Z31="RA",(($X31)*QCI!$AA$3),0)),SomaAgrup) -> 1779.0042 | AB31: 0 | AC31: =IF($N31=""," ", IF(AND($C31<>"S",OR($R31="",$R31="(digite a descrição aqui)")),"DESCRIÇÃO", IF(AND($C31="S",OR($Q31<>0,$T31>0,$U31>0),$P31=0),"FONTE", IF(AND($C31="S",$P31<>0,OR($T31>0,$U31>0),$Q31=0),"CÓDIGO", IF(AND($C31="S",$P31<>0,$Q31<>0,$R31="(Código não identificado nas referências)"),"CÓDIGO N/ID", IF(AND($C31="S",OR($R31="",$R31="(digite a descrição aqui)"),OR($Q31<>0,$T31>0,$U31>0)),"DESCRIÇÃO", IF(AND($C31="S",$P31<>0,$Q31<>0,$S31=""),"UNIDADE", IF(AND($C31="S",$P31<>0,$Q31<>0,$U31=0),"SEM CUSTO", IF(AND(TIPOORCAMENTO="Licitado",$AL31=0,$AN31>0),"SEM PREÇO", IF(AND($C31="S",$P31<>0,$Q31<>0,$U31>0,$V31=0),"BDI", IF(OR(AND(TIPOORCAMENTO="Proposto",$AG31<>"",$AG31>0,ORÇAMENTO.CustoUnitario>$AG31),AND(TIPOORCAMENTO="LICITADO",ORÇAMENTO.PrecoUnitarioLicitado>$AN31)),"ACIMA REF.", IF(AND($C31="S",$P31<>0,$Q31<>0,$T31=0,$U31>0),"QUANT.", IF(AND(Import.TipoArredondamento="TransfereGOV",$L31="F",$C31="S",LEN($Q31)>13),"Código >13", IF(AND(Import.TipoArredondamento="TransfereGOV",$L31="F",$C31<>"S",LEN($R31)>100),"Descrição >100", IF(AND(Import.TipoArredondamento="TransfereGOV",$L31="F",$C31="S",LEN($R31)>500),"Descrição >500", IF(AND(Import.TipoArredondamento="TransfereGOV",$L31="F",$C31="S",LEFT(TRIM(UPPER($P31)),6)<>"SINAPI",ISNA(VLOOKUP(TRIM(UPPER($S31)),ListaTgov.Unidades,1,FALSE))),"Unid. Não Disp", " ")))))))))))))))) ->  | AD31: =IF(C31<=CRONO.NivelExibicao,MAX($AD$15:OFFSET(AD31,-1,0))+IF($C31<>1,1,MAX(1,COUNTIF(QCI!$A$13:$A$24,OFFSET($E31,-1,0)))),"") ->  | AE31: =IF(AND($C31="S",ORÇAMENTO.CodBarra<>""),IF(ORÇAMENTO.Fonte="",ORÇAMENTO.CodBarra,CONCATENATE(ORÇAMENTO.Fonte," ",ORÇAMENTO.CodBarra))) -> SINAPI 93379 | AF31: =IF(ISERROR(INDIRECT(ORÇAMENTO.BancoRef)),"(abra o arquivo 'Referência "&Excel_BuiltIn_Database&".xlsm)",IF(OR($C31<>"S",ORÇAMENTO.CodBarra=""),"(Sem Código)",IF(ISERROR(MATCH($AE31,INDIRECT(ORÇAMENTO.BancoRef),0)),"(Código não identificado nas referências)",MATCH($AE31,INDIRECT(ORÇAMENTO.BancoRef),0)))) -> 6771 | AG31: =ROUND(IF(DESONERACAO="sim",REFERENCIA.Desonerado,REFERENCIA.NaoDesonerado),2) -> 18.06 | AH31: 0.2338 | AJ31: 256.04 | AM31: 5704.57 | AN31: 22.28
A32: S | B32: 2 | C32: S | D32: 0 | E32: =IF($C32=1,OFFSET(E32,-1,0)+MAX(1,COUNTIF(QCI!$A$13:$A$24,OFFSET(ORÇAMENTO!E32,-1,0))),OFFSET(E32,-1,0)) -> 1 | F32: 2 | G32: 0 | H32: 0 | I32: 8 | J32: =IF(OR($C32="S",$C32=0),0,MATCH(0,OFFSET($D32,1,$C32,ROW($C$110)-ROW($C32)),0)) -> 0 | K32: =IF(OR($C32="S",$C32=0),0,MATCH(OFFSET($D32,0,$C32)+IF($C32<>1,1,COUNTIF(QCI!$A$13:$A$24,ORÇAMENTO!E32)),OFFSET($D32,1,$C32,ROW($C$110)-ROW($C32)),0)) -> 0 | L32: F | M32: Serviço | N32: Serviço | O32: 1.2.8. | P32: SINAPI | Q32: 93369 | R32: =IF($C32="S",REFERENCIA.Descricao,"(digite a descrição aqui)") -> REATERRO MECANIZADO DE VALA COM ESCAVADEIRA HIDRÁULICA (CAPACIDADE DA CAÇAMBA: 0,8 M³/POTÊNCIA: 111 HP), LARGURA 1,5 A 2,5 M, PROFUNDIDADE 1,5 A 3,0 M, COM SOLO (SEM SUBSTITUIÇÃO) DE 1ª CATEGORIA, COM COMPACTADOR DE SOLOS DE PERCUSSÃO. AF_08/2023 | S32: =REFERENCIA.Unidade -> M3 | T32: =OFFSET(CÁLCULO!H$15,ROW($T32)-ROW(T$15),0) -> 1921.36 | U32: 16.74 | V32: BDI 1 | W32: =IF($C32="S",ROUND(IF(TIPOORCAMENTO="Proposto",ORÇAMENTO.CustoUnitario*(1+$AH32),ORÇAMENTO.PrecoUnitarioLicitado),15-13*$AF$10),0) -> 20.65 | X32: =IF($C32="S",IF(OR(Import.TipoArredondamento<>"TransfereGOV",ACOMPANHAMENTO="BM"),VTOTAL1,SUM(OFFSET(CÁLCULO!$AI$15,ROW($X32)-ROW($X$15),1):OFFSET(CÁLCULO!$BB$15,ROW($X32)-ROW($X$15),-1))),IF($C32=0,0,ROUND(SomaAgrup,15-13*$AF$11))) -> 39676.08 | Y32: RA | Z32: RA | AA32: =IF($C32="S",IF($Z32="CP",$X32,IF($Z32="RA",(($X32)*QCI!$AA$3),0)),SomaAgrup) -> 12373.22234 | AB32: 0 | AC32: =IF($N32=""," ", IF(AND($C32<>"S",OR($R32="",$R32="(digite a descrição aqui)")),"DESCRIÇÃO", IF(AND($C32="S",OR($Q32<>0,$T32>0,$U32>0),$P32=0),"FONTE", IF(AND($C32="S",$P32<>0,OR($T32>0,$U32>0),$Q32=0),"CÓDIGO", IF(AND($C32="S",$P32<>0,$Q32<>0,$R32="(Código não identificado nas referências)"),"CÓDIGO N/ID", IF(AND($C32="S",OR($R32="",$R32="(digite a descrição aqui)"),OR($Q32<>0,$T32>0,$U32>0)),"DESCRIÇÃO", IF(AND($C32="S",$P32<>0,$Q32<>0,$S32=""),"UNIDADE", IF(AND($C32="S",$P32<>0,$Q32<>0,$U32=0),"SEM CUSTO", IF(AND(TIPOORCAMENTO="Licitado",$AL32=0,$AN32>0),"SEM PREÇO", IF(AND($C32="S",$P32<>0,$Q32<>0,$U32>0,$V32=0),"BDI", IF(OR(AND(TIPOORCAMENTO="Proposto",$AG32<>"",$AG32>0,ORÇAMENTO.CustoUnitario>$AG32),AND(TIPOORCAMENTO="LICITADO",ORÇAMENTO.PrecoUnitarioLicitado>$AN32)),"ACIMA REF.", IF(AND($C32="S",$P32<>0,$Q32<>0,$T32=0,$U32>0),"QUANT.", IF(AND(Import.TipoArredondamento="TransfereGOV",$L32="F",$C32="S",LEN($Q32)>13),"Código >13", IF(AND(Import.TipoArredondamento="TransfereGOV",$L32="F",$C32<>"S",LEN($R32)>100),"Descrição >100", IF(AND(Import.TipoArredondamento="TransfereGOV",$L32="F",$C32="S",LEN($R32)>500),"Descrição >500", IF(AND(Import.TipoArredondamento="TransfereGOV",$L32="F",$C32="S",LEFT(TRIM(UPPER($P32)),6)<>"SINAPI",ISNA(VLOOKUP(TRIM(UPPER($S32)),ListaTgov.Unidades,1,FALSE))),"Unid. Não Disp", " ")))))))))))))))) ->  | AD32: =IF(C32<=CRONO.NivelExibicao,MAX($AD$15:OFFSET(AD32,-1,0))+IF($C32<>1,1,MAX(1,COUNTIF(QCI!$A$13:$A$24,OFFSET($E32,-1,0)))),"") ->  | AE32: =IF(AND($C32="S",ORÇAMENTO.CodBarra<>""),IF(ORÇAMENTO.Fonte="",ORÇAMENTO.CodBarra,CONCATENATE(ORÇAMENTO.Fonte," ",ORÇAMENTO.CodBarra))) -> SINAPI 93369 | AF32: =IF(ISERROR(INDIRECT(ORÇAMENTO.BancoRef)),"(abra o arquivo 'Referência "&Excel_BuiltIn_Database&".xlsm)",IF(OR($C32<>"S",ORÇAMENTO.CodBarra=""),"(Sem Código)",IF(ISERROR(MATCH($AE32,INDIRECT(ORÇAMENTO.BancoRef),0)),"(Código não identificado nas referências)",MATCH($AE32,INDIRECT(ORÇAMENTO.BancoRef),0)))) -> 6758 | AG32: =ROUND(IF(DESONERACAO="sim",REFERENCIA.Desonerado,REFERENCIA.NaoDesonerado),2) -> 16.74 | AH32: 0.2338 | AJ32: 1921.36 | AM32: 39676.08 | AN32: 20.65
A33: S | B33: 2 | C33: S | D33: 0 | E33: =IF($C33=1,OFFSET(E33,-1,0)+MAX(1,COUNTIF(QCI!$A$13:$A$24,OFFSET(ORÇAMENTO!E33,-1,0))),OFFSET(E33,-1,0)) -> 1 | F33: 2 | G33: 0 | H33: 0 | I33: 9 | J33: =IF(OR($C33="S",$C33=0),0,MATCH(0,OFFSET($D33,1,$C33,ROW($C$110)-ROW($C33)),0)) -> 0 | K33: =IF(OR($C33="S",$C33=0),0,MATCH(OFFSET($D33,0,$C33)+IF($C33<>1,1,COUNTIF(QCI!$A$13:$A$24,ORÇAMENTO!E33)),OFFSET($D33,1,$C33,ROW($C$110)-ROW($C33)),0)) -> 0 | L33: F | M33: Serviço | N33: Serviço | O33: 1.2.9. | P33: SINAPI | Q33: 93373 | R33: =IF($C33="S",REFERENCIA.Descricao,"(digite a descrição aqui)") -> REATERRO MECANIZADO DE VALA COM ESCAVADEIRA HIDRÁULICA (CAPACIDADE DA CAÇAMBA: 0,8 M³/POTÊNCIA: 111 HP), LARGURA 1,5 A 2,5 M, PROFUNDIDADE 3,0 A 6,0 M, COM SOLO (SEM SUBSTITUIÇÃO) DE 1ª CATEGORIA, COM COMPACTADOR DE SOLOS DE PERCUSSÃO. AF_08/2023 | S33: =REFERENCIA.Unidade -> M3 | T33: =OFFSET(CÁLCULO!H$15,ROW($T33)-ROW(T$15),0) -> 1583.78 | U33: 13.79 | V33: BDI 1 | W33: =IF($C33="S",ROUND(IF(TIPOORCAMENTO="Proposto",ORÇAMENTO.CustoUnitario*(1+$AH33),ORÇAMENTO.PrecoUnitarioLicitado),15-13*$AF$10),0) -> 17.01 | X33: =IF($C33="S",IF(OR(Import.TipoArredondamento<>"TransfereGOV",ACOMPANHAMENTO="BM"),VTOTAL1,SUM(OFFSET(CÁLCULO!$AI$15,ROW($X33)-ROW($X$15),1):OFFSET(CÁLCULO!$BB$15,ROW($X33)-ROW($X$15),-1))),IF($C33=0,0,ROUND(SomaAgrup,15-13*$AF$11))) -> 26940.1 | Y33: RA | Z33: RA | AA33: =IF($C33="S",IF($Z33="CP",$X33,IF($Z33="RA",(($X33)*QCI!$AA$3),0)),SomaAgrup) -> 8401.430968 | AB33: 0 | AC33: =IF($N33=""," ", IF(AND($C33<>"S",OR($R33="",$R33="(digite a descrição aqui)")),"DESCRIÇÃO", IF(AND($C33="S",OR($Q33<>0,$T33>0,$U33>0),$P33=0),"FONTE", IF(AND($C33="S",$P33<>0,OR($T33>0,$U33>0),$Q33=0),"CÓDIGO", IF(AND($C33="S",$P33<>0,$Q33<>0,$R33="(Código não identificado nas referências)"),"CÓDIGO N/ID", IF(AND($C33="S",OR($R33="",$R33="(digite a descrição aqui)"),OR($Q33<>0,$T33>0,$U33>0)),"DESCRIÇÃO", IF(AND($C33="S",$P33<>0,$Q33<>0,$S33=""),"UNIDADE", IF(AND($C33="S",$P33<>0,$Q33<>0,$U33=0),"SEM CUSTO", IF(AND(TIPOORCAMENTO="Licitado",$AL33=0,$AN33>0),"SEM PREÇO", IF(AND($C33="S",$P33<>0,$Q33<>0,$U33>0,$V33=0),"BDI", IF(OR(AND(TIPOORCAMENTO="Proposto",$AG33<>"",$AG33>0,ORÇAMENTO.CustoUnitario>$AG33),AND(TIPOORCAMENTO="LICITADO",ORÇAMENTO.PrecoUnitarioLicitado>$AN33)),"ACIMA REF.", IF(AND($C33="S",$P33<>0,$Q33<>0,$T33=0,$U33>0),"QUANT.", IF(AND(Import.TipoArredondamento="TransfereGOV",$L33="F",$C33="S",LEN($Q33)>13),"Código >13", IF(AND(Import.TipoArredondamento="TransfereGOV",$L33="F",$C33<>"S",LEN($R33)>100),"Descrição >100", IF(AND(Import.TipoArredondamento="TransfereGOV",$L33="F",$C33="S",LEN($R33)>500),"Descrição >500", IF(AND(Import.TipoArredondamento="TransfereGOV",$L33="F",$C33="S",LEFT(TRIM(UPPER($P33)),6)<>"SINAPI",ISNA(VLOOKUP(TRIM(UPPER($S33)),ListaTgov.Unidades,1,FALSE))),"Unid. Não Disp", " ")))))))))))))))) ->  | AD33: =IF(C33<=CRONO.NivelExibicao,MAX($AD$15:OFFSET(AD33,-1,0))+IF($C33<>1,1,MAX(1,COUNTIF(QCI!$A$13:$A$24,OFFSET($E33,-1,0)))),"") ->  | AE33: =IF(AND($C33="S",ORÇAMENTO.CodBarra<>""),IF(ORÇAMENTO.Fonte="",ORÇAMENTO.CodBarra,CONCATENATE(ORÇAMENTO.Fonte," ",ORÇAMENTO.CodBarra))) -> SINAPI 93373 | AF33: =IF(ISERROR(INDIRECT(ORÇAMENTO.BancoRef)),"(abra o arquivo 'Referência "&Excel_BuiltIn_Database&".xlsm)",IF(OR($C33<>"S",ORÇAMENTO.CodBarra=""),"(Sem Código)",IF(ISERROR(MATCH($AE33,INDIRECT(ORÇAMENTO.BancoRef),0)),"(Código não identificado nas referências)",MATCH($AE33,INDIRECT(ORÇAMENTO.BancoRef),0)))) -> 6759 | AG33: =ROUND(IF(DESONERACAO="sim",REFERENCIA.Desonerado,REFERENCIA.NaoDesonerado),2) -> 13.79 | AH33: 0.2338 | AJ33: 1583.78 | AM33: 26940.1 | AN33: 17.01
A34: S | B34: 2 | C34: S | D34: 0 | E34: =IF($C34=1,OFFSET(E34,-1,0)+MAX(1,COUNTIF(QCI!$A$13:$A$24,OFFSET(ORÇAMENTO!E34,-1,0))),OFFSET(E34,-1,0)) -> 1 | F34: 2 | G34: 0 | H34: 0 | I34: 10 | J34: =IF(OR($C34="S",$C34=0),0,MATCH(0,OFFSET($D34,1,$C34,ROW($C$110)-ROW($C34)),0)) -> 0 | K34: =IF(OR($C34="S",$C34=0),0,MATCH(OFFSET($D34,0,$C34)+IF($C34<>1,1,COUNTIF(QCI!$A$13:$A$24,ORÇAMENTO!E34)),OFFSET($D34,1,$C34,ROW($C$110)-ROW($C34)),0)) -> 0 | L34: F | M34: Serviço | N34: Serviço | O34: 1.2.10. | P34: SINAPI | Q34: 100979 | R34: =IF($C34="S",REFERENCIA.Descricao,"(digite a descrição aqui)") -> CARGA, MANOBRA E DESCARGA DE SOLOS E MATERIAIS GRANULARES EM CAMINHÃO BASCULANTE 14 M³ - CARGA COM ESCAVADEIRA HIDRÁULICA (CAÇAMBA DE 1,20 M³ / 155 HP) E DESCARGA LIVRE (UNIDADE: M3). AF_07/2020 | S34: =REFERENCIA.Unidade -> M3 | T34: =OFFSET(CÁLCULO!H$15,ROW($T34)-ROW(T$15),0) -> 658.19 | U34: 6.65 | V34: BDI 1 | W34: =IF($C34="S",ROUND(IF(TIPOORCAMENTO="Proposto",ORÇAMENTO.CustoUnitario*(1+$AH34),ORÇAMENTO.PrecoUnitarioLicitado),15-13*$AF$10),0) -> 8.2 | X34: =IF($C34="S",IF(OR(Import.TipoArredondamento<>"TransfereGOV",ACOMPANHAMENTO="BM"),VTOTAL1,SUM(OFFSET(CÁLCULO!$AI$15,ROW($X34)-ROW($X$15),1):OFFSET(CÁLCULO!$BB$15,ROW($X34)-ROW($X$15),-1))),IF($C34=0,0,ROUND(SomaAgrup,15-13*$AF$11))) -> 5397.16 | Y34: RA | Z34: RA | AA34: =IF($C34="S",IF($Z34="CP",$X34,IF($Z34="RA",(($X34)*QCI!$AA$3),0)),SomaAgrup) -> 1683.136557 | AB34: 0 | AC34: =IF($N34=""," ", IF(AND($C34<>"S",OR($R34="",$R34="(digite a descrição aqui)")),"DESCRIÇÃO", IF(AND($C34="S",OR($Q34<>0,$T34>0,$U34>0),$P34=0),"FONTE", IF(AND($C34="S",$P34<>0,OR($T34>0,$U34>0),$Q34=0),"CÓDIGO", IF(AND($C34="S",$P34<>0,$Q34<>0,$R34="(Código não identificado nas referências)"),"CÓDIGO N/ID", IF(AND($C34="S",OR($R34="",$R34="(digite a descrição aqui)"),OR($Q34<>0,$T34>0,$U34>0)),"DESCRIÇÃO", IF(AND($C34="S",$P34<>0,$Q34<>0,$S34=""),"UNIDADE", IF(AND($C34="S",$P34<>0,$Q34<>0,$U34=0),"SEM CUSTO", IF(AND(TIPOORCAMENTO="Licitado",$AL34=0,$AN34>0),"SEM PREÇO", IF(AND($C34="S",$P34<>0,$Q34<>0,$U34>0,$V34=0),"BDI", IF(OR(AND(TIPOORCAMENTO="Proposto",$AG34<>"",$AG34>0,ORÇAMENTO.CustoUnitario>$AG34),AND(TIPOORCAMENTO="LICITADO",ORÇAMENTO.PrecoUnitarioLicitado>$AN34)),"ACIMA REF.", IF(AND($C34="S",$P34<>0,$Q34<>0,$T34=0,$U34>0),"QUANT.", IF(AND(Import.TipoArredondamento="TransfereGOV",$L34="F",$C34="S",LEN($Q34)>13),"Código >13", IF(AND(Import.TipoArredondamento="TransfereGOV",$L34="F",$C34<>"S",LEN($R34)>100),"Descrição >100", IF(AND(Import.TipoArredondamento="TransfereGOV",$L34="F",$C34="S",LEN($R34)>500),"Descrição >500", IF(AND(Import.TipoArredondamento="TransfereGOV",$L34="F",$C34="S",LEFT(TRIM(UPPER($P34)),6)<>"SINAPI",ISNA(VLOOKUP(TRIM(UPPER($S34)),ListaTgov.Unidades,1,FALSE))),"Unid. Não Disp", " ")))))))))))))))) ->  | AD34: =IF(C34<=CRONO.NivelExibicao,MAX($AD$15:OFFSET(AD34,-1,0))+IF($C34<>1,1,MAX(1,COUNTIF(QCI!$A$13:$A$24,OFFSET($E34,-1,0)))),"") ->  | AE34: =IF(AND($C34="S",ORÇAMENTO.CodBarra<>""),IF(ORÇAMENTO.Fonte="",ORÇAMENTO.CodBarra,CONCATENATE(ORÇAMENTO.Fonte," ",ORÇAMENTO.CodBarra))) -> SINAPI 100979 | AF34: =IF(ISERROR(INDIRECT(ORÇAMENTO.BancoRef)),"(abra o arquivo 'Referência "&Excel_BuiltIn_Database&".xlsm)",IF(OR($C34<>"S",ORÇAMENTO.CodBarra=""),"(Sem Código)",IF(ISERROR(MATCH($AE34,INDIRECT(ORÇAMENTO.BancoRef),0)),"(Código não identificado nas referências)",MATCH($AE34,INDIRECT(ORÇAMENTO.BancoRef),0)))) -> 15335 | AG34: =ROUND(IF(DESONERACAO="sim",REFERENCIA.Desonerado,REFERENCIA.NaoDesonerado),2) -> 6.65 | AH34: 0.2338 | AJ34: 658.19 | AM34: 5397.16 | AN34: 8.2
A35: S | B35: 2 | C35: S | D35: 0 | E35: =IF($C35=1,OFFSET(E35,-1,0)+MAX(1,COUNTIF(QCI!$A$13:$A$24,OFFSET(ORÇAMENTO!E35,-1,0))),OFFSET(E35,-1,0)) -> 1 | F35: 2 | G35: 0 | H35: 0 | I35: 11 | J35: =IF(OR($C35="S",$C35=0),0,MATCH(0,OFFSET($D35,1,$C35,ROW($C$110)-ROW($C35)),0)) -> 0 | K35: =IF(OR($C35="S",$C35=0),0,MATCH(OFFSET($D35,0,$C35)+IF($C35<>1,1,COUNTIF(QCI!$A$13:$A$24,ORÇAMENTO!E35)),OFFSET($D35,1,$C35,ROW($C$110)-ROW($C35)),0)) -> 0 | L35: F | M35: Serviço | N35: Serviço | O35: 1.2.11. | P35: SINAPI | Q35: 95876 | R35: =IF($C35="S",REFERENCIA.Descricao,"(digite a descrição aqui)") -> TRANSPORTE COM CAMINHÃO BASCULANTE DE 14 M³, EM VIA URBANA PAVIMENTADA, DMT ATÉ 30 KM (UNIDADE: M3XKM). AF_07/2020 | S35: =REFERENCIA.Unidade -> M3XKM | T35: =OFFSET(CÁLCULO!H$15,ROW($T35)-ROW(T$15),0) -> 3290.95 | U35: 2.14 | V35: BDI 1 | W35: =IF($C35="S",ROUND(IF(TIPOORCAMENTO="Proposto",ORÇAMENTO.CustoUnitario*(1+$AH35),ORÇAMENTO.PrecoUnitarioLicitado),15-13*$AF$10),0) -> 2.64 | X35: =IF($C35="S",IF(OR(Import.TipoArredondamento<>"TransfereGOV",ACOMPANHAMENTO="BM"),VTOTAL1,SUM(OFFSET(CÁLCULO!$AI$15,ROW($X35)-ROW($X$15),1):OFFSET(CÁLCULO!$BB$15,ROW($X35)-ROW($X$15),-1))),IF($C35=0,0,ROUND(SomaAgrup,15-13*$AF$11))) -> 8688.11 | Y35: RA | Z35: RA | AA35: =IF($C35="S",IF($Z35="CP",$X35,IF($Z35="RA",(($X35)*QCI!$AA$3),0)),SomaAgrup) -> 2709.438955 | AB35: 0 | AC35: =IF($N35=""," ", IF(AND($C35<>"S",OR($R35="",$R35="(digite a descrição aqui)")),"DESCRIÇÃO", IF(AND($C35="S",OR($Q35<>0,$T35>0,$U35>0),$P35=0),"FONTE", IF(AND($C35="S",$P35<>0,OR($T35>0,$U35>0),$Q35=0),"CÓDIGO", IF(AND($C35="S",$P35<>0,$Q35<>0,$R35="(Código não identificado nas referências)"),"CÓDIGO N/ID", IF(AND($C35="S",OR($R35="",$R35="(digite a descrição aqui)"),OR($Q35<>0,$T35>0,$U35>0)),"DESCRIÇÃO", IF(AND($C35="S",$P35<>0,$Q35<>0,$S35=""),"UNIDADE", IF(AND($C35="S",$P35<>0,$Q35<>0,$U35=0),"SEM CUSTO", IF(AND(TIPOORCAMENTO="Licitado",$AL35=0,$AN35>0),"SEM PREÇO", IF(AND($C35="S",$P35<>0,$Q35<>0,$U35>0,$V35=0),"BDI", IF(OR(AND(TIPOORCAMENTO="Proposto",$AG35<>"",$AG35>0,ORÇAMENTO.CustoUnitario>$AG35),AND(TIPOORCAMENTO="LICITADO",ORÇAMENTO.PrecoUnitarioLicitado>$AN35)),"ACIMA REF.", IF(AND($C35="S",$P35<>0,$Q35<>0,$T35=0,$U35>0),"QUANT.", IF(AND(Import.TipoArredondamento="TransfereGOV",$L35="F",$C35="S",LEN($Q35)>13),"Código >13", IF(AND(Import.TipoArredondamento="TransfereGOV",$L35="F",$C35<>"S",LEN($R35)>100),"Descrição >100", IF(AND(Import.TipoArredondamento="TransfereGOV",$L35="F",$C35="S",LEN($R35)>500),"Descrição >500", IF(AND(Import.TipoArredondamento="TransfereGOV",$L35="F",$C35="S",LEFT(TRIM(UPPER($P35)),6)<>"SINAPI",ISNA(VLOOKUP(TRIM(UPPER($S35)),ListaTgov.Unidades,1,FALSE))),"Unid. Não Disp", " ")))))))))))))))) ->  | AD35: =IF(C35<=CRONO.NivelExibicao,MAX($AD$15:OFFSET(AD35,-1,0))+IF($C35<>1,1,MAX(1,COUNTIF(QCI!$A$13:$A$24,OFFSET($E35,-1,0)))),"") ->  | AE35: =IF(AND($C35="S",ORÇAMENTO.CodBarra<>""),IF(ORÇAMENTO.Fonte="",ORÇAMENTO.CodBarra,CONCATENATE(ORÇAMENTO.Fonte," ",ORÇAMENTO.CodBarra))) -> SINAPI 95876 | AF35: =IF(ISERROR(INDIRECT(ORÇAMENTO.BancoRef)),"(abra o arquivo 'Referência "&Excel_BuiltIn_Database&".xlsm)",IF(OR($C35<>"S",ORÇAMENTO.CodBarra=""),"(Sem Código)",IF(ISERROR(MATCH($AE35,INDIRECT(ORÇAMENTO.BancoRef),0)),"(Código não identificado nas referências)",MATCH($AE35,INDIRECT(ORÇAMENTO.BancoRef),0)))) -> 15401 | AG35: =ROUND(IF(DESONERACAO="sim",REFERENCIA.Desonerado,REFERENCIA.NaoDesonerado),2) -> 2.14 | AH35: 0.2338 | AJ35: =AJ34*5 -> 3290.95 | AM35: 8688.11 | AN35: 2.64
A36: =CHOOSE(1+LOG(1+2*(ORÇAMENTO.Nivel="Meta")+4*(ORÇAMENTO.Nivel="Nível 2")+8*(ORÇAMENTO.Nivel="Nível 3")+16*(ORÇAMENTO.Nivel="Nível 4")+32*(ORÇAMENTO.Nivel="Serviço"),2),0,1,2,3,4,"S") -> 2 | B36: =IF(OR(C36="s",C36=0),OFFSET(B36,-1,0),C36) -> 2 | C36: =IF(OFFSET(C36,-1,0)="L",1,IF(OFFSET(C36,-1,0)=1,2,IF(OR(A36="s",A36=0),"S",IF(AND(OFFSET(C36,-1,0)=2,A36=4),3,IF(AND(OR(OFFSET(C36,-1,0)="s",OFFSET(C36,-1,0)=0),A36<>"s",A36>OFFSET(B36,-1,0)),OFFSET(B36,-1,0),A36))))) -> 2 | D36: =IF(OR(C36="S",C36=0),0,IF(ISERROR(K36),J36,SMALL(J36:K36,1))) -> 14 | E36: =IF($C36=1,OFFSET(E36,-1,0)+MAX(1,COUNTIF(QCI!$A$13:$A$24,OFFSET(ORÇAMENTO!E36,-1,0))),OFFSET(E36,-1,0)) -> 1 | F36: =IF($C36=1,0,IF($C36=2,OFFSET(F36,-1,0)+1,OFFSET(F36,-1,0))) -> 3 | G36: =IF(AND($C36<=2,$C36<>0),0,IF($C36=3,OFFSET(G36,-1,0)+1,OFFSET(G36,-1,0))) -> 0 | H36: =IF(AND($C36<=3,$C36<>0),0,IF($C36=4,OFFSET(H36,-1,0)+1,OFFSET(H36,-1,0))) -> 0 | I36: =IF(AND($C36<=4,$C36<>0),0,IF(AND($C36="S",$X36>0),OFFSET(I36,-1,0)+1,OFFSET(I36,-1,0))) -> 0 | J36: =IF(OR($C36="S",$C36=0),0,MATCH(0,OFFSET($D36,1,$C36,ROW($C$110)-ROW($C36)),0)) -> 74 | K36: =IF(OR($C36="S",$C36=0),0,MATCH(OFFSET($D36,0,$C36)+IF($C36<>1,1,COUNTIF(QCI!$A$13:$A$24,ORÇAMENTO!E36)),OFFSET($D36,1,$C36,ROW($C$110)-ROW($C36)),0)) -> 14 | L36: =IF(OR($X36>0,$C36=1,$C36=2,$C36=3,$C36=4),"F","") -> F | M36: Nível 2 | N36: =CHOOSE(1+LOG(1+2*(C36=1)+4*(C36=2)+8*(C36=3)+16*(C36=4)+32*(C36="S"),2),"","Meta","Nível 2","Nível 3","Nível 4","Serviço") -> Nível 2 | O36: =IF(OR($C36=0,$L36=""),"-",CONCATENATE(E36&".",IF(AND($A$5>=2,$C36>=2),F36&".",""),IF(AND($A$5>=3,$C36>=3),G36&".",""),IF(AND($A$5>=4,$C36>=4),H36&".",""),IF($C36="S",I36&".",""))) -> 1.3. | P36: SINAPI | R36: DRENAGEM - DISPOSITIVOS ESTRUTURAIS | S36: =REFERENCIA.Unidade -> - | T36: =OFFSET(CÁLCULO!H$15,ROW($T36)-ROW(T$15),0) -> 0 | V36: BDI 1 | W36: =IF($C36="S",ROUND(IF(TIPOORCAMENTO="Proposto",ORÇAMENTO.CustoUnitario*(1+$AH36),ORÇAMENTO.PrecoUnitarioLicitado),15-13*$AF$10),0) -> 0 | X36: =IF($C36="S",IF(OR(Import.TipoArredondamento<>"TransfereGOV",ACOMPANHAMENTO="BM"),VTOTAL1,SUM(OFFSET(CÁLCULO!$AI$15,ROW($X36)-ROW($X$15),1):OFFSET(CÁLCULO!$BB$15,ROW($X36)-ROW($X$15),-1))),IF($C36=0,0,ROUND(SomaAgrup,15-13*$AF$11))) -> 655047.62 | Y36: RA | Z36: =IF(AND($C36="S",$X36>0),IF(ISBLANK($Y36),"RA",LEFT($Y36,2)),"") ->  | AA36: =IF($C36="S",IF($Z36="CP",$X36,IF($Z36="RA",(($X36)*QCI!$AA$3),0)),SomaAgrup) -> 204280.5097 | AB36: =IF($C36="S",IF($Z36="OU",ROUND($X36,2),0),SomaAgrup) -> 0 | AC36: =IF($N36=""," ", IF(AND($C36<>"S",OR($R36="",$R36="(digite a descrição aqui)")),"DESCRIÇÃO", IF(AND($C36="S",OR($Q36<>0,$T36>0,$U36>0),$P36=0),"FONTE", IF(AND($C36="S",$P36<>0,OR($T36>0,$U36>0),$Q36=0),"CÓDIGO", IF(AND($C36="S",$P36<>0,$Q36<>0,$R36="(Código não identificado nas referências)"),"CÓDIGO N/ID", IF(AND($C36="S",OR($R36="",$R36="(digite a descrição aqui)"),OR($Q36<>0,$T36>0,$U36>0)),"DESCRIÇÃO", IF(AND($C36="S",$P36<>0,$Q36<>0,$S36=""),"UNIDADE", IF(AND($C36="S",$P36<>0,$Q36<>0,$U36=0),"SEM CUSTO", IF(AND(TIPOORCAMENTO="Licitado",$AL36=0,$AN36>0),"SEM PREÇO", IF(AND($C36="S",$P36<>0,$Q36<>0,$U36>0,$V36=0),"BDI", IF(OR(AND(TIPOORCAMENTO="Proposto",$AG36<>"",$AG36>0,ORÇAMENTO.CustoUnitario>$AG36),AND(TIPOORCAMENTO="LICITADO",ORÇAMENTO.PrecoUnitarioLicitado>$AN36)),"ACIMA REF.", IF(AND($C36="S",$P36<>0,$Q36<>0,$T36=0,$U36>0),"QUANT.", IF(AND(Import.TipoArredondamento="TransfereGOV",$L36="F",$C36="S",LEN($Q36)>13),"Código >13", IF(AND(Import.TipoArredondamento="TransfereGOV",$L36="F",$C36<>"S",LEN($R36)>100),"Descrição >100", IF(AND(Import.TipoArredondamento="TransfereGOV",$L36="F",$C36="S",LEN($R36)>500),"Descrição >500", IF(AND(Import.TipoArredondamento="TransfereGOV",$L36="F",$C36="S",LEFT(TRIM(UPPER($P36)),6)<>"SINAPI",ISNA(VLOOKUP(TRIM(UPPER($S36)),ListaTgov.Unidades,1,FALSE))),"Unid. Não Disp", " ")))))))))))))))) ->  | AD36: =IF(C36<=CRONO.NivelExibicao,MAX($AD$15:OFFSET(AD36,-1,0))+IF($C36<>1,1,MAX(1,COUNTIF(QCI!$A$13:$A$24,OFFSET($E36,-1,0)))),"") -> 4 | AE36: =IF(AND($C36="S",ORÇAMENTO.CodBarra<>""),IF(ORÇAMENTO.Fonte="",ORÇAMENTO.CodBarra,CONCATENATE(ORÇAMENTO.Fonte," ",ORÇAMENTO.CodBarra))) -> FALSE | AF36: =IF(ISERROR(INDIRECT(ORÇAMENTO.BancoRef)),"(abra o arquivo 'Referência "&Excel_BuiltIn_Database&".xlsm)",IF(OR($C36<>"S",ORÇAMENTO.CodBarra=""),"(Sem Código)",IF(ISERROR(MATCH($AE36,INDIRECT(ORÇAMENTO.BancoRef),0)),"(Código não identificado nas referências)",MATCH($AE36,INDIRECT(ORÇAMENTO.BancoRef),0)))) -> (Sem Código) | AG36: =ROUND(IF(DESONERACAO="sim",REFERENCIA.Desonerado,REFERENCIA.NaoDesonerado),2) -> 0 | AH36: =ROUND(IF(ISNUMBER(ORÇAMENTO.OpcaoBDI),ORÇAMENTO.OpcaoBDI,IF(LEFT(ORÇAMENTO.OpcaoBDI,3)="BDI",HLOOKUP(ORÇAMENTO.OpcaoBDI,$F$4:$H$5,2,FALSE),0)),15-11*$AF$9) -> 0.2338 | AM36: 655047.62 | AN36: =ROUND(ORÇAMENTO.CustoUnitario*(1+$AH36),2) -> 0
A37: S | B37: 2 | C37: S | D37: 0 | E37: =IF($C37=1,OFFSET(E37,-1,0)+MAX(1,COUNTIF(QCI!$A$13:$A$24,OFFSET(ORÇAMENTO!E37,-1,0))),OFFSET(E37,-1,0)) -> 1 | F37: 3 | G37: 0 | H37: 0 | I37: 1 | J37: =IF(OR($C37="S",$C37=0),0,MATCH(0,OFFSET($D37,1,$C37,ROW($C$110)-ROW($C37)),0)) -> 0 | K37: =IF(OR($C37="S",$C37=0),0,MATCH(OFFSET($D37,0,$C37)+IF($C37<>1,1,COUNTIF(QCI!$A$13:$A$24,ORÇAMENTO!E37)),OFFSET($D37,1,$C37,ROW($C$110)-ROW($C37)),0)) -> 0 | L37: F | M37: Serviço | N37: Serviço | O37: 1.3.1. | P37: SINAPI | Q37: 92210 | R37: =IF($C37="S",REFERENCIA.Descricao,"(digite a descrição aqui)") -> TUBO DE CONCRETO PARA REDES COLETORAS DE ÁGUAS PLUVIAIS, DIÂMETRO DE 400 MM, JUNTA RÍGIDA, INSTALADO EM LOCAL COM BAIXO NÍVEL DE INTERFERÊNCIAS - FORNECIMENTO E ASSENTAMENTO. AF_03/2024 | S37: =REFERENCIA.Unidade -> M | T37: =OFFSET(CÁLCULO!H$15,ROW($T37)-ROW(T$15),0) -> 196 | U37: 158.7 | V37: BDI 1 | W37: =IF($C37="S",ROUND(IF(TIPOORCAMENTO="Proposto",ORÇAMENTO.CustoUnitario*(1+$AH37),ORÇAMENTO.PrecoUnitarioLicitado),15-13*$AF$10),0) -> 195.8 | X37: =IF($C37="S",IF(OR(Import.TipoArredondamento<>"TransfereGOV",ACOMPANHAMENTO="BM"),VTOTAL1,SUM(OFFSET(CÁLCULO!$AI$15,ROW($X37)-ROW($X$15),1):OFFSET(CÁLCULO!$BB$15,ROW($X37)-ROW($X$15),-1))),IF($C37=0,0,ROUND(SomaAgrup,15-13*$AF$11))) -> 38376.8 | Y37: RA | Z37: RA | AA37: =IF($C37="S",IF($Z37="CP",$X37,IF($Z37="RA",(($X37)*QCI!$AA$3),0)),SomaAgrup) -> 11968.03412 | AB37: 0 | AC37: =IF($N37=""," ", IF(AND($C37<>"S",OR($R37="",$R37="(digite a descrição aqui)")),"DESCRIÇÃO", IF(AND($C37="S",OR($Q37<>0,$T37>0,$U37>0),$P37=0),"FONTE", IF(AND($C37="S",$P37<>0,OR($T37>0,$U37>0),$Q37=0),"CÓDIGO", IF(AND($C37="S",$P37<>0,$Q37<>0,$R37="(Código não identificado nas referências)"),"CÓDIGO N/ID", IF(AND($C37="S",OR($R37="",$R37="(digite a descrição aqui)"),OR($Q37<>0,$T37>0,$U37>0)),"DESCRIÇÃO", IF(AND($C37="S",$P37<>0,$Q37<>0,$S37=""),"UNIDADE", IF(AND($C37="S",$P37<>0,$Q37<>0,$U37=0),"SEM CUSTO", IF(AND(TIPOORCAMENTO="Licitado",$AL37=0,$AN37>0),"SEM PREÇO", IF(AND($C37="S",$P37<>0,$Q37<>0,$U37>0,$V37=0),"BDI", IF(OR(AND(TIPOORCAMENTO="Proposto",$AG37<>"",$AG37>0,ORÇAMENTO.CustoUnitario>$AG37),AND(TIPOORCAMENTO="LICITADO",ORÇAMENTO.PrecoUnitarioLicitado>$AN37)),"ACIMA REF.", IF(AND($C37="S",$P37<>0,$Q37<>0,$T37=0,$U37>0),"QUANT.", IF(AND(Import.TipoArredondamento="TransfereGOV",$L37="F",$C37="S",LEN($Q37)>13),"Código >13", IF(AND(Import.TipoArredondamento="TransfereGOV",$L37="F",$C37<>"S",LEN($R37)>100),"Descrição >100", IF(AND(Import.TipoArredondamento="TransfereGOV",$L37="F",$C37="S",LEN($R37)>500),"Descrição >500", IF(AND(Import.TipoArredondamento="TransfereGOV",$L37="F",$C37="S",LEFT(TRIM(UPPER($P37)),6)<>"SINAPI",ISNA(VLOOKUP(TRIM(UPPER($S37)),ListaTgov.Unidades,1,FALSE))),"Unid. Não Disp", " ")))))))))))))))) ->  | AD37: =IF(C37<=CRONO.NivelExibicao,MAX($AD$15:OFFSET(AD37,-1,0))+IF($C37<>1,1,MAX(1,COUNTIF(QCI!$A$13:$A$24,OFFSET($E37,-1,0)))),"") ->  | AE37: =IF(AND($C37="S",ORÇAMENTO.CodBarra<>""),IF(ORÇAMENTO.Fonte="",ORÇAMENTO.CodBarra,CONCATENATE(ORÇAMENTO.Fonte," ",ORÇAMENTO.CodBarra))) -> SINAPI 92210 | AF37: =IF(ISERROR(INDIRECT(ORÇAMENTO.BancoRef)),"(abra o arquivo 'Referência "&Excel_BuiltIn_Database&".xlsm)",IF(OR($C37<>"S",ORÇAMENTO.CodBarra=""),"(Sem Código)",IF(ISERROR(MATCH($AE37,INDIRECT(ORÇAMENTO.BancoRef),0)),"(Código não identificado nas referências)",MATCH($AE37,INDIRECT(ORÇAMENTO.BancoRef),0)))) -> 6730 | AG37: =ROUND(IF(DESONERACAO="sim",REFERENCIA.Desonerado,REFERENCIA.NaoDesonerado),2) -> 158.7 | AH37: 0.2338 | AJ37: 196 | AM37: 38376.8 | AN37: 195.8
A38: S | B38: 2 | C38: S | D38: 0 | E38: =IF($C38=1,OFFSET(E38,-1,0)+MAX(1,COUNTIF(QCI!$A$13:$A$24,OFFSET(ORÇAMENTO!E38,-1,0))),OFFSET(E38,-1,0)) -> 1 | F38: 3 | G38: 0 | H38: 0 | I38: 2 | J38: =IF(OR($C38="S",$C38=0),0,MATCH(0,OFFSET($D38,1,$C38,ROW($C$110)-ROW($C38)),0)) -> 0 | K38: =IF(OR($C38="S",$C38=0),0,MATCH(OFFSET($D38,0,$C38)+IF($C38<>1,1,COUNTIF(QCI!$A$13:$A$24,ORÇAMENTO!E38)),OFFSET($D38,1,$C38,ROW($C$110)-ROW($C38)),0)) -> 0 | L38: F | M38: Serviço | N38: Serviço | O38: 1.3.2. | P38: SINAPI | Q38: 92214 | R38: =IF($C38="S",REFERENCIA.Descricao,"(digite a descrição aqui)") -> TUBO DE CONCRETO PARA REDES COLETORAS DE ÁGUAS PLUVIAIS, DIÂMETRO DE 800 MM, JUNTA RÍGIDA, INSTALADO EM LOCAL COM BAIXO NÍVEL DE INTERFERÊNCIAS - FORNECIMENTO E ASSENTAMENTO. AF_03/2024 | S38: =REFERENCIA.Unidade -> M | T38: =OFFSET(CÁLCULO!H$15,ROW($T38)-ROW(T$15),0) -> 69.3 | U38: 477.56 | V38: BDI 1 | W38: =IF($C38="S",ROUND(IF(TIPOORCAMENTO="Proposto",ORÇAMENTO.CustoUnitario*(1+$AH38),ORÇAMENTO.PrecoUnitarioLicitado),15-13*$AF$10),0) -> 589.21 | X38: =IF($C38="S",IF(OR(Import.TipoArredondamento<>"TransfereGOV",ACOMPANHAMENTO="BM"),VTOTAL1,SUM(OFFSET(CÁLCULO!$AI$15,ROW($X38)-ROW($X$15),1):OFFSET(CÁLCULO!$BB$15,ROW($X38)-ROW($X$15),-1))),IF($C38=0,0,ROUND(SomaAgrup,15-13*$AF$11))) -> 40832.25 | Y38: RA | Z38: RA | AA38: =IF($C38="S",IF($Z38="CP",$X38,IF($Z38="RA",(($X38)*QCI!$AA$3),0)),SomaAgrup) -> 12733.78086 | AB38: 0 | AC38: =IF($N38=""," ", IF(AND($C38<>"S",OR($R38="",$R38="(digite a descrição aqui)")),"DESCRIÇÃO", IF(AND($C38="S",OR($Q38<>0,$T38>0,$U38>0),$P38=0),"FONTE", IF(AND($C38="S",$P38<>0,OR($T38>0,$U38>0),$Q38=0),"CÓDIGO", IF(AND($C38="S",$P38<>0,$Q38<>0,$R38="(Código não identificado nas referências)"),"CÓDIGO N/ID", IF(AND($C38="S",OR($R38="",$R38="(digite a descrição aqui)"),OR($Q38<>0,$T38>0,$U38>0)),"DESCRIÇÃO", IF(AND($C38="S",$P38<>0,$Q38<>0,$S38=""),"UNIDADE", IF(AND($C38="S",$P38<>0,$Q38<>0,$U38=0),"SEM CUSTO", IF(AND(TIPOORCAMENTO="Licitado",$AL38=0,$AN38>0),"SEM PREÇO", IF(AND($C38="S",$P38<>0,$Q38<>0,$U38>0,$V38=0),"BDI", IF(OR(AND(TIPOORCAMENTO="Proposto",$AG38<>"",$AG38>0,ORÇAMENTO.CustoUnitario>$AG38),AND(TIPOORCAMENTO="LICITADO",ORÇAMENTO.PrecoUnitarioLicitado>$AN38)),"ACIMA REF.", IF(AND($C38="S",$P38<>0,$Q38<>0,$T38=0,$U38>0),"QUANT.", IF(AND(Import.TipoArredondamento="TransfereGOV",$L38="F",$C38="S",LEN($Q38)>13),"Código >13", IF(AND(Import.TipoArredondamento="TransfereGOV",$L38="F",$C38<>"S",LEN($R38)>100),"Descrição >100", IF(AND(Import.TipoArredondamento="TransfereGOV",$L38="F",$C38="S",LEN($R38)>500),"Descrição >500", IF(AND(Import.TipoArredondamento="TransfereGOV",$L38="F",$C38="S",LEFT(TRIM(UPPER($P38)),6)<>"SINAPI",ISNA(VLOOKUP(TRIM(UPPER($S38)),ListaTgov.Unidades,1,FALSE))),"Unid. Não Disp", " ")))))))))))))))) ->  | AD38: =IF(C38<=CRONO.NivelExibicao,MAX($AD$15:OFFSET(AD38,-1,0))+IF($C38<>1,1,MAX(1,COUNTIF(QCI!$A$13:$A$24,OFFSET($E38,-1,0)))),"") ->  | AE38: =IF(AND($C38="S",ORÇAMENTO.CodBarra<>""),IF(ORÇAMENTO.Fonte="",ORÇAMENTO.CodBarra,CONCATENATE(ORÇAMENTO.Fonte," ",ORÇAMENTO.CodBarra))) -> SINAPI 92214 | AF38: =IF(ISERROR(INDIRECT(ORÇAMENTO.BancoRef)),"(abra o arquivo 'Referência "&Excel_BuiltIn_Database&".xlsm)",IF(OR($C38<>"S",ORÇAMENTO.CodBarra=""),"(Sem Código)",IF(ISERROR(MATCH($AE38,INDIRECT(ORÇAMENTO.BancoRef),0)),"(Código não identificado nas referências)",MATCH($AE38,INDIRECT(ORÇAMENTO.BancoRef),0)))) -> 6738 | AG38: =ROUND(IF(DESONERACAO="sim",REFERENCIA.Desonerado,REFERENCIA.NaoDesonerado),2) -> 477.56 | AH38: 0.2338 | AJ38: 69.3 | AM38: 40832.25 | AN38: 589.21
A39: =CHOOSE(1+LOG(1+2*(ORÇAMENTO.Nivel="Meta")+4*(ORÇAMENTO.Nivel="Nível 2")+8*(ORÇAMENTO.Nivel="Nível 3")+16*(ORÇAMENTO.Nivel="Nível 4")+32*(ORÇAMENTO.Nivel="Serviço"),2),0,1,2,3,4,"S") -> S | B39: =IF(OR(C39="s",C39=0),OFFSET(B39,-1,0),C39) -> 2 | C39: =IF(OFFSET(C39,-1,0)="L",1,IF(OFFSET(C39,-1,0)=1,2,IF(OR(A39="s",A39=0),"S",IF(AND(OFFSET(C39,-1,0)=2,A39=4),3,IF(AND(OR(OFFSET(C39,-1,0)="s",OFFSET(C39,-1,0)=0),A39<>"s",A39>OFFSET(B39,-1,0)),OFFSET(B39,-1,0),A39))))) -> S | D39: =IF(OR(C39="S",C39=0),0,IF(ISERROR(K39),J39,SMALL(J39:K39,1))) -> 0 | E39: =IF($C39=1,OFFSET(E39,-1,0)+MAX(1,COUNTIF(QCI!$A$13:$A$24,OFFSET(ORÇAMENTO!E39,-1,0))),OFFSET(E39,-1,0)) -> 1 | F39: =IF($C39=1,0,IF($C39=2,OFFSET(F39,-1,0)+1,OFFSET(F39,-1,0))) -> 3 | G39: =IF(AND($C39<=2,$C39<>0),0,IF($C39=3,OFFSET(G39,-1,0)+1,OFFSET(G39,-1,0))) -> 0 | H39: =IF(AND($C39<=3,$C39<>0),0,IF($C39=4,OFFSET(H39,-1,0)+1,OFFSET(H39,-1,0))) -> 0 | I39: =IF(AND($C39<=4,$C39<>0),0,IF(AND($C39="S",$X39>0),OFFSET(I39,-1,0)+1,OFFSET(I39,-1,0))) -> 3 | J39: =IF(OR($C39="S",$C39=0),0,MATCH(0,OFFSET($D39,1,$C39,ROW($C$110)-ROW($C39)),0)) -> 0 | K39: =IF(OR($C39="S",$C39=0),0,MATCH(OFFSET($D39,0,$C39)+IF($C39<>1,1,COUNTIF(QCI!$A$13:$A$24,ORÇAMENTO!E39)),OFFSET($D39,1,$C39,ROW($C$110)-ROW($C39)),0)) -> 0 | L39: =IF(OR($X39>0,$C39=1,$C39=2,$C39=3,$C39=4),"F","") -> F | M39: Serviço | N39: =CHOOSE(1+LOG(1+2*(C39=1)+4*(C39=2)+8*(C39=3)+16*(C39=4)+32*(C39="S"),2),"","Meta","Nível 2","Nível 3","Nível 4","Serviço") -> Serviço | O39: =IF(OR($C39=0,$L39=""),"-",CONCATENATE(E39&".",IF(AND($A$5>=2,$C39>=2),F39&".",""),IF(AND($A$5>=3,$C39>=3),G39&".",""),IF(AND($A$5>=4,$C39>=4),H39&".",""),IF($C39="S",I39&".",""))) -> 1.3.3. | P39: SINAPI | Q39: 92216 | R39: =IF($C39="S",REFERENCIA.Descricao,"(digite a descrição aqui)") -> TUBO DE CONCRETO PARA REDES COLETORAS DE ÁGUAS PLUVIAIS, DIÂMETRO DE 1000 MM, JUNTA RÍGIDA, INSTALADO EM LOCAL COM BAIXO NÍVEL DE INTERFERÊNCIAS - FORNECIMENTO E ASSENTAMENTO. AF_03/2024 | S39: =REFERENCIA.Unidade -> M | T39: =OFFSET(CÁLCULO!H$15,ROW($T39)-ROW(T$15),0) -> 496.68 | U39: 568.58 | V39: BDI 1 | W39: =IF($C39="S",ROUND(IF(TIPOORCAMENTO="Proposto",ORÇAMENTO.CustoUnitario*(1+$AH39),ORÇAMENTO.PrecoUnitarioLicitado),15-13*$AF$10),0) -> 701.51 | X39: =IF($C39="S",IF(OR(Import.TipoArredondamento<>"TransfereGOV",ACOMPANHAMENTO="BM"),VTOTAL1,SUM(OFFSET(CÁLCULO!$AI$15,ROW($X39)-ROW($X$15),1):OFFSET(CÁLCULO!$BB$15,ROW($X39)-ROW($X$15),-1))),IF($C39=0,0,ROUND(SomaAgrup,15-13*$AF$11))) -> 348425.99 | Y39: RA | Z39: =IF(AND($C39="S",$X39>0),IF(ISBLANK($Y39),"RA",LEFT($Y39,2)),"") -> RA | AA39: =IF($C39="S",IF($Z39="CP",$X39,IF($Z39="RA",(($X39)*QCI!$AA$3),0)),SomaAgrup) -> 108658.7244 | AB39: =IF($C39="S",IF($Z39="OU",ROUND($X39,2),0),SomaAgrup) -> 0 | AC39: =IF($N39=""," ", IF(AND($C39<>"S",OR($R39="",$R39="(digite a descrição aqui)")),"DESCRIÇÃO", IF(AND($C39="S",OR($Q39<>0,$T39>0,$U39>0),$P39=0),"FONTE", IF(AND($C39="S",$P39<>0,OR($T39>0,$U39>0),$Q39=0),"CÓDIGO", IF(AND($C39="S",$P39<>0,$Q39<>0,$R39="(Código não identificado nas referências)"),"CÓDIGO N/ID", IF(AND($C39="S",OR($R39="",$R39="(digite a descrição aqui)"),OR($Q39<>0,$T39>0,$U39>0)),"DESCRIÇÃO", IF(AND($C39="S",$P39<>0,$Q39<>0,$S39=""),"UNIDADE", IF(AND($C39="S",$P39<>0,$Q39<>0,$U39=0),"SEM CUSTO", IF(AND(TIPOORCAMENTO="Licitado",$AL39=0,$AN39>0),"SEM PREÇO", IF(AND($C39="S",$P39<>0,$Q39<>0,$U39>0,$V39=0),"BDI", IF(OR(AND(TIPOORCAMENTO="Proposto",$AG39<>"",$AG39>0,ORÇAMENTO.CustoUnitario>$AG39),AND(TIPOORCAMENTO="LICITADO",ORÇAMENTO.PrecoUnitarioLicitado>$AN39)),"ACIMA REF.", IF(AND($C39="S",$P39<>0,$Q39<>0,$T39=0,$U39>0),"QUANT.", IF(AND(Import.TipoArredondamento="TransfereGOV",$L39="F",$C39="S",LEN($Q39)>13),"Código >13", IF(AND(Import.TipoArredondamento="TransfereGOV",$L39="F",$C39<>"S",LEN($R39)>100),"Descrição >100", IF(AND(Import.TipoArredondamento="TransfereGOV",$L39="F",$C39="S",LEN($R39)>500),"Descrição >500", IF(AND(Import.TipoArredondamento="TransfereGOV",$L39="F",$C39="S",LEFT(TRIM(UPPER($P39)),6)<>"SINAPI",ISNA(VLOOKUP(TRIM(UPPER($S39)),ListaTgov.Unidades,1,FALSE))),"Unid. Não Disp", " ")))))))))))))))) ->  | AD39: =IF(C39<=CRONO.NivelExibicao,MAX($AD$15:OFFSET(AD39,-1,0))+IF($C39<>1,1,MAX(1,COUNTIF(QCI!$A$13:$A$24,OFFSET($E39,-1,0)))),"") ->  | AE39: =IF(AND($C39="S",ORÇAMENTO.CodBarra<>""),IF(ORÇAMENTO.Fonte="",ORÇAMENTO.CodBarra,CONCATENATE(ORÇAMENTO.Fonte," ",ORÇAMENTO.CodBarra))) -> SINAPI 92216 | AF39: =IF(ISERROR(INDIRECT(ORÇAMENTO.BancoRef)),"(abra o arquivo 'Referência "&Excel_BuiltIn_Database&".xlsm)",IF(OR($C39<>"S",ORÇAMENTO.CodBarra=""),"(Sem Código)",IF(ISERROR(MATCH($AE39,INDIRECT(ORÇAMENTO.BancoRef),0)),"(Código não identificado nas referências)",MATCH($AE39,INDIRECT(ORÇAMENTO.BancoRef),0)))) -> 6722 | AG39: =ROUND(IF(DESONERACAO="sim",REFERENCIA.Desonerado,REFERENCIA.NaoDesonerado),2) -> 568.58 | AH39: =ROUND(IF(ISNUMBER(ORÇAMENTO.OpcaoBDI),ORÇAMENTO.OpcaoBDI,IF(LEFT(ORÇAMENTO.OpcaoBDI,3)="BDI",HLOOKUP(ORÇAMENTO.OpcaoBDI,$F$4:$H$5,2,FALSE),0)),15-11*$AF$9) -> 0.2338 | AJ39: 496.68 | AM39: 348425.99 | AN39: =ROUND(ORÇAMENTO.CustoUnitario*(1+$AH39),2) -> 701.51
A40: S | B40: 2 | C40: S | D40: 0 | E40: =IF($C40=1,OFFSET(E40,-1,0)+MAX(1,COUNTIF(QCI!$A$13:$A$24,OFFSET(ORÇAMENTO!E40,-1,0))),OFFSET(E40,-1,0)) -> 1 | F40: 3 | G40: 0 | H40: 0 | I40: 4 | J40: =IF(OR($C40="S",$C40=0),0,MATCH(0,OFFSET($D40,1,$C40,ROW($C$110)-ROW($C40)),0)) -> 0 | K40: =IF(OR($C40="S",$C40=0),0,MATCH(OFFSET($D40,0,$C40)+IF($C40<>1,1,COUNTIF(QCI!$A$13:$A$24,ORÇAMENTO!E40)),OFFSET($D40,1,$C40,ROW($C$110)-ROW($C40)),0)) -> 0 | L40: F | M40: Serviço | N40: Serviço | O40: 1.3.4. | P40: SINAPI | Q40: 100952 | R40: =IF($C40="S",REFERENCIA.Descricao,"(digite a descrição aqui)") -> TRANSPORTE COM CAMINHÃO CARROCERIA COM GUINDAUTO (MUNCK), MOMENTO MÁXIMO DE CARGA 11,7 TM, EM VIA URBANA PAVIMENTADA, DMT ATÉ 30KM (UNIDADE: TXKM). AF_07/2020 | S40: =REFERENCIA.Unidade -> TXKM | T40: =OFFSET(CÁLCULO!H$15,ROW($T40)-ROW(T$15),0) -> 15391.5 | U40: 2.82 | V40: BDI 1 | W40: =IF($C40="S",ROUND(IF(TIPOORCAMENTO="Proposto",ORÇAMENTO.CustoUnitario*(1+$AH40),ORÇAMENTO.PrecoUnitarioLicitado),15-13*$AF$10),0) -> 3.48 | X40: =IF($C40="S",IF(OR(Import.TipoArredondamento<>"TransfereGOV",ACOMPANHAMENTO="BM"),VTOTAL1,SUM(OFFSET(CÁLCULO!$AI$15,ROW($X40)-ROW($X$15),1):OFFSET(CÁLCULO!$BB$15,ROW($X40)-ROW($X$15),-1))),IF($C40=0,0,ROUND(SomaAgrup,15-13*$AF$11))) -> 53562.42 | Y40: RA | Z40: RA | AA40: =IF($C40="S",IF($Z40="CP",$X40,IF($Z40="RA",(($X40)*QCI!$AA$3),0)),SomaAgrup) -> 16703.76035 | AB40: 0 | AC40: =IF($N40=""," ", IF(AND($C40<>"S",OR($R40="",$R40="(digite a descrição aqui)")),"DESCRIÇÃO", IF(AND($C40="S",OR($Q40<>0,$T40>0,$U40>0),$P40=0),"FONTE", IF(AND($C40="S",$P40<>0,OR($T40>0,$U40>0),$Q40=0),"CÓDIGO", IF(AND($C40="S",$P40<>0,$Q40<>0,$R40="(Código não identificado nas referências)"),"CÓDIGO N/ID", IF(AND($C40="S",OR($R40="",$R40="(digite a descrição aqui)"),OR($Q40<>0,$T40>0,$U40>0)),"DESCRIÇÃO", IF(AND($C40="S",$P40<>0,$Q40<>0,$S40=""),"UNIDADE", IF(AND($C40="S",$P40<>0,$Q40<>0,$U40=0),"SEM CUSTO", IF(AND(TIPOORCAMENTO="Licitado",$AL40=0,$AN40>0),"SEM PREÇO", IF(AND($C40="S",$P40<>0,$Q40<>0,$U40>0,$V40=0),"BDI", IF(OR(AND(TIPOORCAMENTO="Proposto",$AG40<>"",$AG40>0,ORÇAMENTO.CustoUnitario>$AG40),AND(TIPOORCAMENTO="LICITADO",ORÇAMENTO.PrecoUnitarioLicitado>$AN40)),"ACIMA REF.", IF(AND($C40="S",$P40<>0,$Q40<>0,$T40=0,$U40>0),"QUANT.", IF(AND(Import.TipoArredondamento="TransfereGOV",$L40="F",$C40="S",LEN($Q40)>13),"Código >13", IF(AND(Import.TipoArredondamento="TransfereGOV",$L40="F",$C40<>"S",LEN($R40)>100),"Descrição >100", IF(AND(Import.TipoArredondamento="TransfereGOV",$L40="F",$C40="S",LEN($R40)>500),"Descrição >500", IF(AND(Import.TipoArredondamento="TransfereGOV",$L40="F",$C40="S",LEFT(TRIM(UPPER($P40)),6)<>"SINAPI",ISNA(VLOOKUP(TRIM(UPPER($S40)),ListaTgov.Unidades,1,FALSE))),"Unid. Não Disp", " ")))))))))))))))) ->  | AD40: =IF(C40<=CRONO.NivelExibicao,MAX($AD$15:OFFSET(AD40,-1,0))+IF($C40<>1,1,MAX(1,COUNTIF(QCI!$A$13:$A$24,OFFSET($E40,-1,0)))),"") ->  | AE40: =IF(AND($C40="S",ORÇAMENTO.CodBarra<>""),IF(ORÇAMENTO.Fonte="",ORÇAMENTO.CodBarra,CONCATENATE(ORÇAMENTO.Fonte," ",ORÇAMENTO.CodBarra))) -> SINAPI 100952 | AF40: =IF(ISERROR(INDIRECT(ORÇAMENTO.BancoRef)),"(abra o arquivo 'Referência "&Excel_BuiltIn_Database&".xlsm)",IF(OR($C40<>"S",ORÇAMENTO.CodBarra=""),"(Sem Código)",IF(ISERROR(MATCH($AE40,INDIRECT(ORÇAMENTO.BancoRef),0)),"(Código não identificado nas referências)",MATCH($AE40,INDIRECT(ORÇAMENTO.BancoRef),0)))) -> 15432 | AG40: =ROUND(IF(DESONERACAO="sim",REFERENCIA.Desonerado,REFERENCIA.NaoDesonerado),2) -> 2.82 | AH40: 0.2338 | AJ40: =513.05*30 -> 15391.5 | AM40: 53562.42 | AN40: 3.48
A41: =CHOOSE(1+LOG(1+2*(ORÇAMENTO.Nivel="Meta")+4*(ORÇAMENTO.Nivel="Nível 2")+8*(ORÇAMENTO.Nivel="Nível 3")+16*(ORÇAMENTO.Nivel="Nível 4")+32*(ORÇAMENTO.Nivel="Serviço"),2),0,1,2,3,4,"S") -> S | B41: =IF(OR(C41="s",C41=0),OFFSET(B41,-1,0),C41) -> 2 | C41: =IF(OFFSET(C41,-1,0)="L",1,IF(OFFSET(C41,-1,0)=1,2,IF(OR(A41="s",A41=0),"S",IF(AND(OFFSET(C41,-1,0)=2,A41=4),3,IF(AND(OR(OFFSET(C41,-1,0)="s",OFFSET(C41,-1,0)=0),A41<>"s",A41>OFFSET(B41,-1,0)),OFFSET(B41,-1,0),A41))))) -> S | D41: =IF(OR(C41="S",C41=0),0,IF(ISERROR(K41),J41,SMALL(J41:K41,1))) -> 0 | E41: =IF($C41=1,OFFSET(E41,-1,0)+MAX(1,COUNTIF(QCI!$A$13:$A$24,OFFSET(ORÇAMENTO!E41,-1,0))),OFFSET(E41,-1,0)) -> 1 | F41: =IF($C41=1,0,IF($C41=2,OFFSET(F41,-1,0)+1,OFFSET(F41,-1,0))) -> 3 | G41: =IF(AND($C41<=2,$C41<>0),0,IF($C41=3,OFFSET(G41,-1,0)+1,OFFSET(G41,-1,0))) -> 0 | H41: =IF(AND($C41<=3,$C41<>0),0,IF($C41=4,OFFSET(H41,-1,0)+1,OFFSET(H41,-1,0))) -> 0 | I41: =IF(AND($C41<=4,$C41<>0),0,IF(AND($C41="S",$X41>0),OFFSET(I41,-1,0)+1,OFFSET(I41,-1,0))) -> 5 | J41: =IF(OR($C41="S",$C41=0),0,MATCH(0,OFFSET($D41,1,$C41,ROW($C$110)-ROW($C41)),0)) -> 0 | K41: =IF(OR($C41="S",$C41=0),0,MATCH(OFFSET($D41,0,$C41)+IF($C41<>1,1,COUNTIF(QCI!$A$13:$A$24,ORÇAMENTO!E41)),OFFSET($D41,1,$C41,ROW($C$110)-ROW($C41)),0)) -> 0 | L41: =IF(OR($X41>0,$C41=1,$C41=2,$C41=3,$C41=4),"F","") -> F | M41: Serviço | N41: =CHOOSE(1+LOG(1+2*(C41=1)+4*(C41=2)+8*(C41=3)+16*(C41=4)+32*(C41="S"),2),"","Meta","Nível 2","Nível 3","Nível 4","Serviço") -> Serviço | O41: =IF(OR($C41=0,$L41=""),"-",CONCATENATE(E41&".",IF(AND($A$5>=2,$C41>=2),F41&".",""),IF(AND($A$5>=3,$C41>=3),G41&".",""),IF(AND($A$5>=4,$C41>=4),H41&".",""),IF($C41="S",I41&".",""))) -> 1.3.5. | P41: SINAPI | Q41: 100953 | R41: =IF($C41="S",REFERENCIA.Descricao,"(digite a descrição aqui)") -> TRANSPORTE COM CAMINHÃO CARROCERIA COM GUINDAUTO (MUNCK), MOMENTO MÁXIMO DE CARGA 11,7 TM, EM VIA URBANA PAVIMENTADA, ADICIONAL PARA DMT EXCEDENTE A 30 KM (UNIDADE: TXKM). AF_07/2020 | S41: =REFERENCIA.Unidade -> TXKM | T41: =OFFSET(CÁLCULO!H$15,ROW($T41)-ROW(T$15),0) -> 25139.45 | U41: 1.12 | V41: BDI 1 | W41: =IF($C41="S",ROUND(IF(TIPOORCAMENTO="Proposto",ORÇAMENTO.CustoUnitario*(1+$AH41),ORÇAMENTO.PrecoUnitarioLicitado),15-13*$AF$10),0) -> 1.38 | X41: =IF($C41="S",IF(OR(Import.TipoArredondamento<>"TransfereGOV",ACOMPANHAMENTO="BM"),VTOTAL1,SUM(OFFSET(CÁLCULO!$AI$15,ROW($X41)-ROW($X$15),1):OFFSET(CÁLCULO!$BB$15,ROW($X41)-ROW($X$15),-1))),IF($C41=0,0,ROUND(SomaAgrup,15-13*$AF$11))) -> 34692.44 | Y41: RA | Z41: =IF(AND($C41="S",$X41>0),IF(ISBLANK($Y41),"RA",LEFT($Y41,2)),"") -> RA | AA41: =IF($C41="S",IF($Z41="CP",$X41,IF($Z41="RA",(($X41)*QCI!$AA$3),0)),SomaAgrup) -> 10819.04446 | AB41: =IF($C41="S",IF($Z41="OU",ROUND($X41,2),0),SomaAgrup) -> 0 | AC41: =IF($N41=""," ", IF(AND($C41<>"S",OR($R41="",$R41="(digite a descrição aqui)")),"DESCRIÇÃO", IF(AND($C41="S",OR($Q41<>0,$T41>0,$U41>0),$P41=0),"FONTE", IF(AND($C41="S",$P41<>0,OR($T41>0,$U41>0),$Q41=0),"CÓDIGO", IF(AND($C41="S",$P41<>0,$Q41<>0,$R41="(Código não identificado nas referências)"),"CÓDIGO N/ID", IF(AND($C41="S",OR($R41="",$R41="(digite a descrição aqui)"),OR($Q41<>0,$T41>0,$U41>0)),"DESCRIÇÃO", IF(AND($C41="S",$P41<>0,$Q41<>0,$S41=""),"UNIDADE", IF(AND($C41="S",$P41<>0,$Q41<>0,$U41=0),"SEM CUSTO", IF(AND(TIPOORCAMENTO="Licitado",$AL41=0,$AN41>0),"SEM PREÇO", IF(AND($C41="S",$P41<>0,$Q41<>0,$U41>0,$V41=0),"BDI", IF(OR(AND(TIPOORCAMENTO="Proposto",$AG41<>"",$AG41>0,ORÇAMENTO.CustoUnitario>$AG41),AND(TIPOORCAMENTO="LICITADO",ORÇAMENTO.PrecoUnitarioLicitado>$AN41)),"ACIMA REF.", IF(AND($C41="S",$P41<>0,$Q41<>0,$T41=0,$U41>0),"QUANT.", IF(AND(Import.TipoArredondamento="TransfereGOV",$L41="F",$C41="S",LEN($Q41)>13),"Código >13", IF(AND(Import.TipoArredondamento="TransfereGOV",$L41="F",$C41<>"S",LEN($R41)>100),"Descrição >100", IF(AND(Import.TipoArredondamento="TransfereGOV",$L41="F",$C41="S",LEN($R41)>500),"Descrição >500", IF(AND(Import.TipoArredondamento="TransfereGOV",$L41="F",$C41="S",LEFT(TRIM(UPPER($P41)),6)<>"SINAPI",ISNA(VLOOKUP(TRIM(UPPER($S41)),ListaTgov.Unidades,1,FALSE))),"Unid. Não Disp", " ")))))))))))))))) ->  | AD41: =IF(C41<=CRONO.NivelExibicao,MAX($AD$15:OFFSET(AD41,-1,0))+IF($C41<>1,1,MAX(1,COUNTIF(QCI!$A$13:$A$24,OFFSET($E41,-1,0)))),"") ->  | AE41: =IF(AND($C41="S",ORÇAMENTO.CodBarra<>""),IF(ORÇAMENTO.Fonte="",ORÇAMENTO.CodBarra,CONCATENATE(ORÇAMENTO.Fonte," ",ORÇAMENTO.CodBarra))) -> SINAPI 100953 | AF41: =IF(ISERROR(INDIRECT(ORÇAMENTO.BancoRef)),"(abra o arquivo 'Referência "&Excel_BuiltIn_Database&".xlsm)",IF(OR($C41<>"S",ORÇAMENTO.CodBarra=""),"(Sem Código)",IF(ISERROR(MATCH($AE41,INDIRECT(ORÇAMENTO.BancoRef),0)),"(Código não identificado nas referências)",MATCH($AE41,INDIRECT(ORÇAMENTO.BancoRef),0)))) -> 15431 | AG41: =ROUND(IF(DESONERACAO="sim",REFERENCIA.Desonerado,REFERENCIA.NaoDesonerado),2) -> 1.12 | AH41: =ROUND(IF(ISNUMBER(ORÇAMENTO.OpcaoBDI),ORÇAMENTO.OpcaoBDI,IF(LEFT(ORÇAMENTO.OpcaoBDI,3)="BDI",HLOOKUP(ORÇAMENTO.OpcaoBDI,$F$4:$H$5,2,FALSE),0)),15-11*$AF$9) -> 0.2338 | AJ41: =513.05*49 -> 25139.45 | AM41: 34692.44 | AN41: =ROUND(ORÇAMENTO.CustoUnitario*(1+$AH41),2) -> 1.38
A42: S | B42: =IF(OR(C42="s",C42=0),OFFSET(B42,-1,0),C42) -> 2 | C42: =IF(OFFSET(C42,-1,0)="L",1,IF(OFFSET(C42,-1,0)=1,2,IF(OR(A42="s",A42=0),"S",IF(AND(OFFSET(C42,-1,0)=2,A42=4),3,IF(AND(OR(OFFSET(C42,-1,0)="s",OFFSET(C42,-1,0)=0),A42<>"s",A42>OFFSET(B42,-1,0)),OFFSET(B42,-1,0),A42))))) -> S | D42: =IF(OR(C42="S",C42=0),0,IF(ISERROR(K42),J42,SMALL(J42:K42,1))) -> 0 | E42: =IF($C42=1,OFFSET(E42,-1,0)+MAX(1,COUNTIF(QCI!$A$13:$A$24,OFFSET(ORÇAMENTO!E42,-1,0))),OFFSET(E42,-1,0)) -> 1 | F42: =IF($C42=1,0,IF($C42=2,OFFSET(F42,-1,0)+1,OFFSET(F42,-1,0))) -> 3 | G42: =IF(AND($C42<=2,$C42<>0),0,IF($C42=3,OFFSET(G42,-1,0)+1,OFFSET(G42,-1,0))) -> 0 | H42: =IF(AND($C42<=3,$C42<>0),0,IF($C42=4,OFFSET(H42,-1,0)+1,OFFSET(H42,-1,0))) -> 0 | I42: =IF(AND($C42<=4,$C42<>0),0,IF(AND($C42="S",$X42>0),OFFSET(I42,-1,0)+1,OFFSET(I42,-1,0))) -> 6 | J42: =IF(OR($C42="S",$C42=0),0,MATCH(0,OFFSET($D42,1,$C42,ROW($C$110)-ROW($C42)),0)) -> 0 | K42: =IF(OR($C42="S",$C42=0),0,MATCH(OFFSET($D42,0,$C42)+IF($C42<>1,1,COUNTIF(QCI!$A$13:$A$24,ORÇAMENTO!E42)),OFFSET($D42,1,$C42,ROW($C$110)-ROW($C42)),0)) -> 0 | L42: =IF(OR($X42>0,$C42=1,$C42=2,$C42=3,$C42=4),"F","") -> F | M42: Serviço | N42: =CHOOSE(1+LOG(1+2*(C42=1)+4*(C42=2)+8*(C42=3)+16*(C42=4)+32*(C42="S"),2),"","Meta","Nível 2","Nível 3","Nível 4","Serviço") -> Serviço | O42: =IF(OR($C42=0,$L42=""),"-",CONCATENATE(E42&".",IF(AND($A$5>=2,$C42>=2),F42&".",""),IF(AND($A$5>=3,$C42>=3),G42&".",""),IF(AND($A$5>=4,$C42>=4),H42&".",""),IF($C42="S",I42&".",""))) -> 1.3.6. | P42: Composição | Q42: IUD20006 | R42: =IF($C42="S",REFERENCIA.Descricao,"(digite a descrição aqui)") -> BLSC - Boca-de-lobo simples, em concreto simples fck 20 MPa, incluindo forma, escavação, calçamento ao redor e grelha em FoFo tipo pesada, conforme projeto | S42: UN | T42: =OFFSET(CÁLCULO!H$15,ROW($T42)-ROW(T$15),0) -> 6 | U42: 1741.43 | V42: BDI 1 | W42: =IF($C42="S",ROUND(IF(TIPOORCAMENTO="Proposto",ORÇAMENTO.CustoUnitario*(1+$AH42),ORÇAMENTO.PrecoUnitarioLicitado),15-13*$AF$10),0) -> 2148.58 | X42: =IF($C42="S",IF(OR(Import.TipoArredondamento<>"TransfereGOV",ACOMPANHAMENTO="BM"),VTOTAL1,SUM(OFFSET(CÁLCULO!$AI$15,ROW($X42)-ROW($X$15),1):OFFSET(CÁLCULO!$BB$15,ROW($X42)-ROW($X$15),-1))),IF($C42=0,0,ROUND(SomaAgrup,15-13*$AF$11))) -> 12891.48 | Y42: RA | Z42: =IF(AND($C42="S",$X42>0),IF(ISBLANK($Y42),"RA",LEFT($Y42,2)),"") -> RA | AA42: =IF($C42="S",IF($Z42="CP",$X42,IF($Z42="RA",(($X42)*QCI!$AA$3),0)),SomaAgrup) -> 4020.284976 | AB42: 0 | AC42: =IF($N42=""," ", IF(AND($C42<>"S",OR($R42="",$R42="(digite a descrição aqui)")),"DESCRIÇÃO", IF(AND($C42="S",OR($Q42<>0,$T42>0,$U42>0),$P42=0),"FONTE", IF(AND($C42="S",$P42<>0,OR($T42>0,$U42>0),$Q42=0),"CÓDIGO", IF(AND($C42="S",$P42<>0,$Q42<>0,$R42="(Código não identificado nas referências)"),"CÓDIGO N/ID", IF(AND($C42="S",OR($R42="",$R42="(digite a descrição aqui)"),OR($Q42<>0,$T42>0,$U42>0)),"DESCRIÇÃO", IF(AND($C42="S",$P42<>0,$Q42<>0,$S42=""),"UNIDADE", IF(AND($C42="S",$P42<>0,$Q42<>0,$U42=0),"SEM CUSTO", IF(AND(TIPOORCAMENTO="Licitado",$AL42=0,$AN42>0),"SEM PREÇO", IF(AND($C42="S",$P42<>0,$Q42<>0,$U42>0,$V42=0),"BDI", IF(OR(AND(TIPOORCAMENTO="Proposto",$AG42<>"",$AG42>0,ORÇAMENTO.CustoUnitario>$AG42),AND(TIPOORCAMENTO="LICITADO",ORÇAMENTO.PrecoUnitarioLicitado>$AN42)),"ACIMA REF.", IF(AND($C42="S",$P42<>0,$Q42<>0,$T42=0,$U42>0),"QUANT.", IF(AND(Import.TipoArredondamento="TransfereGOV",$L42="F",$C42="S",LEN($Q42)>13),"Código >13", IF(AND(Import.TipoArredondamento="TransfereGOV",$L42="F",$C42<>"S",LEN($R42)>100),"Descrição >100", IF(AND(Import.TipoArredondamento="TransfereGOV",$L42="F",$C42="S",LEN($R42)>500),"Descrição >500", IF(AND(Import.TipoArredondamento="TransfereGOV",$L42="F",$C42="S",LEFT(TRIM(UPPER($P42)),6)<>"SINAPI",ISNA(VLOOKUP(TRIM(UPPER($S42)),ListaTgov.Unidades,1,FALSE))),"Unid. Não Disp", " ")))))))))))))))) ->  | AD42: =IF(C42<=CRONO.NivelExibicao,MAX($AD$15:OFFSET(AD42,-1,0))+IF($C42<>1,1,MAX(1,COUNTIF(QCI!$A$13:$A$24,OFFSET($E42,-1,0)))),"") ->  | AE42: =IF(AND($C42="S",ORÇAMENTO.CodBarra<>""),IF(ORÇAMENTO.Fonte="",ORÇAMENTO.CodBarra,CONCATENATE(ORÇAMENTO.Fonte," ",ORÇAMENTO.CodBarra))) -> Composição IUD20006 | AF42: =IF(ISERROR(INDIRECT(ORÇAMENTO.BancoRef)),"(abra o arquivo 'Referência "&Excel_BuiltIn_Database&".xlsm)",IF(OR($C42<>"S",ORÇAMENTO.CodBarra=""),"(Sem Código)",IF(ISERROR(MATCH($AE42,INDIRECT(ORÇAMENTO.BancoRef),0)),"(Código não identificado nas referências)",MATCH($AE42,INDIRECT(ORÇAMENTO.BancoRef),0)))) -> 8 | AG42: =ROUND(IF(DESONERACAO="sim",REFERENCIA.Desonerado,REFERENCIA.NaoDesonerado),2) -> 1741.43 | AH42: 0.2338 | AJ42: 6 | AM42: 12891.48 | AN42: 2148.58
A43: S | B43: 2 | C43: S | D43: 0 | E43: =IF($C43=1,OFFSET(E43,-1,0)+MAX(1,COUNTIF(QCI!$A$13:$A$24,OFFSET(ORÇAMENTO!E43,-1,0))),OFFSET(E43,-1,0)) -> 1 | F43: 3 | G43: 0 | H43: 0 | I43: 7 | J43: 0 | K43: =IF(OR($C43="S",$C43=0),0,MATCH(OFFSET($D43,0,$C43)+IF($C43<>1,1,COUNTIF(QCI!$A$13:$A$24,ORÇAMENTO!E43)),OFFSET($D43,1,$C43,ROW($C$110)-ROW($C43)),0)) -> 0 | L43: F | M43: Serviço | N43: Serviço | O43: 1.3.7. | P43: Composição | Q43: IUD20007 | R43: =IF($C43="S",REFERENCIA.Descricao,"(digite a descrição aqui)") -> BLDC - Boca-de-lobo dupla, em concreto simples fck 20 MPa, com guia chapeu, incluindo forma, escavação, calçamento ao redor e grelhas em FoFo tipo pesada, conforme projeto | S43: UN | T43: =OFFSET(CÁLCULO!H$15,ROW($T43)-ROW(T$15),0) -> 7 | U43: 3239.64 | V43: BDI 1 | W43: =IF($C43="S",ROUND(IF(TIPOORCAMENTO="Proposto",ORÇAMENTO.CustoUnitario*(1+$AH43),ORÇAMENTO.PrecoUnitarioLicitado),15-13*$AF$10),0) -> 3997.07 | X43: =IF($C43="S",IF(OR(Import.TipoArredondamento<>"TransfereGOV",ACOMPANHAMENTO="BM"),VTOTAL1,SUM(OFFSET(CÁLCULO!$AI$15,ROW($X43)-ROW($X$15),1):OFFSET(CÁLCULO!$BB$15,ROW($X43)-ROW($X$15),-1))),IF($C43=0,0,ROUND(SomaAgrup,15-13*$AF$11))) -> 27979.49 | Y43: RA | Z43: RA | AA43: =IF($C43="S",IF($Z43="CP",$X43,IF($Z43="RA",(($X43)*QCI!$AA$3),0)),SomaAgrup) -> 8725.570942 | AB43: 0 | AC43: =IF($N43=""," ", IF(AND($C43<>"S",OR($R43="",$R43="(digite a descrição aqui)")),"DESCRIÇÃO", IF(AND($C43="S",OR($Q43<>0,$T43>0,$U43>0),$P43=0),"FONTE", IF(AND($C43="S",$P43<>0,OR($T43>0,$U43>0),$Q43=0),"CÓDIGO", IF(AND($C43="S",$P43<>0,$Q43<>0,$R43="(Código não identificado nas referências)"),"CÓDIGO N/ID", IF(AND($C43="S",OR($R43="",$R43="(digite a descrição aqui)"),OR($Q43<>0,$T43>0,$U43>0)),"DESCRIÇÃO", IF(AND($C43="S",$P43<>0,$Q43<>0,$S43=""),"UNIDADE", IF(AND($C43="S",$P43<>0,$Q43<>0,$U43=0),"SEM CUSTO", IF(AND(TIPOORCAMENTO="Licitado",$AL43=0,$AN43>0),"SEM PREÇO", IF(AND($C43="S",$P43<>0,$Q43<>0,$U43>0,$V43=0),"BDI", IF(OR(AND(TIPOORCAMENTO="Proposto",$AG43<>"",$AG43>0,ORÇAMENTO.CustoUnitario>$AG43),AND(TIPOORCAMENTO="LICITADO",ORÇAMENTO.PrecoUnitarioLicitado>$AN43)),"ACIMA REF.", IF(AND($C43="S",$P43<>0,$Q43<>0,$T43=0,$U43>0),"QUANT.", IF(AND(Import.TipoArredondamento="TransfereGOV",$L43="F",$C43="S",LEN($Q43)>13),"Código >13", IF(AND(Import.TipoArredondamento="TransfereGOV",$L43="F",$C43<>"S",LEN($R43)>100),"Descrição >100", IF(AND(Import.TipoArredondamento="TransfereGOV",$L43="F",$C43="S",LEN($R43)>500),"Descrição >500", IF(AND(Import.TipoArredondamento="TransfereGOV",$L43="F",$C43="S",LEFT(TRIM(UPPER($P43)),6)<>"SINAPI",ISNA(VLOOKUP(TRIM(UPPER($S43)),ListaTgov.Unidades,1,FALSE))),"Unid. Não Disp", " ")))))))))))))))) ->  | AD43: =IF(C43<=CRONO.NivelExibicao,MAX($AD$15:OFFSET(AD43,-1,0))+IF($C43<>1,1,MAX(1,COUNTIF(QCI!$A$13:$A$24,OFFSET($E43,-1,0)))),"") ->  | AE43: =IF(AND($C43="S",ORÇAMENTO.CodBarra<>""),IF(ORÇAMENTO.Fonte="",ORÇAMENTO.CodBarra,CONCATENATE(ORÇAMENTO.Fonte," ",ORÇAMENTO.CodBarra))) -> Composição IUD20007 | AF43: =IF(ISERROR(INDIRECT(ORÇAMENTO.BancoRef)),"(abra o arquivo 'Referência "&Excel_BuiltIn_Database&".xlsm)",IF(OR($C43<>"S",ORÇAMENTO.CodBarra=""),"(Sem Código)",IF(ISERROR(MATCH($AE43,INDIRECT(ORÇAMENTO.BancoRef),0)),"(Código não identificado nas referências)",MATCH($AE43,INDIRECT(ORÇAMENTO.BancoRef),0)))) -> 9 | AG43: =ROUND(IF(DESONERACAO="sim",REFERENCIA.Desonerado,REFERENCIA.NaoDesonerado),2) -> 3239.64 | AH43: 0.2338 | AJ43: 7 | AM43: 27979.49 | AN43: 3997.07
A44: S | B44: 2 | C44: S | D44: 0 | E44: =IF($C44=1,OFFSET(E44,-1,0)+MAX(1,COUNTIF(QCI!$A$13:$A$24,OFFSET(ORÇAMENTO!E44,-1,0))),OFFSET(E44,-1,0)) -> 1 | F44: 3 | G44: 0 | H44: 0 | I44: 8 | J44: 0 | K44: =IF(OR($C44="S",$C44=0),0,MATCH(OFFSET($D44,0,$C44)+IF($C44<>1,1,COUNTIF(QCI!$A$13:$A$24,ORÇAMENTO!E44)),OFFSET($D44,1,$C44,ROW($C$110)-ROW($C44)),0)) -> 0 | L44: F | M44: Serviço | N44: Serviço | O44: 1.3.8. | P44: Composição | Q44: IUD20008 | R44: =IF($C44="S",REFERENCIA.Descricao,"(digite a descrição aqui)") -> BLTC - Boca-de-lobo tripla, em concreto simples fck 20 MPa, com guia chapeu, incluindo forma, escavação, calçamento ao redor e grelhas em f°f° tipo pesada, conforme projeto | S44: UN | T44: =OFFSET(CÁLCULO!H$15,ROW($T44)-ROW(T$15),0) -> 3 | U44: 4742.04 | V44: BDI 1 | W44: =IF($C44="S",ROUND(IF(TIPOORCAMENTO="Proposto",ORÇAMENTO.CustoUnitario*(1+$AH44),ORÇAMENTO.PrecoUnitarioLicitado),15-13*$AF$10),0) -> 5850.73 | X44: =IF($C44="S",IF(OR(Import.TipoArredondamento<>"TransfereGOV",ACOMPANHAMENTO="BM"),VTOTAL1,SUM(OFFSET(CÁLCULO!$AI$15,ROW($X44)-ROW($X$15),1):OFFSET(CÁLCULO!$BB$15,ROW($X44)-ROW($X$15),-1))),IF($C44=0,0,ROUND(SomaAgrup,15-13*$AF$11))) -> 17552.19 | Y44: RA | Z44: RA | AA44: =IF($C44="S",IF($Z44="CP",$X44,IF($Z44="RA",(($X44)*QCI!$AA$3),0)),SomaAgrup) -> 5473.755206 | AB44: 0 | AC44: =IF($N44=""," ", IF(AND($C44<>"S",OR($R44="",$R44="(digite a descrição aqui)")),"DESCRIÇÃO", IF(AND($C44="S",OR($Q44<>0,$T44>0,$U44>0),$P44=0),"FONTE", IF(AND($C44="S",$P44<>0,OR($T44>0,$U44>0),$Q44=0),"CÓDIGO", IF(AND($C44="S",$P44<>0,$Q44<>0,$R44="(Código não identificado nas referências)"),"CÓDIGO N/ID", IF(AND($C44="S",OR($R44="",$R44="(digite a descrição aqui)"),OR($Q44<>0,$T44>0,$U44>0)),"DESCRIÇÃO", IF(AND($C44="S",$P44<>0,$Q44<>0,$S44=""),"UNIDADE", IF(AND($C44="S",$P44<>0,$Q44<>0,$U44=0),"SEM CUSTO", IF(AND(TIPOORCAMENTO="Licitado",$AL44=0,$AN44>0),"SEM PREÇO", IF(AND($C44="S",$P44<>0,$Q44<>0,$U44>0,$V44=0),"BDI", IF(OR(AND(TIPOORCAMENTO="Proposto",$AG44<>"",$AG44>0,ORÇAMENTO.CustoUnitario>$AG44),AND(TIPOORCAMENTO="LICITADO",ORÇAMENTO.PrecoUnitarioLicitado>$AN44)),"ACIMA REF.", IF(AND($C44="S",$P44<>0,$Q44<>0,$T44=0,$U44>0),"QUANT.", IF(AND(Import.TipoArredondamento="TransfereGOV",$L44="F",$C44="S",LEN($Q44)>13),"Código >13", IF(AND(Import.TipoArredondamento="TransfereGOV",$L44="F",$C44<>"S",LEN($R44)>100),"Descrição >100", IF(AND(Import.TipoArredondamento="TransfereGOV",$L44="F",$C44="S",LEN($R44)>500),"Descrição >500", IF(AND(Import.TipoArredondamento="TransfereGOV",$L44="F",$C44="S",LEFT(TRIM(UPPER($P44)),6)<>"SINAPI",ISNA(VLOOKUP(TRIM(UPPER($S44)),ListaTgov.Unidades,1,FALSE))),"Unid. Não Disp", " ")))))))))))))))) ->  | AD44: =IF(C44<=CRONO.NivelExibicao,MAX($AD$15:OFFSET(AD44,-1,0))+IF($C44<>1,1,MAX(1,COUNTIF(QCI!$A$13:$A$24,OFFSET($E44,-1,0)))),"") ->  | AE44: =IF(AND($C44="S",ORÇAMENTO.CodBarra<>""),IF(ORÇAMENTO.Fonte="",ORÇAMENTO.CodBarra,CONCATENATE(ORÇAMENTO.Fonte," ",ORÇAMENTO.CodBarra))) -> Composição IUD20008 | AF44: =IF(ISERROR(INDIRECT(ORÇAMENTO.BancoRef)),"(abra o arquivo 'Referência "&Excel_BuiltIn_Database&".xlsm)",IF(OR($C44<>"S",ORÇAMENTO.CodBarra=""),"(Sem Código)",IF(ISERROR(MATCH($AE44,INDIRECT(ORÇAMENTO.BancoRef),0)),"(Código não identificado nas referências)",MATCH($AE44,INDIRECT(ORÇAMENTO.BancoRef),0)))) -> 10 | AG44: =ROUND(IF(DESONERACAO="sim",REFERENCIA.Desonerado,REFERENCIA.NaoDesonerado),2) -> 4742.04 | AH44: 0.2338 | AJ44: 3 | AM44: 17552.19 | AN44: 5850.73
A45: S | B45: 2 | C45: S | D45: 0 | E45: =IF($C45=1,OFFSET(E45,-1,0)+MAX(1,COUNTIF(QCI!$A$13:$A$24,OFFSET(ORÇAMENTO!E45,-1,0))),OFFSET(E45,-1,0)) -> 1 | F45: 3 | G45: 0 | H45: 0 | I45: 9 | J45: 0 | K45: =IF(OR($C45="S",$C45=0),0,MATCH(OFFSET($D45,0,$C45)+IF($C45<>1,1,COUNTIF(QCI!$A$13:$A$24,ORÇAMENTO!E45)),OFFSET($D45,1,$C45,ROW($C$110)-ROW($C45)),0)) -> 0 | L45: F | M45: Serviço | N45: Serviço | O45: 1.3.9. | P45: Composição | Q45: IUD20087 | R45: =IF($C45="S",REFERENCIA.Descricao,"(digite a descrição aqui)") -> PV-1 - Poço-de-visita 2,32x2,32m, em alv. de bloco estrutural, rev. int. com argam. 1:3, lastro de brita 12cm, berço 18cm em conc. fck = 15 MPa, laje de 12cm em conc. armado fck = 20 MPa, incl. forma, escav. manual e reat. apiloado. Excl. pescoço e tampão | S45: UN | T45: =OFFSET(CÁLCULO!H$15,ROW($T45)-ROW(T$15),0) -> 7 | U45: 5342.49 | V45: BDI 1 | W45: =IF($C45="S",ROUND(IF(TIPOORCAMENTO="Proposto",ORÇAMENTO.CustoUnitario*(1+$AH45),ORÇAMENTO.PrecoUnitarioLicitado),15-13*$AF$10),0) -> 6591.56 | X45: =IF($C45="S",IF(OR(Import.TipoArredondamento<>"TransfereGOV",ACOMPANHAMENTO="BM"),VTOTAL1,SUM(OFFSET(CÁLCULO!$AI$15,ROW($X45)-ROW($X$15),1):OFFSET(CÁLCULO!$BB$15,ROW($X45)-ROW($X$15),-1))),IF($C45=0,0,ROUND(SomaAgrup,15-13*$AF$11))) -> 46140.92 | Y45: RA | Z45: RA | AA45: =IF($C45="S",IF($Z45="CP",$X45,IF($Z45="RA",(($X45)*QCI!$AA$3),0)),SomaAgrup) -> 14389.32128 | AB45: 0 | AC45: =IF($N45=""," ", IF(AND($C45<>"S",OR($R45="",$R45="(digite a descrição aqui)")),"DESCRIÇÃO", IF(AND($C45="S",OR($Q45<>0,$T45>0,$U45>0),$P45=0),"FONTE", IF(AND($C45="S",$P45<>0,OR($T45>0,$U45>0),$Q45=0),"CÓDIGO", IF(AND($C45="S",$P45<>0,$Q45<>0,$R45="(Código não identificado nas referências)"),"CÓDIGO N/ID", IF(AND($C45="S",OR($R45="",$R45="(digite a descrição aqui)"),OR($Q45<>0,$T45>0,$U45>0)),"DESCRIÇÃO", IF(AND($C45="S",$P45<>0,$Q45<>0,$S45=""),"UNIDADE", IF(AND($C45="S",$P45<>0,$Q45<>0,$U45=0),"SEM CUSTO", IF(AND(TIPOORCAMENTO="Licitado",$AL45=0,$AN45>0),"SEM PREÇO", IF(AND($C45="S",$P45<>0,$Q45<>0,$U45>0,$V45=0),"BDI", IF(OR(AND(TIPOORCAMENTO="Proposto",$AG45<>"",$AG45>0,ORÇAMENTO.CustoUnitario>$AG45),AND(TIPOORCAMENTO="LICITADO",ORÇAMENTO.PrecoUnitarioLicitado>$AN45)),"ACIMA REF.", IF(AND($C45="S",$P45<>0,$Q45<>0,$T45=0,$U45>0),"QUANT.", IF(AND(Import.TipoArredondamento="TransfereGOV",$L45="F",$C45="S",LEN($Q45)>13),"Código >13", IF(AND(Import.TipoArredondamento="TransfereGOV",$L45="F",$C45<>"S",LEN($R45)>100),"Descrição >100", IF(AND(Import.TipoArredondamento="TransfereGOV",$L45="F",$C45="S",LEN($R45)>500),"Descrição >500", IF(AND(Import.TipoArredondamento="TransfereGOV",$L45="F",$C45="S",LEFT(TRIM(UPPER($P45)),6)<>"SINAPI",ISNA(VLOOKUP(TRIM(UPPER($S45)),ListaTgov.Unidades,1,FALSE))),"Unid. Não Disp", " ")))))))))))))))) ->  | AD45: =IF(C45<=CRONO.NivelExibicao,MAX($AD$15:OFFSET(AD45,-1,0))+IF($C45<>1,1,MAX(1,COUNTIF(QCI!$A$13:$A$24,OFFSET($E45,-1,0)))),"") ->  | AE45: =IF(AND($C45="S",ORÇAMENTO.CodBarra<>""),IF(ORÇAMENTO.Fonte="",ORÇAMENTO.CodBarra,CONCATENATE(ORÇAMENTO.Fonte," ",ORÇAMENTO.CodBarra))) -> Composição IUD20087 | AF45: =IF(ISERROR(INDIRECT(ORÇAMENTO.BancoRef)),"(abra o arquivo 'Referência "&Excel_BuiltIn_Database&".xlsm)",IF(OR($C45<>"S",ORÇAMENTO.CodBarra=""),"(Sem Código)",IF(ISERROR(MATCH($AE45,INDIRECT(ORÇAMENTO.BancoRef),0)),"(Código não identificado nas referências)",MATCH($AE45,INDIRECT(ORÇAMENTO.BancoRef),0)))) -> 11 | AG45: =ROUND(IF(DESONERACAO="sim",REFERENCIA.Desonerado,REFERENCIA.NaoDesonerado),2) -> 5342.49 | AH45: 0.2338 | AJ45: 7 | AM45: 46140.92 | AN45: 6591.56
A46: S | B46: 2 | C46: S | D46: 0 | E46: =IF($C46=1,OFFSET(E46,-1,0)+MAX(1,COUNTIF(QCI!$A$13:$A$24,OFFSET(ORÇAMENTO!E46,-1,0))),OFFSET(E46,-1,0)) -> 1 | F46: 3 | G46: 0 | H46: 0 | I46: 10 | J46: 0 | K46: =IF(OR($C46="S",$C46=0),0,MATCH(OFFSET($D46,0,$C46)+IF($C46<>1,1,COUNTIF(QCI!$A$13:$A$24,ORÇAMENTO!E46)),OFFSET($D46,1,$C46,ROW($C$110)-ROW($C46)),0)) -> 0 | L46: F | M46: Serviço | N46: Serviço | O46: 1.3.10. | P46: Cotação | Q46: 6243 | R46: =IF($C46="S",REFERENCIA.Descricao,"(digite a descrição aqui)") -> TAMPAO FOFO SIMPLES COM BASE / REQUADRO, CLASSE B125 CARGA MAX. 12,5 T, REDONDO, TAMPA 600 MM (COM INSCRICAO EM RELEVO DO TIPO DE REDE) | S46: UN | T46: =OFFSET(CÁLCULO!H$15,ROW($T46)-ROW(T$15),0) -> 7 | U46: 510 | V46: BDI 1 | W46: =IF($C46="S",ROUND(IF(TIPOORCAMENTO="Proposto",ORÇAMENTO.CustoUnitario*(1+$AH46),ORÇAMENTO.PrecoUnitarioLicitado),15-13*$AF$10),0) -> 629.24 | X46: =IF($C46="S",IF(OR(Import.TipoArredondamento<>"TransfereGOV",ACOMPANHAMENTO="BM"),VTOTAL1,SUM(OFFSET(CÁLCULO!$AI$15,ROW($X46)-ROW($X$15),1):OFFSET(CÁLCULO!$BB$15,ROW($X46)-ROW($X$15),-1))),IF($C46=0,0,ROUND(SomaAgrup,15-13*$AF$11))) -> 4404.68 | Y46: RA | Z46: RA | AA46: =IF($C46="S",IF($Z46="CP",$X46,IF($Z46="RA",(($X46)*QCI!$AA$3),0)),SomaAgrup) -> 1373.625746 | AB46: 0 | AC46: =IF($N46=""," ", IF(AND($C46<>"S",OR($R46="",$R46="(digite a descrição aqui)")),"DESCRIÇÃO", IF(AND($C46="S",OR($Q46<>0,$T46>0,$U46>0),$P46=0),"FONTE", IF(AND($C46="S",$P46<>0,OR($T46>0,$U46>0),$Q46=0),"CÓDIGO", IF(AND($C46="S",$P46<>0,$Q46<>0,$R46="(Código não identificado nas referências)"),"CÓDIGO N/ID", IF(AND($C46="S",OR($R46="",$R46="(digite a descrição aqui)"),OR($Q46<>0,$T46>0,$U46>0)),"DESCRIÇÃO", IF(AND($C46="S",$P46<>0,$Q46<>0,$S46=""),"UNIDADE", IF(AND($C46="S",$P46<>0,$Q46<>0,$U46=0),"SEM CUSTO", IF(AND(TIPOORCAMENTO="Licitado",$AL46=0,$AN46>0),"SEM PREÇO", IF(AND($C46="S",$P46<>0,$Q46<>0,$U46>0,$V46=0),"BDI", IF(OR(AND(TIPOORCAMENTO="Proposto",$AG46<>"",$AG46>0,ORÇAMENTO.CustoUnitario>$AG46),AND(TIPOORCAMENTO="LICITADO",ORÇAMENTO.PrecoUnitarioLicitado>$AN46)),"ACIMA REF.", IF(AND($C46="S",$P46<>0,$Q46<>0,$T46=0,$U46>0),"QUANT.", IF(AND(Import.TipoArredondamento="TransfereGOV",$L46="F",$C46="S",LEN($Q46)>13),"Código >13", IF(AND(Import.TipoArredondamento="TransfereGOV",$L46="F",$C46<>"S",LEN($R46)>100),"Descrição >100", IF(AND(Import.TipoArredondamento="TransfereGOV",$L46="F",$C46="S",LEN($R46)>500),"Descrição >500", IF(AND(Import.TipoArredondamento="TransfereGOV",$L46="F",$C46="S",LEFT(TRIM(UPPER($P46)),6)<>"SINAPI",ISNA(VLOOKUP(TRIM(UPPER($S46)),ListaTgov.Unidades,1,FALSE))),"Unid. Não Disp", " ")))))))))))))))) ->  | AD46: =IF(C46<=CRONO.NivelExibicao,MAX($AD$15:OFFSET(AD46,-1,0))+IF($C46<>1,1,MAX(1,COUNTIF(QCI!$A$13:$A$24,OFFSET($E46,-1,0)))),"") ->  | AE46: =IF(AND($C46="S",ORÇAMENTO.CodBarra<>""),IF(ORÇAMENTO.Fonte="",ORÇAMENTO.CodBarra,CONCATENATE(ORÇAMENTO.Fonte," ",ORÇAMENTO.CodBarra))) -> Cotação 6243 | AF46: =IF(ISERROR(INDIRECT(ORÇAMENTO.BancoRef)),"(abra o arquivo 'Referência "&Excel_BuiltIn_Database&".xlsm)",IF(OR($C46<>"S",ORÇAMENTO.CodBarra=""),"(Sem Código)",IF(ISERROR(MATCH($AE46,INDIRECT(ORÇAMENTO.BancoRef),0)),"(Código não identificado nas referências)",MATCH($AE46,INDIRECT(ORÇAMENTO.BancoRef),0)))) -> 34 | AG46: =ROUND(IF(DESONERACAO="sim",REFERENCIA.Desonerado,REFERENCIA.NaoDesonerado),2) -> 510 | AH46: 0.2338 | AJ46: 7 | AM46: 4404.68 | AN46: 629.24
A47: S | B47: 2 | C47: S | D47: 0 | E47: =IF($C47=1,OFFSET(E47,-1,0)+MAX(1,COUNTIF(QCI!$A$13:$A$24,OFFSET(ORÇAMENTO!E47,-1,0))),OFFSET(E47,-1,0)) -> 1 | F47: 3 | G47: 0 | H47: 0 | I47: 11 | J47: 0 | K47: =IF(OR($C47="S",$C47=0),0,MATCH(OFFSET($D47,0,$C47)+IF($C47<>1,1,COUNTIF(QCI!$A$13:$A$24,ORÇAMENTO!E47)),OFFSET($D47,1,$C47,ROW($C$110)-ROW($C47)),0)) -> 0 | L47: F | M47: Serviço | N47: Serviço | O47: 1.3.11. | P47: SINAPI | Q47: 99319 | R47: =IF($C47="S",REFERENCIA.Descricao,"(digite a descrição aqui)") -> CHAMINÉ CIRCULAR PARA POÇO DE VISITA PARA DRENAGEM, EM ALVENARIA COM TIJOLOS CERÂMICOS MACIÇOS, DIÂMETRO INTERNO = 0,6 M. AF_12/2020 | S47: =REFERENCIA.Unidade -> M | T47: =OFFSET(CÁLCULO!H$15,ROW($T47)-ROW(T$15),0) -> 7 | U47: 905.68 | V47: BDI 1 | W47: =IF($C47="S",ROUND(IF(TIPOORCAMENTO="Proposto",ORÇAMENTO.CustoUnitario*(1+$AH47),ORÇAMENTO.PrecoUnitarioLicitado),15-13*$AF$10),0) -> 1117.43 | X47: =IF($C47="S",IF(OR(Import.TipoArredondamento<>"TransfereGOV",ACOMPANHAMENTO="BM"),VTOTAL1,SUM(OFFSET(CÁLCULO!$AI$15,ROW($X47)-ROW($X$15),1):OFFSET(CÁLCULO!$BB$15,ROW($X47)-ROW($X$15),-1))),IF($C47=0,0,ROUND(SomaAgrup,15-13*$AF$11))) -> 7822.01 | Y47: RA | Z47: RA | AA47: =IF($C47="S",IF($Z47="CP",$X47,IF($Z47="RA",(($X47)*QCI!$AA$3),0)),SomaAgrup) -> 2439.340501 | AB47: 0 | AC47: =IF($N47=""," ", IF(AND($C47<>"S",OR($R47="",$R47="(digite a descrição aqui)")),"DESCRIÇÃO", IF(AND($C47="S",OR($Q47<>0,$T47>0,$U47>0),$P47=0),"FONTE", IF(AND($C47="S",$P47<>0,OR($T47>0,$U47>0),$Q47=0),"CÓDIGO", IF(AND($C47="S",$P47<>0,$Q47<>0,$R47="(Código não identificado nas referências)"),"CÓDIGO N/ID", IF(AND($C47="S",OR($R47="",$R47="(digite a descrição aqui)"),OR($Q47<>0,$T47>0,$U47>0)),"DESCRIÇÃO", IF(AND($C47="S",$P47<>0,$Q47<>0,$S47=""),"UNIDADE", IF(AND($C47="S",$P47<>0,$Q47<>0,$U47=0),"SEM CUSTO", IF(AND(TIPOORCAMENTO="Licitado",$AL47=0,$AN47>0),"SEM PREÇO", IF(AND($C47="S",$P47<>0,$Q47<>0,$U47>0,$V47=0),"BDI", IF(OR(AND(TIPOORCAMENTO="Proposto",$AG47<>"",$AG47>0,ORÇAMENTO.CustoUnitario>$AG47),AND(TIPOORCAMENTO="LICITADO",ORÇAMENTO.PrecoUnitarioLicitado>$AN47)),"ACIMA REF.", IF(AND($C47="S",$P47<>0,$Q47<>0,$T47=0,$U47>0),"QUANT.", IF(AND(Import.TipoArredondamento="TransfereGOV",$L47="F",$C47="S",LEN($Q47)>13),"Código >13", IF(AND(Import.TipoArredondamento="TransfereGOV",$L47="F",$C47<>"S",LEN($R47)>100),"Descrição >100", IF(AND(Import.TipoArredondamento="TransfereGOV",$L47="F",$C47="S",LEN($R47)>500),"Descrição >500", IF(AND(Import.TipoArredondamento="TransfereGOV",$L47="F",$C47="S",LEFT(TRIM(UPPER($P47)),6)<>"SINAPI",ISNA(VLOOKUP(TRIM(UPPER($S47)),ListaTgov.Unidades,1,FALSE))),"Unid. Não Disp", " ")))))))))))))))) ->  | AD47: =IF(C47<=CRONO.NivelExibicao,MAX($AD$15:OFFSET(AD47,-1,0))+IF($C47<>1,1,MAX(1,COUNTIF(QCI!$A$13:$A$24,OFFSET($E47,-1,0)))),"") ->  | AE47: =IF(AND($C47="S",ORÇAMENTO.CodBarra<>""),IF(ORÇAMENTO.Fonte="",ORÇAMENTO.CodBarra,CONCATENATE(ORÇAMENTO.Fonte," ",ORÇAMENTO.CodBarra))) -> SINAPI 99319 | AF47: =IF(ISERROR(INDIRECT(ORÇAMENTO.BancoRef)),"(abra o arquivo 'Referência "&Excel_BuiltIn_Database&".xlsm)",IF(OR($C47<>"S",ORÇAMENTO.CodBarra=""),"(Sem Código)",IF(ISERROR(MATCH($AE47,INDIRECT(ORÇAMENTO.BancoRef),0)),"(Código não identificado nas referências)",MATCH($AE47,INDIRECT(ORÇAMENTO.BancoRef),0)))) -> 14317 | AG47: =ROUND(IF(DESONERACAO="sim",REFERENCIA.Desonerado,REFERENCIA.NaoDesonerado),2) -> 905.68 | AH47: 0.2338 | AJ47: 7 | AM47: 7822.01 | AN47: 1117.43
A48: S | B48: 2 | C48: S | D48: 0 | E48: =IF($C48=1,OFFSET(E48,-1,0)+MAX(1,COUNTIF(QCI!$A$13:$A$24,OFFSET(ORÇAMENTO!E48,-1,0))),OFFSET(E48,-1,0)) -> 1 | F48: 3 | G48: 0 | H48: 0 | I48: 12 | J48: 0 | K48: =IF(OR($C48="S",$C48=0),0,MATCH(OFFSET($D48,0,$C48)+IF($C48<>1,1,COUNTIF(QCI!$A$13:$A$24,ORÇAMENTO!E48)),OFFSET($D48,1,$C48,ROW($C$110)-ROW($C48)),0)) -> 0 | L48: F | M48: Serviço | N48: Serviço | O48: 1.3.12. | P48: SINAPI | Q48: 95876 | R48: =IF($C48="S",REFERENCIA.Descricao,"(digite a descrição aqui)") -> TRANSPORTE COM CAMINHÃO BASCULANTE DE 14 M³, EM VIA URBANA PAVIMENTADA, DMT ATÉ 30 KM (UNIDADE: M3XKM). AF_07/2020 | S48: M3 | T48: =OFFSET(CÁLCULO!H$15,ROW($T48)-ROW(T$15),0) -> 828 | U48: 2.14 | V48: BDI 1 | W48: =IF($C48="S",ROUND(IF(TIPOORCAMENTO="Proposto",ORÇAMENTO.CustoUnitario*(1+$AH48),ORÇAMENTO.PrecoUnitarioLicitado),15-13*$AF$10),0) -> 2.64 | X48: =IF($C48="S",IF(OR(Import.TipoArredondamento<>"TransfereGOV",ACOMPANHAMENTO="BM"),VTOTAL1,SUM(OFFSET(CÁLCULO!$AI$15,ROW($X48)-ROW($X$15),1):OFFSET(CÁLCULO!$BB$15,ROW($X48)-ROW($X$15),-1))),IF($C48=0,0,ROUND(SomaAgrup,15-13*$AF$11))) -> 2185.92 | Y48: RA | Z48: RA | AA48: =IF($C48="S",IF($Z48="CP",$X48,IF($Z48="RA",(($X48)*QCI!$AA$3),0)),SomaAgrup) -> 681.6921979 | AB48: 0 | AC48: =IF($N48=""," ", IF(AND($C48<>"S",OR($R48="",$R48="(digite a descrição aqui)")),"DESCRIÇÃO", IF(AND($C48="S",OR($Q48<>0,$T48>0,$U48>0),$P48=0),"FONTE", IF(AND($C48="S",$P48<>0,OR($T48>0,$U48>0),$Q48=0),"CÓDIGO", IF(AND($C48="S",$P48<>0,$Q48<>0,$R48="(Código não identificado nas referências)"),"CÓDIGO N/ID", IF(AND($C48="S",OR($R48="",$R48="(digite a descrição aqui)"),OR($Q48<>0,$T48>0,$U48>0)),"DESCRIÇÃO", IF(AND($C48="S",$P48<>0,$Q48<>0,$S48=""),"UNIDADE", IF(AND($C48="S",$P48<>0,$Q48<>0,$U48=0),"SEM CUSTO", IF(AND(TIPOORCAMENTO="Licitado",$AL48=0,$AN48>0),"SEM PREÇO", IF(AND($C48="S",$P48<>0,$Q48<>0,$U48>0,$V48=0),"BDI", IF(OR(AND(TIPOORCAMENTO="Proposto",$AG48<>"",$AG48>0,ORÇAMENTO.CustoUnitario>$AG48),AND(TIPOORCAMENTO="LICITADO",ORÇAMENTO.PrecoUnitarioLicitado>$AN48)),"ACIMA REF.", IF(AND($C48="S",$P48<>0,$Q48<>0,$T48=0,$U48>0),"QUANT.", IF(AND(Import.TipoArredondamento="TransfereGOV",$L48="F",$C48="S",LEN($Q48)>13),"Código >13", IF(AND(Import.TipoArredondamento="TransfereGOV",$L48="F",$C48<>"S",LEN($R48)>100),"Descrição >100", IF(AND(Import.TipoArredondamento="TransfereGOV",$L48="F",$C48="S",LEN($R48)>500),"Descrição >500", IF(AND(Import.TipoArredondamento="TransfereGOV",$L48="F",$C48="S",LEFT(TRIM(UPPER($P48)),6)<>"SINAPI",ISNA(VLOOKUP(TRIM(UPPER($S48)),ListaTgov.Unidades,1,FALSE))),"Unid. Não Disp", " ")))))))))))))))) ->  | AD48: =IF(C48<=CRONO.NivelExibicao,MAX($AD$15:OFFSET(AD48,-1,0))+IF($C48<>1,1,MAX(1,COUNTIF(QCI!$A$13:$A$24,OFFSET($E48,-1,0)))),"") ->  | AE48: =IF(AND($C48="S",ORÇAMENTO.CodBarra<>""),IF(ORÇAMENTO.Fonte="",ORÇAMENTO.CodBarra,CONCATENATE(ORÇAMENTO.Fonte," ",ORÇAMENTO.CodBarra))) -> SINAPI 95876 | AF48: =IF(ISERROR(INDIRECT(ORÇAMENTO.BancoRef)),"(abra o arquivo 'Referência "&Excel_BuiltIn_Database&".xlsm)",IF(OR($C48<>"S",ORÇAMENTO.CodBarra=""),"(Sem Código)",IF(ISERROR(MATCH($AE48,INDIRECT(ORÇAMENTO.BancoRef),0)),"(Código não identificado nas referências)",MATCH($AE48,INDIRECT(ORÇAMENTO.BancoRef),0)))) -> 15401 | AG48: =ROUND(IF(DESONERACAO="sim",REFERENCIA.Desonerado,REFERENCIA.NaoDesonerado),2) -> 2.14 | AH48: 0.2338 | AJ48: =27.6*30 -> 828 | AM48: 2185.92 | AN48: 2.64
A49: S | B49: 2 | C49: S | D49: 0 | E49: =IF($C49=1,OFFSET(E49,-1,0)+MAX(1,COUNTIF(QCI!$A$13:$A$24,OFFSET(ORÇAMENTO!E49,-1,0))),OFFSET(E49,-1,0)) -> 1 | F49: 3 | G49: 0 | H49: 0 | I49: 13 | J49: 0 | K49: =IF(OR($C49="S",$C49=0),0,MATCH(OFFSET($D49,0,$C49)+IF($C49<>1,1,COUNTIF(QCI!$A$13:$A$24,ORÇAMENTO!E49)),OFFSET($D49,1,$C49,ROW($C$110)-ROW($C49)),0)) -> 0 | L49: F | M49: Serviço | N49: Serviço | O49: 1.3.13. | P49: Composição | Q49: IUD30165 | R49: =IF($C49="S",REFERENCIA.Descricao,"(digite a descrição aqui)") -> Dissipador de energia hidráulica em concreto armado Tipo-02 vazão entre 2 e 3 m3/s | S49: =REFERENCIA.Unidade -> UN | T49: =OFFSET(CÁLCULO!H$15,ROW($T49)-ROW(T$15),0) -> 1 | U49: 16356.81 | V49: BDI 1 | W49: =IF($C49="S",ROUND(IF(TIPOORCAMENTO="Proposto",ORÇAMENTO.CustoUnitario*(1+$AH49),ORÇAMENTO.PrecoUnitarioLicitado),15-13*$AF$10),0) -> 20181.03 | X49: =IF($C49="S",IF(OR(Import.TipoArredondamento<>"TransfereGOV",ACOMPANHAMENTO="BM"),VTOTAL1,SUM(OFFSET(CÁLCULO!$AI$15,ROW($X49)-ROW($X$15),1):OFFSET(CÁLCULO!$BB$15,ROW($X49)-ROW($X$15),-1))),IF($C49=0,0,ROUND(SomaAgrup,15-13*$AF$11))) -> 20181.03 | Y49: RA | Z49: RA | AA49: =IF($C49="S",IF($Z49="CP",$X49,IF($Z49="RA",(($X49)*QCI!$AA$3),0)),SomaAgrup) -> 6293.574649 | AB49: 0 | AC49: =IF($N49=""," ", IF(AND($C49<>"S",OR($R49="",$R49="(digite a descrição aqui)")),"DESCRIÇÃO", IF(AND($C49="S",OR($Q49<>0,$T49>0,$U49>0),$P49=0),"FONTE", IF(AND($C49="S",$P49<>0,OR($T49>0,$U49>0),$Q49=0),"CÓDIGO", IF(AND($C49="S",$P49<>0,$Q49<>0,$R49="(Código não identificado nas referências)"),"CÓDIGO N/ID", IF(AND($C49="S",OR($R49="",$R49="(digite a descrição aqui)"),OR($Q49<>0,$T49>0,$U49>0)),"DESCRIÇÃO", IF(AND($C49="S",$P49<>0,$Q49<>0,$S49=""),"UNIDADE", IF(AND($C49="S",$P49<>0,$Q49<>0,$U49=0),"SEM CUSTO", IF(AND(TIPOORCAMENTO="Licitado",$AL49=0,$AN49>0),"SEM PREÇO", IF(AND($C49="S",$P49<>0,$Q49<>0,$U49>0,$V49=0),"BDI", IF(OR(AND(TIPOORCAMENTO="Proposto",$AG49<>"",$AG49>0,ORÇAMENTO.CustoUnitario>$AG49),AND(TIPOORCAMENTO="LICITADO",ORÇAMENTO.PrecoUnitarioLicitado>$AN49)),"ACIMA REF.", IF(AND($C49="S",$P49<>0,$Q49<>0,$T49=0,$U49>0),"QUANT.", IF(AND(Import.TipoArredondamento="TransfereGOV",$L49="F",$C49="S",LEN($Q49)>13),"Código >13", IF(AND(Import.TipoArredondamento="TransfereGOV",$L49="F",$C49<>"S",LEN($R49)>100),"Descrição >100", IF(AND(Import.TipoArredondamento="TransfereGOV",$L49="F",$C49="S",LEN($R49)>500),"Descrição >500", IF(AND(Import.TipoArredondamento="TransfereGOV",$L49="F",$C49="S",LEFT(TRIM(UPPER($P49)),6)<>"SINAPI",ISNA(VLOOKUP(TRIM(UPPER($S49)),ListaTgov.Unidades,1,FALSE))),"Unid. Não Disp", " ")))))))))))))))) ->  | AD49: =IF(C49<=CRONO.NivelExibicao,MAX($AD$15:OFFSET(AD49,-1,0))+IF($C49<>1,1,MAX(1,COUNTIF(QCI!$A$13:$A$24,OFFSET($E49,-1,0)))),"") ->  | AE49: =IF(AND($C49="S",ORÇAMENTO.CodBarra<>""),IF(ORÇAMENTO.Fonte="",ORÇAMENTO.CodBarra,CONCATENATE(ORÇAMENTO.Fonte," ",ORÇAMENTO.CodBarra))) -> Composição IUD30165 | AF49: =IF(ISERROR(INDIRECT(ORÇAMENTO.BancoRef)),"(abra o arquivo 'Referência "&Excel_BuiltIn_Database&".xlsm)",IF(OR($C49<>"S",ORÇAMENTO.CodBarra=""),"(Sem Código)",IF(ISERROR(MATCH($AE49,INDIRECT(ORÇAMENTO.BancoRef),0)),"(Código não identificado nas referências)",MATCH($AE49,INDIRECT(ORÇAMENTO.BancoRef),0)))) -> 12 | AG49: =ROUND(IF(DESONERACAO="sim",REFERENCIA.Desonerado,REFERENCIA.NaoDesonerado),2) -> 16356.81 | AH49: 0.2338 | AJ49: 1 | AM49: 20181.03 | AN49: 20181.03
A50: 2 | B50: 2 | C50: 2 | D50: 16 | E50: =IF($C50=1,OFFSET(E50,-1,0)+MAX(1,COUNTIF(QCI!$A$13:$A$24,OFFSET(ORÇAMENTO!E50,-1,0))),OFFSET(E50,-1,0)) -> 1 | F50: 4 | G50: 0 | H50: 0 | I50: 0 | J50: 60 | K50: =IF(OR($C50="S",$C50=0),0,MATCH(OFFSET($D50,0,$C50)+IF($C50<>1,1,COUNTIF(QCI!$A$13:$A$24,ORÇAMENTO!E50)),OFFSET($D50,1,$C50,ROW($C$110)-ROW($C50)),0)) -> 16 | L50: F | M50: Nível 2 | N50: Nível 2 | O50: 1.4. | P50: SINAPI | Q50: IUD20038 | R50: RECOMPOSIÇÃO DO PAVIMENTO | S50: =REFERENCIA.Unidade -> - | T50: =OFFSET(CÁLCULO!H$15,ROW($T50)-ROW(T$15),0) -> 0 | U50: 0 | V50: BDI 1 | W50: =IF($C50="S",ROUND(IF(TIPOORCAMENTO="Proposto",ORÇAMENTO.CustoUnitario*(1+$AH50),ORÇAMENTO.PrecoUnitarioLicitado),15-13*$AF$10),0) -> 0 | X50: =IF($C50="S",IF(OR(Import.TipoArredondamento<>"TransfereGOV",ACOMPANHAMENTO="BM"),VTOTAL1,SUM(OFFSET(CÁLCULO!$AI$15,ROW($X50)-ROW($X$15),1):OFFSET(CÁLCULO!$BB$15,ROW($X50)-ROW($X$15),-1))),IF($C50=0,0,ROUND(SomaAgrup,15-13*$AF$11))) -> 108404.6 | Y50: RA | AA50: =IF($C50="S",IF($Z50="CP",$X50,IF($Z50="RA",(($X50)*QCI!$AA$3),0)),SomaAgrup) -> 33806.62149 | AB50: 0 | AC50: =IF($N50=""," ", IF(AND($C50<>"S",OR($R50="",$R50="(digite a descrição aqui)")),"DESCRIÇÃO", IF(AND($C50="S",OR($Q50<>0,$T50>0,$U50>0),$P50=0),"FONTE", IF(AND($C50="S",$P50<>0,OR($T50>0,$U50>0),$Q50=0),"CÓDIGO", IF(AND($C50="S",$P50<>0,$Q50<>0,$R50="(Código não identificado nas referências)"),"CÓDIGO N/ID", IF(AND($C50="S",OR($R50="",$R50="(digite a descrição aqui)"),OR($Q50<>0,$T50>0,$U50>0)),"DESCRIÇÃO", IF(AND($C50="S",$P50<>0,$Q50<>0,$S50=""),"UNIDADE", IF(AND($C50="S",$P50<>0,$Q50<>0,$U50=0),"SEM CUSTO", IF(AND(TIPOORCAMENTO="Licitado",$AL50=0,$AN50>0),"SEM PREÇO", IF(AND($C50="S",$P50<>0,$Q50<>0,$U50>0,$V50=0),"BDI", IF(OR(AND(TIPOORCAMENTO="Proposto",$AG50<>"",$AG50>0,ORÇAMENTO.CustoUnitario>$AG50),AND(TIPOORCAMENTO="LICITADO",ORÇAMENTO.PrecoUnitarioLicitado>$AN50)),"ACIMA REF.", IF(AND($C50="S",$P50<>0,$Q50<>0,$T50=0,$U50>0),"QUANT.", IF(AND(Import.TipoArredondamento="TransfereGOV",$L50="F",$C50="S",LEN($Q50)>13),"Código >13", IF(AND(Import.TipoArredondamento="TransfereGOV",$L50="F",$C50<>"S",LEN($R50)>100),"Descrição >100", IF(AND(Import.TipoArredondamento="TransfereGOV",$L50="F",$C50="S",LEN($R50)>500),"Descrição >500", IF(AND(Import.TipoArredondamento="TransfereGOV",$L50="F",$C50="S",LEFT(TRIM(UPPER($P50)),6)<>"SINAPI",ISNA(VLOOKUP(TRIM(UPPER($S50)),ListaTgov.Unidades,1,FALSE))),"Unid. Não Disp", " ")))))))))))))))) ->  | AD50: =IF(C50<=CRONO.NivelExibicao,MAX($AD$15:OFFSET(AD50,-1,0))+IF($C50<>1,1,MAX(1,COUNTIF(QCI!$A$13:$A$24,OFFSET($E50,-1,0)))),"") -> 5 | AE50: =IF(AND($C50="S",ORÇAMENTO.CodBarra<>""),IF(ORÇAMENTO.Fonte="",ORÇAMENTO.CodBarra,CONCATENATE(ORÇAMENTO.Fonte," ",ORÇAMENTO.CodBarra))) -> FALSE | AF50: =IF(ISERROR(INDIRECT(ORÇAMENTO.BancoRef)),"(abra o arquivo 'Referência "&Excel_BuiltIn_Database&".xlsm)",IF(OR($C50<>"S",ORÇAMENTO.CodBarra=""),"(Sem Código)",IF(ISERROR(MATCH($AE50,INDIRECT(ORÇAMENTO.BancoRef),0)),"(Código não identificado nas referências)",MATCH($AE50,INDIRECT(ORÇAMENTO.BancoRef),0)))) -> (Sem Código) | AG50: =ROUND(IF(DESONERACAO="sim",REFERENCIA.Desonerado,REFERENCIA.NaoDesonerado),2) -> 0 | AH50: 0.2338 | AM50: 108404.6 | AN50: 0
A51: S | B51: 2 | C51: S | D51: 0 | E51: =IF($C51=1,OFFSET(E51,-1,0)+MAX(1,COUNTIF(QCI!$A$13:$A$24,OFFSET(ORÇAMENTO!E51,-1,0))),OFFSET(E51,-1,0)) -> 1 | F51: 4 | G51: 0 | H51: 0 | I51: 1 | J51: 0 | K51: =IF(OR($C51="S",$C51=0),0,MATCH(OFFSET($D51,0,$C51)+IF($C51<>1,1,COUNTIF(QCI!$A$13:$A$24,ORÇAMENTO!E51)),OFFSET($D51,1,$C51,ROW($C$110)-ROW($C51)),0)) -> 0 | L51: F | M51: Serviço | N51: Serviço | O51: 1.4.1. | P51: Composição | Q51: IUP30005 | R51: =IF($C51="S",REFERENCIA.Descricao,"(digite a descrição aqui)") -> Demolição de pavimento asfáltico com emprego de retro-escavadeira e serra de disco, exclusive bota-fora do material | S51: =REFERENCIA.Unidade -> M3 | T51: =OFFSET(CÁLCULO!H$15,ROW($T51)-ROW(T$15),0) -> 10.66 | U51: 18.55 | V51: BDI 1 | W51: =IF($C51="S",ROUND(IF(TIPOORCAMENTO="Proposto",ORÇAMENTO.CustoUnitario*(1+$AH51),ORÇAMENTO.PrecoUnitarioLicitado),15-13*$AF$10),0) -> 22.89 | X51: =IF($C51="S",IF(OR(Import.TipoArredondamento<>"TransfereGOV",ACOMPANHAMENTO="BM"),VTOTAL1,SUM(OFFSET(CÁLCULO!$AI$15,ROW($X51)-ROW($X$15),1):OFFSET(CÁLCULO!$BB$15,ROW($X51)-ROW($X$15),-1))),IF($C51=0,0,ROUND(SomaAgrup,15-13*$AF$11))) -> 244.01 | Y51: RA | Z51: RA | AA51: =IF($C51="S",IF($Z51="CP",$X51,IF($Z51="RA",(($X51)*QCI!$AA$3),0)),SomaAgrup) -> 76.09597479 | AB51: 0 | AC51: =IF($N51=""," ", IF(AND($C51<>"S",OR($R51="",$R51="(digite a descrição aqui)")),"DESCRIÇÃO", IF(AND($C51="S",OR($Q51<>0,$T51>0,$U51>0),$P51=0),"FONTE", IF(AND($C51="S",$P51<>0,OR($T51>0,$U51>0),$Q51=0),"CÓDIGO", IF(AND($C51="S",$P51<>0,$Q51<>0,$R51="(Código não identificado nas referências)"),"CÓDIGO N/ID", IF(AND($C51="S",OR($R51="",$R51="(digite a descrição aqui)"),OR($Q51<>0,$T51>0,$U51>0)),"DESCRIÇÃO", IF(AND($C51="S",$P51<>0,$Q51<>0,$S51=""),"UNIDADE", IF(AND($C51="S",$P51<>0,$Q51<>0,$U51=0),"SEM CUSTO", IF(AND(TIPOORCAMENTO="Licitado",$AL51=0,$AN51>0),"SEM PREÇO", IF(AND($C51="S",$P51<>0,$Q51<>0,$U51>0,$V51=0),"BDI", IF(OR(AND(TIPOORCAMENTO="Proposto",$AG51<>"",$AG51>0,ORÇAMENTO.CustoUnitario>$AG51),AND(TIPOORCAMENTO="LICITADO",ORÇAMENTO.PrecoUnitarioLicitado>$AN51)),"ACIMA REF.", IF(AND($C51="S",$P51<>0,$Q51<>0,$T51=0,$U51>0),"QUANT.", IF(AND(Import.TipoArredondamento="TransfereGOV",$L51="F",$C51="S",LEN($Q51)>13),"Código >13", IF(AND(Import.TipoArredondamento="TransfereGOV",$L51="F",$C51<>"S",LEN($R51)>100),"Descrição >100", IF(AND(Import.TipoArredondamento="TransfereGOV",$L51="F",$C51="S",LEN($R51)>500),"Descrição >500", IF(AND(Import.TipoArredondamento="TransfereGOV",$L51="F",$C51="S",LEFT(TRIM(UPPER($P51)),6)<>"SINAPI",ISNA(VLOOKUP(TRIM(UPPER($S51)),ListaTgov.Unidades,1,FALSE))),"Unid. Não Disp", " ")))))))))))))))) ->  | AD51: =IF(C51<=CRONO.NivelExibicao,MAX($AD$15:OFFSET(AD51,-1,0))+IF($C51<>1,1,MAX(1,COUNTIF(QCI!$A$13:$A$24,OFFSET($E51,-1,0)))),"") ->  | AE51: =IF(AND($C51="S",ORÇAMENTO.CodBarra<>""),IF(ORÇAMENTO.Fonte="",ORÇAMENTO.CodBarra,CONCATENATE(ORÇAMENTO.Fonte," ",ORÇAMENTO.CodBarra))) -> Composição IUP30005 | AF51: =IF(ISERROR(INDIRECT(ORÇAMENTO.BancoRef)),"(abra o arquivo 'Referência "&Excel_BuiltIn_Database&".xlsm)",IF(OR($C51<>"S",ORÇAMENTO.CodBarra=""),"(Sem Código)",IF(ISERROR(MATCH($AE51,INDIRECT(ORÇAMENTO.BancoRef),0)),"(Código não identificado nas referências)",MATCH($AE51,INDIRECT(ORÇAMENTO.BancoRef),0)))) -> 13 | AG51: =ROUND(IF(DESONERACAO="sim",REFERENCIA.Desonerado,REFERENCIA.NaoDesonerado),2) -> 18.55 | AH51: 0.2338 | AJ51: 10.66 | AM51: 244.01 | AN51: 22.89
A52: S | B52: 2 | C52: S | D52: 0 | E52: =IF($C52=1,OFFSET(E52,-1,0)+MAX(1,COUNTIF(QCI!$A$13:$A$24,OFFSET(ORÇAMENTO!E52,-1,0))),OFFSET(E52,-1,0)) -> 1 | F52: 4 | G52: 0 | H52: 0 | I52: 2 | J52: 0 | K52: =IF(OR($C52="S",$C52=0),0,MATCH(OFFSET($D52,0,$C52)+IF($C52<>1,1,COUNTIF(QCI!$A$13:$A$24,ORÇAMENTO!E52)),OFFSET($D52,1,$C52,ROW($C$110)-ROW($C52)),0)) -> 0 | L52: F | M52: Serviço | N52: Serviço | O52: 1.4.2. | P52: SINAPI | Q52: 100979 | R52: =IF($C52="S",REFERENCIA.Descricao,"(digite a descrição aqui)") -> CARGA, MANOBRA E DESCARGA DE SOLOS E MATERIAIS GRANULARES EM CAMINHÃO BASCULANTE 14 M³ - CARGA COM ESCAVADEIRA HIDRÁULICA (CAÇAMBA DE 1,20 M³ / 155 HP) E DESCARGA LIVRE (UNIDADE: M3). AF_07/2020 | S52: =REFERENCIA.Unidade -> M3 | T52: =OFFSET(CÁLCULO!H$15,ROW($T52)-ROW(T$15),0) -> 13.86 | U52: 6.65 | V52: BDI 1 | W52: =IF($C52="S",ROUND(IF(TIPOORCAMENTO="Proposto",ORÇAMENTO.CustoUnitario*(1+$AH52),ORÇAMENTO.PrecoUnitarioLicitado),15-13*$AF$10),0) -> 8.2 | X52: =IF($C52="S",IF(OR(Import.TipoArredondamento<>"TransfereGOV",ACOMPANHAMENTO="BM"),VTOTAL1,SUM(OFFSET(CÁLCULO!$AI$15,ROW($X52)-ROW($X$15),1):OFFSET(CÁLCULO!$BB$15,ROW($X52)-ROW($X$15),-1))),IF($C52=0,0,ROUND(SomaAgrup,15-13*$AF$11))) -> 113.65 | Y52: RA | Z52: RA | AA52: =IF($C52="S",IF($Z52="CP",$X52,IF($Z52="RA",(($X52)*QCI!$AA$3),0)),SomaAgrup) -> 35.44243078 | AB52: 0 | AC52: =IF($N52=""," ", IF(AND($C52<>"S",OR($R52="",$R52="(digite a descrição aqui)")),"DESCRIÇÃO", IF(AND($C52="S",OR($Q52<>0,$T52>0,$U52>0),$P52=0),"FONTE", IF(AND($C52="S",$P52<>0,OR($T52>0,$U52>0),$Q52=0),"CÓDIGO", IF(AND($C52="S",$P52<>0,$Q52<>0,$R52="(Código não identificado nas referências)"),"CÓDIGO N/ID", IF(AND($C52="S",OR($R52="",$R52="(digite a descrição aqui)"),OR($Q52<>0,$T52>0,$U52>0)),"DESCRIÇÃO", IF(AND($C52="S",$P52<>0,$Q52<>0,$S52=""),"UNIDADE", IF(AND($C52="S",$P52<>0,$Q52<>0,$U52=0),"SEM CUSTO", IF(AND(TIPOORCAMENTO="Licitado",$AL52=0,$AN52>0),"SEM PREÇO", IF(AND($C52="S",$P52<>0,$Q52<>0,$U52>0,$V52=0),"BDI", IF(OR(AND(TIPOORCAMENTO="Proposto",$AG52<>"",$AG52>0,ORÇAMENTO.CustoUnitario>$AG52),AND(TIPOORCAMENTO="LICITADO",ORÇAMENTO.PrecoUnitarioLicitado>$AN52)),"ACIMA REF.", IF(AND($C52="S",$P52<>0,$Q52<>0,$T52=0,$U52>0),"QUANT.", IF(AND(Import.TipoArredondamento="TransfereGOV",$L52="F",$C52="S",LEN($Q52)>13),"Código >13", IF(AND(Import.TipoArredondamento="TransfereGOV",$L52="F",$C52<>"S",LEN($R52)>100),"Descrição >100", IF(AND(Import.TipoArredondamento="TransfereGOV",$L52="F",$C52="S",LEN($R52)>500),"Descrição >500", IF(AND(Import.TipoArredondamento="TransfereGOV",$L52="F",$C52="S",LEFT(TRIM(UPPER($P52)),6)<>"SINAPI",ISNA(VLOOKUP(TRIM(UPPER($S52)),ListaTgov.Unidades,1,FALSE))),"Unid. Não Disp", " ")))))))))))))))) ->  | AD52: =IF(C52<=CRONO.NivelExibicao,MAX($AD$15:OFFSET(AD52,-1,0))+IF($C52<>1,1,MAX(1,COUNTIF(QCI!$A$13:$A$24,OFFSET($E52,-1,0)))),"") ->  | AE52: =IF(AND($C52="S",ORÇAMENTO.CodBarra<>""),IF(ORÇAMENTO.Fonte="",ORÇAMENTO.CodBarra,CONCATENATE(ORÇAMENTO.Fonte," ",ORÇAMENTO.CodBarra))) -> SINAPI 100979 | AF52: =IF(ISERROR(INDIRECT(ORÇAMENTO.BancoRef)),"(abra o arquivo 'Referência "&Excel_BuiltIn_Database&".xlsm)",IF(OR($C52<>"S",ORÇAMENTO.CodBarra=""),"(Sem Código)",IF(ISERROR(MATCH($AE52,INDIRECT(ORÇAMENTO.BancoRef),0)),"(Código não identificado nas referências)",MATCH($AE52,INDIRECT(ORÇAMENTO.BancoRef),0)))) -> 15335 | AG52: =ROUND(IF(DESONERACAO="sim",REFERENCIA.Desonerado,REFERENCIA.NaoDesonerado),2) -> 6.65 | AH52: 0.2338 | AJ52: =AJ51*1.3 -> 13.858 | AM52: 113.65 | AN52: 8.2
A53: S | B53: 2 | C53: S | D53: 0 | E53: =IF($C53=1,OFFSET(E53,-1,0)+MAX(1,COUNTIF(QCI!$A$13:$A$24,OFFSET(ORÇAMENTO!E53,-1,0))),OFFSET(E53,-1,0)) -> 1 | F53: 4 | G53: 0 | H53: 0 | I53: 3 | J53: 0 | K53: =IF(OR($C53="S",$C53=0),0,MATCH(OFFSET($D53,0,$C53)+IF($C53<>1,1,COUNTIF(QCI!$A$13:$A$24,ORÇAMENTO!E53)),OFFSET($D53,1,$C53,ROW($C$110)-ROW($C53)),0)) -> 0 | L53: F | M53: Serviço | N53: Serviço | O53: 1.4.3. | P53: SINAPI | Q53: 95876 | R53: =IF($C53="S",REFERENCIA.Descricao,"(digite a descrição aqui)") -> TRANSPORTE COM CAMINHÃO BASCULANTE DE 14 M³, EM VIA URBANA PAVIMENTADA, DMT ATÉ 30 KM (UNIDADE: M3XKM). AF_07/2020 | S53: =REFERENCIA.Unidade -> M3XKM | T53: =OFFSET(CÁLCULO!H$15,ROW($T53)-ROW(T$15),0) -> 69.29 | U53: 2.14 | V53: BDI 1 | W53: =IF($C53="S",ROUND(IF(TIPOORCAMENTO="Proposto",ORÇAMENTO.CustoUnitario*(1+$AH53),ORÇAMENTO.PrecoUnitarioLicitado),15-13*$AF$10),0) -> 2.64 | X53: =IF($C53="S",IF(OR(Import.TipoArredondamento<>"TransfereGOV",ACOMPANHAMENTO="BM"),VTOTAL1,SUM(OFFSET(CÁLCULO!$AI$15,ROW($X53)-ROW($X$15),1):OFFSET(CÁLCULO!$BB$15,ROW($X53)-ROW($X$15),-1))),IF($C53=0,0,ROUND(SomaAgrup,15-13*$AF$11))) -> 182.93 | Y53: RA | Z53: RA | AA53: =IF($C53="S",IF($Z53="CP",$X53,IF($Z53="RA",(($X53)*QCI!$AA$3),0)),SomaAgrup) -> 57.04781225 | AB53: 0 | AC53: =IF($N53=""," ", IF(AND($C53<>"S",OR($R53="",$R53="(digite a descrição aqui)")),"DESCRIÇÃO", IF(AND($C53="S",OR($Q53<>0,$T53>0,$U53>0),$P53=0),"FONTE", IF(AND($C53="S",$P53<>0,OR($T53>0,$U53>0),$Q53=0),"CÓDIGO", IF(AND($C53="S",$P53<>0,$Q53<>0,$R53="(Código não identificado nas referências)"),"CÓDIGO N/ID", IF(AND($C53="S",OR($R53="",$R53="(digite a descrição aqui)"),OR($Q53<>0,$T53>0,$U53>0)),"DESCRIÇÃO", IF(AND($C53="S",$P53<>0,$Q53<>0,$S53=""),"UNIDADE", IF(AND($C53="S",$P53<>0,$Q53<>0,$U53=0),"SEM CUSTO", IF(AND(TIPOORCAMENTO="Licitado",$AL53=0,$AN53>0),"SEM PREÇO", IF(AND($C53="S",$P53<>0,$Q53<>0,$U53>0,$V53=0),"BDI", IF(OR(AND(TIPOORCAMENTO="Proposto",$AG53<>"",$AG53>0,ORÇAMENTO.CustoUnitario>$AG53),AND(TIPOORCAMENTO="LICITADO",ORÇAMENTO.PrecoUnitarioLicitado>$AN53)),"ACIMA REF.", IF(AND($C53="S",$P53<>0,$Q53<>0,$T53=0,$U53>0),"QUANT.", IF(AND(Import.TipoArredondamento="TransfereGOV",$L53="F",$C53="S",LEN($Q53)>13),"Código >13", IF(AND(Import.TipoArredondamento="TransfereGOV",$L53="F",$C53<>"S",LEN($R53)>100),"Descrição >100", IF(AND(Import.TipoArredondamento="TransfereGOV",$L53="F",$C53="S",LEN($R53)>500),"Descrição >500", IF(AND(Import.TipoArredondamento="TransfereGOV",$L53="F",$C53="S",LEFT(TRIM(UPPER($P53)),6)<>"SINAPI",ISNA(VLOOKUP(TRIM(UPPER($S53)),ListaTgov.Unidades,1,FALSE))),"Unid. Não Disp", " ")))))))))))))))) ->  | AD53: =IF(C53<=CRONO.NivelExibicao,MAX($AD$15:OFFSET(AD53,-1,0))+IF($C53<>1,1,MAX(1,COUNTIF(QCI!$A$13:$A$24,OFFSET($E53,-1,0)))),"") ->  | AE53: =IF(AND($C53="S",ORÇAMENTO.CodBarra<>""),IF(ORÇAMENTO.Fonte="",ORÇAMENTO.CodBarra,CONCATENATE(ORÇAMENTO.Fonte," ",ORÇAMENTO.CodBarra))) -> SINAPI 95876 | AF53: =IF(ISERROR(INDIRECT(ORÇAMENTO.BancoRef)),"(abra o arquivo 'Referência "&Excel_BuiltIn_Database&".xlsm)",IF(OR($C53<>"S",ORÇAMENTO.CodBarra=""),"(Sem Código)",IF(ISERROR(MATCH($AE53,INDIRECT(ORÇAMENTO.BancoRef),0)),"(Código não identificado nas referências)",MATCH($AE53,INDIRECT(ORÇAMENTO.BancoRef),0)))) -> 15401 | AG53: =ROUND(IF(DESONERACAO="sim",REFERENCIA.Desonerado,REFERENCIA.NaoDesonerado),2) -> 2.14 | AH53: 0.2338 | AJ53: =AJ52*5 -> 69.29 | AM53: 182.93 | AN53: 2.64
A54: S | B54: 2 | C54: S | D54: 0 | E54: =IF($C54=1,OFFSET(E54,-1,0)+MAX(1,COUNTIF(QCI!$A$13:$A$24,OFFSET(ORÇAMENTO!E54,-1,0))),OFFSET(E54,-1,0)) -> 1 | F54: 4 | G54: 0 | H54: 0 | I54: 4 | J54: 0 | K54: =IF(OR($C54="S",$C54=0),0,MATCH(OFFSET($D54,0,$C54)+IF($C54<>1,1,COUNTIF(QCI!$A$13:$A$24,ORÇAMENTO!E54)),OFFSET($D54,1,$C54,ROW($C$110)-ROW($C54)),0)) -> 0 | L54: F | M54: Serviço | N54: Serviço | O54: 1.4.4. | P54: SINAPI | Q54: 100577 | R54: =IF($C54="S",REFERENCIA.Descricao,"(digite a descrição aqui)") -> REGULARIZAÇÃO E COMPACTAÇÃO DE SUBLEITO DE SOLO PREDOMINANTEMENTE ARENOSO, PARA OBRAS DE CONSTRUÇÃO DE PAVIMENTOS. AF_09/2024 | S54: =REFERENCIA.Unidade -> M2 | T54: =OFFSET(CÁLCULO!H$15,ROW($T54)-ROW(T$15),0) -> 355.31 | U54: 1.44 | V54: BDI 1 | W54: =IF($C54="S",ROUND(IF(TIPOORCAMENTO="Proposto",ORÇAMENTO.CustoUnitario*(1+$AH54),ORÇAMENTO.PrecoUnitarioLicitado),15-13*$AF$10),0) -> 1.78 | X54: =IF($C54="S",IF(OR(Import.TipoArredondamento<>"TransfereGOV",ACOMPANHAMENTO="BM"),VTOTAL1,SUM(OFFSET(CÁLCULO!$AI$15,ROW($X54)-ROW($X$15),1):OFFSET(CÁLCULO!$BB$15,ROW($X54)-ROW($X$15),-1))),IF($C54=0,0,ROUND(SomaAgrup,15-13*$AF$11))) -> 632.45 | Y54: RA | Z54: RA | AA54: =IF($C54="S",IF($Z54="CP",$X54,IF($Z54="RA",(($X54)*QCI!$AA$3),0)),SomaAgrup) -> 197.2333071 | AB54: 0 | AC54: =IF($N54=""," ", IF(AND($C54<>"S",OR($R54="",$R54="(digite a descrição aqui)")),"DESCRIÇÃO", IF(AND($C54="S",OR($Q54<>0,$T54>0,$U54>0),$P54=0),"FONTE", IF(AND($C54="S",$P54<>0,OR($T54>0,$U54>0),$Q54=0),"CÓDIGO", IF(AND($C54="S",$P54<>0,$Q54<>0,$R54="(Código não identificado nas referências)"),"CÓDIGO N/ID", IF(AND($C54="S",OR($R54="",$R54="(digite a descrição aqui)"),OR($Q54<>0,$T54>0,$U54>0)),"DESCRIÇÃO", IF(AND($C54="S",$P54<>0,$Q54<>0,$S54=""),"UNIDADE", IF(AND($C54="S",$P54<>0,$Q54<>0,$U54=0),"SEM CUSTO", IF(AND(TIPOORCAMENTO="Licitado",$AL54=0,$AN54>0),"SEM PREÇO", IF(AND($C54="S",$P54<>0,$Q54<>0,$U54>0,$V54=0),"BDI", IF(OR(AND(TIPOORCAMENTO="Proposto",$AG54<>"",$AG54>0,ORÇAMENTO.CustoUnitario>$AG54),AND(TIPOORCAMENTO="LICITADO",ORÇAMENTO.PrecoUnitarioLicitado>$AN54)),"ACIMA REF.", IF(AND($C54="S",$P54<>0,$Q54<>0,$T54=0,$U54>0),"QUANT.", IF(AND(Import.TipoArredondamento="TransfereGOV",$L54="F",$C54="S",LEN($Q54)>13),"Código >13", IF(AND(Import.TipoArredondamento="TransfereGOV",$L54="F",$C54<>"S",LEN($R54)>100),"Descrição >100", IF(AND(Import.TipoArredondamento="TransfereGOV",$L54="F",$C54="S",LEN($R54)>500),"Descrição >500", IF(AND(Import.TipoArredondamento="TransfereGOV",$L54="F",$C54="S",LEFT(TRIM(UPPER($P54)),6)<>"SINAPI",ISNA(VLOOKUP(TRIM(UPPER($S54)),ListaTgov.Unidades,1,FALSE))),"Unid. Não Disp", " ")))))))))))))))) ->  | AD54: =IF(C54<=CRONO.NivelExibicao,MAX($AD$15:OFFSET(AD54,-1,0))+IF($C54<>1,1,MAX(1,COUNTIF(QCI!$A$13:$A$24,OFFSET($E54,-1,0)))),"") ->  | AE54: =IF(AND($C54="S",ORÇAMENTO.CodBarra<>""),IF(ORÇAMENTO.Fonte="",ORÇAMENTO.CodBarra,CONCATENATE(ORÇAMENTO.Fonte," ",ORÇAMENTO.CodBarra))) -> SINAPI 100577 | AF54: =IF(ISERROR(INDIRECT(ORÇAMENTO.BancoRef)),"(abra o arquivo 'Referência "&Excel_BuiltIn_Database&".xlsm)",IF(OR($C54<>"S",ORÇAMENTO.CodBarra=""),"(Sem Código)",IF(ISERROR(MATCH($AE54,INDIRECT(ORÇAMENTO.BancoRef),0)),"(Código não identificado nas referências)",MATCH($AE54,INDIRECT(ORÇAMENTO.BancoRef),0)))) -> 7006 | AG54: =ROUND(IF(DESONERACAO="sim",REFERENCIA.Desonerado,REFERENCIA.NaoDesonerado),2) -> 1.44 | AH54: 0.2338 | AJ54: 355.31 | AM54: 632.45 | AN54: 1.78
A55: S | B55: 2 | C55: S | D55: 0 | E55: =IF($C55=1,OFFSET(E55,-1,0)+MAX(1,COUNTIF(QCI!$A$13:$A$24,OFFSET(ORÇAMENTO!E55,-1,0))),OFFSET(E55,-1,0)) -> 1 | F55: 4 | G55: 0 | H55: 0 | I55: 5 | J55: 0 | K55: =IF(OR($C55="S",$C55=0),0,MATCH(OFFSET($D55,0,$C55)+IF($C55<>1,1,COUNTIF(QCI!$A$13:$A$24,ORÇAMENTO!E55)),OFFSET($D55,1,$C55,ROW($C$110)-ROW($C55)),0)) -> 0 | L55: F | M55: Serviço | N55: Serviço | O55: 1.4.5. | P55: Composição | Q55: IUP30069 | R55: =IF($C55="S",REFERENCIA.Descricao,"(digite a descrição aqui)") -> Execução e compactação de base para pavimentação com pedra britada ou bica corrida | S55: M3 | T55: =OFFSET(CÁLCULO!H$15,ROW($T55)-ROW(T$15),0) -> 53.3 | U55: 95.58 | V55: BDI 1 | W55: =IF($C55="S",ROUND(IF(TIPOORCAMENTO="Proposto",ORÇAMENTO.CustoUnitario*(1+$AH55),ORÇAMENTO.PrecoUnitarioLicitado),15-13*$AF$10),0) -> 117.93 | X55: =IF($C55="S",IF(OR(Import.TipoArredondamento<>"TransfereGOV",ACOMPANHAMENTO="BM"),VTOTAL1,SUM(OFFSET(CÁLCULO!$AI$15,ROW($X55)-ROW($X$15),1):OFFSET(CÁLCULO!$BB$15,ROW($X55)-ROW($X$15),-1))),IF($C55=0,0,ROUND(SomaAgrup,15-13*$AF$11))) -> 6285.67 | Y55: RA | Z55: RA | AA55: =IF($C55="S",IF($Z55="CP",$X55,IF($Z55="RA",(($X55)*QCI!$AA$3),0)),SomaAgrup) -> 1960.223703 | AB55: 0 | AC55: =IF($N55=""," ", IF(AND($C55<>"S",OR($R55="",$R55="(digite a descrição aqui)")),"DESCRIÇÃO", IF(AND($C55="S",OR($Q55<>0,$T55>0,$U55>0),$P55=0),"FONTE", IF(AND($C55="S",$P55<>0,OR($T55>0,$U55>0),$Q55=0),"CÓDIGO", IF(AND($C55="S",$P55<>0,$Q55<>0,$R55="(Código não identificado nas referências)"),"CÓDIGO N/ID", IF(AND($C55="S",OR($R55="",$R55="(digite a descrição aqui)"),OR($Q55<>0,$T55>0,$U55>0)),"DESCRIÇÃO", IF(AND($C55="S",$P55<>0,$Q55<>0,$S55=""),"UNIDADE", IF(AND($C55="S",$P55<>0,$Q55<>0,$U55=0),"SEM CUSTO", IF(AND(TIPOORCAMENTO="Licitado",$AL55=0,$AN55>0),"SEM PREÇO", IF(AND($C55="S",$P55<>0,$Q55<>0,$U55>0,$V55=0),"BDI", IF(OR(AND(TIPOORCAMENTO="Proposto",$AG55<>"",$AG55>0,ORÇAMENTO.CustoUnitario>$AG55),AND(TIPOORCAMENTO="LICITADO",ORÇAMENTO.PrecoUnitarioLicitado>$AN55)),"ACIMA REF.", IF(AND($C55="S",$P55<>0,$Q55<>0,$T55=0,$U55>0),"QUANT.", IF(AND(Import.TipoArredondamento="TransfereGOV",$L55="F",$C55="S",LEN($Q55)>13),"Código >13", IF(AND(Import.TipoArredondamento="TransfereGOV",$L55="F",$C55<>"S",LEN($R55)>100),"Descrição >100", IF(AND(Import.TipoArredondamento="TransfereGOV",$L55="F",$C55="S",LEN($R55)>500),"Descrição >500", IF(AND(Import.TipoArredondamento="TransfereGOV",$L55="F",$C55="S",LEFT(TRIM(UPPER($P55)),6)<>"SINAPI",ISNA(VLOOKUP(TRIM(UPPER($S55)),ListaTgov.Unidades,1,FALSE))),"Unid. Não Disp", " ")))))))))))))))) ->  | AD55: =IF(C55<=CRONO.NivelExibicao,MAX($AD$15:OFFSET(AD55,-1,0))+IF($C55<>1,1,MAX(1,COUNTIF(QCI!$A$13:$A$24,OFFSET($E55,-1,0)))),"") ->  | AE55: =IF(AND($C55="S",ORÇAMENTO.CodBarra<>""),IF(ORÇAMENTO.Fonte="",ORÇAMENTO.CodBarra,CONCATENATE(ORÇAMENTO.Fonte," ",ORÇAMENTO.CodBarra))) -> Composição IUP30069 | AF55: =IF(ISERROR(INDIRECT(ORÇAMENTO.BancoRef)),"(abra o arquivo 'Referência "&Excel_BuiltIn_Database&".xlsm)",IF(OR($C55<>"S",ORÇAMENTO.CodBarra=""),"(Sem Código)",IF(ISERROR(MATCH($AE55,INDIRECT(ORÇAMENTO.BancoRef),0)),"(Código não identificado nas referências)",MATCH($AE55,INDIRECT(ORÇAMENTO.BancoRef),0)))) -> 17 | AG55: =ROUND(IF(DESONERACAO="sim",REFERENCIA.Desonerado,REFERENCIA.NaoDesonerado),2) -> 95.58 | AH55: 0.2338 | AJ55: =AJ54*0.15 -> 53.2965 | AM55: 6285.67 | AN55: 117.93
A56: =CHOOSE(1+LOG(1+2*(ORÇAMENTO.Nivel="Meta")+4*(ORÇAMENTO.Nivel="Nível 2")+8*(ORÇAMENTO.Nivel="Nível 3")+16*(ORÇAMENTO.Nivel="Nível 4")+32*(ORÇAMENTO.Nivel="Serviço"),2),0,1,2,3,4,"S") -> S | B56: =IF(OR(C56="s",C56=0),OFFSET(B56,-1,0),C56) -> 2 | C56: =IF(OFFSET(C56,-1,0)="L",1,IF(OFFSET(C56,-1,0)=1,2,IF(OR(A56="s",A56=0),"S",IF(AND(OFFSET(C56,-1,0)=2,A56=4),3,IF(AND(OR(OFFSET(C56,-1,0)="s",OFFSET(C56,-1,0)=0),A56<>"s",A56>OFFSET(B56,-1,0)),OFFSET(B56,-1,0),A56))))) -> S | D56: =IF(OR(C56="S",C56=0),0,IF(ISERROR(K56),J56,SMALL(J56:K56,1))) -> 0 | E56: =IF($C56=1,OFFSET(E56,-1,0)+MAX(1,COUNTIF(QCI!$A$13:$A$24,OFFSET(ORÇAMENTO!E56,-1,0))),OFFSET(E56,-1,0)) -> 1 | F56: =IF($C56=1,0,IF($C56=2,OFFSET(F56,-1,0)+1,OFFSET(F56,-1,0))) -> 4 | G56: =IF(AND($C56<=2,$C56<>0),0,IF($C56=3,OFFSET(G56,-1,0)+1,OFFSET(G56,-1,0))) -> 0 | H56: =IF(AND($C56<=3,$C56<>0),0,IF($C56=4,OFFSET(H56,-1,0)+1,OFFSET(H56,-1,0))) -> 0 | I56: =IF(AND($C56<=4,$C56<>0),0,IF(AND($C56="S",$X56>0),OFFSET(I56,-1,0)+1,OFFSET(I56,-1,0))) -> 6 | J56: 0 | K56: =IF(OR($C56="S",$C56=0),0,MATCH(OFFSET($D56,0,$C56)+IF($C56<>1,1,COUNTIF(QCI!$A$13:$A$24,ORÇAMENTO!E56)),OFFSET($D56,1,$C56,ROW($C$110)-ROW($C56)),0)) -> 0 | L56: =IF(OR($X56>0,$C56=1,$C56=2,$C56=3,$C56=4),"F","") -> F | M56: Serviço | N56: =CHOOSE(1+LOG(1+2*(C56=1)+4*(C56=2)+8*(C56=3)+16*(C56=4)+32*(C56="S"),2),"","Meta","Nível 2","Nível 3","Nível 4","Serviço") -> Serviço | O56: =IF(OR($C56=0,$L56=""),"-",CONCATENATE(E56&".",IF(AND($A$5>=2,$C56>=2),F56&".",""),IF(AND($A$5>=3,$C56>=3),G56&".",""),IF(AND($A$5>=4,$C56>=4),H56&".",""),IF($C56="S",I56&".",""))) -> 1.4.6. | P56: SINAPI | Q56: 95876 | R56: =IF($C56="S",REFERENCIA.Descricao,"(digite a descrição aqui)") -> TRANSPORTE COM CAMINHÃO BASCULANTE DE 14 M³, EM VIA URBANA PAVIMENTADA, DMT ATÉ 30 KM (UNIDADE: M3XKM). AF_07/2020 | S56: =REFERENCIA.Unidade -> M3XKM | T56: =OFFSET(CÁLCULO!H$15,ROW($T56)-ROW(T$15),0) -> 1598.9 | U56: 2.14 | V56: BDI 1 | W56: =IF($C56="S",ROUND(IF(TIPOORCAMENTO="Proposto",ORÇAMENTO.CustoUnitario*(1+$AH56),ORÇAMENTO.PrecoUnitarioLicitado),15-13*$AF$10),0) -> 2.64 | X56: =IF($C56="S",IF(OR(Import.TipoArredondamento<>"TransfereGOV",ACOMPANHAMENTO="BM"),VTOTAL1,SUM(OFFSET(CÁLCULO!$AI$15,ROW($X56)-ROW($X$15),1):OFFSET(CÁLCULO!$BB$15,ROW($X56)-ROW($X$15),-1))),IF($C56=0,0,ROUND(SomaAgrup,15-13*$AF$11))) -> 4221.1 | Y56: RA | Z56: =IF(AND($C56="S",$X56>0),IF(ISBLANK($Y56),"RA",LEFT($Y56,2)),"") -> RA | AA56: =IF($C56="S",IF($Z56="CP",$X56,IF($Z56="RA",(($X56)*QCI!$AA$3),0)),SomaAgrup) -> 1316.375227 | AB56: =IF($C56="S",IF($Z56="OU",ROUND($X56,2),0),SomaAgrup) -> 0 | AC56: =IF($N56=""," ", IF(AND($C56<>"S",OR($R56="",$R56="(digite a descrição aqui)")),"DESCRIÇÃO", IF(AND($C56="S",OR($Q56<>0,$T56>0,$U56>0),$P56=0),"FONTE", IF(AND($C56="S",$P56<>0,OR($T56>0,$U56>0),$Q56=0),"CÓDIGO", IF(AND($C56="S",$P56<>0,$Q56<>0,$R56="(Código não identificado nas referências)"),"CÓDIGO N/ID", IF(AND($C56="S",OR($R56="",$R56="(digite a descrição aqui)"),OR($Q56<>0,$T56>0,$U56>0)),"DESCRIÇÃO", IF(AND($C56="S",$P56<>0,$Q56<>0,$S56=""),"UNIDADE", IF(AND($C56="S",$P56<>0,$Q56<>0,$U56=0),"SEM CUSTO", IF(AND(TIPOORCAMENTO="Licitado",$AL56=0,$AN56>0),"SEM PREÇO", IF(AND($C56="S",$P56<>0,$Q56<>0,$U56>0,$V56=0),"BDI", IF(OR(AND(TIPOORCAMENTO="Proposto",$AG56<>"",$AG56>0,ORÇAMENTO.CustoUnitario>$AG56),AND(TIPOORCAMENTO="LICITADO",ORÇAMENTO.PrecoUnitarioLicitado>$AN56)),"ACIMA REF.", IF(AND($C56="S",$P56<>0,$Q56<>0,$T56=0,$U56>0),"QUANT.", IF(AND(Import.TipoArredondamento="TransfereGOV",$L56="F",$C56="S",LEN($Q56)>13),"Código >13", IF(AND(Import.TipoArredondamento="TransfereGOV",$L56="F",$C56<>"S",LEN($R56)>100),"Descrição >100", IF(AND(Import.TipoArredondamento="TransfereGOV",$L56="F",$C56="S",LEN($R56)>500),"Descrição >500", IF(AND(Import.TipoArredondamento="TransfereGOV",$L56="F",$C56="S",LEFT(TRIM(UPPER($P56)),6)<>"SINAPI",ISNA(VLOOKUP(TRIM(UPPER($S56)),ListaTgov.Unidades,1,FALSE))),"Unid. Não Disp", " ")))))))))))))))) ->  | AD56: =IF(C56<=CRONO.NivelExibicao,MAX($AD$15:OFFSET(AD56,-1,0))+IF($C56<>1,1,MAX(1,COUNTIF(QCI!$A$13:$A$24,OFFSET($E56,-1,0)))),"") ->  | AE56: =IF(AND($C56="S",ORÇAMENTO.CodBarra<>""),IF(ORÇAMENTO.Fonte="",ORÇAMENTO.CodBarra,CONCATENATE(ORÇAMENTO.Fonte," ",ORÇAMENTO.CodBarra))) -> SINAPI 95876 | AF56: =IF(ISERROR(INDIRECT(ORÇAMENTO.BancoRef)),"(abra o arquivo 'Referência "&Excel_BuiltIn_Database&".xlsm)",IF(OR($C56<>"S",ORÇAMENTO.CodBarra=""),"(Sem Código)",IF(ISERROR(MATCH($AE56,INDIRECT(ORÇAMENTO.BancoRef),0)),"(Código não identificado nas referências)",MATCH($AE56,INDIRECT(ORÇAMENTO.BancoRef),0)))) -> 15401 | AG56: =ROUND(IF(DESONERACAO="sim",REFERENCIA.Desonerado,REFERENCIA.NaoDesonerado),2) -> 2.14 | AH56: =ROUND(IF(ISNUMBER(ORÇAMENTO.OpcaoBDI),ORÇAMENTO.OpcaoBDI,IF(LEFT(ORÇAMENTO.OpcaoBDI,3)="BDI",HLOOKUP(ORÇAMENTO.OpcaoBDI,$F$4:$H$5,2,FALSE),0)),15-11*$AF$9) -> 0.2338 | AJ56: =AJ55*30 -> 1598.895 | AM56: 4221.1 | AN56: =ROUND(ORÇAMENTO.CustoUnitario*(1+$AH56),2) -> 2.64
A57: S | B57: =IF(OR(C57="s",C57=0),OFFSET(B57,-1,0),C57) -> 2 | C57: =IF(OFFSET(C57,-1,0)="L",1,IF(OFFSET(C57,-1,0)=1,2,IF(OR(A57="s",A57=0),"S",IF(AND(OFFSET(C57,-1,0)=2,A57=4),3,IF(AND(OR(OFFSET(C57,-1,0)="s",OFFSET(C57,-1,0)=0),A57<>"s",A57>OFFSET(B57,-1,0)),OFFSET(B57,-1,0),A57))))) -> S | D57: =IF(OR(C57="S",C57=0),0,IF(ISERROR(K57),J57,SMALL(J57:K57,1))) -> 0 | E57: =IF($C57=1,OFFSET(E57,-1,0)+MAX(1,COUNTIF(QCI!$A$13:$A$24,OFFSET(ORÇAMENTO!E57,-1,0))),OFFSET(E57,-1,0)) -> 1 | F57: =IF($C57=1,0,IF($C57=2,OFFSET(F57,-1,0)+1,OFFSET(F57,-1,0))) -> 4 | G57: =IF(AND($C57<=2,$C57<>0),0,IF($C57=3,OFFSET(G57,-1,0)+1,OFFSET(G57,-1,0))) -> 0 | H57: =IF(AND($C57<=3,$C57<>0),0,IF($C57=4,OFFSET(H57,-1,0)+1,OFFSET(H57,-1,0))) -> 0 | I57: =IF(AND($C57<=4,$C57<>0),0,IF(AND($C57="S",$X57>0),OFFSET(I57,-1,0)+1,OFFSET(I57,-1,0))) -> 7 | J57: 0 | K57: =IF(OR($C57="S",$C57=0),0,MATCH(OFFSET($D57,0,$C57)+IF($C57<>1,1,COUNTIF(QCI!$A$13:$A$24,ORÇAMENTO!E57)),OFFSET($D57,1,$C57,ROW($C$110)-ROW($C57)),0)) -> 0 | L57: =IF(OR($X57>0,$C57=1,$C57=2,$C57=3,$C57=4),"F","") -> F | M57: Serviço | N57: =CHOOSE(1+LOG(1+2*(C57=1)+4*(C57=2)+8*(C57=3)+16*(C57=4)+32*(C57="S"),2),"","Meta","Nível 2","Nível 3","Nível 4","Serviço") -> Serviço | O57: =IF(OR($C57=0,$L57=""),"-",CONCATENATE(E57&".",IF(AND($A$5>=2,$C57>=2),F57&".",""),IF(AND($A$5>=3,$C57>=3),G57&".",""),IF(AND($A$5>=4,$C57>=4),H57&".",""),IF($C57="S",I57&".",""))) -> 1.4.7. | P57: Composição | Q57: IUP30094 | R57: =IF($C57="S",REFERENCIA.Descricao,"(digite a descrição aqui)") -> EXECUÇÃO DE PINTURA DE LIGAÇÃO COM EMULSÃO ASFÁLTICA RR-1C | S57: =REFERENCIA.Unidade -> M2 | T57: =OFFSET(CÁLCULO!H$15,ROW($T57)-ROW(T$15),0) -> 1259.03 | U57: 3.18 | V57: BDI 1 | W57: =IF($C57="S",ROUND(IF(TIPOORCAMENTO="Proposto",ORÇAMENTO.CustoUnitario*(1+$AH57),ORÇAMENTO.PrecoUnitarioLicitado),15-13*$AF$10),0) -> 3.92 | X57: =IF($C57="S",IF(OR(Import.TipoArredondamento<>"TransfereGOV",ACOMPANHAMENTO="BM"),VTOTAL1,SUM(OFFSET(CÁLCULO!$AI$15,ROW($X57)-ROW($X$15),1):OFFSET(CÁLCULO!$BB$15,ROW($X57)-ROW($X$15),-1))),IF($C57=0,0,ROUND(SomaAgrup,15-13*$AF$11))) -> 4935.4 | Y57: RA | Z57: =IF(AND($C57="S",$X57>0),IF(ISBLANK($Y57),"RA",LEFT($Y57,2)),"") -> RA | AA57: =IF($C57="S",IF($Z57="CP",$X57,IF($Z57="RA",(($X57)*QCI!$AA$3),0)),SomaAgrup) -> 1539.133945 | AB57: 0 | AC57: =IF($N57=""," ", IF(AND($C57<>"S",OR($R57="",$R57="(digite a descrição aqui)")),"DESCRIÇÃO", IF(AND($C57="S",OR($Q57<>0,$T57>0,$U57>0),$P57=0),"FONTE", IF(AND($C57="S",$P57<>0,OR($T57>0,$U57>0),$Q57=0),"CÓDIGO", IF(AND($C57="S",$P57<>0,$Q57<>0,$R57="(Código não identificado nas referências)"),"CÓDIGO N/ID", IF(AND($C57="S",OR($R57="",$R57="(digite a descrição aqui)"),OR($Q57<>0,$T57>0,$U57>0)),"DESCRIÇÃO", IF(AND($C57="S",$P57<>0,$Q57<>0,$S57=""),"UNIDADE", IF(AND($C57="S",$P57<>0,$Q57<>0,$U57=0),"SEM CUSTO", IF(AND(TIPOORCAMENTO="Licitado",$AL57=0,$AN57>0),"SEM PREÇO", IF(AND($C57="S",$P57<>0,$Q57<>0,$U57>0,$V57=0),"BDI", IF(OR(AND(TIPOORCAMENTO="Proposto",$AG57<>"",$AG57>0,ORÇAMENTO.CustoUnitario>$AG57),AND(TIPOORCAMENTO="LICITADO",ORÇAMENTO.PrecoUnitarioLicitado>$AN57)),"ACIMA REF.", IF(AND($C57="S",$P57<>0,$Q57<>0,$T57=0,$U57>0),"QUANT.", IF(AND(Import.TipoArredondamento="TransfereGOV",$L57="F",$C57="S",LEN($Q57)>13),"Código >13", IF(AND(Import.TipoArredondamento="TransfereGOV",$L57="F",$C57<>"S",LEN($R57)>100),"Descrição >100", IF(AND(Import.TipoArredondamento="TransfereGOV",$L57="F",$C57="S",LEN($R57)>500),"Descrição >500", IF(AND(Import.TipoArredondamento="TransfereGOV",$L57="F",$C57="S",LEFT(TRIM(UPPER($P57)),6)<>"SINAPI",ISNA(VLOOKUP(TRIM(UPPER($S57)),ListaTgov.Unidades,1,FALSE))),"Unid. Não Disp", " ")))))))))))))))) ->  | AD57: =IF(C57<=CRONO.NivelExibicao,MAX($AD$15:OFFSET(AD57,-1,0))+IF($C57<>1,1,MAX(1,COUNTIF(QCI!$A$13:$A$24,OFFSET($E57,-1,0)))),"") ->  | AE57: =IF(AND($C57="S",ORÇAMENTO.CodBarra<>""),IF(ORÇAMENTO.Fonte="",ORÇAMENTO.CodBarra,CONCATENATE(ORÇAMENTO.Fonte," ",ORÇAMENTO.CodBarra))) -> Composição IUP30094 | AF57: =IF(ISERROR(INDIRECT(ORÇAMENTO.BancoRef)),"(abra o arquivo 'Referência "&Excel_BuiltIn_Database&".xlsm)",IF(OR($C57<>"S",ORÇAMENTO.CodBarra=""),"(Sem Código)",IF(ISERROR(MATCH($AE57,INDIRECT(ORÇAMENTO.BancoRef),0)),"(Código não identificado nas referências)",MATCH($AE57,INDIRECT(ORÇAMENTO.BancoRef),0)))) -> 14 | AG57: =ROUND(IF(DESONERACAO="sim",REFERENCIA.Desonerado,REFERENCIA.NaoDesonerado),2) -> 3.18 | AH57: 0.2338 | AJ57: 1259.03 | AM57: 4935.4 | AN57: 3.92
A58: S | B58: 2 | C58: S | D58: 0 | E58: =IF($C58=1,OFFSET(E58,-1,0)+MAX(1,COUNTIF(QCI!$A$13:$A$24,OFFSET(ORÇAMENTO!E58,-1,0))),OFFSET(E58,-1,0)) -> 1 | F58: 4 | G58: 0 | H58: 0 | I58: 8 | J58: 0 | K58: =IF(OR($C58="S",$C58=0),0,MATCH(OFFSET($D58,0,$C58)+IF($C58<>1,1,COUNTIF(QCI!$A$13:$A$24,ORÇAMENTO!E58)),OFFSET($D58,1,$C58,ROW($C$110)-ROW($C58)),0)) -> 0 | L58: F | M58: Serviço | N58: Serviço | O58: 1.4.8. | P58: SINAPI | Q58: 102330 | R58: =IF($C58="S",REFERENCIA.Descricao,"(digite a descrição aqui)") -> TRANSPORTE COM CAMINHÃO TANQUE DE TRANSPORTE DE MATERIAL ASFÁLTICO DE 30000 L, EM VIA URBANA PAVIMENTADA, DMT ATÉ 30KM (UNIDADE: TXKM). AF_07/2020 | S58: =REFERENCIA.Unidade -> TXKM | T58: =OFFSET(CÁLCULO!H$15,ROW($T58)-ROW(T$15),0) -> 17 | U58: 1.41 | V58: BDI 1 | W58: =IF($C58="S",ROUND(IF(TIPOORCAMENTO="Proposto",ORÇAMENTO.CustoUnitario*(1+$AH58),ORÇAMENTO.PrecoUnitarioLicitado),15-13*$AF$10),0) -> 1.74 | X58: =IF($C58="S",IF(OR(Import.TipoArredondamento<>"TransfereGOV",ACOMPANHAMENTO="BM"),VTOTAL1,SUM(OFFSET(CÁLCULO!$AI$15,ROW($X58)-ROW($X$15),1):OFFSET(CÁLCULO!$BB$15,ROW($X58)-ROW($X$15),-1))),IF($C58=0,0,ROUND(SomaAgrup,15-13*$AF$11))) -> 29.58 | Y58: RA | Z58: RA | AA58: =IF($C58="S",IF($Z58="CP",$X58,IF($Z58="RA",(($X58)*QCI!$AA$3),0)),SomaAgrup) -> 9.224699538 | AB58: 0 | AC58: =IF($N58=""," ", IF(AND($C58<>"S",OR($R58="",$R58="(digite a descrição aqui)")),"DESCRIÇÃO", IF(AND($C58="S",OR($Q58<>0,$T58>0,$U58>0),$P58=0),"FONTE", IF(AND($C58="S",$P58<>0,OR($T58>0,$U58>0),$Q58=0),"CÓDIGO", IF(AND($C58="S",$P58<>0,$Q58<>0,$R58="(Código não identificado nas referências)"),"CÓDIGO N/ID", IF(AND($C58="S",OR($R58="",$R58="(digite a descrição aqui)"),OR($Q58<>0,$T58>0,$U58>0)),"DESCRIÇÃO", IF(AND($C58="S",$P58<>0,$Q58<>0,$S58=""),"UNIDADE", IF(AND($C58="S",$P58<>0,$Q58<>0,$U58=0),"SEM CUSTO", IF(AND(TIPOORCAMENTO="Licitado",$AL58=0,$AN58>0),"SEM PREÇO", IF(AND($C58="S",$P58<>0,$Q58<>0,$U58>0,$V58=0),"BDI", IF(OR(AND(TIPOORCAMENTO="Proposto",$AG58<>"",$AG58>0,ORÇAMENTO.CustoUnitario>$AG58),AND(TIPOORCAMENTO="LICITADO",ORÇAMENTO.PrecoUnitarioLicitado>$AN58)),"ACIMA REF.", IF(AND($C58="S",$P58<>0,$Q58<>0,$T58=0,$U58>0),"QUANT.", IF(AND(Import.TipoArredondamento="TransfereGOV",$L58="F",$C58="S",LEN($Q58)>13),"Código >13", IF(AND(Import.TipoArredondamento="TransfereGOV",$L58="F",$C58<>"S",LEN($R58)>100),"Descrição >100", IF(AND(Import.TipoArredondamento="TransfereGOV",$L58="F",$C58="S",LEN($R58)>500),"Descrição >500", IF(AND(Import.TipoArredondamento="TransfereGOV",$L58="F",$C58="S",LEFT(TRIM(UPPER($P58)),6)<>"SINAPI",ISNA(VLOOKUP(TRIM(UPPER($S58)),ListaTgov.Unidades,1,FALSE))),"Unid. Não Disp", " ")))))))))))))))) ->  | AD58: =IF(C58<=CRONO.NivelExibicao,MAX($AD$15:OFFSET(AD58,-1,0))+IF($C58<>1,1,MAX(1,COUNTIF(QCI!$A$13:$A$24,OFFSET($E58,-1,0)))),"") ->  | AE58: =IF(AND($C58="S",ORÇAMENTO.CodBarra<>""),IF(ORÇAMENTO.Fonte="",ORÇAMENTO.CodBarra,CONCATENATE(ORÇAMENTO.Fonte," ",ORÇAMENTO.CodBarra))) -> SINAPI 102330 | AF58: =IF(ISERROR(INDIRECT(ORÇAMENTO.BancoRef)),"(abra o arquivo 'Referência "&Excel_BuiltIn_Database&".xlsm)",IF(OR($C58<>"S",ORÇAMENTO.CodBarra=""),"(Sem Código)",IF(ISERROR(MATCH($AE58,INDIRECT(ORÇAMENTO.BancoRef),0)),"(Código não identificado nas referências)",MATCH($AE58,INDIRECT(ORÇAMENTO.BancoRef),0)))) -> 15450 | AG58: =ROUND(IF(DESONERACAO="sim",REFERENCIA.Desonerado,REFERENCIA.NaoDesonerado),2) -> 1.41 | AH58: 0.2338 | AJ58: =AJ57*0.00045*30 -> 16.996905 | AM58: 29.58 | AN58: 1.74
A59: S | B59: 2 | C59: S | D59: 0 | E59: =IF($C59=1,OFFSET(E59,-1,0)+MAX(1,COUNTIF(QCI!$A$13:$A$24,OFFSET(ORÇAMENTO!E59,-1,0))),OFFSET(E59,-1,0)) -> 1 | F59: 4 | G59: 0 | H59: 0 | I59: 9 | J59: 0 | K59: =IF(OR($C59="S",$C59=0),0,MATCH(OFFSET($D59,0,$C59)+IF($C59<>1,1,COUNTIF(QCI!$A$13:$A$24,ORÇAMENTO!E59)),OFFSET($D59,1,$C59,ROW($C$110)-ROW($C59)),0)) -> 0 | L59: F | M59: Serviço | N59: Serviço | O59: 1.4.9. | P59: SINAPI | Q59: 102331 | R59: =IF($C59="S",REFERENCIA.Descricao,"(digite a descrição aqui)") -> TRANSPORTE COM CAMINHÃO TANQUE DE TRANSPORTE DE MATERIAL ASFÁLTICO DE 30000 L, EM VIA URBANA PAVIMENTADA, ADICIONAL PARA DMT EXCEDENTE A 30 KM (UNIDADE: TXKM). AF_07/2020 | S59: =REFERENCIA.Unidade -> TXKM | T59: =OFFSET(CÁLCULO!H$15,ROW($T59)-ROW(T$15),0) -> 22.1 | U59: 0.55 | V59: BDI 1 | W59: =IF($C59="S",ROUND(IF(TIPOORCAMENTO="Proposto",ORÇAMENTO.CustoUnitario*(1+$AH59),ORÇAMENTO.PrecoUnitarioLicitado),15-13*$AF$10),0) -> 0.68 | X59: =IF($C59="S",IF(OR(Import.TipoArredondamento<>"TransfereGOV",ACOMPANHAMENTO="BM"),VTOTAL1,SUM(OFFSET(CÁLCULO!$AI$15,ROW($X59)-ROW($X$15),1):OFFSET(CÁLCULO!$BB$15,ROW($X59)-ROW($X$15),-1))),IF($C59=0,0,ROUND(SomaAgrup,15-13*$AF$11))) -> 15.03 | Y59: RA | Z59: RA | AA59: =IF($C59="S",IF($Z59="CP",$X59,IF($Z59="RA",(($X59)*QCI!$AA$3),0)),SomaAgrup) -> 4.687195201 | AB59: 0 | AC59: =IF($N59=""," ", IF(AND($C59<>"S",OR($R59="",$R59="(digite a descrição aqui)")),"DESCRIÇÃO", IF(AND($C59="S",OR($Q59<>0,$T59>0,$U59>0),$P59=0),"FONTE", IF(AND($C59="S",$P59<>0,OR($T59>0,$U59>0),$Q59=0),"CÓDIGO", IF(AND($C59="S",$P59<>0,$Q59<>0,$R59="(Código não identificado nas referências)"),"CÓDIGO N/ID", IF(AND($C59="S",OR($R59="",$R59="(digite a descrição aqui)"),OR($Q59<>0,$T59>0,$U59>0)),"DESCRIÇÃO", IF(AND($C59="S",$P59<>0,$Q59<>0,$S59=""),"UNIDADE", IF(AND($C59="S",$P59<>0,$Q59<>0,$U59=0),"SEM CUSTO", IF(AND(TIPOORCAMENTO="Licitado",$AL59=0,$AN59>0),"SEM PREÇO", IF(AND($C59="S",$P59<>0,$Q59<>0,$U59>0,$V59=0),"BDI", IF(OR(AND(TIPOORCAMENTO="Proposto",$AG59<>"",$AG59>0,ORÇAMENTO.CustoUnitario>$AG59),AND(TIPOORCAMENTO="LICITADO",ORÇAMENTO.PrecoUnitarioLicitado>$AN59)),"ACIMA REF.", IF(AND($C59="S",$P59<>0,$Q59<>0,$T59=0,$U59>0),"QUANT.", IF(AND(Import.TipoArredondamento="TransfereGOV",$L59="F",$C59="S",LEN($Q59)>13),"Código >13", IF(AND(Import.TipoArredondamento="TransfereGOV",$L59="F",$C59<>"S",LEN($R59)>100),"Descrição >100", IF(AND(Import.TipoArredondamento="TransfereGOV",$L59="F",$C59="S",LEN($R59)>500),"Descrição >500", IF(AND(Import.TipoArredondamento="TransfereGOV",$L59="F",$C59="S",LEFT(TRIM(UPPER($P59)),6)<>"SINAPI",ISNA(VLOOKUP(TRIM(UPPER($S59)),ListaTgov.Unidades,1,FALSE))),"Unid. Não Disp", " ")))))))))))))))) ->  | AD59: =IF(C59<=CRONO.NivelExibicao,MAX($AD$15:OFFSET(AD59,-1,0))+IF($C59<>1,1,MAX(1,COUNTIF(QCI!$A$13:$A$24,OFFSET($E59,-1,0)))),"") ->  | AE59: =IF(AND($C59="S",ORÇAMENTO.CodBarra<>""),IF(ORÇAMENTO.Fonte="",ORÇAMENTO.CodBarra,CONCATENATE(ORÇAMENTO.Fonte," ",ORÇAMENTO.CodBarra))) -> SINAPI 102331 | AF59: =IF(ISERROR(INDIRECT(ORÇAMENTO.BancoRef)),"(abra o arquivo 'Referência "&Excel_BuiltIn_Database&".xlsm)",IF(OR($C59<>"S",ORÇAMENTO.CodBarra=""),"(Sem Código)",IF(ISERROR(MATCH($AE59,INDIRECT(ORÇAMENTO.BancoRef),0)),"(Código não identificado nas referências)",MATCH($AE59,INDIRECT(ORÇAMENTO.BancoRef),0)))) -> 15449 | AG59: =ROUND(IF(DESONERACAO="sim",REFERENCIA.Desonerado,REFERENCIA.NaoDesonerado),2) -> 0.55 | AH59: 0.2338 | AJ59: =AJ57*0.00045*39 -> 22.0959765 | AM59: 15.03 | AN59: 0.68
A60: S | B60: 2 | C60: S | D60: 0 | E60: =IF($C60=1,OFFSET(E60,-1,0)+MAX(1,COUNTIF(QCI!$A$13:$A$24,OFFSET(ORÇAMENTO!E60,-1,0))),OFFSET(E60,-1,0)) -> 1 | F60: 4 | G60: 0 | H60: 0 | I60: 10 | J60: 0 | K60: =IF(OR($C60="S",$C60=0),0,MATCH(OFFSET($D60,0,$C60)+IF($C60<>1,1,COUNTIF(QCI!$A$13:$A$24,ORÇAMENTO!E60)),OFFSET($D60,1,$C60,ROW($C$110)-ROW($C60)),0)) -> 0 | L60: F | M60: Serviço | N60: Serviço | O60: 1.4.10. | P60: Composição | Q60: IUP30075 | R60: =IF($C60="S",REFERENCIA.Descricao,"(digite a descrição aqui)") -> Execução de imprimação com emulsão asfáltica a base d'água. | S60: =REFERENCIA.Unidade -> M2 | T60: =OFFSET(CÁLCULO!H$15,ROW($T60)-ROW(T$15),0) -> 355.31 | U60: 6.58 | V60: BDI 1 | W60: =IF($C60="S",ROUND(IF(TIPOORCAMENTO="Proposto",ORÇAMENTO.CustoUnitario*(1+$AH60),ORÇAMENTO.PrecoUnitarioLicitado),15-13*$AF$10),0) -> 8.12 | X60: =IF($C60="S",IF(OR(Import.TipoArredondamento<>"TransfereGOV",ACOMPANHAMENTO="BM"),VTOTAL1,SUM(OFFSET(CÁLCULO!$AI$15,ROW($X60)-ROW($X$15),1):OFFSET(CÁLCULO!$BB$15,ROW($X60)-ROW($X$15),-1))),IF($C60=0,0,ROUND(SomaAgrup,15-13*$AF$11))) -> 2885.12 | Y60: RA | Z60: RA | AA60: =IF($C60="S",IF($Z60="CP",$X60,IF($Z60="RA",(($X60)*QCI!$AA$3),0)),SomaAgrup) -> 899.7418908 | AB60: 0 | AC60: =IF($N60=""," ", IF(AND($C60<>"S",OR($R60="",$R60="(digite a descrição aqui)")),"DESCRIÇÃO", IF(AND($C60="S",OR($Q60<>0,$T60>0,$U60>0),$P60=0),"FONTE", IF(AND($C60="S",$P60<>0,OR($T60>0,$U60>0),$Q60=0),"CÓDIGO", IF(AND($C60="S",$P60<>0,$Q60<>0,$R60="(Código não identificado nas referências)"),"CÓDIGO N/ID", IF(AND($C60="S",OR($R60="",$R60="(digite a descrição aqui)"),OR($Q60<>0,$T60>0,$U60>0)),"DESCRIÇÃO", IF(AND($C60="S",$P60<>0,$Q60<>0,$S60=""),"UNIDADE", IF(AND($C60="S",$P60<>0,$Q60<>0,$U60=0),"SEM CUSTO", IF(AND(TIPOORCAMENTO="Licitado",$AL60=0,$AN60>0),"SEM PREÇO", IF(AND($C60="S",$P60<>0,$Q60<>0,$U60>0,$V60=0),"BDI", IF(OR(AND(TIPOORCAMENTO="Proposto",$AG60<>"",$AG60>0,ORÇAMENTO.CustoUnitario>$AG60),AND(TIPOORCAMENTO="LICITADO",ORÇAMENTO.PrecoUnitarioLicitado>$AN60)),"ACIMA REF.", IF(AND($C60="S",$P60<>0,$Q60<>0,$T60=0,$U60>0),"QUANT.", IF(AND(Import.TipoArredondamento="TransfereGOV",$L60="F",$C60="S",LEN($Q60)>13),"Código >13", IF(AND(Import.TipoArredondamento="TransfereGOV",$L60="F",$C60<>"S",LEN($R60)>100),"Descrição >100", IF(AND(Import.TipoArredondamento="TransfereGOV",$L60="F",$C60="S",LEN($R60)>500),"Descrição >500", IF(AND(Import.TipoArredondamento="TransfereGOV",$L60="F",$C60="S",LEFT(TRIM(UPPER($P60)),6)<>"SINAPI",ISNA(VLOOKUP(TRIM(UPPER($S60)),ListaTgov.Unidades,1,FALSE))),"Unid. Não Disp", " ")))))))))))))))) ->  | AD60: =IF(C60<=CRONO.NivelExibicao,MAX($AD$15:OFFSET(AD60,-1,0))+IF($C60<>1,1,MAX(1,COUNTIF(QCI!$A$13:$A$24,OFFSET($E60,-1,0)))),"") ->  | AE60: =IF(AND($C60="S",ORÇAMENTO.CodBarra<>""),IF(ORÇAMENTO.Fonte="",ORÇAMENTO.CodBarra,CONCATENATE(ORÇAMENTO.Fonte," ",ORÇAMENTO.CodBarra))) -> Composição IUP30075 | AF60: =IF(ISERROR(INDIRECT(ORÇAMENTO.BancoRef)),"(abra o arquivo 'Referência "&Excel_BuiltIn_Database&".xlsm)",IF(OR($C60<>"S",ORÇAMENTO.CodBarra=""),"(Sem Código)",IF(ISERROR(MATCH($AE60,INDIRECT(ORÇAMENTO.BancoRef),0)),"(Código não identificado nas referências)",MATCH($AE60,INDIRECT(ORÇAMENTO.BancoRef),0)))) -> 15 | AG60: =ROUND(IF(DESONERACAO="sim",REFERENCIA.Desonerado,REFERENCIA.NaoDesonerado),2) -> 6.58 | AH60: 0.2338 | AJ60: 355.31 | AM60: 2885.12 | AN60: 8.12
A61: S | B61: 2 | C61: S | D61: 0 | E61: =IF($C61=1,OFFSET(E61,-1,0)+MAX(1,COUNTIF(QCI!$A$13:$A$24,OFFSET(ORÇAMENTO!E61,-1,0))),OFFSET(E61,-1,0)) -> 1 | F61: 4 | G61: 0 | H61: 0 | I61: 11 | J61: 0 | K61: =IF(OR($C61="S",$C61=0),0,MATCH(OFFSET($D61,0,$C61)+IF($C61<>1,1,COUNTIF(QCI!$A$13:$A$24,ORÇAMENTO!E61)),OFFSET($D61,1,$C61,ROW($C$110)-ROW($C61)),0)) -> 0 | L61: F | M61: Serviço | N61: Serviço | O61: 1.4.11. | P61: SINAPI | Q61: 102330 | R61: =IF($C61="S",REFERENCIA.Descricao,"(digite a descrição aqui)") -> TRANSPORTE COM CAMINHÃO TANQUE DE TRANSPORTE DE MATERIAL ASFÁLTICO DE 30000 L, EM VIA URBANA PAVIMENTADA, DMT ATÉ 30KM (UNIDADE: TXKM). AF_07/2020 | S61: =REFERENCIA.Unidade -> TXKM | T61: =OFFSET(CÁLCULO!H$15,ROW($T61)-ROW(T$15),0) -> 12.79 | U61: 1.41 | V61: BDI 1 | W61: =IF($C61="S",ROUND(IF(TIPOORCAMENTO="Proposto",ORÇAMENTO.CustoUnitario*(1+$AH61),ORÇAMENTO.PrecoUnitarioLicitado),15-13*$AF$10),0) -> 1.74 | X61: =IF($C61="S",IF(OR(Import.TipoArredondamento<>"TransfereGOV",ACOMPANHAMENTO="BM"),VTOTAL1,SUM(OFFSET(CÁLCULO!$AI$15,ROW($X61)-ROW($X$15),1):OFFSET(CÁLCULO!$BB$15,ROW($X61)-ROW($X$15),-1))),IF($C61=0,0,ROUND(SomaAgrup,15-13*$AF$11))) -> 22.25 | Y61: RA | Z61: RA | AA61: =IF($C61="S",IF($Z61="CP",$X61,IF($Z61="RA",(($X61)*QCI!$AA$3),0)),SomaAgrup) -> 6.938795291 | AB61: 0 | AC61: =IF($N61=""," ", IF(AND($C61<>"S",OR($R61="",$R61="(digite a descrição aqui)")),"DESCRIÇÃO", IF(AND($C61="S",OR($Q61<>0,$T61>0,$U61>0),$P61=0),"FONTE", IF(AND($C61="S",$P61<>0,OR($T61>0,$U61>0),$Q61=0),"CÓDIGO", IF(AND($C61="S",$P61<>0,$Q61<>0,$R61="(Código não identificado nas referências)"),"CÓDIGO N/ID", IF(AND($C61="S",OR($R61="",$R61="(digite a descrição aqui)"),OR($Q61<>0,$T61>0,$U61>0)),"DESCRIÇÃO", IF(AND($C61="S",$P61<>0,$Q61<>0,$S61=""),"UNIDADE", IF(AND($C61="S",$P61<>0,$Q61<>0,$U61=0),"SEM CUSTO", IF(AND(TIPOORCAMENTO="Licitado",$AL61=0,$AN61>0),"SEM PREÇO", IF(AND($C61="S",$P61<>0,$Q61<>0,$U61>0,$V61=0),"BDI", IF(OR(AND(TIPOORCAMENTO="Proposto",$AG61<>"",$AG61>0,ORÇAMENTO.CustoUnitario>$AG61),AND(TIPOORCAMENTO="LICITADO",ORÇAMENTO.PrecoUnitarioLicitado>$AN61)),"ACIMA REF.", IF(AND($C61="S",$P61<>0,$Q61<>0,$T61=0,$U61>0),"QUANT.", IF(AND(Import.TipoArredondamento="TransfereGOV",$L61="F",$C61="S",LEN($Q61)>13),"Código >13", IF(AND(Import.TipoArredondamento="TransfereGOV",$L61="F",$C61<>"S",LEN($R61)>100),"Descrição >100", IF(AND(Import.TipoArredondamento="TransfereGOV",$L61="F",$C61="S",LEN($R61)>500),"Descrição >500", IF(AND(Import.TipoArredondamento="TransfereGOV",$L61="F",$C61="S",LEFT(TRIM(UPPER($P61)),6)<>"SINAPI",ISNA(VLOOKUP(TRIM(UPPER($S61)),ListaTgov.Unidades,1,FALSE))),"Unid. Não Disp", " ")))))))))))))))) ->  | AD61: =IF(C61<=CRONO.NivelExibicao,MAX($AD$15:OFFSET(AD61,-1,0))+IF($C61<>1,1,MAX(1,COUNTIF(QCI!$A$13:$A$24,OFFSET($E61,-1,0)))),"") ->  | AE61: =IF(AND($C61="S",ORÇAMENTO.CodBarra<>""),IF(ORÇAMENTO.Fonte="",ORÇAMENTO.CodBarra,CONCATENATE(ORÇAMENTO.Fonte," ",ORÇAMENTO.CodBarra))) -> SINAPI 102330 | AF61: =IF(ISERROR(INDIRECT(ORÇAMENTO.BancoRef)),"(abra o arquivo 'Referência "&Excel_BuiltIn_Database&".xlsm)",IF(OR($C61<>"S",ORÇAMENTO.CodBarra=""),"(Sem Código)",IF(ISERROR(MATCH($AE61,INDIRECT(ORÇAMENTO.BancoRef),0)),"(Código não identificado nas referências)",MATCH($AE61,INDIRECT(ORÇAMENTO.BancoRef),0)))) -> 15450 | AG61: =ROUND(IF(DESONERACAO="sim",REFERENCIA.Desonerado,REFERENCIA.NaoDesonerado),2) -> 1.41 | AH61: 0.2338 | AJ61: =AJ60*0.0012*30 -> 12.79116 | AM61: 22.25 | AN61: 1.74
A62: S | B62: 2 | C62: S | D62: 0 | E62: =IF($C62=1,OFFSET(E62,-1,0)+MAX(1,COUNTIF(QCI!$A$13:$A$24,OFFSET(ORÇAMENTO!E62,-1,0))),OFFSET(E62,-1,0)) -> 1 | F62: 4 | G62: 0 | H62: 0 | I62: 12 | J62: 0 | K62: =IF(OR($C62="S",$C62=0),0,MATCH(OFFSET($D62,0,$C62)+IF($C62<>1,1,COUNTIF(QCI!$A$13:$A$24,ORÇAMENTO!E62)),OFFSET($D62,1,$C62,ROW($C$110)-ROW($C62)),0)) -> 0 | L62: F | M62: Serviço | N62: Serviço | O62: 1.4.12. | P62: SINAPI | Q62: 102331 | R62: =IF($C62="S",REFERENCIA.Descricao,"(digite a descrição aqui)") -> TRANSPORTE COM CAMINHÃO TANQUE DE TRANSPORTE DE MATERIAL ASFÁLTICO DE 30000 L, EM VIA URBANA PAVIMENTADA, ADICIONAL PARA DMT EXCEDENTE A 30 KM (UNIDADE: TXKM). AF_07/2020 | S62: =REFERENCIA.Unidade -> TXKM | T62: =OFFSET(CÁLCULO!H$15,ROW($T62)-ROW(T$15),0) -> 16.63 | U62: 0.55 | V62: BDI 1 | W62: =IF($C62="S",ROUND(IF(TIPOORCAMENTO="Proposto",ORÇAMENTO.CustoUnitario*(1+$AH62),ORÇAMENTO.PrecoUnitarioLicitado),15-13*$AF$10),0) -> 0.68 | X62: =IF($C62="S",IF(OR(Import.TipoArredondamento<>"TransfereGOV",ACOMPANHAMENTO="BM"),VTOTAL1,SUM(OFFSET(CÁLCULO!$AI$15,ROW($X62)-ROW($X$15),1):OFFSET(CÁLCULO!$BB$15,ROW($X62)-ROW($X$15),-1))),IF($C62=0,0,ROUND(SomaAgrup,15-13*$AF$11))) -> 11.31 | Y62: RA | Z62: RA | AA62: =IF($C62="S",IF($Z62="CP",$X62,IF($Z62="RA",(($X62)*QCI!$AA$3),0)),SomaAgrup) -> 3.527091 | AB62: 0 | AC62: =IF($N62=""," ", IF(AND($C62<>"S",OR($R62="",$R62="(digite a descrição aqui)")),"DESCRIÇÃO", IF(AND($C62="S",OR($Q62<>0,$T62>0,$U62>0),$P62=0),"FONTE", IF(AND($C62="S",$P62<>0,OR($T62>0,$U62>0),$Q62=0),"CÓDIGO", IF(AND($C62="S",$P62<>0,$Q62<>0,$R62="(Código não identificado nas referências)"),"CÓDIGO N/ID", IF(AND($C62="S",OR($R62="",$R62="(digite a descrição aqui)"),OR($Q62<>0,$T62>0,$U62>0)),"DESCRIÇÃO", IF(AND($C62="S",$P62<>0,$Q62<>0,$S62=""),"UNIDADE", IF(AND($C62="S",$P62<>0,$Q62<>0,$U62=0),"SEM CUSTO", IF(AND(TIPOORCAMENTO="Licitado",$AL62=0,$AN62>0),"SEM PREÇO", IF(AND($C62="S",$P62<>0,$Q62<>0,$U62>0,$V62=0),"BDI", IF(OR(AND(TIPOORCAMENTO="Proposto",$AG62<>"",$AG62>0,ORÇAMENTO.CustoUnitario>$AG62),AND(TIPOORCAMENTO="LICITADO",ORÇAMENTO.PrecoUnitarioLicitado>$AN62)),"ACIMA REF.", IF(AND($C62="S",$P62<>0,$Q62<>0,$T62=0,$U62>0),"QUANT.", IF(AND(Import.TipoArredondamento="TransfereGOV",$L62="F",$C62="S",LEN($Q62)>13),"Código >13", IF(AND(Import.TipoArredondamento="TransfereGOV",$L62="F",$C62<>"S",LEN($R62)>100),"Descrição >100", IF(AND(Import.TipoArredondamento="TransfereGOV",$L62="F",$C62="S",LEN($R62)>500),"Descrição >500", IF(AND(Import.TipoArredondamento="TransfereGOV",$L62="F",$C62="S",LEFT(TRIM(UPPER($P62)),6)<>"SINAPI",ISNA(VLOOKUP(TRIM(UPPER($S62)),ListaTgov.Unidades,1,FALSE))),"Unid. Não Disp", " ")))))))))))))))) ->  | AD62: =IF(C62<=CRONO.NivelExibicao,MAX($AD$15:OFFSET(AD62,-1,0))+IF($C62<>1,1,MAX(1,COUNTIF(QCI!$A$13:$A$24,OFFSET($E62,-1,0)))),"") ->  | AE62: =IF(AND($C62="S",ORÇAMENTO.CodBarra<>""),IF(ORÇAMENTO.Fonte="",ORÇAMENTO.CodBarra,CONCATENATE(ORÇAMENTO.Fonte," ",ORÇAMENTO.CodBarra))) -> SINAPI 102331 | AF62: =IF(ISERROR(INDIRECT(ORÇAMENTO.BancoRef)),"(abra o arquivo 'Referência "&Excel_BuiltIn_Database&".xlsm)",IF(OR($C62<>"S",ORÇAMENTO.CodBarra=""),"(Sem Código)",IF(ISERROR(MATCH($AE62,INDIRECT(ORÇAMENTO.BancoRef),0)),"(Código não identificado nas referências)",MATCH($AE62,INDIRECT(ORÇAMENTO.BancoRef),0)))) -> 15449 | AG62: =ROUND(IF(DESONERACAO="sim",REFERENCIA.Desonerado,REFERENCIA.NaoDesonerado),2) -> 0.55 | AH62: 0.2338 | AJ62: =AJ60*0.0012*39 -> 16.628508 | AM62: 11.31 | AN62: 0.68
A63: S | B63: 2 | C63: S | D63: 0 | E63: =IF($C63=1,OFFSET(E63,-1,0)+MAX(1,COUNTIF(QCI!$A$13:$A$24,OFFSET(ORÇAMENTO!E63,-1,0))),OFFSET(E63,-1,0)) -> 1 | F63: 4 | G63: 0 | H63: 0 | I63: 13 | J63: 0 | K63: =IF(OR($C63="S",$C63=0),0,MATCH(OFFSET($D63,0,$C63)+IF($C63<>1,1,COUNTIF(QCI!$A$13:$A$24,ORÇAMENTO!E63)),OFFSET($D63,1,$C63,ROW($C$110)-ROW($C63)),0)) -> 0 | L63: F | M63: Serviço | N63: Serviço | O63: 1.4.13. | P63: SINAPI | Q63: 95995 | R63: =IF($C63="S",REFERENCIA.Descricao,"(digite a descrição aqui)") -> EXECUÇÃO DE PAVIMENTO COM APLICAÇÃO DE CONCRETO ASFÁLTICO, CAMADA DE ROLAMENTO - EXCLUSIVE CARGA E TRANSPORTE. AF_11/2019 | S63: =REFERENCIA.Unidade -> M3 | T63: =OFFSET(CÁLCULO!H$15,ROW($T63)-ROW(T$15),0) -> 37.77 | U63: 1789.51 | V63: BDI 1 | W63: =IF($C63="S",ROUND(IF(TIPOORCAMENTO="Proposto",ORÇAMENTO.CustoUnitario*(1+$AH63),ORÇAMENTO.PrecoUnitarioLicitado),15-13*$AF$10),0) -> 2207.9 | X63: =IF($C63="S",IF(OR(Import.TipoArredondamento<>"TransfereGOV",ACOMPANHAMENTO="BM"),VTOTAL1,SUM(OFFSET(CÁLCULO!$AI$15,ROW($X63)-ROW($X$15),1):OFFSET(CÁLCULO!$BB$15,ROW($X63)-ROW($X$15),-1))),IF($C63=0,0,ROUND(SomaAgrup,15-13*$AF$11))) -> 83392.38 | Y63: RA | Z63: RA | AA63: =IF($C63="S",IF($Z63="CP",$X63,IF($Z63="RA",(($X63)*QCI!$AA$3),0)),SomaAgrup) -> 26006.4114 | AB63: 0 | AC63: =IF($N63=""," ", IF(AND($C63<>"S",OR($R63="",$R63="(digite a descrição aqui)")),"DESCRIÇÃO", IF(AND($C63="S",OR($Q63<>0,$T63>0,$U63>0),$P63=0),"FONTE", IF(AND($C63="S",$P63<>0,OR($T63>0,$U63>0),$Q63=0),"CÓDIGO", IF(AND($C63="S",$P63<>0,$Q63<>0,$R63="(Código não identificado nas referências)"),"CÓDIGO N/ID", IF(AND($C63="S",OR($R63="",$R63="(digite a descrição aqui)"),OR($Q63<>0,$T63>0,$U63>0)),"DESCRIÇÃO", IF(AND($C63="S",$P63<>0,$Q63<>0,$S63=""),"UNIDADE", IF(AND($C63="S",$P63<>0,$Q63<>0,$U63=0),"SEM CUSTO", IF(AND(TIPOORCAMENTO="Licitado",$AL63=0,$AN63>0),"SEM PREÇO", IF(AND($C63="S",$P63<>0,$Q63<>0,$U63>0,$V63=0),"BDI", IF(OR(AND(TIPOORCAMENTO="Proposto",$AG63<>"",$AG63>0,ORÇAMENTO.CustoUnitario>$AG63),AND(TIPOORCAMENTO="LICITADO",ORÇAMENTO.PrecoUnitarioLicitado>$AN63)),"ACIMA REF.", IF(AND($C63="S",$P63<>0,$Q63<>0,$T63=0,$U63>0),"QUANT.", IF(AND(Import.TipoArredondamento="TransfereGOV",$L63="F",$C63="S",LEN($Q63)>13),"Código >13", IF(AND(Import.TipoArredondamento="TransfereGOV",$L63="F",$C63<>"S",LEN($R63)>100),"Descrição >100", IF(AND(Import.TipoArredondamento="TransfereGOV",$L63="F",$C63="S",LEN($R63)>500),"Descrição >500", IF(AND(Import.TipoArredondamento="TransfereGOV",$L63="F",$C63="S",LEFT(TRIM(UPPER($P63)),6)<>"SINAPI",ISNA(VLOOKUP(TRIM(UPPER($S63)),ListaTgov.Unidades,1,FALSE))),"Unid. Não Disp", " ")))))))))))))))) ->  | AD63: =IF(C63<=CRONO.NivelExibicao,MAX($AD$15:OFFSET(AD63,-1,0))+IF($C63<>1,1,MAX(1,COUNTIF(QCI!$A$13:$A$24,OFFSET($E63,-1,0)))),"") ->  | AE63: =IF(AND($C63="S",ORÇAMENTO.CodBarra<>""),IF(ORÇAMENTO.Fonte="",ORÇAMENTO.CodBarra,CONCATENATE(ORÇAMENTO.Fonte," ",ORÇAMENTO.CodBarra))) -> SINAPI 95995 | AF63: =IF(ISERROR(INDIRECT(ORÇAMENTO.BancoRef)),"(abra o arquivo 'Referência "&Excel_BuiltIn_Database&".xlsm)",IF(OR($C63<>"S",ORÇAMENTO.CodBarra=""),"(Sem Código)",IF(ISERROR(MATCH($AE63,INDIRECT(ORÇAMENTO.BancoRef),0)),"(Código não identificado nas referências)",MATCH($AE63,INDIRECT(ORÇAMENTO.BancoRef),0)))) -> 6369 | AG63: =ROUND(IF(DESONERACAO="sim",REFERENCIA.Desonerado,REFERENCIA.NaoDesonerado),2) -> 1789.51 | AH63: 0.2338 | AJ63: =AJ57*0.03 -> 37.7709 | AM63: 83392.38 | AN63: 2207.9
A64: S | B64: 2 | C64: S | D64: 0 | E64: =IF($C64=1,OFFSET(E64,-1,0)+MAX(1,COUNTIF(QCI!$A$13:$A$24,OFFSET(ORÇAMENTO!E64,-1,0))),OFFSET(E64,-1,0)) -> 1 | F64: 4 | G64: 0 | H64: 0 | I64: 14 | J64: 0 | K64: =IF(OR($C64="S",$C64=0),0,MATCH(OFFSET($D64,0,$C64)+IF($C64<>1,1,COUNTIF(QCI!$A$13:$A$24,ORÇAMENTO!E64)),OFFSET($D64,1,$C64,ROW($C$110)-ROW($C64)),0)) -> 0 | L64: F | M64: Serviço | N64: Serviço | O64: 1.4.14. | P64: SINAPI | Q64: 95876 | R64: =IF($C64="S",REFERENCIA.Descricao,"(digite a descrição aqui)") -> TRANSPORTE COM CAMINHÃO BASCULANTE DE 14 M³, EM VIA URBANA PAVIMENTADA, DMT ATÉ 30 KM (UNIDADE: M3XKM). AF_07/2020 | S64: =REFERENCIA.Unidade -> M3XKM | T64: =OFFSET(CÁLCULO!H$15,ROW($T64)-ROW(T$15),0) -> 1133.13 | U64: 2.14 | V64: BDI 1 | W64: =IF($C64="S",ROUND(IF(TIPOORCAMENTO="Proposto",ORÇAMENTO.CustoUnitario*(1+$AH64),ORÇAMENTO.PrecoUnitarioLicitado),15-13*$AF$10),0) -> 2.64 | X64: =IF($C64="S",IF(OR(Import.TipoArredondamento<>"TransfereGOV",ACOMPANHAMENTO="BM"),VTOTAL1,SUM(OFFSET(CÁLCULO!$AI$15,ROW($X64)-ROW($X$15),1):OFFSET(CÁLCULO!$BB$15,ROW($X64)-ROW($X$15),-1))),IF($C64=0,0,ROUND(SomaAgrup,15-13*$AF$11))) -> 2991.46 | Y64: RA | Z64: RA | AA64: =IF($C64="S",IF($Z64="CP",$X64,IF($Z64="RA",(($X64)*QCI!$AA$3),0)),SomaAgrup) -> 932.9046545 | AB64: 0 | AC64: =IF($N64=""," ", IF(AND($C64<>"S",OR($R64="",$R64="(digite a descrição aqui)")),"DESCRIÇÃO", IF(AND($C64="S",OR($Q64<>0,$T64>0,$U64>0),$P64=0),"FONTE", IF(AND($C64="S",$P64<>0,OR($T64>0,$U64>0),$Q64=0),"CÓDIGO", IF(AND($C64="S",$P64<>0,$Q64<>0,$R64="(Código não identificado nas referências)"),"CÓDIGO N/ID", IF(AND($C64="S",OR($R64="",$R64="(digite a descrição aqui)"),OR($Q64<>0,$T64>0,$U64>0)),"DESCRIÇÃO", IF(AND($C64="S",$P64<>0,$Q64<>0,$S64=""),"UNIDADE", IF(AND($C64="S",$P64<>0,$Q64<>0,$U64=0),"SEM CUSTO", IF(AND(TIPOORCAMENTO="Licitado",$AL64=0,$AN64>0),"SEM PREÇO", IF(AND($C64="S",$P64<>0,$Q64<>0,$U64>0,$V64=0),"BDI", IF(OR(AND(TIPOORCAMENTO="Proposto",$AG64<>"",$AG64>0,ORÇAMENTO.CustoUnitario>$AG64),AND(TIPOORCAMENTO="LICITADO",ORÇAMENTO.PrecoUnitarioLicitado>$AN64)),"ACIMA REF.", IF(AND($C64="S",$P64<>0,$Q64<>0,$T64=0,$U64>0),"QUANT.", IF(AND(Import.TipoArredondamento="TransfereGOV",$L64="F",$C64="S",LEN($Q64)>13),"Código >13", IF(AND(Import.TipoArredondamento="TransfereGOV",$L64="F",$C64<>"S",LEN($R64)>100),"Descrição >100", IF(AND(Import.TipoArredondamento="TransfereGOV",$L64="F",$C64="S",LEN($R64)>500),"Descrição >500", IF(AND(Import.TipoArredondamento="TransfereGOV",$L64="F",$C64="S",LEFT(TRIM(UPPER($P64)),6)<>"SINAPI",ISNA(VLOOKUP(TRIM(UPPER($S64)),ListaTgov.Unidades,1,FALSE))),"Unid. Não Disp", " ")))))))))))))))) ->  | AD64: =IF(C64<=CRONO.NivelExibicao,MAX($AD$15:OFFSET(AD64,-1,0))+IF($C64<>1,1,MAX(1,COUNTIF(QCI!$A$13:$A$24,OFFSET($E64,-1,0)))),"") ->  | AE64: =IF(AND($C64="S",ORÇAMENTO.CodBarra<>""),IF(ORÇAMENTO.Fonte="",ORÇAMENTO.CodBarra,CONCATENATE(ORÇAMENTO.Fonte," ",ORÇAMENTO.CodBarra))) -> SINAPI 95876 | AF64: =IF(ISERROR(INDIRECT(ORÇAMENTO.BancoRef)),"(abra o arquivo 'Referência "&Excel_BuiltIn_Database&".xlsm)",IF(OR($C64<>"S",ORÇAMENTO.CodBarra=""),"(Sem Código)",IF(ISERROR(MATCH($AE64,INDIRECT(ORÇAMENTO.BancoRef),0)),"(Código não identificado nas referências)",MATCH($AE64,INDIRECT(ORÇAMENTO.BancoRef),0)))) -> 15401 | AG64: =ROUND(IF(DESONERACAO="sim",REFERENCIA.Desonerado,REFERENCIA.NaoDesonerado),2) -> 2.14 | AH64: 0.2338 | AJ64: =AJ63*30 -> 1133.127 | AM64: 2991.46 | AN64: 2.64
A65: S | B65: 2 | C65: S | D65: 0 | E65: =IF($C65=1,OFFSET(E65,-1,0)+MAX(1,COUNTIF(QCI!$A$13:$A$24,OFFSET(ORÇAMENTO!E65,-1,0))),OFFSET(E65,-1,0)) -> 1 | F65: 4 | G65: 0 | H65: 0 | I65: 15 | J65: 0 | K65: =IF(OR($C65="S",$C65=0),0,MATCH(OFFSET($D65,0,$C65)+IF($C65<>1,1,COUNTIF(QCI!$A$13:$A$24,ORÇAMENTO!E65)),OFFSET($D65,1,$C65,ROW($C$110)-ROW($C65)),0)) -> 0 | L65: F | M65: Serviço | N65: Serviço | O65: 1.4.15. | P65: SINAPI | Q65: 93593 | R65: =IF($C65="S",REFERENCIA.Descricao,"(digite a descrição aqui)") -> TRANSPORTE COM CAMINHÃO BASCULANTE DE 14 M³, EM VIA URBANA PAVIMENTADA, ADICIONAL PARA DMT EXCEDENTE A 30 KM (UNIDADE: M3XKM). AF_07/2020 | S65: =REFERENCIA.Unidade -> M3XKM | T65: =OFFSET(CÁLCULO!H$15,ROW($T65)-ROW(T$15),0) -> 2304.02 | U65: 0.86 | V65: BDI 1 | W65: =IF($C65="S",ROUND(IF(TIPOORCAMENTO="Proposto",ORÇAMENTO.CustoUnitario*(1+$AH65),ORÇAMENTO.PrecoUnitarioLicitado),15-13*$AF$10),0) -> 1.06 | X65: =IF($C65="S",IF(OR(Import.TipoArredondamento<>"TransfereGOV",ACOMPANHAMENTO="BM"),VTOTAL1,SUM(OFFSET(CÁLCULO!$AI$15,ROW($X65)-ROW($X$15),1):OFFSET(CÁLCULO!$BB$15,ROW($X65)-ROW($X$15),-1))),IF($C65=0,0,ROUND(SomaAgrup,15-13*$AF$11))) -> 2442.26 | Y65: RA | Z65: RA | AA65: =IF($C65="S",IF($Z65="CP",$X65,IF($Z65="RA",(($X65)*QCI!$AA$3),0)),SomaAgrup) -> 761.6333568 | AB65: 0 | AC65: =IF($N65=""," ", IF(AND($C65<>"S",OR($R65="",$R65="(digite a descrição aqui)")),"DESCRIÇÃO", IF(AND($C65="S",OR($Q65<>0,$T65>0,$U65>0),$P65=0),"FONTE", IF(AND($C65="S",$P65<>0,OR($T65>0,$U65>0),$Q65=0),"CÓDIGO", IF(AND($C65="S",$P65<>0,$Q65<>0,$R65="(Código não identificado nas referências)"),"CÓDIGO N/ID", IF(AND($C65="S",OR($R65="",$R65="(digite a descrição aqui)"),OR($Q65<>0,$T65>0,$U65>0)),"DESCRIÇÃO", IF(AND($C65="S",$P65<>0,$Q65<>0,$S65=""),"UNIDADE", IF(AND($C65="S",$P65<>0,$Q65<>0,$U65=0),"SEM CUSTO", IF(AND(TIPOORCAMENTO="Licitado",$AL65=0,$AN65>0),"SEM PREÇO", IF(AND($C65="S",$P65<>0,$Q65<>0,$U65>0,$V65=0),"BDI", IF(OR(AND(TIPOORCAMENTO="Proposto",$AG65<>"",$AG65>0,ORÇAMENTO.CustoUnitario>$AG65),AND(TIPOORCAMENTO="LICITADO",ORÇAMENTO.PrecoUnitarioLicitado>$AN65)),"ACIMA REF.", IF(AND($C65="S",$P65<>0,$Q65<>0,$T65=0,$U65>0),"QUANT.", IF(AND(Import.TipoArredondamento="TransfereGOV",$L65="F",$C65="S",LEN($Q65)>13),"Código >13", IF(AND(Import.TipoArredondamento="TransfereGOV",$L65="F",$C65<>"S",LEN($R65)>100),"Descrição >100", IF(AND(Import.TipoArredondamento="TransfereGOV",$L65="F",$C65="S",LEN($R65)>500),"Descrição >500", IF(AND(Import.TipoArredondamento="TransfereGOV",$L65="F",$C65="S",LEFT(TRIM(UPPER($P65)),6)<>"SINAPI",ISNA(VLOOKUP(TRIM(UPPER($S65)),ListaTgov.Unidades,1,FALSE))),"Unid. Não Disp", " ")))))))))))))))) ->  | AD65: =IF(C65<=CRONO.NivelExibicao,MAX($AD$15:OFFSET(AD65,-1,0))+IF($C65<>1,1,MAX(1,COUNTIF(QCI!$A$13:$A$24,OFFSET($E65,-1,0)))),"") ->  | AE65: =IF(AND($C65="S",ORÇAMENTO.CodBarra<>""),IF(ORÇAMENTO.Fonte="",ORÇAMENTO.CodBarra,CONCATENATE(ORÇAMENTO.Fonte," ",ORÇAMENTO.CodBarra))) -> SINAPI 93593 | AF65: =IF(ISERROR(INDIRECT(ORÇAMENTO.BancoRef)),"(abra o arquivo 'Referência "&Excel_BuiltIn_Database&".xlsm)",IF(OR($C65<>"S",ORÇAMENTO.CodBarra=""),"(Sem Código)",IF(ISERROR(MATCH($AE65,INDIRECT(ORÇAMENTO.BancoRef),0)),"(Código não identificado nas referências)",MATCH($AE65,INDIRECT(ORÇAMENTO.BancoRef),0)))) -> 15399 | AG65: =ROUND(IF(DESONERACAO="sim",REFERENCIA.Desonerado,REFERENCIA.NaoDesonerado),2) -> 0.86 | AH65: 0.2338 | AJ65: =AJ63*61 -> 2304.0249 | AM65: 2442.26 | AN65: 1.06
A66: 2 | B66: 2 | C66: 2 | D66: 5 | E66: =IF($C66=1,OFFSET(E66,-1,0)+MAX(1,COUNTIF(QCI!$A$13:$A$24,OFFSET(ORÇAMENTO!E66,-1,0))),OFFSET(E66,-1,0)) -> 1 | F66: 5 | G66: 0 | H66: 0 | I66: 0 | J66: 44 | K66: =IF(OR($C66="S",$C66=0),0,MATCH(OFFSET($D66,0,$C66)+IF($C66<>1,1,COUNTIF(QCI!$A$13:$A$24,ORÇAMENTO!E66)),OFFSET($D66,1,$C66,ROW($C$110)-ROW($C66)),0)) -> 5 | L66: F | M66: Nível 2 | N66: Nível 2 | O66: 1.5. | P66: SINAPI | Q66: 92263 | R66: IMPLANTAÇÃO ASFÁLTICA - TERRAPLENAGEM | S66: =REFERENCIA.Unidade -> - | T66: =OFFSET(CÁLCULO!H$15,ROW($T66)-ROW(T$15),0) -> 0 | U66: 0 | V66: BDI 1 | W66: =IF($C66="S",ROUND(IF(TIPOORCAMENTO="Proposto",ORÇAMENTO.CustoUnitario*(1+$AH66),ORÇAMENTO.PrecoUnitarioLicitado),15-13*$AF$10),0) -> 0 | X66: =IF($C66="S",IF(OR(Import.TipoArredondamento<>"TransfereGOV",ACOMPANHAMENTO="BM"),VTOTAL1,SUM(OFFSET(CÁLCULO!$AI$15,ROW($X66)-ROW($X$15),1):OFFSET(CÁLCULO!$BB$15,ROW($X66)-ROW($X$15),-1))),IF($C66=0,0,ROUND(SomaAgrup,15-13*$AF$11))) -> 10751.26 | Y66: RA | AA66: =IF($C66="S",IF($Z66="CP",$X66,IF($Z66="RA",(($X66)*QCI!$AA$3),0)),SomaAgrup) -> 3352.844596 | AB66: 0 | AC66: =IF($N66=""," ", IF(AND($C66<>"S",OR($R66="",$R66="(digite a descrição aqui)")),"DESCRIÇÃO", IF(AND($C66="S",OR($Q66<>0,$T66>0,$U66>0),$P66=0),"FONTE", IF(AND($C66="S",$P66<>0,OR($T66>0,$U66>0),$Q66=0),"CÓDIGO", IF(AND($C66="S",$P66<>0,$Q66<>0,$R66="(Código não identificado nas referências)"),"CÓDIGO N/ID", IF(AND($C66="S",OR($R66="",$R66="(digite a descrição aqui)"),OR($Q66<>0,$T66>0,$U66>0)),"DESCRIÇÃO", IF(AND($C66="S",$P66<>0,$Q66<>0,$S66=""),"UNIDADE", IF(AND($C66="S",$P66<>0,$Q66<>0,$U66=0),"SEM CUSTO", IF(AND(TIPOORCAMENTO="Licitado",$AL66=0,$AN66>0),"SEM PREÇO", IF(AND($C66="S",$P66<>0,$Q66<>0,$U66>0,$V66=0),"BDI", IF(OR(AND(TIPOORCAMENTO="Proposto",$AG66<>"",$AG66>0,ORÇAMENTO.CustoUnitario>$AG66),AND(TIPOORCAMENTO="LICITADO",ORÇAMENTO.PrecoUnitarioLicitado>$AN66)),"ACIMA REF.", IF(AND($C66="S",$P66<>0,$Q66<>0,$T66=0,$U66>0),"QUANT.", IF(AND(Import.TipoArredondamento="TransfereGOV",$L66="F",$C66="S",LEN($Q66)>13),"Código >13", IF(AND(Import.TipoArredondamento="TransfereGOV",$L66="F",$C66<>"S",LEN($R66)>100),"Descrição >100", IF(AND(Import.TipoArredondamento="TransfereGOV",$L66="F",$C66="S",LEN($R66)>500),"Descrição >500", IF(AND(Import.TipoArredondamento="TransfereGOV",$L66="F",$C66="S",LEFT(TRIM(UPPER($P66)),6)<>"SINAPI",ISNA(VLOOKUP(TRIM(UPPER($S66)),ListaTgov.Unidades,1,FALSE))),"Unid. Não Disp", " ")))))))))))))))) ->  | AD66: =IF(C66<=CRONO.NivelExibicao,MAX($AD$15:OFFSET(AD66,-1,0))+IF($C66<>1,1,MAX(1,COUNTIF(QCI!$A$13:$A$24,OFFSET($E66,-1,0)))),"") -> 6 | AE66: =IF(AND($C66="S",ORÇAMENTO.CodBarra<>""),IF(ORÇAMENTO.Fonte="",ORÇAMENTO.CodBarra,CONCATENATE(ORÇAMENTO.Fonte," ",ORÇAMENTO.CodBarra))) -> FALSE | AF66: =IF(ISERROR(INDIRECT(ORÇAMENTO.BancoRef)),"(abra o arquivo 'Referência "&Excel_BuiltIn_Database&".xlsm)",IF(OR($C66<>"S",ORÇAMENTO.CodBarra=""),"(Sem Código)",IF(ISERROR(MATCH($AE66,INDIRECT(ORÇAMENTO.BancoRef),0)),"(Código não identificado nas referências)",MATCH($AE66,INDIRECT(ORÇAMENTO.BancoRef),0)))) -> (Sem Código) | AG66: =ROUND(IF(DESONERACAO="sim",REFERENCIA.Desonerado,REFERENCIA.NaoDesonerado),2) -> 0 | AH66: 0.2338 | AJ66: 1471.46103 | AM66: 10751.26 | AN66: 0
A67: S | B67: 2 | C67: S | D67: 0 | E67: =IF($C67=1,OFFSET(E67,-1,0)+MAX(1,COUNTIF(QCI!$A$13:$A$24,OFFSET(ORÇAMENTO!E67,-1,0))),OFFSET(E67,-1,0)) -> 1 | F67: 5 | G67: 0 | H67: 0 | I67: 1 | J67: 0 | K67: =IF(OR($C67="S",$C67=0),0,MATCH(OFFSET($D67,0,$C67)+IF($C67<>1,1,COUNTIF(QCI!$A$13:$A$24,ORÇAMENTO!E67)),OFFSET($D67,1,$C67,ROW($C$110)-ROW($C67)),0)) -> 0 | L67: F | M67: Serviço | N67: Serviço | O67: 1.5.1. | P67: Composição | Q67: IUP30023 | R67: =IF($C67="S",REFERENCIA.Descricao,"(digite a descrição aqui)") -> Escavação mecânica de material 1­ª categoria, proveniente de corte do subleito (com motoniveladora 125 HP) | S67: M3 | T67: =OFFSET(CÁLCULO!H$15,ROW($T67)-ROW(T$15),0) -> 325.47 | U67: 2.42 | V67: BDI 1 | W67: =IF($C67="S",ROUND(IF(TIPOORCAMENTO="Proposto",ORÇAMENTO.CustoUnitario*(1+$AH67),ORÇAMENTO.PrecoUnitarioLicitado),15-13*$AF$10),0) -> 2.99 | X67: =IF($C67="S",IF(OR(Import.TipoArredondamento<>"TransfereGOV",ACOMPANHAMENTO="BM"),VTOTAL1,SUM(OFFSET(CÁLCULO!$AI$15,ROW($X67)-ROW($X$15),1):OFFSET(CÁLCULO!$BB$15,ROW($X67)-ROW($X$15),-1))),IF($C67=0,0,ROUND(SomaAgrup,15-13*$AF$11))) -> 973.16 | Y67: RA | Z67: RA | AA67: =IF($C67="S",IF($Z67="CP",$X67,IF($Z67="RA",(($X67)*QCI!$AA$3),0)),SomaAgrup) -> 303.485754 | AB67: 0 | AC67: =IF($N67=""," ", IF(AND($C67<>"S",OR($R67="",$R67="(digite a descrição aqui)")),"DESCRIÇÃO", IF(AND($C67="S",OR($Q67<>0,$T67>0,$U67>0),$P67=0),"FONTE", IF(AND($C67="S",$P67<>0,OR($T67>0,$U67>0),$Q67=0),"CÓDIGO", IF(AND($C67="S",$P67<>0,$Q67<>0,$R67="(Código não identificado nas referências)"),"CÓDIGO N/ID", IF(AND($C67="S",OR($R67="",$R67="(digite a descrição aqui)"),OR($Q67<>0,$T67>0,$U67>0)),"DESCRIÇÃO", IF(AND($C67="S",$P67<>0,$Q67<>0,$S67=""),"UNIDADE", IF(AND($C67="S",$P67<>0,$Q67<>0,$U67=0),"SEM CUSTO", IF(AND(TIPOORCAMENTO="Licitado",$AL67=0,$AN67>0),"SEM PREÇO", IF(AND($C67="S",$P67<>0,$Q67<>0,$U67>0,$V67=0),"BDI", IF(OR(AND(TIPOORCAMENTO="Proposto",$AG67<>"",$AG67>0,ORÇAMENTO.CustoUnitario>$AG67),AND(TIPOORCAMENTO="LICITADO",ORÇAMENTO.PrecoUnitarioLicitado>$AN67)),"ACIMA REF.", IF(AND($C67="S",$P67<>0,$Q67<>0,$T67=0,$U67>0),"QUANT.", IF(AND(Import.TipoArredondamento="TransfereGOV",$L67="F",$C67="S",LEN($Q67)>13),"Código >13", IF(AND(Import.TipoArredondamento="TransfereGOV",$L67="F",$C67<>"S",LEN($R67)>100),"Descrição >100", IF(AND(Import.TipoArredondamento="TransfereGOV",$L67="F",$C67="S",LEN($R67)>500),"Descrição >500", IF(AND(Import.TipoArredondamento="TransfereGOV",$L67="F",$C67="S",LEFT(TRIM(UPPER($P67)),6)<>"SINAPI",ISNA(VLOOKUP(TRIM(UPPER($S67)),ListaTgov.Unidades,1,FALSE))),"Unid. Não Disp", " ")))))))))))))))) ->  | AD67: =IF(C67<=CRONO.NivelExibicao,MAX($AD$15:OFFSET(AD67,-1,0))+IF($C67<>1,1,MAX(1,COUNTIF(QCI!$A$13:$A$24,OFFSET($E67,-1,0)))),"") ->  | AE67: =IF(AND($C67="S",ORÇAMENTO.CodBarra<>""),IF(ORÇAMENTO.Fonte="",ORÇAMENTO.CodBarra,CONCATENATE(ORÇAMENTO.Fonte," ",ORÇAMENTO.CodBarra))) -> Composição IUP30023 | AF67: =IF(ISERROR(INDIRECT(ORÇAMENTO.BancoRef)),"(abra o arquivo 'Referência "&Excel_BuiltIn_Database&".xlsm)",IF(OR($C67<>"S",ORÇAMENTO.CodBarra=""),"(Sem Código)",IF(ISERROR(MATCH($AE67,INDIRECT(ORÇAMENTO.BancoRef),0)),"(Código não identificado nas referências)",MATCH($AE67,INDIRECT(ORÇAMENTO.BancoRef),0)))) -> 16 | AG67: =ROUND(IF(DESONERACAO="sim",REFERENCIA.Desonerado,REFERENCIA.NaoDesonerado),2) -> 2.42 | AH67: 0.2338 | AJ67: 325.47 | AM67: 973.16 | AN67: 2.99
A68: S | B68: 2 | C68: S | D68: 0 | E68: =IF($C68=1,OFFSET(E68,-1,0)+MAX(1,COUNTIF(QCI!$A$13:$A$24,OFFSET(ORÇAMENTO!E68,-1,0))),OFFSET(E68,-1,0)) -> 1 | F68: 5 | G68: 0 | H68: 0 | I68: 2 | J68: 0 | K68: =IF(OR($C68="S",$C68=0),0,MATCH(OFFSET($D68,0,$C68)+IF($C68<>1,1,COUNTIF(QCI!$A$13:$A$24,ORÇAMENTO!E68)),OFFSET($D68,1,$C68,ROW($C$110)-ROW($C68)),0)) -> 0 | L68: F | M68: Serviço | N68: Serviço | O68: 1.5.2. | P68: SINAPI | Q68: 100979 | R68: =IF($C68="S",REFERENCIA.Descricao,"(digite a descrição aqui)") -> CARGA, MANOBRA E DESCARGA DE SOLOS E MATERIAIS GRANULARES EM CAMINHÃO BASCULANTE 14 M³ - CARGA COM ESCAVADEIRA HIDRÁULICA (CAÇAMBA DE 1,20 M³ / 155 HP) E DESCARGA LIVRE (UNIDADE: M3). AF_07/2020 | S68: =REFERENCIA.Unidade -> M3 | T68: =OFFSET(CÁLCULO!H$15,ROW($T68)-ROW(T$15),0) -> 423.11 | U68: =AG68 -> 6.65 | V68: BDI 1 | W68: =IF($C68="S",ROUND(IF(TIPOORCAMENTO="Proposto",ORÇAMENTO.CustoUnitario*(1+$AH68),ORÇAMENTO.PrecoUnitarioLicitado),15-13*$AF$10),0) -> 8.2 | X68: =IF($C68="S",IF(OR(Import.TipoArredondamento<>"TransfereGOV",ACOMPANHAMENTO="BM"),VTOTAL1,SUM(OFFSET(CÁLCULO!$AI$15,ROW($X68)-ROW($X$15),1):OFFSET(CÁLCULO!$BB$15,ROW($X68)-ROW($X$15),-1))),IF($C68=0,0,ROUND(SomaAgrup,15-13*$AF$11))) -> 3469.5 | Y68: RA | Z68: RA | AA68: =IF($C68="S",IF($Z68="CP",$X68,IF($Z68="RA",(($X68)*QCI!$AA$3),0)),SomaAgrup) -> 1081.984282 | AB68: 0 | AC68: =IF($N68=""," ", IF(AND($C68<>"S",OR($R68="",$R68="(digite a descrição aqui)")),"DESCRIÇÃO", IF(AND($C68="S",OR($Q68<>0,$T68>0,$U68>0),$P68=0),"FONTE", IF(AND($C68="S",$P68<>0,OR($T68>0,$U68>0),$Q68=0),"CÓDIGO", IF(AND($C68="S",$P68<>0,$Q68<>0,$R68="(Código não identificado nas referências)"),"CÓDIGO N/ID", IF(AND($C68="S",OR($R68="",$R68="(digite a descrição aqui)"),OR($Q68<>0,$T68>0,$U68>0)),"DESCRIÇÃO", IF(AND($C68="S",$P68<>0,$Q68<>0,$S68=""),"UNIDADE", IF(AND($C68="S",$P68<>0,$Q68<>0,$U68=0),"SEM CUSTO", IF(AND(TIPOORCAMENTO="Licitado",$AL68=0,$AN68>0),"SEM PREÇO", IF(AND($C68="S",$P68<>0,$Q68<>0,$U68>0,$V68=0),"BDI", IF(OR(AND(TIPOORCAMENTO="Proposto",$AG68<>"",$AG68>0,ORÇAMENTO.CustoUnitario>$AG68),AND(TIPOORCAMENTO="LICITADO",ORÇAMENTO.PrecoUnitarioLicitado>$AN68)),"ACIMA REF.", IF(AND($C68="S",$P68<>0,$Q68<>0,$T68=0,$U68>0),"QUANT.", IF(AND(Import.TipoArredondamento="TransfereGOV",$L68="F",$C68="S",LEN($Q68)>13),"Código >13", IF(AND(Import.TipoArredondamento="TransfereGOV",$L68="F",$C68<>"S",LEN($R68)>100),"Descrição >100", IF(AND(Import.TipoArredondamento="TransfereGOV",$L68="F",$C68="S",LEN($R68)>500),"Descrição >500", IF(AND(Import.TipoArredondamento="TransfereGOV",$L68="F",$C68="S",LEFT(TRIM(UPPER($P68)),6)<>"SINAPI",ISNA(VLOOKUP(TRIM(UPPER($S68)),ListaTgov.Unidades,1,FALSE))),"Unid. Não Disp", " ")))))))))))))))) ->  | AD68: =IF(C68<=CRONO.NivelExibicao,MAX($AD$15:OFFSET(AD68,-1,0))+IF($C68<>1,1,MAX(1,COUNTIF(QCI!$A$13:$A$24,OFFSET($E68,-1,0)))),"") ->  | AE68: =IF(AND($C68="S",ORÇAMENTO.CodBarra<>""),IF(ORÇAMENTO.Fonte="",ORÇAMENTO.CodBarra,CONCATENATE(ORÇAMENTO.Fonte," ",ORÇAMENTO.CodBarra))) -> SINAPI 100979 | AF68: =IF(ISERROR(INDIRECT(ORÇAMENTO.BancoRef)),"(abra o arquivo 'Referência "&Excel_BuiltIn_Database&".xlsm)",IF(OR($C68<>"S",ORÇAMENTO.CodBarra=""),"(Sem Código)",IF(ISERROR(MATCH($AE68,INDIRECT(ORÇAMENTO.BancoRef),0)),"(Código não identificado nas referências)",MATCH($AE68,INDIRECT(ORÇAMENTO.BancoRef),0)))) -> 15335 | AG68: =ROUND(IF(DESONERACAO="sim",REFERENCIA.Desonerado,REFERENCIA.NaoDesonerado),2) -> 6.65 | AH68: 0.2338 | AJ68: =AJ67*1.3 -> 423.111 | AM68: 3469.5 | AN68: 8.2
A69: =CHOOSE(1+LOG(1+2*(ORÇAMENTO.Nivel="Meta")+4*(ORÇAMENTO.Nivel="Nível 2")+8*(ORÇAMENTO.Nivel="Nível 3")+16*(ORÇAMENTO.Nivel="Nível 4")+32*(ORÇAMENTO.Nivel="Serviço"),2),0,1,2,3,4,"S") -> S | B69: =IF(OR(C69="s",C69=0),OFFSET(B69,-1,0),C69) -> 2 | C69: =IF(OFFSET(C69,-1,0)="L",1,IF(OFFSET(C69,-1,0)=1,2,IF(OR(A69="s",A69=0),"S",IF(AND(OFFSET(C69,-1,0)=2,A69=4),3,IF(AND(OR(OFFSET(C69,-1,0)="s",OFFSET(C69,-1,0)=0),A69<>"s",A69>OFFSET(B69,-1,0)),OFFSET(B69,-1,0),A69))))) -> S | D69: =IF(OR(C69="S",C69=0),0,IF(ISERROR(K69),J69,SMALL(J69:K69,1))) -> 0 | E69: =IF($C69=1,OFFSET(E69,-1,0)+MAX(1,COUNTIF(QCI!$A$13:$A$24,OFFSET(ORÇAMENTO!E69,-1,0))),OFFSET(E69,-1,0)) -> 1 | F69: =IF($C69=1,0,IF($C69=2,OFFSET(F69,-1,0)+1,OFFSET(F69,-1,0))) -> 5 | G69: =IF(AND($C69<=2,$C69<>0),0,IF($C69=3,OFFSET(G69,-1,0)+1,OFFSET(G69,-1,0))) -> 0 | H69: =IF(AND($C69<=3,$C69<>0),0,IF($C69=4,OFFSET(H69,-1,0)+1,OFFSET(H69,-1,0))) -> 0 | I69: =IF(AND($C69<=4,$C69<>0),0,IF(AND($C69="S",$X69>0),OFFSET(I69,-1,0)+1,OFFSET(I69,-1,0))) -> 3 | J69: 0 | K69: =IF(OR($C69="S",$C69=0),0,MATCH(OFFSET($D69,0,$C69)+IF($C69<>1,1,COUNTIF(QCI!$A$13:$A$24,ORÇAMENTO!E69)),OFFSET($D69,1,$C69,ROW($C$110)-ROW($C69)),0)) -> 0 | L69: =IF(OR($X69>0,$C69=1,$C69=2,$C69=3,$C69=4),"F","") -> F | M69: Serviço | N69: =CHOOSE(1+LOG(1+2*(C69=1)+4*(C69=2)+8*(C69=3)+16*(C69=4)+32*(C69="S"),2),"","Meta","Nível 2","Nível 3","Nível 4","Serviço") -> Serviço | O69: =IF(OR($C69=0,$L69=""),"-",CONCATENATE(E69&".",IF(AND($A$5>=2,$C69>=2),F69&".",""),IF(AND($A$5>=3,$C69>=3),G69&".",""),IF(AND($A$5>=4,$C69>=4),H69&".",""),IF($C69="S",I69&".",""))) -> 1.5.3. | P69: SINAPI | Q69: 95876 | R69: =IF($C69="S",REFERENCIA.Descricao,"(digite a descrição aqui)") -> TRANSPORTE COM CAMINHÃO BASCULANTE DE 14 M³, EM VIA URBANA PAVIMENTADA, DMT ATÉ 30 KM (UNIDADE: M3XKM). AF_07/2020 | S69: =REFERENCIA.Unidade -> M3XKM | T69: =OFFSET(CÁLCULO!H$15,ROW($T69)-ROW(T$15),0) -> 2115.56 | U69: =AG69 -> 2.14 | V69: BDI 1 | W69: =IF($C69="S",ROUND(IF(TIPOORCAMENTO="Proposto",ORÇAMENTO.CustoUnitario*(1+$AH69),ORÇAMENTO.PrecoUnitarioLicitado),15-13*$AF$10),0) -> 2.64 | X69: =IF($C69="S",IF(OR(Import.TipoArredondamento<>"TransfereGOV",ACOMPANHAMENTO="BM"),VTOTAL1,SUM(OFFSET(CÁLCULO!$AI$15,ROW($X69)-ROW($X$15),1):OFFSET(CÁLCULO!$BB$15,ROW($X69)-ROW($X$15),-1))),IF($C69=0,0,ROUND(SomaAgrup,15-13*$AF$11))) -> 5585.08 | Y69: RA | Z69: =IF(AND($C69="S",$X69>0),IF(ISBLANK($Y69),"RA",LEFT($Y69,2)),"") -> RA | AA69: =IF($C69="S",IF($Z69="CP",$X69,IF($Z69="RA",(($X69)*QCI!$AA$3),0)),SomaAgrup) -> 1741.740531 | AB69: =IF($C69="S",IF($Z69="OU",ROUND($X69,2),0),SomaAgrup) -> 0 | AC69: =IF($N69=""," ", IF(AND($C69<>"S",OR($R69="",$R69="(digite a descrição aqui)")),"DESCRIÇÃO", IF(AND($C69="S",OR($Q69<>0,$T69>0,$U69>0),$P69=0),"FONTE", IF(AND($C69="S",$P69<>0,OR($T69>0,$U69>0),$Q69=0),"CÓDIGO", IF(AND($C69="S",$P69<>0,$Q69<>0,$R69="(Código não identificado nas referências)"),"CÓDIGO N/ID", IF(AND($C69="S",OR($R69="",$R69="(digite a descrição aqui)"),OR($Q69<>0,$T69>0,$U69>0)),"DESCRIÇÃO", IF(AND($C69="S",$P69<>0,$Q69<>0,$S69=""),"UNIDADE", IF(AND($C69="S",$P69<>0,$Q69<>0,$U69=0),"SEM CUSTO", IF(AND(TIPOORCAMENTO="Licitado",$AL69=0,$AN69>0),"SEM PREÇO", IF(AND($C69="S",$P69<>0,$Q69<>0,$U69>0,$V69=0),"BDI", IF(OR(AND(TIPOORCAMENTO="Proposto",$AG69<>"",$AG69>0,ORÇAMENTO.CustoUnitario>$AG69),AND(TIPOORCAMENTO="LICITADO",ORÇAMENTO.PrecoUnitarioLicitado>$AN69)),"ACIMA REF.", IF(AND($C69="S",$P69<>0,$Q69<>0,$T69=0,$U69>0),"QUANT.", IF(AND(Import.TipoArredondamento="TransfereGOV",$L69="F",$C69="S",LEN($Q69)>13),"Código >13", IF(AND(Import.TipoArredondamento="TransfereGOV",$L69="F",$C69<>"S",LEN($R69)>100),"Descrição >100", IF(AND(Import.TipoArredondamento="TransfereGOV",$L69="F",$C69="S",LEN($R69)>500),"Descrição >500", IF(AND(Import.TipoArredondamento="TransfereGOV",$L69="F",$C69="S",LEFT(TRIM(UPPER($P69)),6)<>"SINAPI",ISNA(VLOOKUP(TRIM(UPPER($S69)),ListaTgov.Unidades,1,FALSE))),"Unid. Não Disp", " ")))))))))))))))) ->  | AD69: =IF(C69<=CRONO.NivelExibicao,MAX($AD$15:OFFSET(AD69,-1,0))+IF($C69<>1,1,MAX(1,COUNTIF(QCI!$A$13:$A$24,OFFSET($E69,-1,0)))),"") ->  | AE69: =IF(AND($C69="S",ORÇAMENTO.CodBarra<>""),IF(ORÇAMENTO.Fonte="",ORÇAMENTO.CodBarra,CONCATENATE(ORÇAMENTO.Fonte," ",ORÇAMENTO.CodBarra))) -> SINAPI 95876 | AF69: =IF(ISERROR(INDIRECT(ORÇAMENTO.BancoRef)),"(abra o arquivo 'Referência "&Excel_BuiltIn_Database&".xlsm)",IF(OR($C69<>"S",ORÇAMENTO.CodBarra=""),"(Sem Código)",IF(ISERROR(MATCH($AE69,INDIRECT(ORÇAMENTO.BancoRef),0)),"(Código não identificado nas referências)",MATCH($AE69,INDIRECT(ORÇAMENTO.BancoRef),0)))) -> 15401 | AG69: =ROUND(IF(DESONERACAO="sim",REFERENCIA.Desonerado,REFERENCIA.NaoDesonerado),2) -> 2.14 | AH69: =ROUND(IF(ISNUMBER(ORÇAMENTO.OpcaoBDI),ORÇAMENTO.OpcaoBDI,IF(LEFT(ORÇAMENTO.OpcaoBDI,3)="BDI",HLOOKUP(ORÇAMENTO.OpcaoBDI,$F$4:$H$5,2,FALSE),0)),15-11*$AF$9) -> 0.2338 | AJ69: =AJ68*5 -> 2115.555 | AM69: 5585.08 | AN69: =ROUND(ORÇAMENTO.CustoUnitario*(1+$AH69),2) -> 2.64
A70: =CHOOSE(1+LOG(1+2*(ORÇAMENTO.Nivel="Meta")+4*(ORÇAMENTO.Nivel="Nível 2")+8*(ORÇAMENTO.Nivel="Nível 3")+16*(ORÇAMENTO.Nivel="Nível 4")+32*(ORÇAMENTO.Nivel="Serviço"),2),0,1,2,3,4,"S") -> S | B70: =IF(OR(C70="s",C70=0),OFFSET(B70,-1,0),C70) -> 2 | C70: =IF(OFFSET(C70,-1,0)="L",1,IF(OFFSET(C70,-1,0)=1,2,IF(OR(A70="s",A70=0),"S",IF(AND(OFFSET(C70,-1,0)=2,A70=4),3,IF(AND(OR(OFFSET(C70,-1,0)="s",OFFSET(C70,-1,0)=0),A70<>"s",A70>OFFSET(B70,-1,0)),OFFSET(B70,-1,0),A70))))) -> S | D70: =IF(OR(C70="S",C70=0),0,IF(ISERROR(K70),J70,SMALL(J70:K70,1))) -> 0 | E70: =IF($C70=1,OFFSET(E70,-1,0)+MAX(1,COUNTIF(QCI!$A$13:$A$24,OFFSET(ORÇAMENTO!E70,-1,0))),OFFSET(E70,-1,0)) -> 1 | F70: =IF($C70=1,0,IF($C70=2,OFFSET(F70,-1,0)+1,OFFSET(F70,-1,0))) -> 5 | G70: =IF(AND($C70<=2,$C70<>0),0,IF($C70=3,OFFSET(G70,-1,0)+1,OFFSET(G70,-1,0))) -> 0 | H70: =IF(AND($C70<=3,$C70<>0),0,IF($C70=4,OFFSET(H70,-1,0)+1,OFFSET(H70,-1,0))) -> 0 | I70: =IF(AND($C70<=4,$C70<>0),0,IF(AND($C70="S",$X70>0),OFFSET(I70,-1,0)+1,OFFSET(I70,-1,0))) -> 4 | J70: 0 | K70: =IF(OR($C70="S",$C70=0),0,MATCH(OFFSET($D70,0,$C70)+IF($C70<>1,1,COUNTIF(QCI!$A$13:$A$24,ORÇAMENTO!E70)),OFFSET($D70,1,$C70,ROW($C$110)-ROW($C70)),0)) -> 0 | L70: =IF(OR($X70>0,$C70=1,$C70=2,$C70=3,$C70=4),"F","") -> F | M70: Serviço | N70: =CHOOSE(1+LOG(1+2*(C70=1)+4*(C70=2)+8*(C70=3)+16*(C70=4)+32*(C70="S"),2),"","Meta","Nível 2","Nível 3","Nível 4","Serviço") -> Serviço | O70: =IF(OR($C70=0,$L70=""),"-",CONCATENATE(E70&".",IF(AND($A$5>=2,$C70>=2),F70&".",""),IF(AND($A$5>=3,$C70>=3),G70&".",""),IF(AND($A$5>=4,$C70>=4),H70&".",""),IF($C70="S",I70&".",""))) -> 1.5.4. | P70: SINAPI | Q70: 100574 | R70: =IF($C70="S",REFERENCIA.Descricao,"(digite a descrição aqui)") -> ESPALHAMENTO DE MATERIAL COM TRATOR DE ESTEIRAS. AF_09/2024 | S70: =REFERENCIA.Unidade -> M3 | T70: =OFFSET(CÁLCULO!H$15,ROW($T70)-ROW(T$15),0) -> 423.11 | U70: 1.39 | V70: BDI 1 | W70: =IF($C70="S",ROUND(IF(TIPOORCAMENTO="Proposto",ORÇAMENTO.CustoUnitario*(1+$AH70),ORÇAMENTO.PrecoUnitarioLicitado),15-13*$AF$10),0) -> 1.71 | X70: =IF($C70="S",IF(OR(Import.TipoArredondamento<>"TransfereGOV",ACOMPANHAMENTO="BM"),VTOTAL1,SUM(OFFSET(CÁLCULO!$AI$15,ROW($X70)-ROW($X$15),1):OFFSET(CÁLCULO!$BB$15,ROW($X70)-ROW($X$15),-1))),IF($C70=0,0,ROUND(SomaAgrup,15-13*$AF$11))) -> 723.52 | Y70: RA | Z70: =IF(AND($C70="S",$X70>0),IF(ISBLANK($Y70),"RA",LEFT($Y70,2)),"") -> RA | AA70: =IF($C70="S",IF($Z70="CP",$X70,IF($Z70="RA",(($X70)*QCI!$AA$3),0)),SomaAgrup) -> 225.6340301 | AB70: =IF($C70="S",IF($Z70="OU",ROUND($X70,2),0),SomaAgrup) -> 0 | AC70: =IF($N70=""," ", IF(AND($C70<>"S",OR($R70="",$R70="(digite a descrição aqui)")),"DESCRIÇÃO", IF(AND($C70="S",OR($Q70<>0,$T70>0,$U70>0),$P70=0),"FONTE", IF(AND($C70="S",$P70<>0,OR($T70>0,$U70>0),$Q70=0),"CÓDIGO", IF(AND($C70="S",$P70<>0,$Q70<>0,$R70="(Código não identificado nas referências)"),"CÓDIGO N/ID", IF(AND($C70="S",OR($R70="",$R70="(digite a descrição aqui)"),OR($Q70<>0,$T70>0,$U70>0)),"DESCRIÇÃO", IF(AND($C70="S",$P70<>0,$Q70<>0,$S70=""),"UNIDADE", IF(AND($C70="S",$P70<>0,$Q70<>0,$U70=0),"SEM CUSTO", IF(AND(TIPOORCAMENTO="Licitado",$AL70=0,$AN70>0),"SEM PREÇO", IF(AND($C70="S",$P70<>0,$Q70<>0,$U70>0,$V70=0),"BDI", IF(OR(AND(TIPOORCAMENTO="Proposto",$AG70<>"",$AG70>0,ORÇAMENTO.CustoUnitario>$AG70),AND(TIPOORCAMENTO="LICITADO",ORÇAMENTO.PrecoUnitarioLicitado>$AN70)),"ACIMA REF.", IF(AND($C70="S",$P70<>0,$Q70<>0,$T70=0,$U70>0),"QUANT.", IF(AND(Import.TipoArredondamento="TransfereGOV",$L70="F",$C70="S",LEN($Q70)>13),"Código >13", IF(AND(Import.TipoArredondamento="TransfereGOV",$L70="F",$C70<>"S",LEN($R70)>100),"Descrição >100", IF(AND(Import.TipoArredondamento="TransfereGOV",$L70="F",$C70="S",LEN($R70)>500),"Descrição >500", IF(AND(Import.TipoArredondamento="TransfereGOV",$L70="F",$C70="S",LEFT(TRIM(UPPER($P70)),6)<>"SINAPI",ISNA(VLOOKUP(TRIM(UPPER($S70)),ListaTgov.Unidades,1,FALSE))),"Unid. Não Disp", " ")))))))))))))))) ->  | AD70: =IF(C70<=CRONO.NivelExibicao,MAX($AD$15:OFFSET(AD70,-1,0))+IF($C70<>1,1,MAX(1,COUNTIF(QCI!$A$13:$A$24,OFFSET($E70,-1,0)))),"") ->  | AE70: =IF(AND($C70="S",ORÇAMENTO.CodBarra<>""),IF(ORÇAMENTO.Fonte="",ORÇAMENTO.CodBarra,CONCATENATE(ORÇAMENTO.Fonte," ",ORÇAMENTO.CodBarra))) -> SINAPI 100574 | AF70: =IF(ISERROR(INDIRECT(ORÇAMENTO.BancoRef)),"(abra o arquivo 'Referência "&Excel_BuiltIn_Database&".xlsm)",IF(OR($C70<>"S",ORÇAMENTO.CodBarra=""),"(Sem Código)",IF(ISERROR(MATCH($AE70,INDIRECT(ORÇAMENTO.BancoRef),0)),"(Código não identificado nas referências)",MATCH($AE70,INDIRECT(ORÇAMENTO.BancoRef),0)))) -> 6884 | AG70: =ROUND(IF(DESONERACAO="sim",REFERENCIA.Desonerado,REFERENCIA.NaoDesonerado),2) -> 1.39 | AH70: =ROUND(IF(ISNUMBER(ORÇAMENTO.OpcaoBDI),ORÇAMENTO.OpcaoBDI,IF(LEFT(ORÇAMENTO.OpcaoBDI,3)="BDI",HLOOKUP(ORÇAMENTO.OpcaoBDI,$F$4:$H$5,2,FALSE),0)),15-11*$AF$9) -> 0.2338 | AJ70: =AJ68 -> 423.111 | AM70: 723.52 | AN70: =ROUND(ORÇAMENTO.CustoUnitario*(1+$AH70),2) -> 1.71
A71: 2 | B71: 2 | C71: 2 | D71: 5 | E71: =IF($C71=1,OFFSET(E71,-1,0)+MAX(1,COUNTIF(QCI!$A$13:$A$24,OFFSET(ORÇAMENTO!E71,-1,0))),OFFSET(E71,-1,0)) -> 1 | F71: 6 | G71: 0 | H71: 0 | I71: 0 | J71: 39 | K71: =IF(OR($C71="S",$C71=0),0,MATCH(OFFSET($D71,0,$C71)+IF($C71<>1,1,COUNTIF(QCI!$A$13:$A$24,ORÇAMENTO!E71)),OFFSET($D71,1,$C71,ROW($C$110)-ROW($C71)),0)) -> 5 | L71: F | M71: Nível 2 | N71: Nível 2 | O71: 1.6. | P71: SINAPI | R71: IMPLANTAÇÃO ASFÁLTICA - BASE | S71: =REFERENCIA.Unidade -> - | T71: =OFFSET(CÁLCULO!H$15,ROW($T71)-ROW(T$15),0) -> 0 | U71: 0 | V71: BDI 1 | W71: =IF($C71="S",ROUND(IF(TIPOORCAMENTO="Proposto",ORÇAMENTO.CustoUnitario*(1+$AH71),ORÇAMENTO.PrecoUnitarioLicitado),15-13*$AF$10),0) -> 0 | X71: =IF($C71="S",IF(OR(Import.TipoArredondamento<>"TransfereGOV",ACOMPANHAMENTO="BM"),VTOTAL1,SUM(OFFSET(CÁLCULO!$AI$15,ROW($X71)-ROW($X$15),1):OFFSET(CÁLCULO!$BB$15,ROW($X71)-ROW($X$15),-1))),IF($C71=0,0,ROUND(SomaAgrup,15-13*$AF$11))) -> 57298.86 | Y71: RA | AA71: =IF($C71="S",IF($Z71="CP",$X71,IF($Z71="RA",(($X71)*QCI!$AA$3),0)),SomaAgrup) -> 17868.99146 | AB71: 0 | AC71: =IF($N71=""," ", IF(AND($C71<>"S",OR($R71="",$R71="(digite a descrição aqui)")),"DESCRIÇÃO", IF(AND($C71="S",OR($Q71<>0,$T71>0,$U71>0),$P71=0),"FONTE", IF(AND($C71="S",$P71<>0,OR($T71>0,$U71>0),$Q71=0),"CÓDIGO", IF(AND($C71="S",$P71<>0,$Q71<>0,$R71="(Código não identificado nas referências)"),"CÓDIGO N/ID", IF(AND($C71="S",OR($R71="",$R71="(digite a descrição aqui)"),OR($Q71<>0,$T71>0,$U71>0)),"DESCRIÇÃO", IF(AND($C71="S",$P71<>0,$Q71<>0,$S71=""),"UNIDADE", IF(AND($C71="S",$P71<>0,$Q71<>0,$U71=0),"SEM CUSTO", IF(AND(TIPOORCAMENTO="Licitado",$AL71=0,$AN71>0),"SEM PREÇO", IF(AND($C71="S",$P71<>0,$Q71<>0,$U71>0,$V71=0),"BDI", IF(OR(AND(TIPOORCAMENTO="Proposto",$AG71<>"",$AG71>0,ORÇAMENTO.CustoUnitario>$AG71),AND(TIPOORCAMENTO="LICITADO",ORÇAMENTO.PrecoUnitarioLicitado>$AN71)),"ACIMA REF.", IF(AND($C71="S",$P71<>0,$Q71<>0,$T71=0,$U71>0),"QUANT.", IF(AND(Import.TipoArredondamento="TransfereGOV",$L71="F",$C71="S",LEN($Q71)>13),"Código >13", IF(AND(Import.TipoArredondamento="TransfereGOV",$L71="F",$C71<>"S",LEN($R71)>100),"Descrição >100", IF(AND(Import.TipoArredondamento="TransfereGOV",$L71="F",$C71="S",LEN($R71)>500),"Descrição >500", IF(AND(Import.TipoArredondamento="TransfereGOV",$L71="F",$C71="S",LEFT(TRIM(UPPER($P71)),6)<>"SINAPI",ISNA(VLOOKUP(TRIM(UPPER($S71)),ListaTgov.Unidades,1,FALSE))),"Unid. Não Disp", " ")))))))))))))))) ->  | AD71: =IF(C71<=CRONO.NivelExibicao,MAX($AD$15:OFFSET(AD71,-1,0))+IF($C71<>1,1,MAX(1,COUNTIF(QCI!$A$13:$A$24,OFFSET($E71,-1,0)))),"") -> 7 | AE71: =IF(AND($C71="S",ORÇAMENTO.CodBarra<>""),IF(ORÇAMENTO.Fonte="",ORÇAMENTO.CodBarra,CONCATENATE(ORÇAMENTO.Fonte," ",ORÇAMENTO.CodBarra))) -> FALSE | AF71: =IF(ISERROR(INDIRECT(ORÇAMENTO.BancoRef)),"(abra o arquivo 'Referência "&Excel_BuiltIn_Database&".xlsm)",IF(OR($C71<>"S",ORÇAMENTO.CodBarra=""),"(Sem Código)",IF(ISERROR(MATCH($AE71,INDIRECT(ORÇAMENTO.BancoRef),0)),"(Código não identificado nas referências)",MATCH($AE71,INDIRECT(ORÇAMENTO.BancoRef),0)))) -> (Sem Código) | AG71: =ROUND(IF(DESONERACAO="sim",REFERENCIA.Desonerado,REFERENCIA.NaoDesonerado),2) -> 0 | AH71: 0.2338 | AM71: 57298.86 | AN71: 0
A72: S | B72: 2 | C72: S | D72: 0 | E72: =IF($C72=1,OFFSET(E72,-1,0)+MAX(1,COUNTIF(QCI!$A$13:$A$24,OFFSET(ORÇAMENTO!E72,-1,0))),OFFSET(E72,-1,0)) -> 1 | F72: 6 | G72: 0 | H72: 0 | I72: 1 | J72: 0 | K72: =IF(OR($C72="S",$C72=0),0,MATCH(OFFSET($D72,0,$C72)+IF($C72<>1,1,COUNTIF(QCI!$A$13:$A$24,ORÇAMENTO!E72)),OFFSET($D72,1,$C72,ROW($C$110)-ROW($C72)),0)) -> 0 | L72: F | M72: Serviço | N72: Serviço | O72: 1.6.1. | P72: SINAPI | Q72: 100577 | R72: =IF($C72="S",REFERENCIA.Descricao,"(digite a descrição aqui)") -> REGULARIZAÇÃO E COMPACTAÇÃO DE SUBLEITO DE SOLO PREDOMINANTEMENTE ARENOSO, PARA OBRAS DE CONSTRUÇÃO DE PAVIMENTOS. AF_09/2024 | S72: =REFERENCIA.Unidade -> M2 | T72: =OFFSET(CÁLCULO!H$15,ROW($T72)-ROW(T$15),0) -> 1829.86 | U72: 1.44 | V72: BDI 1 | W72: =IF($C72="S",ROUND(IF(TIPOORCAMENTO="Proposto",ORÇAMENTO.CustoUnitario*(1+$AH72),ORÇAMENTO.PrecoUnitarioLicitado),15-13*$AF$10),0) -> 1.78 | X72: =IF($C72="S",IF(OR(Import.TipoArredondamento<>"TransfereGOV",ACOMPANHAMENTO="BM"),VTOTAL1,SUM(OFFSET(CÁLCULO!$AI$15,ROW($X72)-ROW($X$15),1):OFFSET(CÁLCULO!$BB$15,ROW($X72)-ROW($X$15),-1))),IF($C72=0,0,ROUND(SomaAgrup,15-13*$AF$11))) -> 3257.15 | Y72: RA | Z72: RA | AA72: =IF($C72="S",IF($Z72="CP",$X72,IF($Z72="RA",(($X72)*QCI!$AA$3),0)),SomaAgrup) -> 1015.761667 | AB72: 0 | AC72: =IF($N72=""," ", IF(AND($C72<>"S",OR($R72="",$R72="(digite a descrição aqui)")),"DESCRIÇÃO", IF(AND($C72="S",OR($Q72<>0,$T72>0,$U72>0),$P72=0),"FONTE", IF(AND($C72="S",$P72<>0,OR($T72>0,$U72>0),$Q72=0),"CÓDIGO", IF(AND($C72="S",$P72<>0,$Q72<>0,$R72="(Código não identificado nas referências)"),"CÓDIGO N/ID", IF(AND($C72="S",OR($R72="",$R72="(digite a descrição aqui)"),OR($Q72<>0,$T72>0,$U72>0)),"DESCRIÇÃO", IF(AND($C72="S",$P72<>0,$Q72<>0,$S72=""),"UNIDADE", IF(AND($C72="S",$P72<>0,$Q72<>0,$U72=0),"SEM CUSTO", IF(AND(TIPOORCAMENTO="Licitado",$AL72=0,$AN72>0),"SEM PREÇO", IF(AND($C72="S",$P72<>0,$Q72<>0,$U72>0,$V72=0),"BDI", IF(OR(AND(TIPOORCAMENTO="Proposto",$AG72<>"",$AG72>0,ORÇAMENTO.CustoUnitario>$AG72),AND(TIPOORCAMENTO="LICITADO",ORÇAMENTO.PrecoUnitarioLicitado>$AN72)),"ACIMA REF.", IF(AND($C72="S",$P72<>0,$Q72<>0,$T72=0,$U72>0),"QUANT.", IF(AND(Import.TipoArredondamento="TransfereGOV",$L72="F",$C72="S",LEN($Q72)>13),"Código >13", IF(AND(Import.TipoArredondamento="TransfereGOV",$L72="F",$C72<>"S",LEN($R72)>100),"Descrição >100", IF(AND(Import.TipoArredondamento="TransfereGOV",$L72="F",$C72="S",LEN($R72)>500),"Descrição >500", IF(AND(Import.TipoArredondamento="TransfereGOV",$L72="F",$C72="S",LEFT(TRIM(UPPER($P72)),6)<>"SINAPI",ISNA(VLOOKUP(TRIM(UPPER($S72)),ListaTgov.Unidades,1,FALSE))),"Unid. Não Disp", " ")))))))))))))))) ->  | AD72: =IF(C72<=CRONO.NivelExibicao,MAX($AD$15:OFFSET(AD72,-1,0))+IF($C72<>1,1,MAX(1,COUNTIF(QCI!$A$13:$A$24,OFFSET($E72,-1,0)))),"") ->  | AE72: =IF(AND($C72="S",ORÇAMENTO.CodBarra<>""),IF(ORÇAMENTO.Fonte="",ORÇAMENTO.CodBarra,CONCATENATE(ORÇAMENTO.Fonte," ",ORÇAMENTO.CodBarra))) -> SINAPI 100577 | AF72: =IF(ISERROR(INDIRECT(ORÇAMENTO.BancoRef)),"(abra o arquivo 'Referência "&Excel_BuiltIn_Database&".xlsm)",IF(OR($C72<>"S",ORÇAMENTO.CodBarra=""),"(Sem Código)",IF(ISERROR(MATCH($AE72,INDIRECT(ORÇAMENTO.BancoRef),0)),"(Código não identificado nas referências)",MATCH($AE72,INDIRECT(ORÇAMENTO.BancoRef),0)))) -> 7006 | AG72: =ROUND(IF(DESONERACAO="sim",REFERENCIA.Desonerado,REFERENCIA.NaoDesonerado),2) -> 1.44 | AH72: 0.2338 | AJ72: 1829.86 | AM72: 3257.15 | AN72: 1.78
A73: =CHOOSE(1+LOG(1+2*(ORÇAMENTO.Nivel="Meta")+4*(ORÇAMENTO.Nivel="Nível 2")+8*(ORÇAMENTO.Nivel="Nível 3")+16*(ORÇAMENTO.Nivel="Nível 4")+32*(ORÇAMENTO.Nivel="Serviço"),2),0,1,2,3,4,"S") -> S | B73: =IF(OR(C73="s",C73=0),OFFSET(B73,-1,0),C73) -> 2 | C73: =IF(OFFSET(C73,-1,0)="L",1,IF(OFFSET(C73,-1,0)=1,2,IF(OR(A73="s",A73=0),"S",IF(AND(OFFSET(C73,-1,0)=2,A73=4),3,IF(AND(OR(OFFSET(C73,-1,0)="s",OFFSET(C73,-1,0)=0),A73<>"s",A73>OFFSET(B73,-1,0)),OFFSET(B73,-1,0),A73))))) -> S | D73: =IF(OR(C73="S",C73=0),0,IF(ISERROR(K73),J73,SMALL(J73:K73,1))) -> 0 | E73: =IF($C73=1,OFFSET(E73,-1,0)+MAX(1,COUNTIF(QCI!$A$13:$A$24,OFFSET(ORÇAMENTO!E73,-1,0))),OFFSET(E73,-1,0)) -> 1 | F73: =IF($C73=1,0,IF($C73=2,OFFSET(F73,-1,0)+1,OFFSET(F73,-1,0))) -> 6 | G73: =IF(AND($C73<=2,$C73<>0),0,IF($C73=3,OFFSET(G73,-1,0)+1,OFFSET(G73,-1,0))) -> 0 | H73: =IF(AND($C73<=3,$C73<>0),0,IF($C73=4,OFFSET(H73,-1,0)+1,OFFSET(H73,-1,0))) -> 0 | I73: =IF(AND($C73<=4,$C73<>0),0,IF(AND($C73="S",$X73>0),OFFSET(I73,-1,0)+1,OFFSET(I73,-1,0))) -> 2 | J73: 0 | K73: =IF(OR($C73="S",$C73=0),0,MATCH(OFFSET($D73,0,$C73)+IF($C73<>1,1,COUNTIF(QCI!$A$13:$A$24,ORÇAMENTO!E73)),OFFSET($D73,1,$C73,ROW($C$110)-ROW($C73)),0)) -> 0 | L73: =IF(OR($X73>0,$C73=1,$C73=2,$C73=3,$C73=4),"F","") -> F | M73: Serviço | N73: =CHOOSE(1+LOG(1+2*(C73=1)+4*(C73=2)+8*(C73=3)+16*(C73=4)+32*(C73="S"),2),"","Meta","Nível 2","Nível 3","Nível 4","Serviço") -> Serviço | O73: =IF(OR($C73=0,$L73=""),"-",CONCATENATE(E73&".",IF(AND($A$5>=2,$C73>=2),F73&".",""),IF(AND($A$5>=3,$C73>=3),G73&".",""),IF(AND($A$5>=4,$C73>=4),H73&".",""),IF($C73="S",I73&".",""))) -> 1.6.2. | P73: Composição | Q73: IUP30069 | R73: =IF($C73="S",REFERENCIA.Descricao,"(digite a descrição aqui)") -> Execução e compactação de base para pavimentação com pedra britada ou bica corrida | S73: =REFERENCIA.Unidade -> M3 | T73: =OFFSET(CÁLCULO!H$15,ROW($T73)-ROW(T$15),0) -> 233.39 | U73: 95.58 | V73: BDI 1 | W73: =IF($C73="S",ROUND(IF(TIPOORCAMENTO="Proposto",ORÇAMENTO.CustoUnitario*(1+$AH73),ORÇAMENTO.PrecoUnitarioLicitado),15-13*$AF$10),0) -> 117.93 | X73: =IF($C73="S",IF(OR(Import.TipoArredondamento<>"TransfereGOV",ACOMPANHAMENTO="BM"),VTOTAL1,SUM(OFFSET(CÁLCULO!$AI$15,ROW($X73)-ROW($X$15),1):OFFSET(CÁLCULO!$BB$15,ROW($X73)-ROW($X$15),-1))),IF($C73=0,0,ROUND(SomaAgrup,15-13*$AF$11))) -> 27523.68 | Y73: RA | Z73: =IF(AND($C73="S",$X73>0),IF(ISBLANK($Y73),"RA",LEFT($Y73,2)),"") -> RA | AA73: =IF($C73="S",IF($Z73="CP",$X73,IF($Z73="RA",(($X73)*QCI!$AA$3),0)),SomaAgrup) -> 8583.423873 | AB73: =IF($C73="S",IF($Z73="OU",ROUND($X73,2),0),SomaAgrup) -> 0 | AC73: =IF($N73=""," ", IF(AND($C73<>"S",OR($R73="",$R73="(digite a descrição aqui)")),"DESCRIÇÃO", IF(AND($C73="S",OR($Q73<>0,$T73>0,$U73>0),$P73=0),"FONTE", IF(AND($C73="S",$P73<>0,OR($T73>0,$U73>0),$Q73=0),"CÓDIGO", IF(AND($C73="S",$P73<>0,$Q73<>0,$R73="(Código não identificado nas referências)"),"CÓDIGO N/ID", IF(AND($C73="S",OR($R73="",$R73="(digite a descrição aqui)"),OR($Q73<>0,$T73>0,$U73>0)),"DESCRIÇÃO", IF(AND($C73="S",$P73<>0,$Q73<>0,$S73=""),"UNIDADE", IF(AND($C73="S",$P73<>0,$Q73<>0,$U73=0),"SEM CUSTO", IF(AND(TIPOORCAMENTO="Licitado",$AL73=0,$AN73>0),"SEM PREÇO", IF(AND($C73="S",$P73<>0,$Q73<>0,$U73>0,$V73=0),"BDI", IF(OR(AND(TIPOORCAMENTO="Proposto",$AG73<>"",$AG73>0,ORÇAMENTO.CustoUnitario>$AG73),AND(TIPOORCAMENTO="LICITADO",ORÇAMENTO.PrecoUnitarioLicitado>$AN73)),"ACIMA REF.", IF(AND($C73="S",$P73<>0,$Q73<>0,$T73=0,$U73>0),"QUANT.", IF(AND(Import.TipoArredondamento="TransfereGOV",$L73="F",$C73="S",LEN($Q73)>13),"Código >13", IF(AND(Import.TipoArredondamento="TransfereGOV",$L73="F",$C73<>"S",LEN($R73)>100),"Descrição >100", IF(AND(Import.TipoArredondamento="TransfereGOV",$L73="F",$C73="S",LEN($R73)>500),"Descrição >500", IF(AND(Import.TipoArredondamento="TransfereGOV",$L73="F",$C73="S",LEFT(TRIM(UPPER($P73)),6)<>"SINAPI",ISNA(VLOOKUP(TRIM(UPPER($S73)),ListaTgov.Unidades,1,FALSE))),"Unid. Não Disp", " ")))))))))))))))) ->  | AD73: =IF(C73<=CRONO.NivelExibicao,MAX($AD$15:OFFSET(AD73,-1,0))+IF($C73<>1,1,MAX(1,COUNTIF(QCI!$A$13:$A$24,OFFSET($E73,-1,0)))),"") ->  | AE73: =IF(AND($C73="S",ORÇAMENTO.CodBarra<>""),IF(ORÇAMENTO.Fonte="",ORÇAMENTO.CodBarra,CONCATENATE(ORÇAMENTO.Fonte," ",ORÇAMENTO.CodBarra))) -> Composição IUP30069 | AF73: =IF(ISERROR(INDIRECT(ORÇAMENTO.BancoRef)),"(abra o arquivo 'Referência "&Excel_BuiltIn_Database&".xlsm)",IF(OR($C73<>"S",ORÇAMENTO.CodBarra=""),"(Sem Código)",IF(ISERROR(MATCH($AE73,INDIRECT(ORÇAMENTO.BancoRef),0)),"(Código não identificado nas referências)",MATCH($AE73,INDIRECT(ORÇAMENTO.BancoRef),0)))) -> 17 | AG73: =ROUND(IF(DESONERACAO="sim",REFERENCIA.Desonerado,REFERENCIA.NaoDesonerado),2) -> 95.58 | AH73: =ROUND(IF(ISNUMBER(ORÇAMENTO.OpcaoBDI),ORÇAMENTO.OpcaoBDI,IF(LEFT(ORÇAMENTO.OpcaoBDI,3)="BDI",HLOOKUP(ORÇAMENTO.OpcaoBDI,$F$4:$H$5,2,FALSE),0)),15-11*$AF$9) -> 0.2338 | AJ73: 233.39 | AM73: 27523.68 | AN73: =ROUND(ORÇAMENTO.CustoUnitario*(1+$AH73),2) -> 117.93
A74: S | B74: 2 | C74: S | D74: 0 | E74: =IF($C74=1,OFFSET(E74,-1,0)+MAX(1,COUNTIF(QCI!$A$13:$A$24,OFFSET(ORÇAMENTO!E74,-1,0))),OFFSET(E74,-1,0)) -> 1 | F74: 6 | G74: 0 | H74: 0 | I74: 3 | J74: 0 | K74: =IF(OR($C74="S",$C74=0),0,MATCH(OFFSET($D74,0,$C74)+IF($C74<>1,1,COUNTIF(QCI!$A$13:$A$24,ORÇAMENTO!E74)),OFFSET($D74,1,$C74,ROW($C$110)-ROW($C74)),0)) -> 0 | L74: F | M74: Serviço | N74: Serviço | O74: 1.6.3. | P74: SINAPI | Q74: 100979 | R74: =IF($C74="S",REFERENCIA.Descricao,"(digite a descrição aqui)") -> CARGA, MANOBRA E DESCARGA DE SOLOS E MATERIAIS GRANULARES EM CAMINHÃO BASCULANTE 14 M³ - CARGA COM ESCAVADEIRA HIDRÁULICA (CAÇAMBA DE 1,20 M³ / 155 HP) E DESCARGA LIVRE (UNIDADE: M3). AF_07/2020 | S74: =REFERENCIA.Unidade -> M3 | T74: =OFFSET(CÁLCULO!H$15,ROW($T74)-ROW(T$15),0) -> 303.41 | U74: 6.65 | V74: BDI 1 | W74: =IF($C74="S",ROUND(IF(TIPOORCAMENTO="Proposto",ORÇAMENTO.CustoUnitario*(1+$AH74),ORÇAMENTO.PrecoUnitarioLicitado),15-13*$AF$10),0) -> 8.2 | X74: =IF($C74="S",IF(OR(Import.TipoArredondamento<>"TransfereGOV",ACOMPANHAMENTO="BM"),VTOTAL1,SUM(OFFSET(CÁLCULO!$AI$15,ROW($X74)-ROW($X$15),1):OFFSET(CÁLCULO!$BB$15,ROW($X74)-ROW($X$15),-1))),IF($C74=0,0,ROUND(SomaAgrup,15-13*$AF$11))) -> 2487.96 | Y74: RA | Z74: RA | AA74: =IF($C74="S",IF($Z74="CP",$X74,IF($Z74="RA",(($X74)*QCI!$AA$3),0)),SomaAgrup) -> 775.8851745 | AB74: 0 | AC74: =IF($N74=""," ", IF(AND($C74<>"S",OR($R74="",$R74="(digite a descrição aqui)")),"DESCRIÇÃO", IF(AND($C74="S",OR($Q74<>0,$T74>0,$U74>0),$P74=0),"FONTE", IF(AND($C74="S",$P74<>0,OR($T74>0,$U74>0),$Q74=0),"CÓDIGO", IF(AND($C74="S",$P74<>0,$Q74<>0,$R74="(Código não identificado nas referências)"),"CÓDIGO N/ID", IF(AND($C74="S",OR($R74="",$R74="(digite a descrição aqui)"),OR($Q74<>0,$T74>0,$U74>0)),"DESCRIÇÃO", IF(AND($C74="S",$P74<>0,$Q74<>0,$S74=""),"UNIDADE", IF(AND($C74="S",$P74<>0,$Q74<>0,$U74=0),"SEM CUSTO", IF(AND(TIPOORCAMENTO="Licitado",$AL74=0,$AN74>0),"SEM PREÇO", IF(AND($C74="S",$P74<>0,$Q74<>0,$U74>0,$V74=0),"BDI", IF(OR(AND(TIPOORCAMENTO="Proposto",$AG74<>"",$AG74>0,ORÇAMENTO.CustoUnitario>$AG74),AND(TIPOORCAMENTO="LICITADO",ORÇAMENTO.PrecoUnitarioLicitado>$AN74)),"ACIMA REF.", IF(AND($C74="S",$P74<>0,$Q74<>0,$T74=0,$U74>0),"QUANT.", IF(AND(Import.TipoArredondamento="TransfereGOV",$L74="F",$C74="S",LEN($Q74)>13),"Código >13", IF(AND(Import.TipoArredondamento="TransfereGOV",$L74="F",$C74<>"S",LEN($R74)>100),"Descrição >100", IF(AND(Import.TipoArredondamento="TransfereGOV",$L74="F",$C74="S",LEN($R74)>500),"Descrição >500", IF(AND(Import.TipoArredondamento="TransfereGOV",$L74="F",$C74="S",LEFT(TRIM(UPPER($P74)),6)<>"SINAPI",ISNA(VLOOKUP(TRIM(UPPER($S74)),ListaTgov.Unidades,1,FALSE))),"Unid. Não Disp", " ")))))))))))))))) ->  | AD74: =IF(C74<=CRONO.NivelExibicao,MAX($AD$15:OFFSET(AD74,-1,0))+IF($C74<>1,1,MAX(1,COUNTIF(QCI!$A$13:$A$24,OFFSET($E74,-1,0)))),"") ->  | AE74: =IF(AND($C74="S",ORÇAMENTO.CodBarra<>""),IF(ORÇAMENTO.Fonte="",ORÇAMENTO.CodBarra,CONCATENATE(ORÇAMENTO.Fonte," ",ORÇAMENTO.CodBarra))) -> SINAPI 100979 | AF74: =IF(ISERROR(INDIRECT(ORÇAMENTO.BancoRef)),"(abra o arquivo 'Referência "&Excel_BuiltIn_Database&".xlsm)",IF(OR($C74<>"S",ORÇAMENTO.CodBarra=""),"(Sem Código)",IF(ISERROR(MATCH($AE74,INDIRECT(ORÇAMENTO.BancoRef),0)),"(Código não identificado nas referências)",MATCH($AE74,INDIRECT(ORÇAMENTO.BancoRef),0)))) -> 15335 | AG74: =ROUND(IF(DESONERACAO="sim",REFERENCIA.Desonerado,REFERENCIA.NaoDesonerado),2) -> 6.65 | AH74: 0.2338 | AJ74: 303.41 | AM74: 2487.96 | AN74: 8.2
A75: S | B75: 2 | C75: S | D75: 0 | E75: =IF($C75=1,OFFSET(E75,-1,0)+MAX(1,COUNTIF(QCI!$A$13:$A$24,OFFSET(ORÇAMENTO!E75,-1,0))),OFFSET(E75,-1,0)) -> 1 | F75: 6 | G75: 0 | H75: 0 | I75: 4 | J75: 0 | K75: =IF(OR($C75="S",$C75=0),0,MATCH(OFFSET($D75,0,$C75)+IF($C75<>1,1,COUNTIF(QCI!$A$13:$A$24,ORÇAMENTO!E75)),OFFSET($D75,1,$C75,ROW($C$110)-ROW($C75)),0)) -> 0 | L75: F | M75: Serviço | N75: Serviço | O75: 1.6.4. | P75: SINAPI | Q75: 95876 | R75: =IF($C75="S",REFERENCIA.Descricao,"(digite a descrição aqui)") -> TRANSPORTE COM CAMINHÃO BASCULANTE DE 14 M³, EM VIA URBANA PAVIMENTADA, DMT ATÉ 30 KM (UNIDADE: M3XKM). AF_07/2020 | S75: =REFERENCIA.Unidade -> M3XKM | T75: =OFFSET(CÁLCULO!H$15,ROW($T75)-ROW(T$15),0) -> 9102.3 | U75: 2.14 | V75: BDI 1 | W75: =IF($C75="S",ROUND(IF(TIPOORCAMENTO="Proposto",ORÇAMENTO.CustoUnitario*(1+$AH75),ORÇAMENTO.PrecoUnitarioLicitado),15-13*$AF$10),0) -> 2.64 | X75: =IF($C75="S",IF(OR(Import.TipoArredondamento<>"TransfereGOV",ACOMPANHAMENTO="BM"),VTOTAL1,SUM(OFFSET(CÁLCULO!$AI$15,ROW($X75)-ROW($X$15),1):OFFSET(CÁLCULO!$BB$15,ROW($X75)-ROW($X$15),-1))),IF($C75=0,0,ROUND(SomaAgrup,15-13*$AF$11))) -> 24030.07 | Y75: RA | Z75: RA | AA75: =IF($C75="S",IF($Z75="CP",$X75,IF($Z75="RA",(($X75)*QCI!$AA$3),0)),SomaAgrup) -> 7493.920745 | AB75: 0 | AC75: =IF($N75=""," ", IF(AND($C75<>"S",OR($R75="",$R75="(digite a descrição aqui)")),"DESCRIÇÃO", IF(AND($C75="S",OR($Q75<>0,$T75>0,$U75>0),$P75=0),"FONTE", IF(AND($C75="S",$P75<>0,OR($T75>0,$U75>0),$Q75=0),"CÓDIGO", IF(AND($C75="S",$P75<>0,$Q75<>0,$R75="(Código não identificado nas referências)"),"CÓDIGO N/ID", IF(AND($C75="S",OR($R75="",$R75="(digite a descrição aqui)"),OR($Q75<>0,$T75>0,$U75>0)),"DESCRIÇÃO", IF(AND($C75="S",$P75<>0,$Q75<>0,$S75=""),"UNIDADE", IF(AND($C75="S",$P75<>0,$Q75<>0,$U75=0),"SEM CUSTO", IF(AND(TIPOORCAMENTO="Licitado",$AL75=0,$AN75>0),"SEM PREÇO", IF(AND($C75="S",$P75<>0,$Q75<>0,$U75>0,$V75=0),"BDI", IF(OR(AND(TIPOORCAMENTO="Proposto",$AG75<>"",$AG75>0,ORÇAMENTO.CustoUnitario>$AG75),AND(TIPOORCAMENTO="LICITADO",ORÇAMENTO.PrecoUnitarioLicitado>$AN75)),"ACIMA REF.", IF(AND($C75="S",$P75<>0,$Q75<>0,$T75=0,$U75>0),"QUANT.", IF(AND(Import.TipoArredondamento="TransfereGOV",$L75="F",$C75="S",LEN($Q75)>13),"Código >13", IF(AND(Import.TipoArredondamento="TransfereGOV",$L75="F",$C75<>"S",LEN($R75)>100),"Descrição >100", IF(AND(Import.TipoArredondamento="TransfereGOV",$L75="F",$C75="S",LEN($R75)>500),"Descrição >500", IF(AND(Import.TipoArredondamento="TransfereGOV",$L75="F",$C75="S",LEFT(TRIM(UPPER($P75)),6)<>"SINAPI",ISNA(VLOOKUP(TRIM(UPPER($S75)),ListaTgov.Unidades,1,FALSE))),"Unid. Não Disp", " ")))))))))))))))) ->  | AD75: =IF(C75<=CRONO.NivelExibicao,MAX($AD$15:OFFSET(AD75,-1,0))+IF($C75<>1,1,MAX(1,COUNTIF(QCI!$A$13:$A$24,OFFSET($E75,-1,0)))),"") ->  | AE75: =IF(AND($C75="S",ORÇAMENTO.CodBarra<>""),IF(ORÇAMENTO.Fonte="",ORÇAMENTO.CodBarra,CONCATENATE(ORÇAMENTO.Fonte," ",ORÇAMENTO.CodBarra))) -> SINAPI 95876 | AF75: =IF(ISERROR(INDIRECT(ORÇAMENTO.BancoRef)),"(abra o arquivo 'Referência "&Excel_BuiltIn_Database&".xlsm)",IF(OR($C75<>"S",ORÇAMENTO.CodBarra=""),"(Sem Código)",IF(ISERROR(MATCH($AE75,INDIRECT(ORÇAMENTO.BancoRef),0)),"(Código não identificado nas referências)",MATCH($AE75,INDIRECT(ORÇAMENTO.BancoRef),0)))) -> 15401 | AG75: =ROUND(IF(DESONERACAO="sim",REFERENCIA.Desonerado,REFERENCIA.NaoDesonerado),2) -> 2.14 | AH75: 0.2338 | AJ75: =AJ74*30 -> 9102.3 | AM75: 24030.07 | AN75: 2.64
A76: 2 | B76: 2 | C76: 2 | D76: 4 | E76: =IF($C76=1,OFFSET(E76,-1,0)+MAX(1,COUNTIF(QCI!$A$13:$A$24,OFFSET(ORÇAMENTO!E76,-1,0))),OFFSET(E76,-1,0)) -> 1 | F76: 7 | G76: 0 | H76: 0 | I76: 0 | J76: 34 | K76: =IF(OR($C76="S",$C76=0),0,MATCH(OFFSET($D76,0,$C76)+IF($C76<>1,1,COUNTIF(QCI!$A$13:$A$24,ORÇAMENTO!E76)),OFFSET($D76,1,$C76,ROW($C$110)-ROW($C76)),0)) -> 4 | L76: F | M76: Nível 2 | N76: Nível 2 | O76: 1.7. | P76: SINAPI | R76: IMPLANTAÇÃO ASFÁLTICA - PINTURA DE LIGAÇÃO | S76: =REFERENCIA.Unidade -> - | T76: =OFFSET(CÁLCULO!H$15,ROW($T76)-ROW(T$15),0) -> 0 | U76: 0 | V76: BDI 1 | W76: =IF($C76="S",ROUND(IF(TIPOORCAMENTO="Proposto",ORÇAMENTO.CustoUnitario*(1+$AH76),ORÇAMENTO.PrecoUnitarioLicitado),15-13*$AF$10),0) -> 0 | X76: =IF($C76="S",IF(OR(Import.TipoArredondamento<>"TransfereGOV",ACOMPANHAMENTO="BM"),VTOTAL1,SUM(OFFSET(CÁLCULO!$AI$15,ROW($X76)-ROW($X$15),1):OFFSET(CÁLCULO!$BB$15,ROW($X76)-ROW($X$15),-1))),IF($C76=0,0,ROUND(SomaAgrup,15-13*$AF$11))) -> 6154.35 | Y76: RA | AA76: =IF($C76="S",IF($Z76="CP",$X76,IF($Z76="RA",(($X76)*QCI!$AA$3),0)),SomaAgrup) -> 1919.270778 | AB76: 0 | AC76: =IF($N76=""," ", IF(AND($C76<>"S",OR($R76="",$R76="(digite a descrição aqui)")),"DESCRIÇÃO", IF(AND($C76="S",OR($Q76<>0,$T76>0,$U76>0),$P76=0),"FONTE", IF(AND($C76="S",$P76<>0,OR($T76>0,$U76>0),$Q76=0),"CÓDIGO", IF(AND($C76="S",$P76<>0,$Q76<>0,$R76="(Código não identificado nas referências)"),"CÓDIGO N/ID", IF(AND($C76="S",OR($R76="",$R76="(digite a descrição aqui)"),OR($Q76<>0,$T76>0,$U76>0)),"DESCRIÇÃO", IF(AND($C76="S",$P76<>0,$Q76<>0,$S76=""),"UNIDADE", IF(AND($C76="S",$P76<>0,$Q76<>0,$U76=0),"SEM CUSTO", IF(AND(TIPOORCAMENTO="Licitado",$AL76=0,$AN76>0),"SEM PREÇO", IF(AND($C76="S",$P76<>0,$Q76<>0,$U76>0,$V76=0),"BDI", IF(OR(AND(TIPOORCAMENTO="Proposto",$AG76<>"",$AG76>0,ORÇAMENTO.CustoUnitario>$AG76),AND(TIPOORCAMENTO="LICITADO",ORÇAMENTO.PrecoUnitarioLicitado>$AN76)),"ACIMA REF.", IF(AND($C76="S",$P76<>0,$Q76<>0,$T76=0,$U76>0),"QUANT.", IF(AND(Import.TipoArredondamento="TransfereGOV",$L76="F",$C76="S",LEN($Q76)>13),"Código >13", IF(AND(Import.TipoArredondamento="TransfereGOV",$L76="F",$C76<>"S",LEN($R76)>100),"Descrição >100", IF(AND(Import.TipoArredondamento="TransfereGOV",$L76="F",$C76="S",LEN($R76)>500),"Descrição >500", IF(AND(Import.TipoArredondamento="TransfereGOV",$L76="F",$C76="S",LEFT(TRIM(UPPER($P76)),6)<>"SINAPI",ISNA(VLOOKUP(TRIM(UPPER($S76)),ListaTgov.Unidades,1,FALSE))),"Unid. Não Disp", " ")))))))))))))))) ->  | AD76: =IF(C76<=CRONO.NivelExibicao,MAX($AD$15:OFFSET(AD76,-1,0))+IF($C76<>1,1,MAX(1,COUNTIF(QCI!$A$13:$A$24,OFFSET($E76,-1,0)))),"") -> 8 | AE76: =IF(AND($C76="S",ORÇAMENTO.CodBarra<>""),IF(ORÇAMENTO.Fonte="",ORÇAMENTO.CodBarra,CONCATENATE(ORÇAMENTO.Fonte," ",ORÇAMENTO.CodBarra))) -> FALSE | AF76: =IF(ISERROR(INDIRECT(ORÇAMENTO.BancoRef)),"(abra o arquivo 'Referência "&Excel_BuiltIn_Database&".xlsm)",IF(OR($C76<>"S",ORÇAMENTO.CodBarra=""),"(Sem Código)",IF(ISERROR(MATCH($AE76,INDIRECT(ORÇAMENTO.BancoRef),0)),"(Código não identificado nas referências)",MATCH($AE76,INDIRECT(ORÇAMENTO.BancoRef),0)))) -> (Sem Código) | AG76: =ROUND(IF(DESONERACAO="sim",REFERENCIA.Desonerado,REFERENCIA.NaoDesonerado),2) -> 0 | AH76: 0.2338 | AM76: 6154.35 | AN76: 0
A77: S | B77: 2 | C77: S | D77: 0 | E77: =IF($C77=1,OFFSET(E77,-1,0)+MAX(1,COUNTIF(QCI!$A$13:$A$24,OFFSET(ORÇAMENTO!E77,-1,0))),OFFSET(E77,-1,0)) -> 1 | F77: 7 | G77: 0 | H77: 0 | I77: 1 | J77: =IF(OR($C77="S",$C77=0),0,MATCH(0,OFFSET($D77,1,$C77,ROW($C$110)-ROW($C77)),0)) -> 0 | K77: =IF(OR($C77="S",$C77=0),0,MATCH(OFFSET($D77,0,$C77)+IF($C77<>1,1,COUNTIF(QCI!$A$13:$A$24,ORÇAMENTO!E77)),OFFSET($D77,1,$C77,ROW($C$110)-ROW($C77)),0)) -> 0 | L77: F | M77: Serviço | N77: Serviço | O77: 1.7.1. | P77: Composição | Q77: IUP30094 | R77: =IF($C77="S",REFERENCIA.Descricao,"(digite a descrição aqui)") -> EXECUÇÃO DE PINTURA DE LIGAÇÃO COM EMULSÃO ASFÁLTICA RR-1C | S77: =REFERENCIA.Unidade -> M2 | T77: =OFFSET(CÁLCULO!H$15,ROW($T77)-ROW(T$15),0) -> 1555.93 | U77: 3.18 | V77: BDI 1 | W77: =IF($C77="S",ROUND(IF(TIPOORCAMENTO="Proposto",ORÇAMENTO.CustoUnitario*(1+$AH77),ORÇAMENTO.PrecoUnitarioLicitado),15-13*$AF$10),0) -> 3.92 | X77: =IF($C77="S",IF(OR(Import.TipoArredondamento<>"TransfereGOV",ACOMPANHAMENTO="BM"),VTOTAL1,SUM(OFFSET(CÁLCULO!$AI$15,ROW($X77)-ROW($X$15),1):OFFSET(CÁLCULO!$BB$15,ROW($X77)-ROW($X$15),-1))),IF($C77=0,0,ROUND(SomaAgrup,15-13*$AF$11))) -> 6099.25 | Y77: RA | Z77: RA | AA77: =IF($C77="S",IF($Z77="CP",$X77,IF($Z77="RA",(($X77)*QCI!$AA$3),0)),SomaAgrup) -> 1902.087514 | AB77: 0 | AC77: =IF($N77=""," ", IF(AND($C77<>"S",OR($R77="",$R77="(digite a descrição aqui)")),"DESCRIÇÃO", IF(AND($C77="S",OR($Q77<>0,$T77>0,$U77>0),$P77=0),"FONTE", IF(AND($C77="S",$P77<>0,OR($T77>0,$U77>0),$Q77=0),"CÓDIGO", IF(AND($C77="S",$P77<>0,$Q77<>0,$R77="(Código não identificado nas referências)"),"CÓDIGO N/ID", IF(AND($C77="S",OR($R77="",$R77="(digite a descrição aqui)"),OR($Q77<>0,$T77>0,$U77>0)),"DESCRIÇÃO", IF(AND($C77="S",$P77<>0,$Q77<>0,$S77=""),"UNIDADE", IF(AND($C77="S",$P77<>0,$Q77<>0,$U77=0),"SEM CUSTO", IF(AND(TIPOORCAMENTO="Licitado",$AL77=0,$AN77>0),"SEM PREÇO", IF(AND($C77="S",$P77<>0,$Q77<>0,$U77>0,$V77=0),"BDI", IF(OR(AND(TIPOORCAMENTO="Proposto",$AG77<>"",$AG77>0,ORÇAMENTO.CustoUnitario>$AG77),AND(TIPOORCAMENTO="LICITADO",ORÇAMENTO.PrecoUnitarioLicitado>$AN77)),"ACIMA REF.", IF(AND($C77="S",$P77<>0,$Q77<>0,$T77=0,$U77>0),"QUANT.", IF(AND(Import.TipoArredondamento="TransfereGOV",$L77="F",$C77="S",LEN($Q77)>13),"Código >13", IF(AND(Import.TipoArredondamento="TransfereGOV",$L77="F",$C77<>"S",LEN($R77)>100),"Descrição >100", IF(AND(Import.TipoArredondamento="TransfereGOV",$L77="F",$C77="S",LEN($R77)>500),"Descrição >500", IF(AND(Import.TipoArredondamento="TransfereGOV",$L77="F",$C77="S",LEFT(TRIM(UPPER($P77)),6)<>"SINAPI",ISNA(VLOOKUP(TRIM(UPPER($S77)),ListaTgov.Unidades,1,FALSE))),"Unid. Não Disp", " ")))))))))))))))) ->  | AD77: =IF(C77<=CRONO.NivelExibicao,MAX($AD$15:OFFSET(AD77,-1,0))+IF($C77<>1,1,MAX(1,COUNTIF(QCI!$A$13:$A$24,OFFSET($E77,-1,0)))),"") ->  | AE77: =IF(AND($C77="S",ORÇAMENTO.CodBarra<>""),IF(ORÇAMENTO.Fonte="",ORÇAMENTO.CodBarra,CONCATENATE(ORÇAMENTO.Fonte," ",ORÇAMENTO.CodBarra))) -> Composição IUP30094 | AF77: =IF(ISERROR(INDIRECT(ORÇAMENTO.BancoRef)),"(abra o arquivo 'Referência "&Excel_BuiltIn_Database&".xlsm)",IF(OR($C77<>"S",ORÇAMENTO.CodBarra=""),"(Sem Código)",IF(ISERROR(MATCH($AE77,INDIRECT(ORÇAMENTO.BancoRef),0)),"(Código não identificado nas referências)",MATCH($AE77,INDIRECT(ORÇAMENTO.BancoRef),0)))) -> 14 | AG77: =ROUND(IF(DESONERACAO="sim",REFERENCIA.Desonerado,REFERENCIA.NaoDesonerado),2) -> 3.18 | AH77: 0.2338 | AJ77: 1555.93 | AM77: 6099.25 | AN77: 3.92
